{"text_format":"1","workbook":"xlsx","n_sheets":5,"sheets":["Info to fill in tabs","Port tab","Sampling tab","New species","Drop down items"],"not_rendered":{"charts":0,"images":1,"macros":1,"external_links":0,"defined_names":0,"comments":0,"pivot_tables":0},"unopened":[],"bounds":{"document_bytes":16777216,"sheet_cells":100000,"rows_first":2000,"rows_last":500,"rows_between":2000,"halvings":0,"cell_chars":16384,"cell_head_chars":4096},"cells_cut":0,"cells_raw":0,"read":"whole","date_system":"1900"}

{"sheet":"Info to fill in tabs","index":0,"n_rows":33,"n_cols":5,"rows_kept":33,"cut":false,"hidden":false,"merged":[]}
["Column name","Unit","Data type. If number (p,s) where\nprecision, p = length of the number in digits, and\nscale, s = places after the decimal point","Description","Optional / Mandatory"]
["Port tab "]
["UN/LOCODE",null,"text, 6 characters","Unique port identifier from United Nations Code for Trade and Transport Locations","Mandatory"]
["COUNTRY",null,"multiple options from drop down menu","Country of the port","Mandatory"]
["PORT_NAME",null,"text, 200 characters","Name of the port","Mandatory"]
["LOCATION",null,"text, 50 characters","Unique sampling site identifier , i.a. Site 1","Mandatory"]
["SALINITY_MAX_PSU","PSU","number between 0.0-40.0 ","Maximum salinity value measured during the port survey","Mandatory"]
["SALINITY_MIN_PSU","PSU","number between 0.0-40.0 ","Minimum salinity value measured during the port survey","Mandatory"]
["ORIGINATOR",null,"text, 200 characters","Organization responsible for the sampling","Mandatory"]
["LATITUDE_WGS84DEC","decimal degrees","number(8,6)","Latitude, WGS84, Latitude of each location sampled in the port","Mandatory"]
["LONGITUDE_WGS84DEC","decimal degrees","number(8,6)","Longitude, WGS84, Longitude of each location sampled in the port","Mandatory"]
[]
["Sampling tab "]
["UN/LOCODE",null,"text, 6 characters","Unique port identifier from United Nations Code for Trade and Transport Locations","Mandatory"]
["DATE_DAY",null,"date(DD)","Representative  Zeit for sampling start","Mandatory"]
["DATE_MONTH",null,"date(MM)","Representative  Zeit for sampling start","Mandatory"]
["DATE_YEAR",null,"date(YYYY)","Representative  Zeit for sampling start","Mandatory"]
["LOCATION",null,"text, 2000 characters","Sampling site identifier, i.a. Site 1. It should be the same as in the Port table","Mandatory"]
["FIELD_NUMBER",null,"text, 20 characters","Unique ID,  simple numbering 1,2,3… The same than SAMPLE_ID in the JHP_Port Survey data archive template","Mandatory"]
["SAMPLING_GROUP",null,"multiple options from drop down menu","Organism group name: Fouling, Phytoplankton, Zooplankton, Benthos or Mobile epifauna ","Mandatory"]
["SCIENTIFIC_NAME",null,"multiple options from drop down menu","Species scientific name selected from the species present in the database. Only taxa identified to species level","Mandatory"]
["SALINITY","PSU","number between 0.0-40.0 ","Salinity measured at the sampling location","Optional"]
["COMMENTS",null,"text, 2000 characters","Additional information. For 'Fouling' indicate whether it is 'scraping' or 'plates' sampling. For 'Phytoplankton' indicate whether it is 'water' or 'net' sampling.","Optional"]
[]
[]
["New Species tab"]
["SCIENTIFIC_NAME",null,"text, 200 characters","Please before entering a new Species name check http://www.marinespecies.org/ to ensure that the species status is accepted","Mandatory"]
["SPECIES_ID",null,"Number","Fill by the Secretariat","Mandatory"]
["APHIA_ID",null,"Number","Inique ID for each species in Worms (http://www.marinespecies.org). Only acepted taxonomical status are included as new species in the database","Mandatory"]
["ITIS_TSN",null,"Number","When a species is not present in Worms a IT IS TSN must be provided. Integrated Taxonomic Information System (https://www.itis.gov/)","Mandatory when APHIA_ID is not available"]
["OTHER_ID",null,"Number","When neither Worms nor ITIS contain a species an alternative source for its taxonomical status must be provided.","Mandatory when neither APHIA_ID nor IT IS_TSN are available"]
["SOURCE_OTHER_ID",null,"URL","URL to the database or species page with its taxonomical status","Mandatory when neither APHIA_ID nor IT IS_TSN are available"]
["SPECIES_GROUP",null,"multiple options from drop down menu","Organism group: Benthic Invertebrates, Birds, Fish and Lamprey, Macrophytes, Mammals, Phytoplankton, Zooplankton or Bacteria","Mandatory"]

{"sheet":"Port tab","index":1,"n_rows":1,"n_cols":9,"rows_kept":1,"cut":false,"hidden":false,"merged":[]}
["UN/LOCODE","COUNTRY","PORT_NAME","LOCATION","SALINITY_MAX_PSU","SALINITY_MIN_PSU","ORIGINATOR","LATITUDE_WGS84DEC","LONGITUDE_WGS84DEC"]

{"sheet":"Sampling tab","index":2,"n_rows":2000,"n_cols":11,"rows_kept":2000,"cut":false,"hidden":false,"merged":[]}
["UN/LOCODE","DATE_DAY","DATE_MONTH","DATE_YEAR","LOCATION","FIELD_NUMBER","SAMPLING_GROUP","SCIENTIFIC_NAME","SPECIES_ID","SALINITY_PSU","COMMENTS"]
[null,"",null,null,null,null,"","",{"$f":"VLOOKUP(H2,'Drop down items'!B2:C4868,2,FALSE)","v":{"$error":"#N/A"}}]
[null,null,null,null,null,null,null,null,{"$f":"VLOOKUP(H3,'Drop down items'!B3:C4869,2,FALSE)","v":{"$error":"#N/A"}}]
[null,null,null,null,null,null,null,null,{"$f":"VLOOKUP(H4,'Drop down items'!B4:C4870,2,FALSE)","v":{"$error":"#N/A"}}]
[null,null,null,null,null,null,null,null,{"$f":"VLOOKUP(H5,'Drop down items'!B5:C4871,2,FALSE)","v":{"$error":"#N/A"}}]
[null,null,null,null,null,null,null,null,{"$f":"VLOOKUP(H6,'Drop down items'!B6:C4872,2,FALSE)","v":{"$error":"#N/A"}}]
[null,null,null,null,null,null,null,null,{"$f":"VLOOKUP(H7,'Drop down items'!B7:C4873,2,FALSE)","v":{"$error":"#N/A"}}]
[null,null,null,null,null,null,null,null,{"$f":"VLOOKUP(H8,'Drop down items'!B8:C4874,2,FALSE)","v":{"$error":"#N/A"}}]
[null,null,null,null,null,null,null,null,{"$f":"VLOOKUP(H9,'Drop down items'!B9:C4875,2,FALSE)","v":{"$error":"#N/A"}}]
[null,null,null,null,null,null,null,null,{"$f":"VLOOKUP(H10,'Drop down items'!B10:C4876,2,FALSE)","v":{"$error":"#N/A"}}]
[null,null,null,null,null,null,null,null,{"$f":"VLOOKUP(H11,'Drop down items'!B11:C4877,2,FALSE)","v":{"$error":"#N/A"}}]
[null,null,null,null,null,null,null,null,{"$f":"VLOOKUP(H12,'Drop down items'!B12:C4878,2,FALSE)","v":{"$error":"#N/A"}}]
[null,null,null,null,null,null,null,null,{"$f":"VLOOKUP(H13,'Drop down items'!B13:C4879,2,FALSE)","v":{"$error":"#N/A"}}]
[null,null,null,null,null,null,null,null,{"$f":"VLOOKUP(H14,'Drop down items'!B14:C4880,2,FALSE)","v":{"$error":"#N/A"}}]
[null,null,null,null,null,null,null,null,{"$f":"VLOOKUP(H15,'Drop down items'!B15:C4881,2,FALSE)","v":{"$error":"#N/A"}}]
[null,null,null,null,null,null,null,"",{"$f":"VLOOKUP(H16,'Drop down items'!B16:C4882,2,FALSE)","v":{"$error":"#N/A"}}]
[null,null,null,null,null,null,null,"",{"$f":"VLOOKUP(H17,'Drop down items'!B17:C4883,2,FALSE)","v":{"$error":"#N/A"}}]
[null,null,null,null,null,null,null,null,{"$f":"VLOOKUP(H18,'Drop down items'!B18:C4884,2,FALSE)","v":{"$error":"#N/A"}}]
[null,null,null,null,null,null,null,null,{"$f":"VLOOKUP(H19,'Drop down items'!B19:C4885,2,FALSE)","v":{"$error":"#N/A"}}]
[null,null,null,null,null,null,null,null,{"$f":"VLOOKUP(H20,'Drop down items'!B20:C4886,2,FALSE)","v":{"$error":"#N/A"}}]
[null,null,null,null,null,null,null,null,{"$f":"VLOOKUP(H21,'Drop down items'!B21:C4887,2,FALSE)","v":{"$error":"#N/A"}}]
[null,null,null,null,null,null,null,null,{"$f":"VLOOKUP(H22,'Drop down items'!B22:C4888,2,FALSE)","v":{"$error":"#N/A"}}]
[null,null,null,null,null,null,null,null,{"$f":"VLOOKUP(H23,'Drop down items'!B23:C4889,2,FALSE)","v":{"$error":"#N/A"}}]
[null,null,null,null,null,null,null,null,{"$f":"VLOOKUP(H24,'Drop down items'!B24:C4890,2,FALSE)","v":{"$error":"#N/A"}}]
[null,null,null,null,null,null,null,null,{"$f":"VLOOKUP(H25,'Drop down items'!B25:C4891,2,FALSE)","v":{"$error":"#N/A"}}]
[null,null,null,null,null,null,null,null,{"$f":"VLOOKUP(H26,'Drop down items'!B26:C4892,2,FALSE)","v":{"$error":"#N/A"}}]
[null,null,null,null,null,null,null,null,{"$f":"VLOOKUP(H27,'Drop down items'!B27:C4893,2,FALSE)","v":{"$error":"#N/A"}}]
[null,null,null,null,null,null,null,null,{"$f":"VLOOKUP(H28,'Drop down items'!B28:C4894,2,FALSE)","v":{"$error":"#N/A"}}]
[null,null,null,null,null,null,null,null,{"$f":"VLOOKUP(H29,'Drop down items'!B29:C4895,2,FALSE)","v":{"$error":"#N/A"}}]
[null,null,null,null,null,null,null,null,{"$f":"VLOOKUP(H30,'Drop down items'!B30:C4896,2,FALSE)","v":{"$error":"#N/A"}}]
[null,null,null,null,null,null,null,null,{"$f":"VLOOKUP(H31,'Drop down items'!B31:C4897,2,FALSE)","v":{"$error":"#N/A"}}]
[null,null,null,null,null,null,null,null,{"$f":"VLOOKUP(H32,'Drop down items'!B32:C4898,2,FALSE)","v":{"$error":"#N/A"}}]
[null,null,null,null,null,null,null,null,{"$f":"VLOOKUP(H33,'Drop down items'!B33:C4899,2,FALSE)","v":{"$error":"#N/A"}}]
[null,null,null,null,null,null,null,null,{"$f":"VLOOKUP(H34,'Drop down items'!B34:C4900,2,FALSE)","v":{"$error":"#N/A"}}]
[null,null,null,null,null,null,null,null,{"$f":"VLOOKUP(H35,'Drop down items'!B35:C4901,2,FALSE)","v":{"$error":"#N/A"}}]
[null,null,null,null,null,null,null,null,{"$f":"VLOOKUP(H36,'Drop down items'!B36:C4902,2,FALSE)","v":{"$error":"#N/A"}}]
[null,null,null,null,null,null,null,null,{"$f":"VLOOKUP(H37,'Drop down items'!B37:C4903,2,FALSE)","v":{"$error":"#N/A"}}]
[null,null,null,null,null,null,null,null,{"$f":"VLOOKUP(H38,'Drop down items'!B38:C4904,2,FALSE)","v":{"$error":"#N/A"}}]
[null,null,null,null,null,null,null,null,{"$f":"VLOOKUP(H39,'Drop down items'!B39:C4905,2,FALSE)","v":{"$error":"#N/A"}}]
[null,null,null,null,null,null,null,null,{"$f":"VLOOKUP(H40,'Drop down items'!B40:C4906,2,FALSE)","v":{"$error":"#N/A"}}]
[null,null,null,null,null,null,null,null,{"$f":"VLOOKUP(H41,'Drop down items'!B41:C4907,2,FALSE)","v":{"$error":"#N/A"}}]
[null,null,null,null,null,null,null,null,{"$f":"VLOOKUP(H42,'Drop down items'!B42:C4908,2,FALSE)","v":{"$error":"#N/A"}}]
[null,null,null,null,null,null,null,null,{"$f":"VLOOKUP(H43,'Drop down items'!B43:C4909,2,FALSE)","v":{"$error":"#N/A"}}]
[null,null,null,null,null,null,null,null,{"$f":"VLOOKUP(H44,'Drop down items'!B44:C4910,2,FALSE)","v":{"$error":"#N/A"}}]
[null,null,null,null,null,null,null,null,{"$f":"VLOOKUP(H45,'Drop down items'!B45:C4911,2,FALSE)","v":{"$error":"#N/A"}}]
[null,null,null,null,null,null,null,null,{"$f":"VLOOKUP(H46,'Drop down items'!B46:C4912,2,FALSE)","v":{"$error":"#N/A"}}]
[null,null,null,null,null,null,null,null,{"$f":"VLOOKUP(H47,'Drop down items'!B47:C4913,2,FALSE)","v":{"$error":"#N/A"}}]
[null,null,null,null,null,null,null,null,{"$f":"VLOOKUP(H48,'Drop down items'!B48:C4914,2,FALSE)","v":{"$error":"#N/A"}}]
[null,null,null,null,null,null,null,null,{"$f":"VLOOKUP(H49,'Drop down items'!B49:C4915,2,FALSE)","v":{"$error":"#N/A"}}]
[null,null,null,null,null,null,null,null,{"$f":"VLOOKUP(H50,'Drop down items'!B50:C4916,2,FALSE)","v":{"$error":"#N/A"}}]
[null,null,null,null,null,null,null,null,{"$f":"VLOOKUP(H51,'Drop down items'!B51:C4917,2,FALSE)","v":{"$error":"#N/A"}}]
[null,null,null,null,null,null,null,null,{"$f":"VLOOKUP(H52,'Drop down items'!B52:C4918,2,FALSE)","v":{"$error":"#N/A"}}]
[null,null,null,null,null,null,null,null,{"$f":"VLOOKUP(H53,'Drop down items'!B53:C4919,2,FALSE)","v":{"$error":"#N/A"}}]
[null,null,null,null,null,null,null,null,{"$f":"VLOOKUP(H54,'Drop down items'!B54:C4920,2,FALSE)","v":{"$error":"#N/A"}}]
[null,null,null,null,null,null,null,null,{"$f":"VLOOKUP(H55,'Drop down items'!B55:C4921,2,FALSE)","v":{"$error":"#N/A"}}]
[null,null,null,null,null,null,null,null,{"$f":"VLOOKUP(H56,'Drop down items'!B56:C4922,2,FALSE)","v":{"$error":"#N/A"}}]
[null,null,null,null,null,null,null,null,{"$f":"VLOOKUP(H57,'Drop down items'!B57:C4923,2,FALSE)","v":{"$error":"#N/A"}}]
[null,null,null,null,null,null,null,null,{"$f":"VLOOKUP(H58,'Drop down items'!B58:C4924,2,FALSE)","v":{"$error":"#N/A"}}]
[null,null,null,null,null,null,null,null,{"$f":"VLOOKUP(H59,'Drop down items'!B59:C4925,2,FALSE)","v":{"$error":"#N/A"}}]
[null,null,null,null,null,null,null,null,{"$f":"VLOOKUP(H60,'Drop down items'!B60:C4926,2,FALSE)","v":{"$error":"#N/A"}}]
[null,null,null,null,null,null,null,null,{"$f":"VLOOKUP(H61,'Drop down items'!B61:C4927,2,FALSE)","v":{"$error":"#N/A"}}]
[null,null,null,null,null,null,null,null,{"$f":"VLOOKUP(H62,'Drop down items'!B62:C4928,2,FALSE)","v":{"$error":"#N/A"}}]
[null,null,null,null,null,null,null,null,{"$f":"VLOOKUP(H63,'Drop down items'!B63:C4929,2,FALSE)","v":{"$error":"#N/A"}}]
[null,null,null,null,null,null,null,null,{"$f":"VLOOKUP(H64,'Drop down items'!B64:C4930,2,FALSE)","v":{"$error":"#N/A"}}]
[null,null,null,null,null,null,null,null,{"$f":"VLOOKUP(H65,'Drop down items'!B65:C4931,2,FALSE)","v":{"$error":"#N/A"}}]
[null,null,null,null,null,null,null,null,{"$f":"VLOOKUP(H66,'Drop down items'!B66:C4932,2,FALSE)","v":{"$error":"#N/A"}}]
[null,null,null,null,null,null,null,null,{"$f":"VLOOKUP(H67,'Drop down items'!B67:C4933,2,FALSE)","v":{"$error":"#N/A"}}]
[null,null,null,null,null,null,null,null,{"$f":"VLOOKUP(H68,'Drop down items'!B68:C4934,2,FALSE)","v":{"$error":"#N/A"}}]
[null,null,null,null,null,null,null,null,{"$f":"VLOOKUP(H69,'Drop down items'!B69:C4935,2,FALSE)","v":{"$error":"#N/A"}}]
[null,null,null,null,null,null,null,null,{"$f":"VLOOKUP(H70,'Drop down items'!B70:C4936,2,FALSE)","v":{"$error":"#N/A"}}]
[null,null,null,null,null,null,null,null,{"$f":"VLOOKUP(H71,'Drop down items'!B71:C4937,2,FALSE)","v":{"$error":"#N/A"}}]
[null,null,null,null,null,null,null,null,{"$f":"VLOOKUP(H72,'Drop down items'!B72:C4938,2,FALSE)","v":{"$error":"#N/A"}}]
[null,null,null,null,null,null,null,null,{"$f":"VLOOKUP(H73,'Drop down items'!B73:C4939,2,FALSE)","v":{"$error":"#N/A"}}]
[null,null,null,null,null,null,null,null,{"$f":"VLOOKUP(H74,'Drop down items'!B74:C4940,2,FALSE)","v":{"$error":"#N/A"}}]
[null,null,null,null,null,null,null,null,{"$f":"VLOOKUP(H75,'Drop down items'!B75:C4941,2,FALSE)","v":{"$error":"#N/A"}}]
[null,null,null,null,null,null,null,null,{"$f":"VLOOKUP(H76,'Drop down items'!B76:C4942,2,FALSE)","v":{"$error":"#N/A"}}]
[null,null,null,null,null,null,null,null,{"$f":"VLOOKUP(H77,'Drop down items'!B77:C4943,2,FALSE)","v":{"$error":"#N/A"}}]
[null,null,null,null,null,null,null,null,{"$f":"VLOOKUP(H78,'Drop down items'!B78:C4944,2,FALSE)","v":{"$error":"#N/A"}}]
[null,null,null,null,null,null,null,null,{"$f":"VLOOKUP(H79,'Drop down items'!B79:C4945,2,FALSE)","v":{"$error":"#N/A"}}]
[null,null,null,null,null,null,null,null,{"$f":"VLOOKUP(H80,'Drop down items'!B80:C4946,2,FALSE)","v":{"$error":"#N/A"}}]
[null,null,null,null,null,null,null,null,{"$f":"VLOOKUP(H81,'Drop down items'!B81:C4947,2,FALSE)","v":{"$error":"#N/A"}}]
[null,null,null,null,null,null,null,null,{"$f":"VLOOKUP(H82,'Drop down items'!B82:C4948,2,FALSE)","v":{"$error":"#N/A"}}]
[null,null,null,null,null,null,null,null,{"$f":"VLOOKUP(H83,'Drop down items'!B83:C4949,2,FALSE)","v":{"$error":"#N/A"}}]
[null,null,null,null,null,null,null,null,{"$f":"VLOOKUP(H84,'Drop down items'!B84:C4950,2,FALSE)","v":{"$error":"#N/A"}}]
[null,null,null,null,null,null,null,null,{"$f":"VLOOKUP(H85,'Drop down items'!B85:C4951,2,FALSE)","v":{"$error":"#N/A"}}]
[null,null,null,null,null,null,null,null,{"$f":"VLOOKUP(H86,'Drop down items'!B86:C4952,2,FALSE)","v":{"$error":"#N/A"}}]
[null,null,null,null,null,null,null,null,{"$f":"VLOOKUP(H87,'Drop down items'!B87:C4953,2,FALSE)","v":{"$error":"#N/A"}}]
[null,null,null,null,null,null,null,null,{"$f":"VLOOKUP(H88,'Drop down items'!B88:C4954,2,FALSE)","v":{"$error":"#N/A"}}]
[null,null,null,null,null,null,null,null,{"$f":"VLOOKUP(H89,'Drop down items'!B89:C4955,2,FALSE)","v":{"$error":"#N/A"}}]
[null,null,null,null,null,null,null,null,{"$f":"VLOOKUP(H90,'Drop down items'!B90:C4956,2,FALSE)","v":{"$error":"#N/A"}}]
[null,null,null,null,null,null,null,null,{"$f":"VLOOKUP(H91,'Drop down items'!B91:C4957,2,FALSE)","v":{"$error":"#N/A"}}]
[null,null,null,null,null,null,null,null,{"$f":"VLOOKUP(H92,'Drop down items'!B92:C4958,2,FALSE)","v":{"$error":"#N/A"}}]
[null,null,null,null,null,null,null,null,{"$f":"VLOOKUP(H93,'Drop down items'!B93:C4959,2,FALSE)","v":{"$error":"#N/A"}}]
[null,null,null,null,null,null,null,null,{"$f":"VLOOKUP(H94,'Drop down items'!B94:C4960,2,FALSE)","v":{"$error":"#N/A"}}]
[null,null,null,null,null,null,null,null,{"$f":"VLOOKUP(H95,'Drop down items'!B95:C4961,2,FALSE)","v":{"$error":"#N/A"}}]
[null,null,null,null,null,null,null,null,{"$f":"VLOOKUP(H96,'Drop down items'!B96:C4962,2,FALSE)","v":{"$error":"#N/A"}}]
[null,null,null,null,null,null,null,null,{"$f":"VLOOKUP(H97,'Drop down items'!B97:C4963,2,FALSE)","v":{"$error":"#N/A"}}]
[null,null,null,null,null,null,null,null,{"$f":"VLOOKUP(H98,'Drop down items'!B98:C4964,2,FALSE)","v":{"$error":"#N/A"}}]
[null,null,null,null,null,null,null,null,{"$f":"VLOOKUP(H99,'Drop down items'!B99:C4965,2,FALSE)","v":{"$error":"#N/A"}}]
[null,null,null,null,null,null,null,null,{"$f":"VLOOKUP(H100,'Drop down items'!B100:C4966,2,FALSE)","v":{"$error":"#N/A"}}]
[null,null,null,null,null,null,null,null,{"$f":"VLOOKUP(H101,'Drop down items'!B101:C4967,2,FALSE)","v":{"$error":"#N/A"}}]
[null,null,null,null,null,null,null,null,{"$f":"VLOOKUP(H102,'Drop down items'!B102:C4968,2,FALSE)","v":{"$error":"#N/A"}}]
[null,null,null,null,null,null,null,null,{"$f":"VLOOKUP(H103,'Drop down items'!B103:C4969,2,FALSE)","v":{"$error":"#N/A"}}]
[null,null,null,null,null,null,null,null,{"$f":"VLOOKUP(H104,'Drop down items'!B104:C4970,2,FALSE)","v":{"$error":"#N/A"}}]
[null,null,null,null,null,null,null,null,{"$f":"VLOOKUP(H105,'Drop down items'!B105:C4971,2,FALSE)","v":{"$error":"#N/A"}}]
[null,null,null,null,null,null,null,null,{"$f":"VLOOKUP(H106,'Drop down items'!B106:C4972,2,FALSE)","v":{"$error":"#N/A"}}]
[null,null,null,null,null,null,null,null,{"$f":"VLOOKUP(H107,'Drop down items'!B107:C4973,2,FALSE)","v":{"$error":"#N/A"}}]
[null,null,null,null,null,null,null,null,{"$f":"VLOOKUP(H108,'Drop down items'!B108:C4974,2,FALSE)","v":{"$error":"#N/A"}}]
[null,null,null,null,null,null,null,null,{"$f":"VLOOKUP(H109,'Drop down items'!B109:C4975,2,FALSE)","v":{"$error":"#N/A"}}]
[null,null,null,null,null,null,null,null,{"$f":"VLOOKUP(H110,'Drop down items'!B110:C4976,2,FALSE)","v":{"$error":"#N/A"}}]
[null,null,null,null,null,null,null,null,{"$f":"VLOOKUP(H111,'Drop down items'!B111:C4977,2,FALSE)","v":{"$error":"#N/A"}}]
[null,null,null,null,null,null,null,null,{"$f":"VLOOKUP(H112,'Drop down items'!B112:C4978,2,FALSE)","v":{"$error":"#N/A"}}]
[null,null,null,null,null,null,null,null,{"$f":"VLOOKUP(H113,'Drop down items'!B113:C4979,2,FALSE)","v":{"$error":"#N/A"}}]
[null,null,null,null,null,null,null,null,{"$f":"VLOOKUP(H114,'Drop down items'!B114:C4980,2,FALSE)","v":{"$error":"#N/A"}}]
[null,null,null,null,null,null,null,null,{"$f":"VLOOKUP(H115,'Drop down items'!B115:C4981,2,FALSE)","v":{"$error":"#N/A"}}]
[null,null,null,null,null,null,null,null,{"$f":"VLOOKUP(H116,'Drop down items'!B116:C4982,2,FALSE)","v":{"$error":"#N/A"}}]
[null,null,null,null,null,null,null,null,{"$f":"VLOOKUP(H117,'Drop down items'!B117:C4983,2,FALSE)","v":{"$error":"#N/A"}}]
[null,null,null,null,null,null,null,null,{"$f":"VLOOKUP(H118,'Drop down items'!B118:C4984,2,FALSE)","v":{"$error":"#N/A"}}]
[null,null,null,null,null,null,null,null,{"$f":"VLOOKUP(H119,'Drop down items'!B119:C4985,2,FALSE)","v":{"$error":"#N/A"}}]
[null,null,null,null,null,null,null,null,{"$f":"VLOOKUP(H120,'Drop down items'!B120:C4986,2,FALSE)","v":{"$error":"#N/A"}}]
[null,null,null,null,null,null,null,null,{"$f":"VLOOKUP(H121,'Drop down items'!B121:C4987,2,FALSE)","v":{"$error":"#N/A"}}]
[null,null,null,null,null,null,null,null,{"$f":"VLOOKUP(H122,'Drop down items'!B122:C4988,2,FALSE)","v":{"$error":"#N/A"}}]
[null,null,null,null,null,null,null,null,{"$f":"VLOOKUP(H123,'Drop down items'!B123:C4989,2,FALSE)","v":{"$error":"#N/A"}}]
[null,null,null,null,null,null,null,null,{"$f":"VLOOKUP(H124,'Drop down items'!B124:C4990,2,FALSE)","v":{"$error":"#N/A"}}]
[null,null,null,null,null,null,null,null,{"$f":"VLOOKUP(H125,'Drop down items'!B125:C4991,2,FALSE)","v":{"$error":"#N/A"}}]
[null,null,null,null,null,null,null,null,{"$f":"VLOOKUP(H126,'Drop down items'!B126:C4992,2,FALSE)","v":{"$error":"#N/A"}}]
[null,null,null,null,null,null,null,null,{"$f":"VLOOKUP(H127,'Drop down items'!B127:C4993,2,FALSE)","v":{"$error":"#N/A"}}]
[null,null,null,null,null,null,null,null,{"$f":"VLOOKUP(H128,'Drop down items'!B128:C4994,2,FALSE)","v":{"$error":"#N/A"}}]
[null,null,null,null,null,null,null,null,{"$f":"VLOOKUP(H129,'Drop down items'!B129:C4995,2,FALSE)","v":{"$error":"#N/A"}}]
[null,null,null,null,null,null,null,null,{"$f":"VLOOKUP(H130,'Drop down items'!B130:C4996,2,FALSE)","v":{"$error":"#N/A"}}]
[null,null,null,null,null,null,null,null,{"$f":"VLOOKUP(H131,'Drop down items'!B131:C4997,2,FALSE)","v":{"$error":"#N/A"}}]
[null,null,null,null,null,null,null,null,{"$f":"VLOOKUP(H132,'Drop down items'!B132:C4998,2,FALSE)","v":{"$error":"#N/A"}}]
[null,null,null,null,null,null,null,null,{"$f":"VLOOKUP(H133,'Drop down items'!B133:C4999,2,FALSE)","v":{"$error":"#N/A"}}]
[null,null,null,null,null,null,null,null,{"$f":"VLOOKUP(H134,'Drop down items'!B134:C5000,2,FALSE)","v":{"$error":"#N/A"}}]
[null,null,null,null,null,null,null,null,{"$f":"VLOOKUP(H135,'Drop down items'!B135:C5001,2,FALSE)","v":{"$error":"#N/A"}}]
[null,null,null,null,null,null,null,null,{"$f":"VLOOKUP(H136,'Drop down items'!B136:C5002,2,FALSE)","v":{"$error":"#N/A"}}]
[null,null,null,null,null,null,null,null,{"$f":"VLOOKUP(H137,'Drop down items'!B137:C5003,2,FALSE)","v":{"$error":"#N/A"}}]
[null,null,null,null,null,null,null,null,{"$f":"VLOOKUP(H138,'Drop down items'!B138:C5004,2,FALSE)","v":{"$error":"#N/A"}}]
[null,null,null,null,null,null,null,null,{"$f":"VLOOKUP(H139,'Drop down items'!B139:C5005,2,FALSE)","v":{"$error":"#N/A"}}]
[null,null,null,null,null,null,null,null,{"$f":"VLOOKUP(H140,'Drop down items'!B140:C5006,2,FALSE)","v":{"$error":"#N/A"}}]
[null,null,null,null,null,null,null,null,{"$f":"VLOOKUP(H141,'Drop down items'!B141:C5007,2,FALSE)","v":{"$error":"#N/A"}}]
[null,null,null,null,null,null,null,null,{"$f":"VLOOKUP(H142,'Drop down items'!B142:C5008,2,FALSE)","v":{"$error":"#N/A"}}]
[null,null,null,null,null,null,null,null,{"$f":"VLOOKUP(H143,'Drop down items'!B143:C5009,2,FALSE)","v":{"$error":"#N/A"}}]
[null,null,null,null,null,null,null,null,{"$f":"VLOOKUP(H144,'Drop down items'!B144:C5010,2,FALSE)","v":{"$error":"#N/A"}}]
[null,null,null,null,null,null,null,null,{"$f":"VLOOKUP(H145,'Drop down items'!B145:C5011,2,FALSE)","v":{"$error":"#N/A"}}]
[null,null,null,null,null,null,null,null,{"$f":"VLOOKUP(H146,'Drop down items'!B146:C5012,2,FALSE)","v":{"$error":"#N/A"}}]
[null,null,null,null,null,null,null,null,{"$f":"VLOOKUP(H147,'Drop down items'!B147:C5013,2,FALSE)","v":{"$error":"#N/A"}}]
[null,null,null,null,null,null,null,null,{"$f":"VLOOKUP(H148,'Drop down items'!B148:C5014,2,FALSE)","v":{"$error":"#N/A"}}]
[null,null,null,null,null,null,null,null,{"$f":"VLOOKUP(H149,'Drop down items'!B149:C5015,2,FALSE)","v":{"$error":"#N/A"}}]
[null,null,null,null,null,null,null,null,{"$f":"VLOOKUP(H150,'Drop down items'!B150:C5016,2,FALSE)","v":{"$error":"#N/A"}}]
[null,null,null,null,null,null,null,null,{"$f":"VLOOKUP(H151,'Drop down items'!B151:C5017,2,FALSE)","v":{"$error":"#N/A"}}]
[null,null,null,null,null,null,null,null,{"$f":"VLOOKUP(H152,'Drop down items'!B152:C5018,2,FALSE)","v":{"$error":"#N/A"}}]
[null,null,null,null,null,null,null,null,{"$f":"VLOOKUP(H153,'Drop down items'!B153:C5019,2,FALSE)","v":{"$error":"#N/A"}}]
[null,null,null,null,null,null,null,null,{"$f":"VLOOKUP(H154,'Drop down items'!B154:C5020,2,FALSE)","v":{"$error":"#N/A"}}]
[null,null,null,null,null,null,null,null,{"$f":"VLOOKUP(H155,'Drop down items'!B155:C5021,2,FALSE)","v":{"$error":"#N/A"}}]
[null,null,null,null,null,null,null,null,{"$f":"VLOOKUP(H156,'Drop down items'!B156:C5022,2,FALSE)","v":{"$error":"#N/A"}}]
[null,null,null,null,null,null,null,null,{"$f":"VLOOKUP(H157,'Drop down items'!B157:C5023,2,FALSE)","v":{"$error":"#N/A"}}]
[null,null,null,null,null,null,null,null,{"$f":"VLOOKUP(H158,'Drop down items'!B158:C5024,2,FALSE)","v":{"$error":"#N/A"}}]
[null,null,null,null,null,null,null,null,{"$f":"VLOOKUP(H159,'Drop down items'!B159:C5025,2,FALSE)","v":{"$error":"#N/A"}}]
[null,null,null,null,null,null,null,null,{"$f":"VLOOKUP(H160,'Drop down items'!B160:C5026,2,FALSE)","v":{"$error":"#N/A"}}]
[null,null,null,null,null,null,null,null,{"$f":"VLOOKUP(H161,'Drop down items'!B161:C5027,2,FALSE)","v":{"$error":"#N/A"}}]
[null,null,null,null,null,null,null,null,{"$f":"VLOOKUP(H162,'Drop down items'!B162:C5028,2,FALSE)","v":{"$error":"#N/A"}}]
[null,null,null,null,null,null,null,null,{"$f":"VLOOKUP(H163,'Drop down items'!B163:C5029,2,FALSE)","v":{"$error":"#N/A"}}]
[null,null,null,null,null,null,null,null,{"$f":"VLOOKUP(H164,'Drop down items'!B164:C5030,2,FALSE)","v":{"$error":"#N/A"}}]
[null,null,null,null,null,null,null,null,{"$f":"VLOOKUP(H165,'Drop down items'!B165:C5031,2,FALSE)","v":{"$error":"#N/A"}}]
[null,null,null,null,null,null,null,null,{"$f":"VLOOKUP(H166,'Drop down items'!B166:C5032,2,FALSE)","v":{"$error":"#N/A"}}]
[null,null,null,null,null,null,null,null,{"$f":"VLOOKUP(H167,'Drop down items'!B167:C5033,2,FALSE)","v":{"$error":"#N/A"}}]
[null,null,null,null,null,null,null,null,{"$f":"VLOOKUP(H168,'Drop down items'!B168:C5034,2,FALSE)","v":{"$error":"#N/A"}}]
[null,null,null,null,null,null,null,null,{"$f":"VLOOKUP(H169,'Drop down items'!B169:C5035,2,FALSE)","v":{"$error":"#N/A"}}]
[null,null,null,null,null,null,null,null,{"$f":"VLOOKUP(H170,'Drop down items'!B170:C5036,2,FALSE)","v":{"$error":"#N/A"}}]
[null,null,null,null,null,null,null,null,{"$f":"VLOOKUP(H171,'Drop down items'!B171:C5037,2,FALSE)","v":{"$error":"#N/A"}}]
[null,null,null,null,null,null,null,null,{"$f":"VLOOKUP(H172,'Drop down items'!B172:C5038,2,FALSE)","v":{"$error":"#N/A"}}]
[null,null,null,null,null,null,null,null,{"$f":"VLOOKUP(H173,'Drop down items'!B173:C5039,2,FALSE)","v":{"$error":"#N/A"}}]
[null,null,null,null,null,null,null,null,{"$f":"VLOOKUP(H174,'Drop down items'!B174:C5040,2,FALSE)","v":{"$error":"#N/A"}}]
[null,null,null,null,null,null,null,null,{"$f":"VLOOKUP(H175,'Drop down items'!B175:C5041,2,FALSE)","v":{"$error":"#N/A"}}]
[null,null,null,null,null,null,null,null,{"$f":"VLOOKUP(H176,'Drop down items'!B176:C5042,2,FALSE)","v":{"$error":"#N/A"}}]
[null,null,null,null,null,null,null,null,{"$f":"VLOOKUP(H177,'Drop down items'!B177:C5043,2,FALSE)","v":{"$error":"#N/A"}}]
[null,null,null,null,null,null,null,null,{"$f":"VLOOKUP(H178,'Drop down items'!B178:C5044,2,FALSE)","v":{"$error":"#N/A"}}]
[null,null,null,null,null,null,null,null,{"$f":"VLOOKUP(H179,'Drop down items'!B179:C5045,2,FALSE)","v":{"$error":"#N/A"}}]
[null,null,null,null,null,null,null,null,{"$f":"VLOOKUP(H180,'Drop down items'!B180:C5046,2,FALSE)","v":{"$error":"#N/A"}}]
[null,null,null,null,null,null,null,null,{"$f":"VLOOKUP(H181,'Drop down items'!B181:C5047,2,FALSE)","v":{"$error":"#N/A"}}]
[null,null,null,null,null,null,null,null,{"$f":"VLOOKUP(H182,'Drop down items'!B182:C5048,2,FALSE)","v":{"$error":"#N/A"}}]
[null,null,null,null,null,null,null,null,{"$f":"VLOOKUP(H183,'Drop down items'!B183:C5049,2,FALSE)","v":{"$error":"#N/A"}}]
[null,null,null,null,null,null,null,null,{"$f":"VLOOKUP(H184,'Drop down items'!B184:C5050,2,FALSE)","v":{"$error":"#N/A"}}]
[null,null,null,null,null,null,null,null,{"$f":"VLOOKUP(H185,'Drop down items'!B185:C5051,2,FALSE)","v":{"$error":"#N/A"}}]
[null,null,null,null,null,null,null,null,{"$f":"VLOOKUP(H186,'Drop down items'!B186:C5052,2,FALSE)","v":{"$error":"#N/A"}}]
[null,null,null,null,null,null,null,null,{"$f":"VLOOKUP(H187,'Drop down items'!B187:C5053,2,FALSE)","v":{"$error":"#N/A"}}]
[null,null,null,null,null,null,null,null,{"$f":"VLOOKUP(H188,'Drop down items'!B188:C5054,2,FALSE)","v":{"$error":"#N/A"}}]
[null,null,null,null,null,null,null,null,{"$f":"VLOOKUP(H189,'Drop down items'!B189:C5055,2,FALSE)","v":{"$error":"#N/A"}}]
[null,null,null,null,null,null,null,null,{"$f":"VLOOKUP(H190,'Drop down items'!B190:C5056,2,FALSE)","v":{"$error":"#N/A"}}]
[null,null,null,null,null,null,null,null,{"$f":"VLOOKUP(H191,'Drop down items'!B191:C5057,2,FALSE)","v":{"$error":"#N/A"}}]
[null,null,null,null,null,null,null,null,{"$f":"VLOOKUP(H192,'Drop down items'!B192:C5058,2,FALSE)","v":{"$error":"#N/A"}}]
[null,null,null,null,null,null,null,null,{"$f":"VLOOKUP(H193,'Drop down items'!B193:C5059,2,FALSE)","v":{"$error":"#N/A"}}]
[null,null,null,null,null,null,null,null,{"$f":"VLOOKUP(H194,'Drop down items'!B194:C5060,2,FALSE)","v":{"$error":"#N/A"}}]
[null,null,null,null,null,null,null,null,{"$f":"VLOOKUP(H195,'Drop down items'!B195:C5061,2,FALSE)","v":{"$error":"#N/A"}}]
[null,null,null,null,null,null,null,null,{"$f":"VLOOKUP(H196,'Drop down items'!B196:C5062,2,FALSE)","v":{"$error":"#N/A"}}]
[null,null,null,null,null,null,null,null,{"$f":"VLOOKUP(H197,'Drop down items'!B197:C5063,2,FALSE)","v":{"$error":"#N/A"}}]
[null,null,null,null,null,null,null,null,{"$f":"VLOOKUP(H198,'Drop down items'!B198:C5064,2,FALSE)","v":{"$error":"#N/A"}}]
[null,null,null,null,null,null,null,null,{"$f":"VLOOKUP(H199,'Drop down items'!B199:C5065,2,FALSE)","v":{"$error":"#N/A"}}]
[null,null,null,null,null,null,null,null,{"$f":"VLOOKUP(H200,'Drop down items'!B200:C5066,2,FALSE)","v":{"$error":"#N/A"}}]
[null,null,null,null,null,null,null,null,{"$f":"VLOOKUP(H201,'Drop down items'!B201:C5067,2,FALSE)","v":{"$error":"#N/A"}}]
[null,null,null,null,null,null,null,null,{"$f":"VLOOKUP(H202,'Drop down items'!B202:C5068,2,FALSE)","v":{"$error":"#N/A"}}]
[null,null,null,null,null,null,null,null,{"$f":"VLOOKUP(H203,'Drop down items'!B203:C5069,2,FALSE)","v":{"$error":"#N/A"}}]
[null,null,null,null,null,null,null,null,{"$f":"VLOOKUP(H204,'Drop down items'!B204:C5070,2,FALSE)","v":{"$error":"#N/A"}}]
[null,null,null,null,null,null,null,null,{"$f":"VLOOKUP(H205,'Drop down items'!B205:C5071,2,FALSE)","v":{"$error":"#N/A"}}]
[null,null,null,null,null,null,null,null,{"$f":"VLOOKUP(H206,'Drop down items'!B206:C5072,2,FALSE)","v":{"$error":"#N/A"}}]
[null,null,null,null,null,null,null,null,{"$f":"VLOOKUP(H207,'Drop down items'!B207:C5073,2,FALSE)","v":{"$error":"#N/A"}}]
[null,null,null,null,null,null,null,null,{"$f":"VLOOKUP(H208,'Drop down items'!B208:C5074,2,FALSE)","v":{"$error":"#N/A"}}]
[null,null,null,null,null,null,null,null,{"$f":"VLOOKUP(H209,'Drop down items'!B209:C5075,2,FALSE)","v":{"$error":"#N/A"}}]
[null,null,null,null,null,null,null,null,{"$f":"VLOOKUP(H210,'Drop down items'!B210:C5076,2,FALSE)","v":{"$error":"#N/A"}}]
[null,null,null,null,null,null,null,null,{"$f":"VLOOKUP(H211,'Drop down items'!B211:C5077,2,FALSE)","v":{"$error":"#N/A"}}]
[null,null,null,null,null,null,null,null,{"$f":"VLOOKUP(H212,'Drop down items'!B212:C5078,2,FALSE)","v":{"$error":"#N/A"}}]
[null,null,null,null,null,null,null,null,{"$f":"VLOOKUP(H213,'Drop down items'!B213:C5079,2,FALSE)","v":{"$error":"#N/A"}}]
[null,null,null,null,null,null,null,null,{"$f":"VLOOKUP(H214,'Drop down items'!B214:C5080,2,FALSE)","v":{"$error":"#N/A"}}]
[null,null,null,null,null,null,null,null,{"$f":"VLOOKUP(H215,'Drop down items'!B215:C5081,2,FALSE)","v":{"$error":"#N/A"}}]
[null,null,null,null,null,null,null,null,{"$f":"VLOOKUP(H216,'Drop down items'!B216:C5082,2,FALSE)","v":{"$error":"#N/A"}}]
[null,null,null,null,null,null,null,null,{"$f":"VLOOKUP(H217,'Drop down items'!B217:C5083,2,FALSE)","v":{"$error":"#N/A"}}]
[null,null,null,null,null,null,null,null,{"$f":"VLOOKUP(H218,'Drop down items'!B218:C5084,2,FALSE)","v":{"$error":"#N/A"}}]
[null,null,null,null,null,null,null,null,{"$f":"VLOOKUP(H219,'Drop down items'!B219:C5085,2,FALSE)","v":{"$error":"#N/A"}}]
[null,null,null,null,null,null,null,null,{"$f":"VLOOKUP(H220,'Drop down items'!B220:C5086,2,FALSE)","v":{"$error":"#N/A"}}]
[null,null,null,null,null,null,null,null,{"$f":"VLOOKUP(H221,'Drop down items'!B221:C5087,2,FALSE)","v":{"$error":"#N/A"}}]
[null,null,null,null,null,null,null,null,{"$f":"VLOOKUP(H222,'Drop down items'!B222:C5088,2,FALSE)","v":{"$error":"#N/A"}}]
[null,null,null,null,null,null,null,null,{"$f":"VLOOKUP(H223,'Drop down items'!B223:C5089,2,FALSE)","v":{"$error":"#N/A"}}]
[null,null,null,null,null,null,null,null,{"$f":"VLOOKUP(H224,'Drop down items'!B224:C5090,2,FALSE)","v":{"$error":"#N/A"}}]
[null,null,null,null,null,null,null,null,{"$f":"VLOOKUP(H225,'Drop down items'!B225:C5091,2,FALSE)","v":{"$error":"#N/A"}}]
[null,null,null,null,null,null,null,null,{"$f":"VLOOKUP(H226,'Drop down items'!B226:C5092,2,FALSE)","v":{"$error":"#N/A"}}]
[null,null,null,null,null,null,null,null,{"$f":"VLOOKUP(H227,'Drop down items'!B227:C5093,2,FALSE)","v":{"$error":"#N/A"}}]
[null,null,null,null,null,null,null,null,{"$f":"VLOOKUP(H228,'Drop down items'!B228:C5094,2,FALSE)","v":{"$error":"#N/A"}}]
[null,null,null,null,null,null,null,null,{"$f":"VLOOKUP(H229,'Drop down items'!B229:C5095,2,FALSE)","v":{"$error":"#N/A"}}]
[null,null,null,null,null,null,null,null,{"$f":"VLOOKUP(H230,'Drop down items'!B230:C5096,2,FALSE)","v":{"$error":"#N/A"}}]
[null,null,null,null,null,null,null,null,{"$f":"VLOOKUP(H231,'Drop down items'!B231:C5097,2,FALSE)","v":{"$error":"#N/A"}}]
[null,null,null,null,null,null,null,null,{"$f":"VLOOKUP(H232,'Drop down items'!B232:C5098,2,FALSE)","v":{"$error":"#N/A"}}]
[null,null,null,null,null,null,null,null,{"$f":"VLOOKUP(H233,'Drop down items'!B233:C5099,2,FALSE)","v":{"$error":"#N/A"}}]
[null,null,null,null,null,null,null,null,{"$f":"VLOOKUP(H234,'Drop down items'!B234:C5100,2,FALSE)","v":{"$error":"#N/A"}}]
[null,null,null,null,null,null,null,null,{"$f":"VLOOKUP(H235,'Drop down items'!B235:C5101,2,FALSE)","v":{"$error":"#N/A"}}]
[null,null,null,null,null,null,null,null,{"$f":"VLOOKUP(H236,'Drop down items'!B236:C5102,2,FALSE)","v":{"$error":"#N/A"}}]
[null,null,null,null,null,null,null,null,{"$f":"VLOOKUP(H237,'Drop down items'!B237:C5103,2,FALSE)","v":{"$error":"#N/A"}}]
[null,null,null,null,null,null,null,null,{"$f":"VLOOKUP(H238,'Drop down items'!B238:C5104,2,FALSE)","v":{"$error":"#N/A"}}]
[null,null,null,null,null,null,null,null,{"$f":"VLOOKUP(H239,'Drop down items'!B239:C5105,2,FALSE)","v":{"$error":"#N/A"}}]
[null,null,null,null,null,null,null,null,{"$f":"VLOOKUP(H240,'Drop down items'!B240:C5106,2,FALSE)","v":{"$error":"#N/A"}}]
[null,null,null,null,null,null,null,null,{"$f":"VLOOKUP(H241,'Drop down items'!B241:C5107,2,FALSE)","v":{"$error":"#N/A"}}]
[null,null,null,null,null,null,null,null,{"$f":"VLOOKUP(H242,'Drop down items'!B242:C5108,2,FALSE)","v":{"$error":"#N/A"}}]
[null,null,null,null,null,null,null,null,{"$f":"VLOOKUP(H243,'Drop down items'!B243:C5109,2,FALSE)","v":{"$error":"#N/A"}}]
[null,null,null,null,null,null,null,null,{"$f":"VLOOKUP(H244,'Drop down items'!B244:C5110,2,FALSE)","v":{"$error":"#N/A"}}]
[null,null,null,null,null,null,null,null,{"$f":"VLOOKUP(H245,'Drop down items'!B245:C5111,2,FALSE)","v":{"$error":"#N/A"}}]
[null,null,null,null,null,null,null,null,{"$f":"VLOOKUP(H246,'Drop down items'!B246:C5112,2,FALSE)","v":{"$error":"#N/A"}}]
[null,null,null,null,null,null,null,null,{"$f":"VLOOKUP(H247,'Drop down items'!B247:C5113,2,FALSE)","v":{"$error":"#N/A"}}]
[null,null,null,null,null,null,null,null,{"$f":"VLOOKUP(H248,'Drop down items'!B248:C5114,2,FALSE)","v":{"$error":"#N/A"}}]
[null,null,null,null,null,null,null,null,{"$f":"VLOOKUP(H249,'Drop down items'!B249:C5115,2,FALSE)","v":{"$error":"#N/A"}}]
[null,null,null,null,null,null,null,null,{"$f":"VLOOKUP(H250,'Drop down items'!B250:C5116,2,FALSE)","v":{"$error":"#N/A"}}]
[null,null,null,null,null,null,null,null,{"$f":"VLOOKUP(H251,'Drop down items'!B251:C5117,2,FALSE)","v":{"$error":"#N/A"}}]
[null,null,null,null,null,null,null,null,{"$f":"VLOOKUP(H252,'Drop down items'!B252:C5118,2,FALSE)","v":{"$error":"#N/A"}}]
[null,null,null,null,null,null,null,null,{"$f":"VLOOKUP(H253,'Drop down items'!B253:C5119,2,FALSE)","v":{"$error":"#N/A"}}]
[null,null,null,null,null,null,null,null,{"$f":"VLOOKUP(H254,'Drop down items'!B254:C5120,2,FALSE)","v":{"$error":"#N/A"}}]
[null,null,null,null,null,null,null,null,{"$f":"VLOOKUP(H255,'Drop down items'!B255:C5121,2,FALSE)","v":{"$error":"#N/A"}}]
[null,null,null,null,null,null,null,null,{"$f":"VLOOKUP(H256,'Drop down items'!B256:C5122,2,FALSE)","v":{"$error":"#N/A"}}]
[null,null,null,null,null,null,null,null,{"$f":"VLOOKUP(H257,'Drop down items'!B257:C5123,2,FALSE)","v":{"$error":"#N/A"}}]
[null,null,null,null,null,null,null,null,{"$f":"VLOOKUP(H258,'Drop down items'!B258:C5124,2,FALSE)","v":{"$error":"#N/A"}}]
[null,null,null,null,null,null,null,null,{"$f":"VLOOKUP(H259,'Drop down items'!B259:C5125,2,FALSE)","v":{"$error":"#N/A"}}]
[null,null,null,null,null,null,null,null,{"$f":"VLOOKUP(H260,'Drop down items'!B260:C5126,2,FALSE)","v":{"$error":"#N/A"}}]
[null,null,null,null,null,null,null,null,{"$f":"VLOOKUP(H261,'Drop down items'!B261:C5127,2,FALSE)","v":{"$error":"#N/A"}}]
[null,null,null,null,null,null,null,null,{"$f":"VLOOKUP(H262,'Drop down items'!B262:C5128,2,FALSE)","v":{"$error":"#N/A"}}]
[null,null,null,null,null,null,null,null,{"$f":"VLOOKUP(H263,'Drop down items'!B263:C5129,2,FALSE)","v":{"$error":"#N/A"}}]
[null,null,null,null,null,null,null,null,{"$f":"VLOOKUP(H264,'Drop down items'!B264:C5130,2,FALSE)","v":{"$error":"#N/A"}}]
[null,null,null,null,null,null,null,null,{"$f":"VLOOKUP(H265,'Drop down items'!B265:C5131,2,FALSE)","v":{"$error":"#N/A"}}]
[null,null,null,null,null,null,null,null,{"$f":"VLOOKUP(H266,'Drop down items'!B266:C5132,2,FALSE)","v":{"$error":"#N/A"}}]
[null,null,null,null,null,null,null,null,{"$f":"VLOOKUP(H267,'Drop down items'!B267:C5133,2,FALSE)","v":{"$error":"#N/A"}}]
[null,null,null,null,null,null,null,null,{"$f":"VLOOKUP(H268,'Drop down items'!B268:C5134,2,FALSE)","v":{"$error":"#N/A"}}]
[null,null,null,null,null,null,null,null,{"$f":"VLOOKUP(H269,'Drop down items'!B269:C5135,2,FALSE)","v":{"$error":"#N/A"}}]
[null,null,null,null,null,null,null,null,{"$f":"VLOOKUP(H270,'Drop down items'!B270:C5136,2,FALSE)","v":{"$error":"#N/A"}}]
[null,null,null,null,null,null,null,null,{"$f":"VLOOKUP(H271,'Drop down items'!B271:C5137,2,FALSE)","v":{"$error":"#N/A"}}]
[null,null,null,null,null,null,null,null,{"$f":"VLOOKUP(H272,'Drop down items'!B272:C5138,2,FALSE)","v":{"$error":"#N/A"}}]
[null,null,null,null,null,null,null,null,{"$f":"VLOOKUP(H273,'Drop down items'!B273:C5139,2,FALSE)","v":{"$error":"#N/A"}}]
[null,null,null,null,null,null,null,null,{"$f":"VLOOKUP(H274,'Drop down items'!B274:C5140,2,FALSE)","v":{"$error":"#N/A"}}]
[null,null,null,null,null,null,null,null,{"$f":"VLOOKUP(H275,'Drop down items'!B275:C5141,2,FALSE)","v":{"$error":"#N/A"}}]
[null,null,null,null,null,null,null,null,{"$f":"VLOOKUP(H276,'Drop down items'!B276:C5142,2,FALSE)","v":{"$error":"#N/A"}}]
[null,null,null,null,null,null,null,null,{"$f":"VLOOKUP(H277,'Drop down items'!B277:C5143,2,FALSE)","v":{"$error":"#N/A"}}]
[null,null,null,null,null,null,null,null,{"$f":"VLOOKUP(H278,'Drop down items'!B278:C5144,2,FALSE)","v":{"$error":"#N/A"}}]
[null,null,null,null,null,null,null,null,{"$f":"VLOOKUP(H279,'Drop down items'!B279:C5145,2,FALSE)","v":{"$error":"#N/A"}}]
[null,null,null,null,null,null,null,null,{"$f":"VLOOKUP(H280,'Drop down items'!B280:C5146,2,FALSE)","v":{"$error":"#N/A"}}]
[null,null,null,null,null,null,null,null,{"$f":"VLOOKUP(H281,'Drop down items'!B281:C5147,2,FALSE)","v":{"$error":"#N/A"}}]
[null,null,null,null,null,null,null,null,{"$f":"VLOOKUP(H282,'Drop down items'!B282:C5148,2,FALSE)","v":{"$error":"#N/A"}}]
[null,null,null,null,null,null,null,null,{"$f":"VLOOKUP(H283,'Drop down items'!B283:C5149,2,FALSE)","v":{"$error":"#N/A"}}]
[null,null,null,null,null,null,null,null,{"$f":"VLOOKUP(H284,'Drop down items'!B284:C5150,2,FALSE)","v":{"$error":"#N/A"}}]
[null,null,null,null,null,null,null,null,{"$f":"VLOOKUP(H285,'Drop down items'!B285:C5151,2,FALSE)","v":{"$error":"#N/A"}}]
[null,null,null,null,null,null,null,null,{"$f":"VLOOKUP(H286,'Drop down items'!B286:C5152,2,FALSE)","v":{"$error":"#N/A"}}]
[null,null,null,null,null,null,null,null,{"$f":"VLOOKUP(H287,'Drop down items'!B287:C5153,2,FALSE)","v":{"$error":"#N/A"}}]
[null,null,null,null,null,null,null,null,{"$f":"VLOOKUP(H288,'Drop down items'!B288:C5154,2,FALSE)","v":{"$error":"#N/A"}}]
[null,null,null,null,null,null,null,null,{"$f":"VLOOKUP(H289,'Drop down items'!B289:C5155,2,FALSE)","v":{"$error":"#N/A"}}]
[null,null,null,null,null,null,null,null,{"$f":"VLOOKUP(H290,'Drop down items'!B290:C5156,2,FALSE)","v":{"$error":"#N/A"}}]
[null,null,null,null,null,null,null,null,{"$f":"VLOOKUP(H291,'Drop down items'!B291:C5157,2,FALSE)","v":{"$error":"#N/A"}}]
[null,null,null,null,null,null,null,null,{"$f":"VLOOKUP(H292,'Drop down items'!B292:C5158,2,FALSE)","v":{"$error":"#N/A"}}]
[null,null,null,null,null,null,null,null,{"$f":"VLOOKUP(H293,'Drop down items'!B293:C5159,2,FALSE)","v":{"$error":"#N/A"}}]
[null,null,null,null,null,null,null,null,{"$f":"VLOOKUP(H294,'Drop down items'!B294:C5160,2,FALSE)","v":{"$error":"#N/A"}}]
[null,null,null,null,null,null,null,null,{"$f":"VLOOKUP(H295,'Drop down items'!B295:C5161,2,FALSE)","v":{"$error":"#N/A"}}]
[null,null,null,null,null,null,null,null,{"$f":"VLOOKUP(H296,'Drop down items'!B296:C5162,2,FALSE)","v":{"$error":"#N/A"}}]
[null,null,null,null,null,null,null,null,{"$f":"VLOOKUP(H297,'Drop down items'!B297:C5163,2,FALSE)","v":{"$error":"#N/A"}}]
[null,null,null,null,null,null,null,null,{"$f":"VLOOKUP(H298,'Drop down items'!B298:C5164,2,FALSE)","v":{"$error":"#N/A"}}]
[null,null,null,null,null,null,null,null,{"$f":"VLOOKUP(H299,'Drop down items'!B299:C5165,2,FALSE)","v":{"$error":"#N/A"}}]
[null,null,null,null,null,null,null,null,{"$f":"VLOOKUP(H300,'Drop down items'!B300:C5166,2,FALSE)","v":{"$error":"#N/A"}}]
[null,null,null,null,null,null,null,null,{"$f":"VLOOKUP(H301,'Drop down items'!B301:C5167,2,FALSE)","v":{"$error":"#N/A"}}]
[null,null,null,null,null,null,null,null,{"$f":"VLOOKUP(H302,'Drop down items'!B302:C5168,2,FALSE)","v":{"$error":"#N/A"}}]
[null,null,null,null,null,null,null,null,{"$f":"VLOOKUP(H303,'Drop down items'!B303:C5169,2,FALSE)","v":{"$error":"#N/A"}}]
[null,null,null,null,null,null,null,null,{"$f":"VLOOKUP(H304,'Drop down items'!B304:C5170,2,FALSE)","v":{"$error":"#N/A"}}]
[null,null,null,null,null,null,null,null,{"$f":"VLOOKUP(H305,'Drop down items'!B305:C5171,2,FALSE)","v":{"$error":"#N/A"}}]
[null,null,null,null,null,null,null,null,{"$f":"VLOOKUP(H306,'Drop down items'!B306:C5172,2,FALSE)","v":{"$error":"#N/A"}}]
[null,null,null,null,null,null,null,null,{"$f":"VLOOKUP(H307,'Drop down items'!B307:C5173,2,FALSE)","v":{"$error":"#N/A"}}]
[null,null,null,null,null,null,null,null,{"$f":"VLOOKUP(H308,'Drop down items'!B308:C5174,2,FALSE)","v":{"$error":"#N/A"}}]
[null,null,null,null,null,null,null,null,{"$f":"VLOOKUP(H309,'Drop down items'!B309:C5175,2,FALSE)","v":{"$error":"#N/A"}}]
[null,null,null,null,null,null,null,null,{"$f":"VLOOKUP(H310,'Drop down items'!B310:C5176,2,FALSE)","v":{"$error":"#N/A"}}]
[null,null,null,null,null,null,null,null,{"$f":"VLOOKUP(H311,'Drop down items'!B311:C5177,2,FALSE)","v":{"$error":"#N/A"}}]
[null,null,null,null,null,null,null,null,{"$f":"VLOOKUP(H312,'Drop down items'!B312:C5178,2,FALSE)","v":{"$error":"#N/A"}}]
[null,null,null,null,null,null,null,null,{"$f":"VLOOKUP(H313,'Drop down items'!B313:C5179,2,FALSE)","v":{"$error":"#N/A"}}]
[null,null,null,null,null,null,null,null,{"$f":"VLOOKUP(H314,'Drop down items'!B314:C5180,2,FALSE)","v":{"$error":"#N/A"}}]
[null,null,null,null,null,null,null,null,{"$f":"VLOOKUP(H315,'Drop down items'!B315:C5181,2,FALSE)","v":{"$error":"#N/A"}}]
[null,null,null,null,null,null,null,null,{"$f":"VLOOKUP(H316,'Drop down items'!B316:C5182,2,FALSE)","v":{"$error":"#N/A"}}]
[null,null,null,null,null,null,null,null,{"$f":"VLOOKUP(H317,'Drop down items'!B317:C5183,2,FALSE)","v":{"$error":"#N/A"}}]
[null,null,null,null,null,null,null,null,{"$f":"VLOOKUP(H318,'Drop down items'!B318:C5184,2,FALSE)","v":{"$error":"#N/A"}}]
[null,null,null,null,null,null,null,null,{"$f":"VLOOKUP(H319,'Drop down items'!B319:C5185,2,FALSE)","v":{"$error":"#N/A"}}]
[null,null,null,null,null,null,null,null,{"$f":"VLOOKUP(H320,'Drop down items'!B320:C5186,2,FALSE)","v":{"$error":"#N/A"}}]
[null,null,null,null,null,null,null,null,{"$f":"VLOOKUP(H321,'Drop down items'!B321:C5187,2,FALSE)","v":{"$error":"#N/A"}}]
[null,null,null,null,null,null,null,null,{"$f":"VLOOKUP(H322,'Drop down items'!B322:C5188,2,FALSE)","v":{"$error":"#N/A"}}]
[null,null,null,null,null,null,null,null,{"$f":"VLOOKUP(H323,'Drop down items'!B323:C5189,2,FALSE)","v":{"$error":"#N/A"}}]
[null,null,null,null,null,null,null,null,{"$f":"VLOOKUP(H324,'Drop down items'!B324:C5190,2,FALSE)","v":{"$error":"#N/A"}}]
[null,null,null,null,null,null,null,null,{"$f":"VLOOKUP(H325,'Drop down items'!B325:C5191,2,FALSE)","v":{"$error":"#N/A"}}]
[null,null,null,null,null,null,null,null,{"$f":"VLOOKUP(H326,'Drop down items'!B326:C5192,2,FALSE)","v":{"$error":"#N/A"}}]
[null,null,null,null,null,null,null,null,{"$f":"VLOOKUP(H327,'Drop down items'!B327:C5193,2,FALSE)","v":{"$error":"#N/A"}}]
[null,null,null,null,null,null,null,null,{"$f":"VLOOKUP(H328,'Drop down items'!B328:C5194,2,FALSE)","v":{"$error":"#N/A"}}]
[null,null,null,null,null,null,null,null,{"$f":"VLOOKUP(H329,'Drop down items'!B329:C5195,2,FALSE)","v":{"$error":"#N/A"}}]
[null,null,null,null,null,null,null,null,{"$f":"VLOOKUP(H330,'Drop down items'!B330:C5196,2,FALSE)","v":{"$error":"#N/A"}}]
[null,null,null,null,null,null,null,null,{"$f":"VLOOKUP(H331,'Drop down items'!B331:C5197,2,FALSE)","v":{"$error":"#N/A"}}]
[null,null,null,null,null,null,null,null,{"$f":"VLOOKUP(H332,'Drop down items'!B332:C5198,2,FALSE)","v":{"$error":"#N/A"}}]
[null,null,null,null,null,null,null,null,{"$f":"VLOOKUP(H333,'Drop down items'!B333:C5199,2,FALSE)","v":{"$error":"#N/A"}}]
[null,null,null,null,null,null,null,null,{"$f":"VLOOKUP(H334,'Drop down items'!B334:C5200,2,FALSE)","v":{"$error":"#N/A"}}]
[null,null,null,null,null,null,null,null,{"$f":"VLOOKUP(H335,'Drop down items'!B335:C5201,2,FALSE)","v":{"$error":"#N/A"}}]
[null,null,null,null,null,null,null,null,{"$f":"VLOOKUP(H336,'Drop down items'!B336:C5202,2,FALSE)","v":{"$error":"#N/A"}}]
[null,null,null,null,null,null,null,null,{"$f":"VLOOKUP(H337,'Drop down items'!B337:C5203,2,FALSE)","v":{"$error":"#N/A"}}]
[null,null,null,null,null,null,null,null,{"$f":"VLOOKUP(H338,'Drop down items'!B338:C5204,2,FALSE)","v":{"$error":"#N/A"}}]
[null,null,null,null,null,null,null,null,{"$f":"VLOOKUP(H339,'Drop down items'!B339:C5205,2,FALSE)","v":{"$error":"#N/A"}}]
[null,null,null,null,null,null,null,null,{"$f":"VLOOKUP(H340,'Drop down items'!B340:C5206,2,FALSE)","v":{"$error":"#N/A"}}]
[null,null,null,null,null,null,null,null,{"$f":"VLOOKUP(H341,'Drop down items'!B341:C5207,2,FALSE)","v":{"$error":"#N/A"}}]
[null,null,null,null,null,null,null,null,{"$f":"VLOOKUP(H342,'Drop down items'!B342:C5208,2,FALSE)","v":{"$error":"#N/A"}}]
[null,null,null,null,null,null,null,null,{"$f":"VLOOKUP(H343,'Drop down items'!B343:C5209,2,FALSE)","v":{"$error":"#N/A"}}]
[null,null,null,null,null,null,null,null,{"$f":"VLOOKUP(H344,'Drop down items'!B344:C5210,2,FALSE)","v":{"$error":"#N/A"}}]
[null,null,null,null,null,null,null,null,{"$f":"VLOOKUP(H345,'Drop down items'!B345:C5211,2,FALSE)","v":{"$error":"#N/A"}}]
[null,null,null,null,null,null,null,null,{"$f":"VLOOKUP(H346,'Drop down items'!B346:C5212,2,FALSE)","v":{"$error":"#N/A"}}]
[null,null,null,null,null,null,null,null,{"$f":"VLOOKUP(H347,'Drop down items'!B347:C5213,2,FALSE)","v":{"$error":"#N/A"}}]
[null,null,null,null,null,null,null,null,{"$f":"VLOOKUP(H348,'Drop down items'!B348:C5214,2,FALSE)","v":{"$error":"#N/A"}}]
[null,null,null,null,null,null,null,null,{"$f":"VLOOKUP(H349,'Drop down items'!B349:C5215,2,FALSE)","v":{"$error":"#N/A"}}]
[null,null,null,null,null,null,null,null,{"$f":"VLOOKUP(H350,'Drop down items'!B350:C5216,2,FALSE)","v":{"$error":"#N/A"}}]
[null,null,null,null,null,null,null,null,{"$f":"VLOOKUP(H351,'Drop down items'!B351:C5217,2,FALSE)","v":{"$error":"#N/A"}}]
[null,null,null,null,null,null,null,null,{"$f":"VLOOKUP(H352,'Drop down items'!B352:C5218,2,FALSE)","v":{"$error":"#N/A"}}]
[null,null,null,null,null,null,null,null,{"$f":"VLOOKUP(H353,'Drop down items'!B353:C5219,2,FALSE)","v":{"$error":"#N/A"}}]
[null,null,null,null,null,null,null,null,{"$f":"VLOOKUP(H354,'Drop down items'!B354:C5220,2,FALSE)","v":{"$error":"#N/A"}}]
[null,null,null,null,null,null,null,null,{"$f":"VLOOKUP(H355,'Drop down items'!B355:C5221,2,FALSE)","v":{"$error":"#N/A"}}]
[null,null,null,null,null,null,null,null,{"$f":"VLOOKUP(H356,'Drop down items'!B356:C5222,2,FALSE)","v":{"$error":"#N/A"}}]
[null,null,null,null,null,null,null,null,{"$f":"VLOOKUP(H357,'Drop down items'!B357:C5223,2,FALSE)","v":{"$error":"#N/A"}}]
[null,null,null,null,null,null,null,null,{"$f":"VLOOKUP(H358,'Drop down items'!B358:C5224,2,FALSE)","v":{"$error":"#N/A"}}]
[null,null,null,null,null,null,null,null,{"$f":"VLOOKUP(H359,'Drop down items'!B359:C5225,2,FALSE)","v":{"$error":"#N/A"}}]
[null,null,null,null,null,null,null,null,{"$f":"VLOOKUP(H360,'Drop down items'!B360:C5226,2,FALSE)","v":{"$error":"#N/A"}}]
[null,null,null,null,null,null,null,null,{"$f":"VLOOKUP(H361,'Drop down items'!B361:C5227,2,FALSE)","v":{"$error":"#N/A"}}]
[null,null,null,null,null,null,null,null,{"$f":"VLOOKUP(H362,'Drop down items'!B362:C5228,2,FALSE)","v":{"$error":"#N/A"}}]
[null,null,null,null,null,null,null,null,{"$f":"VLOOKUP(H363,'Drop down items'!B363:C5229,2,FALSE)","v":{"$error":"#N/A"}}]
[null,null,null,null,null,null,null,null,{"$f":"VLOOKUP(H364,'Drop down items'!B364:C5230,2,FALSE)","v":{"$error":"#N/A"}}]
[null,null,null,null,null,null,null,null,{"$f":"VLOOKUP(H365,'Drop down items'!B365:C5231,2,FALSE)","v":{"$error":"#N/A"}}]
[null,null,null,null,null,null,null,null,{"$f":"VLOOKUP(H366,'Drop down items'!B366:C5232,2,FALSE)","v":{"$error":"#N/A"}}]
[null,null,null,null,null,null,null,null,{"$f":"VLOOKUP(H367,'Drop down items'!B367:C5233,2,FALSE)","v":{"$error":"#N/A"}}]
[null,null,null,null,null,null,null,null,{"$f":"VLOOKUP(H368,'Drop down items'!B368:C5234,2,FALSE)","v":{"$error":"#N/A"}}]
[null,null,null,null,null,null,null,null,{"$f":"VLOOKUP(H369,'Drop down items'!B369:C5235,2,FALSE)","v":{"$error":"#N/A"}}]
[null,null,null,null,null,null,null,null,{"$f":"VLOOKUP(H370,'Drop down items'!B370:C5236,2,FALSE)","v":{"$error":"#N/A"}}]
[null,null,null,null,null,null,null,null,{"$f":"VLOOKUP(H371,'Drop down items'!B371:C5237,2,FALSE)","v":{"$error":"#N/A"}}]
[null,null,null,null,null,null,null,null,{"$f":"VLOOKUP(H372,'Drop down items'!B372:C5238,2,FALSE)","v":{"$error":"#N/A"}}]
[null,null,null,null,null,null,null,null,{"$f":"VLOOKUP(H373,'Drop down items'!B373:C5239,2,FALSE)","v":{"$error":"#N/A"}}]
[null,null,null,null,null,null,null,null,{"$f":"VLOOKUP(H374,'Drop down items'!B374:C5240,2,FALSE)","v":{"$error":"#N/A"}}]
[null,null,null,null,null,null,null,null,{"$f":"VLOOKUP(H375,'Drop down items'!B375:C5241,2,FALSE)","v":{"$error":"#N/A"}}]
[null,null,null,null,null,null,null,null,{"$f":"VLOOKUP(H376,'Drop down items'!B376:C5242,2,FALSE)","v":{"$error":"#N/A"}}]
[null,null,null,null,null,null,null,null,{"$f":"VLOOKUP(H377,'Drop down items'!B377:C5243,2,FALSE)","v":{"$error":"#N/A"}}]
[null,null,null,null,null,null,null,null,{"$f":"VLOOKUP(H378,'Drop down items'!B378:C5244,2,FALSE)","v":{"$error":"#N/A"}}]
[null,null,null,null,null,null,null,null,{"$f":"VLOOKUP(H379,'Drop down items'!B379:C5245,2,FALSE)","v":{"$error":"#N/A"}}]
[null,null,null,null,null,null,null,null,{"$f":"VLOOKUP(H380,'Drop down items'!B380:C5246,2,FALSE)","v":{"$error":"#N/A"}}]
[null,null,null,null,null,null,null,null,{"$f":"VLOOKUP(H381,'Drop down items'!B381:C5247,2,FALSE)","v":{"$error":"#N/A"}}]
[null,null,null,null,null,null,null,null,{"$f":"VLOOKUP(H382,'Drop down items'!B382:C5248,2,FALSE)","v":{"$error":"#N/A"}}]
[null,null,null,null,null,null,null,null,{"$f":"VLOOKUP(H383,'Drop down items'!B383:C5249,2,FALSE)","v":{"$error":"#N/A"}}]
[null,null,null,null,null,null,null,null,{"$f":"VLOOKUP(H384,'Drop down items'!B384:C5250,2,FALSE)","v":{"$error":"#N/A"}}]
[null,null,null,null,null,null,null,null,{"$f":"VLOOKUP(H385,'Drop down items'!B385:C5251,2,FALSE)","v":{"$error":"#N/A"}}]
[null,null,null,null,null,null,null,null,{"$f":"VLOOKUP(H386,'Drop down items'!B386:C5252,2,FALSE)","v":{"$error":"#N/A"}}]
[null,null,null,null,null,null,null,null,{"$f":"VLOOKUP(H387,'Drop down items'!B387:C5253,2,FALSE)","v":{"$error":"#N/A"}}]
[null,null,null,null,null,null,null,null,{"$f":"VLOOKUP(H388,'Drop down items'!B388:C5254,2,FALSE)","v":{"$error":"#N/A"}}]
[null,null,null,null,null,null,null,null,{"$f":"VLOOKUP(H389,'Drop down items'!B389:C5255,2,FALSE)","v":{"$error":"#N/A"}}]
[null,null,null,null,null,null,null,null,{"$f":"VLOOKUP(H390,'Drop down items'!B390:C5256,2,FALSE)","v":{"$error":"#N/A"}}]
[null,null,null,null,null,null,null,null,{"$f":"VLOOKUP(H391,'Drop down items'!B391:C5257,2,FALSE)","v":{"$error":"#N/A"}}]
[null,null,null,null,null,null,null,null,{"$f":"VLOOKUP(H392,'Drop down items'!B392:C5258,2,FALSE)","v":{"$error":"#N/A"}}]
[null,null,null,null,null,null,null,null,{"$f":"VLOOKUP(H393,'Drop down items'!B393:C5259,2,FALSE)","v":{"$error":"#N/A"}}]
[null,null,null,null,null,null,null,null,{"$f":"VLOOKUP(H394,'Drop down items'!B394:C5260,2,FALSE)","v":{"$error":"#N/A"}}]
[null,null,null,null,null,null,null,null,{"$f":"VLOOKUP(H395,'Drop down items'!B395:C5261,2,FALSE)","v":{"$error":"#N/A"}}]
[null,null,null,null,null,null,null,null,{"$f":"VLOOKUP(H396,'Drop down items'!B396:C5262,2,FALSE)","v":{"$error":"#N/A"}}]
[null,null,null,null,null,null,null,null,{"$f":"VLOOKUP(H397,'Drop down items'!B397:C5263,2,FALSE)","v":{"$error":"#N/A"}}]
[null,null,null,null,null,null,null,null,{"$f":"VLOOKUP(H398,'Drop down items'!B398:C5264,2,FALSE)","v":{"$error":"#N/A"}}]
[null,null,null,null,null,null,null,null,{"$f":"VLOOKUP(H399,'Drop down items'!B399:C5265,2,FALSE)","v":{"$error":"#N/A"}}]
[null,null,null,null,null,null,null,null,{"$f":"VLOOKUP(H400,'Drop down items'!B400:C5266,2,FALSE)","v":{"$error":"#N/A"}}]
[null,null,null,null,null,null,null,null,{"$f":"VLOOKUP(H401,'Drop down items'!B401:C5267,2,FALSE)","v":{"$error":"#N/A"}}]
[null,null,null,null,null,null,null,null,{"$f":"VLOOKUP(H402,'Drop down items'!B402:C5268,2,FALSE)","v":{"$error":"#N/A"}}]
[null,null,null,null,null,null,null,null,{"$f":"VLOOKUP(H403,'Drop down items'!B403:C5269,2,FALSE)","v":{"$error":"#N/A"}}]
[null,null,null,null,null,null,null,null,{"$f":"VLOOKUP(H404,'Drop down items'!B404:C5270,2,FALSE)","v":{"$error":"#N/A"}}]
[null,null,null,null,null,null,null,null,{"$f":"VLOOKUP(H405,'Drop down items'!B405:C5271,2,FALSE)","v":{"$error":"#N/A"}}]
[null,null,null,null,null,null,null,null,{"$f":"VLOOKUP(H406,'Drop down items'!B406:C5272,2,FALSE)","v":{"$error":"#N/A"}}]
[null,null,null,null,null,null,null,null,{"$f":"VLOOKUP(H407,'Drop down items'!B407:C5273,2,FALSE)","v":{"$error":"#N/A"}}]
[null,null,null,null,null,null,null,null,{"$f":"VLOOKUP(H408,'Drop down items'!B408:C5274,2,FALSE)","v":{"$error":"#N/A"}}]
[null,null,null,null,null,null,null,null,{"$f":"VLOOKUP(H409,'Drop down items'!B409:C5275,2,FALSE)","v":{"$error":"#N/A"}}]
[null,null,null,null,null,null,null,null,{"$f":"VLOOKUP(H410,'Drop down items'!B410:C5276,2,FALSE)","v":{"$error":"#N/A"}}]
[null,null,null,null,null,null,null,null,{"$f":"VLOOKUP(H411,'Drop down items'!B411:C5277,2,FALSE)","v":{"$error":"#N/A"}}]
[null,null,null,null,null,null,null,null,{"$f":"VLOOKUP(H412,'Drop down items'!B412:C5278,2,FALSE)","v":{"$error":"#N/A"}}]
[null,null,null,null,null,null,null,null,{"$f":"VLOOKUP(H413,'Drop down items'!B413:C5279,2,FALSE)","v":{"$error":"#N/A"}}]
[null,null,null,null,null,null,null,null,{"$f":"VLOOKUP(H414,'Drop down items'!B414:C5280,2,FALSE)","v":{"$error":"#N/A"}}]
[null,null,null,null,null,null,null,null,{"$f":"VLOOKUP(H415,'Drop down items'!B415:C5281,2,FALSE)","v":{"$error":"#N/A"}}]
[null,null,null,null,null,null,null,null,{"$f":"VLOOKUP(H416,'Drop down items'!B416:C5282,2,FALSE)","v":{"$error":"#N/A"}}]
[null,null,null,null,null,null,null,null,{"$f":"VLOOKUP(H417,'Drop down items'!B417:C5283,2,FALSE)","v":{"$error":"#N/A"}}]
[null,null,null,null,null,null,null,null,{"$f":"VLOOKUP(H418,'Drop down items'!B418:C5284,2,FALSE)","v":{"$error":"#N/A"}}]
[null,null,null,null,null,null,null,null,{"$f":"VLOOKUP(H419,'Drop down items'!B419:C5285,2,FALSE)","v":{"$error":"#N/A"}}]
[null,null,null,null,null,null,null,null,{"$f":"VLOOKUP(H420,'Drop down items'!B420:C5286,2,FALSE)","v":{"$error":"#N/A"}}]
[null,null,null,null,null,null,null,null,{"$f":"VLOOKUP(H421,'Drop down items'!B421:C5287,2,FALSE)","v":{"$error":"#N/A"}}]
[null,null,null,null,null,null,null,null,{"$f":"VLOOKUP(H422,'Drop down items'!B422:C5288,2,FALSE)","v":{"$error":"#N/A"}}]
[null,null,null,null,null,null,null,null,{"$f":"VLOOKUP(H423,'Drop down items'!B423:C5289,2,FALSE)","v":{"$error":"#N/A"}}]
[null,null,null,null,null,null,null,null,{"$f":"VLOOKUP(H424,'Drop down items'!B424:C5290,2,FALSE)","v":{"$error":"#N/A"}}]
[null,null,null,null,null,null,null,null,{"$f":"VLOOKUP(H425,'Drop down items'!B425:C5291,2,FALSE)","v":{"$error":"#N/A"}}]
[null,null,null,null,null,null,null,null,{"$f":"VLOOKUP(H426,'Drop down items'!B426:C5292,2,FALSE)","v":{"$error":"#N/A"}}]
[null,null,null,null,null,null,null,null,{"$f":"VLOOKUP(H427,'Drop down items'!B427:C5293,2,FALSE)","v":{"$error":"#N/A"}}]
[null,null,null,null,null,null,null,null,{"$f":"VLOOKUP(H428,'Drop down items'!B428:C5294,2,FALSE)","v":{"$error":"#N/A"}}]
[null,null,null,null,null,null,null,null,{"$f":"VLOOKUP(H429,'Drop down items'!B429:C5295,2,FALSE)","v":{"$error":"#N/A"}}]
[null,null,null,null,null,null,null,null,{"$f":"VLOOKUP(H430,'Drop down items'!B430:C5296,2,FALSE)","v":{"$error":"#N/A"}}]
[null,null,null,null,null,null,null,null,{"$f":"VLOOKUP(H431,'Drop down items'!B431:C5297,2,FALSE)","v":{"$error":"#N/A"}}]
[null,null,null,null,null,null,null,null,{"$f":"VLOOKUP(H432,'Drop down items'!B432:C5298,2,FALSE)","v":{"$error":"#N/A"}}]
[null,null,null,null,null,null,null,null,{"$f":"VLOOKUP(H433,'Drop down items'!B433:C5299,2,FALSE)","v":{"$error":"#N/A"}}]
[null,null,null,null,null,null,null,null,{"$f":"VLOOKUP(H434,'Drop down items'!B434:C5300,2,FALSE)","v":{"$error":"#N/A"}}]
[null,null,null,null,null,null,null,null,{"$f":"VLOOKUP(H435,'Drop down items'!B435:C5301,2,FALSE)","v":{"$error":"#N/A"}}]
[null,null,null,null,null,null,null,null,{"$f":"VLOOKUP(H436,'Drop down items'!B436:C5302,2,FALSE)","v":{"$error":"#N/A"}}]
[null,null,null,null,null,null,null,null,{"$f":"VLOOKUP(H437,'Drop down items'!B437:C5303,2,FALSE)","v":{"$error":"#N/A"}}]
[null,null,null,null,null,null,null,null,{"$f":"VLOOKUP(H438,'Drop down items'!B438:C5304,2,FALSE)","v":{"$error":"#N/A"}}]
[null,null,null,null,null,null,null,null,{"$f":"VLOOKUP(H439,'Drop down items'!B439:C5305,2,FALSE)","v":{"$error":"#N/A"}}]
[null,null,null,null,null,null,null,null,{"$f":"VLOOKUP(H440,'Drop down items'!B440:C5306,2,FALSE)","v":{"$error":"#N/A"}}]
[null,null,null,null,null,null,null,null,{"$f":"VLOOKUP(H441,'Drop down items'!B441:C5307,2,FALSE)","v":{"$error":"#N/A"}}]
[null,null,null,null,null,null,null,null,{"$f":"VLOOKUP(H442,'Drop down items'!B442:C5308,2,FALSE)","v":{"$error":"#N/A"}}]
[null,null,null,null,null,null,null,null,{"$f":"VLOOKUP(H443,'Drop down items'!B443:C5309,2,FALSE)","v":{"$error":"#N/A"}}]
[null,null,null,null,null,null,null,null,{"$f":"VLOOKUP(H444,'Drop down items'!B444:C5310,2,FALSE)","v":{"$error":"#N/A"}}]
[null,null,null,null,null,null,null,null,{"$f":"VLOOKUP(H445,'Drop down items'!B445:C5311,2,FALSE)","v":{"$error":"#N/A"}}]
[null,null,null,null,null,null,null,null,{"$f":"VLOOKUP(H446,'Drop down items'!B446:C5312,2,FALSE)","v":{"$error":"#N/A"}}]
[null,null,null,null,null,null,null,null,{"$f":"VLOOKUP(H447,'Drop down items'!B447:C5313,2,FALSE)","v":{"$error":"#N/A"}}]
[null,null,null,null,null,null,null,null,{"$f":"VLOOKUP(H448,'Drop down items'!B448:C5314,2,FALSE)","v":{"$error":"#N/A"}}]
[null,null,null,null,null,null,null,null,{"$f":"VLOOKUP(H449,'Drop down items'!B449:C5315,2,FALSE)","v":{"$error":"#N/A"}}]
[null,null,null,null,null,null,null,null,{"$f":"VLOOKUP(H450,'Drop down items'!B450:C5316,2,FALSE)","v":{"$error":"#N/A"}}]
[null,null,null,null,null,null,null,null,{"$f":"VLOOKUP(H451,'Drop down items'!B451:C5317,2,FALSE)","v":{"$error":"#N/A"}}]
[null,null,null,null,null,null,null,null,{"$f":"VLOOKUP(H452,'Drop down items'!B452:C5318,2,FALSE)","v":{"$error":"#N/A"}}]
[null,null,null,null,null,null,null,null,{"$f":"VLOOKUP(H453,'Drop down items'!B453:C5319,2,FALSE)","v":{"$error":"#N/A"}}]
[null,null,null,null,null,null,null,null,{"$f":"VLOOKUP(H454,'Drop down items'!B454:C5320,2,FALSE)","v":{"$error":"#N/A"}}]
[null,null,null,null,null,null,null,null,{"$f":"VLOOKUP(H455,'Drop down items'!B455:C5321,2,FALSE)","v":{"$error":"#N/A"}}]
[null,null,null,null,null,null,null,null,{"$f":"VLOOKUP(H456,'Drop down items'!B456:C5322,2,FALSE)","v":{"$error":"#N/A"}}]
[null,null,null,null,null,null,null,null,{"$f":"VLOOKUP(H457,'Drop down items'!B457:C5323,2,FALSE)","v":{"$error":"#N/A"}}]
[null,null,null,null,null,null,null,null,{"$f":"VLOOKUP(H458,'Drop down items'!B458:C5324,2,FALSE)","v":{"$error":"#N/A"}}]
[null,null,null,null,null,null,null,null,{"$f":"VLOOKUP(H459,'Drop down items'!B459:C5325,2,FALSE)","v":{"$error":"#N/A"}}]
[null,null,null,null,null,null,null,null,{"$f":"VLOOKUP(H460,'Drop down items'!B460:C5326,2,FALSE)","v":{"$error":"#N/A"}}]
[null,null,null,null,null,null,null,null,{"$f":"VLOOKUP(H461,'Drop down items'!B461:C5327,2,FALSE)","v":{"$error":"#N/A"}}]
[null,null,null,null,null,null,null,null,{"$f":"VLOOKUP(H462,'Drop down items'!B462:C5328,2,FALSE)","v":{"$error":"#N/A"}}]
[null,null,null,null,null,null,null,null,{"$f":"VLOOKUP(H463,'Drop down items'!B463:C5329,2,FALSE)","v":{"$error":"#N/A"}}]
[null,null,null,null,null,null,null,null,{"$f":"VLOOKUP(H464,'Drop down items'!B464:C5330,2,FALSE)","v":{"$error":"#N/A"}}]
[null,null,null,null,null,null,null,null,{"$f":"VLOOKUP(H465,'Drop down items'!B465:C5331,2,FALSE)","v":{"$error":"#N/A"}}]
[null,null,null,null,null,null,null,null,{"$f":"VLOOKUP(H466,'Drop down items'!B466:C5332,2,FALSE)","v":{"$error":"#N/A"}}]
[null,null,null,null,null,null,null,null,{"$f":"VLOOKUP(H467,'Drop down items'!B467:C5333,2,FALSE)","v":{"$error":"#N/A"}}]
[null,null,null,null,null,null,null,null,{"$f":"VLOOKUP(H468,'Drop down items'!B468:C5334,2,FALSE)","v":{"$error":"#N/A"}}]
[null,null,null,null,null,null,null,null,{"$f":"VLOOKUP(H469,'Drop down items'!B469:C5335,2,FALSE)","v":{"$error":"#N/A"}}]
[null,null,null,null,null,null,null,null,{"$f":"VLOOKUP(H470,'Drop down items'!B470:C5336,2,FALSE)","v":{"$error":"#N/A"}}]
[null,null,null,null,null,null,null,null,{"$f":"VLOOKUP(H471,'Drop down items'!B471:C5337,2,FALSE)","v":{"$error":"#N/A"}}]
[null,null,null,null,null,null,null,null,{"$f":"VLOOKUP(H472,'Drop down items'!B472:C5338,2,FALSE)","v":{"$error":"#N/A"}}]
[null,null,null,null,null,null,null,null,{"$f":"VLOOKUP(H473,'Drop down items'!B473:C5339,2,FALSE)","v":{"$error":"#N/A"}}]
[null,null,null,null,null,null,null,null,{"$f":"VLOOKUP(H474,'Drop down items'!B474:C5340,2,FALSE)","v":{"$error":"#N/A"}}]
[null,null,null,null,null,null,null,null,{"$f":"VLOOKUP(H475,'Drop down items'!B475:C5341,2,FALSE)","v":{"$error":"#N/A"}}]
[null,null,null,null,null,null,null,null,{"$f":"VLOOKUP(H476,'Drop down items'!B476:C5342,2,FALSE)","v":{"$error":"#N/A"}}]
[null,null,null,null,null,null,null,null,{"$f":"VLOOKUP(H477,'Drop down items'!B477:C5343,2,FALSE)","v":{"$error":"#N/A"}}]
[null,null,null,null,null,null,null,null,{"$f":"VLOOKUP(H478,'Drop down items'!B478:C5344,2,FALSE)","v":{"$error":"#N/A"}}]
[null,null,null,null,null,null,null,null,{"$f":"VLOOKUP(H479,'Drop down items'!B479:C5345,2,FALSE)","v":{"$error":"#N/A"}}]
[null,null,null,null,null,null,null,null,{"$f":"VLOOKUP(H480,'Drop down items'!B480:C5346,2,FALSE)","v":{"$error":"#N/A"}}]
[null,null,null,null,null,null,null,null,{"$f":"VLOOKUP(H481,'Drop down items'!B481:C5347,2,FALSE)","v":{"$error":"#N/A"}}]
[null,null,null,null,null,null,null,null,{"$f":"VLOOKUP(H482,'Drop down items'!B482:C5348,2,FALSE)","v":{"$error":"#N/A"}}]
[null,null,null,null,null,null,null,null,{"$f":"VLOOKUP(H483,'Drop down items'!B483:C5349,2,FALSE)","v":{"$error":"#N/A"}}]
[null,null,null,null,null,null,null,null,{"$f":"VLOOKUP(H484,'Drop down items'!B484:C5350,2,FALSE)","v":{"$error":"#N/A"}}]
[null,null,null,null,null,null,null,null,{"$f":"VLOOKUP(H485,'Drop down items'!B485:C5351,2,FALSE)","v":{"$error":"#N/A"}}]
[null,null,null,null,null,null,null,null,{"$f":"VLOOKUP(H486,'Drop down items'!B486:C5352,2,FALSE)","v":{"$error":"#N/A"}}]
[null,null,null,null,null,null,null,null,{"$f":"VLOOKUP(H487,'Drop down items'!B487:C5353,2,FALSE)","v":{"$error":"#N/A"}}]
[null,null,null,null,null,null,null,null,{"$f":"VLOOKUP(H488,'Drop down items'!B488:C5354,2,FALSE)","v":{"$error":"#N/A"}}]
[null,null,null,null,null,null,null,null,{"$f":"VLOOKUP(H489,'Drop down items'!B489:C5355,2,FALSE)","v":{"$error":"#N/A"}}]
[null,null,null,null,null,null,null,null,{"$f":"VLOOKUP(H490,'Drop down items'!B490:C5356,2,FALSE)","v":{"$error":"#N/A"}}]
[null,null,null,null,null,null,null,null,{"$f":"VLOOKUP(H491,'Drop down items'!B491:C5357,2,FALSE)","v":{"$error":"#N/A"}}]
[null,null,null,null,null,null,null,null,{"$f":"VLOOKUP(H492,'Drop down items'!B492:C5358,2,FALSE)","v":{"$error":"#N/A"}}]
[null,null,null,null,null,null,null,null,{"$f":"VLOOKUP(H493,'Drop down items'!B493:C5359,2,FALSE)","v":{"$error":"#N/A"}}]
[null,null,null,null,null,null,null,null,{"$f":"VLOOKUP(H494,'Drop down items'!B494:C5360,2,FALSE)","v":{"$error":"#N/A"}}]
[null,null,null,null,null,null,null,null,{"$f":"VLOOKUP(H495,'Drop down items'!B495:C5361,2,FALSE)","v":{"$error":"#N/A"}}]
[null,null,null,null,null,null,null,null,{"$f":"VLOOKUP(H496,'Drop down items'!B496:C5362,2,FALSE)","v":{"$error":"#N/A"}}]
[null,null,null,null,null,null,null,null,{"$f":"VLOOKUP(H497,'Drop down items'!B497:C5363,2,FALSE)","v":{"$error":"#N/A"}}]
[null,null,null,null,null,null,null,null,{"$f":"VLOOKUP(H498,'Drop down items'!B498:C5364,2,FALSE)","v":{"$error":"#N/A"}}]
[null,null,null,null,null,null,null,null,{"$f":"VLOOKUP(H499,'Drop down items'!B499:C5365,2,FALSE)","v":{"$error":"#N/A"}}]
[null,null,null,null,null,null,null,null,{"$f":"VLOOKUP(H500,'Drop down items'!B500:C5366,2,FALSE)","v":{"$error":"#N/A"}}]
[null,null,null,null,null,null,null,null,{"$f":"VLOOKUP(H501,'Drop down items'!B501:C5367,2,FALSE)","v":{"$error":"#N/A"}}]
[null,null,null,null,null,null,null,null,{"$f":"VLOOKUP(H502,'Drop down items'!B502:C5368,2,FALSE)","v":{"$error":"#N/A"}}]
[null,null,null,null,null,null,null,null,{"$f":"VLOOKUP(H503,'Drop down items'!B503:C5369,2,FALSE)","v":{"$error":"#N/A"}}]
[null,null,null,null,null,null,null,null,{"$f":"VLOOKUP(H504,'Drop down items'!B504:C5370,2,FALSE)","v":{"$error":"#N/A"}}]
[null,null,null,null,null,null,null,null,{"$f":"VLOOKUP(H505,'Drop down items'!B505:C5371,2,FALSE)","v":{"$error":"#N/A"}}]
[null,null,null,null,null,null,null,null,{"$f":"VLOOKUP(H506,'Drop down items'!B506:C5372,2,FALSE)","v":{"$error":"#N/A"}}]
[null,null,null,null,null,null,null,null,{"$f":"VLOOKUP(H507,'Drop down items'!B507:C5373,2,FALSE)","v":{"$error":"#N/A"}}]
[null,null,null,null,null,null,null,null,{"$f":"VLOOKUP(H508,'Drop down items'!B508:C5374,2,FALSE)","v":{"$error":"#N/A"}}]
[null,null,null,null,null,null,null,null,{"$f":"VLOOKUP(H509,'Drop down items'!B509:C5375,2,FALSE)","v":{"$error":"#N/A"}}]
[null,null,null,null,null,null,null,null,{"$f":"VLOOKUP(H510,'Drop down items'!B510:C5376,2,FALSE)","v":{"$error":"#N/A"}}]
[null,null,null,null,null,null,null,null,{"$f":"VLOOKUP(H511,'Drop down items'!B511:C5377,2,FALSE)","v":{"$error":"#N/A"}}]
[null,null,null,null,null,null,null,null,{"$f":"VLOOKUP(H512,'Drop down items'!B512:C5378,2,FALSE)","v":{"$error":"#N/A"}}]
[null,null,null,null,null,null,null,null,{"$f":"VLOOKUP(H513,'Drop down items'!B513:C5379,2,FALSE)","v":{"$error":"#N/A"}}]
[null,null,null,null,null,null,null,null,{"$f":"VLOOKUP(H514,'Drop down items'!B514:C5380,2,FALSE)","v":{"$error":"#N/A"}}]
[null,null,null,null,null,null,null,null,{"$f":"VLOOKUP(H515,'Drop down items'!B515:C5381,2,FALSE)","v":{"$error":"#N/A"}}]
[null,null,null,null,null,null,null,null,{"$f":"VLOOKUP(H516,'Drop down items'!B516:C5382,2,FALSE)","v":{"$error":"#N/A"}}]
[null,null,null,null,null,null,null,null,{"$f":"VLOOKUP(H517,'Drop down items'!B517:C5383,2,FALSE)","v":{"$error":"#N/A"}}]
[null,null,null,null,null,null,null,null,{"$f":"VLOOKUP(H518,'Drop down items'!B518:C5384,2,FALSE)","v":{"$error":"#N/A"}}]
[null,null,null,null,null,null,null,null,{"$f":"VLOOKUP(H519,'Drop down items'!B519:C5385,2,FALSE)","v":{"$error":"#N/A"}}]
[null,null,null,null,null,null,null,null,{"$f":"VLOOKUP(H520,'Drop down items'!B520:C5386,2,FALSE)","v":{"$error":"#N/A"}}]
[null,null,null,null,null,null,null,null,{"$f":"VLOOKUP(H521,'Drop down items'!B521:C5387,2,FALSE)","v":{"$error":"#N/A"}}]
[null,null,null,null,null,null,null,null,{"$f":"VLOOKUP(H522,'Drop down items'!B522:C5388,2,FALSE)","v":{"$error":"#N/A"}}]
[null,null,null,null,null,null,null,null,{"$f":"VLOOKUP(H523,'Drop down items'!B523:C5389,2,FALSE)","v":{"$error":"#N/A"}}]
[null,null,null,null,null,null,null,null,{"$f":"VLOOKUP(H524,'Drop down items'!B524:C5390,2,FALSE)","v":{"$error":"#N/A"}}]
[null,null,null,null,null,null,null,null,{"$f":"VLOOKUP(H525,'Drop down items'!B525:C5391,2,FALSE)","v":{"$error":"#N/A"}}]
[null,null,null,null,null,null,null,null,{"$f":"VLOOKUP(H526,'Drop down items'!B526:C5392,2,FALSE)","v":{"$error":"#N/A"}}]
[null,null,null,null,null,null,null,null,{"$f":"VLOOKUP(H527,'Drop down items'!B527:C5393,2,FALSE)","v":{"$error":"#N/A"}}]
[null,null,null,null,null,null,null,null,{"$f":"VLOOKUP(H528,'Drop down items'!B528:C5394,2,FALSE)","v":{"$error":"#N/A"}}]
[null,null,null,null,null,null,null,null,{"$f":"VLOOKUP(H529,'Drop down items'!B529:C5395,2,FALSE)","v":{"$error":"#N/A"}}]
[null,null,null,null,null,null,null,null,{"$f":"VLOOKUP(H530,'Drop down items'!B530:C5396,2,FALSE)","v":{"$error":"#N/A"}}]
[null,null,null,null,null,null,null,null,{"$f":"VLOOKUP(H531,'Drop down items'!B531:C5397,2,FALSE)","v":{"$error":"#N/A"}}]
[null,null,null,null,null,null,null,null,{"$f":"VLOOKUP(H532,'Drop down items'!B532:C5398,2,FALSE)","v":{"$error":"#N/A"}}]
[null,null,null,null,null,null,null,null,{"$f":"VLOOKUP(H533,'Drop down items'!B533:C5399,2,FALSE)","v":{"$error":"#N/A"}}]
[null,null,null,null,null,null,null,null,{"$f":"VLOOKUP(H534,'Drop down items'!B534:C5400,2,FALSE)","v":{"$error":"#N/A"}}]
[null,null,null,null,null,null,null,null,{"$f":"VLOOKUP(H535,'Drop down items'!B535:C5401,2,FALSE)","v":{"$error":"#N/A"}}]
[null,null,null,null,null,null,null,null,{"$f":"VLOOKUP(H536,'Drop down items'!B536:C5402,2,FALSE)","v":{"$error":"#N/A"}}]
[null,null,null,null,null,null,null,null,{"$f":"VLOOKUP(H537,'Drop down items'!B537:C5403,2,FALSE)","v":{"$error":"#N/A"}}]
[null,null,null,null,null,null,null,null,{"$f":"VLOOKUP(H538,'Drop down items'!B538:C5404,2,FALSE)","v":{"$error":"#N/A"}}]
[null,null,null,null,null,null,null,null,{"$f":"VLOOKUP(H539,'Drop down items'!B539:C5405,2,FALSE)","v":{"$error":"#N/A"}}]
[null,null,null,null,null,null,null,null,{"$f":"VLOOKUP(H540,'Drop down items'!B540:C5406,2,FALSE)","v":{"$error":"#N/A"}}]
[null,null,null,null,null,null,null,null,{"$f":"VLOOKUP(H541,'Drop down items'!B541:C5407,2,FALSE)","v":{"$error":"#N/A"}}]
[null,null,null,null,null,null,null,null,{"$f":"VLOOKUP(H542,'Drop down items'!B542:C5408,2,FALSE)","v":{"$error":"#N/A"}}]
[null,null,null,null,null,null,null,null,{"$f":"VLOOKUP(H543,'Drop down items'!B543:C5409,2,FALSE)","v":{"$error":"#N/A"}}]
[null,null,null,null,null,null,null,null,{"$f":"VLOOKUP(H544,'Drop down items'!B544:C5410,2,FALSE)","v":{"$error":"#N/A"}}]
[null,null,null,null,null,null,null,null,{"$f":"VLOOKUP(H545,'Drop down items'!B545:C5411,2,FALSE)","v":{"$error":"#N/A"}}]
[null,null,null,null,null,null,null,null,{"$f":"VLOOKUP(H546,'Drop down items'!B546:C5412,2,FALSE)","v":{"$error":"#N/A"}}]
[null,null,null,null,null,null,null,null,{"$f":"VLOOKUP(H547,'Drop down items'!B547:C5413,2,FALSE)","v":{"$error":"#N/A"}}]
[null,null,null,null,null,null,null,null,{"$f":"VLOOKUP(H548,'Drop down items'!B548:C5414,2,FALSE)","v":{"$error":"#N/A"}}]
[null,null,null,null,null,null,null,null,{"$f":"VLOOKUP(H549,'Drop down items'!B549:C5415,2,FALSE)","v":{"$error":"#N/A"}}]
[null,null,null,null,null,null,null,null,{"$f":"VLOOKUP(H550,'Drop down items'!B550:C5416,2,FALSE)","v":{"$error":"#N/A"}}]
[null,null,null,null,null,null,null,null,{"$f":"VLOOKUP(H551,'Drop down items'!B551:C5417,2,FALSE)","v":{"$error":"#N/A"}}]
[null,null,null,null,null,null,null,null,{"$f":"VLOOKUP(H552,'Drop down items'!B552:C5418,2,FALSE)","v":{"$error":"#N/A"}}]
[null,null,null,null,null,null,null,null,{"$f":"VLOOKUP(H553,'Drop down items'!B553:C5419,2,FALSE)","v":{"$error":"#N/A"}}]
[null,null,null,null,null,null,null,null,{"$f":"VLOOKUP(H554,'Drop down items'!B554:C5420,2,FALSE)","v":{"$error":"#N/A"}}]
[null,null,null,null,null,null,null,null,{"$f":"VLOOKUP(H555,'Drop down items'!B555:C5421,2,FALSE)","v":{"$error":"#N/A"}}]
[null,null,null,null,null,null,null,null,{"$f":"VLOOKUP(H556,'Drop down items'!B556:C5422,2,FALSE)","v":{"$error":"#N/A"}}]
[null,null,null,null,null,null,null,null,{"$f":"VLOOKUP(H557,'Drop down items'!B557:C5423,2,FALSE)","v":{"$error":"#N/A"}}]
[null,null,null,null,null,null,null,null,{"$f":"VLOOKUP(H558,'Drop down items'!B558:C5424,2,FALSE)","v":{"$error":"#N/A"}}]
[null,null,null,null,null,null,null,null,{"$f":"VLOOKUP(H559,'Drop down items'!B559:C5425,2,FALSE)","v":{"$error":"#N/A"}}]
[null,null,null,null,null,null,null,null,{"$f":"VLOOKUP(H560,'Drop down items'!B560:C5426,2,FALSE)","v":{"$error":"#N/A"}}]
[null,null,null,null,null,null,null,null,{"$f":"VLOOKUP(H561,'Drop down items'!B561:C5427,2,FALSE)","v":{"$error":"#N/A"}}]
[null,null,null,null,null,null,null,null,{"$f":"VLOOKUP(H562,'Drop down items'!B562:C5428,2,FALSE)","v":{"$error":"#N/A"}}]
[null,null,null,null,null,null,null,null,{"$f":"VLOOKUP(H563,'Drop down items'!B563:C5429,2,FALSE)","v":{"$error":"#N/A"}}]
[null,null,null,null,null,null,null,null,{"$f":"VLOOKUP(H564,'Drop down items'!B564:C5430,2,FALSE)","v":{"$error":"#N/A"}}]
[null,null,null,null,null,null,null,null,{"$f":"VLOOKUP(H565,'Drop down items'!B565:C5431,2,FALSE)","v":{"$error":"#N/A"}}]
[null,null,null,null,null,null,null,null,{"$f":"VLOOKUP(H566,'Drop down items'!B566:C5432,2,FALSE)","v":{"$error":"#N/A"}}]
[null,null,null,null,null,null,null,null,{"$f":"VLOOKUP(H567,'Drop down items'!B567:C5433,2,FALSE)","v":{"$error":"#N/A"}}]
[null,null,null,null,null,null,null,null,{"$f":"VLOOKUP(H568,'Drop down items'!B568:C5434,2,FALSE)","v":{"$error":"#N/A"}}]
[null,null,null,null,null,null,null,null,{"$f":"VLOOKUP(H569,'Drop down items'!B569:C5435,2,FALSE)","v":{"$error":"#N/A"}}]
[null,null,null,null,null,null,null,null,{"$f":"VLOOKUP(H570,'Drop down items'!B570:C5436,2,FALSE)","v":{"$error":"#N/A"}}]
[null,null,null,null,null,null,null,null,{"$f":"VLOOKUP(H571,'Drop down items'!B571:C5437,2,FALSE)","v":{"$error":"#N/A"}}]
[null,null,null,null,null,null,null,null,{"$f":"VLOOKUP(H572,'Drop down items'!B572:C5438,2,FALSE)","v":{"$error":"#N/A"}}]
[null,null,null,null,null,null,null,null,{"$f":"VLOOKUP(H573,'Drop down items'!B573:C5439,2,FALSE)","v":{"$error":"#N/A"}}]
[null,null,null,null,null,null,null,null,{"$f":"VLOOKUP(H574,'Drop down items'!B574:C5440,2,FALSE)","v":{"$error":"#N/A"}}]
[null,null,null,null,null,null,null,null,{"$f":"VLOOKUP(H575,'Drop down items'!B575:C5441,2,FALSE)","v":{"$error":"#N/A"}}]
[null,null,null,null,null,null,null,null,{"$f":"VLOOKUP(H576,'Drop down items'!B576:C5442,2,FALSE)","v":{"$error":"#N/A"}}]
[null,null,null,null,null,null,null,null,{"$f":"VLOOKUP(H577,'Drop down items'!B577:C5443,2,FALSE)","v":{"$error":"#N/A"}}]
[null,null,null,null,null,null,null,null,{"$f":"VLOOKUP(H578,'Drop down items'!B578:C5444,2,FALSE)","v":{"$error":"#N/A"}}]
[null,null,null,null,null,null,null,null,{"$f":"VLOOKUP(H579,'Drop down items'!B579:C5445,2,FALSE)","v":{"$error":"#N/A"}}]
[null,null,null,null,null,null,null,null,{"$f":"VLOOKUP(H580,'Drop down items'!B580:C5446,2,FALSE)","v":{"$error":"#N/A"}}]
[null,null,null,null,null,null,null,null,{"$f":"VLOOKUP(H581,'Drop down items'!B581:C5447,2,FALSE)","v":{"$error":"#N/A"}}]
[null,null,null,null,null,null,null,null,{"$f":"VLOOKUP(H582,'Drop down items'!B582:C5448,2,FALSE)","v":{"$error":"#N/A"}}]
[null,null,null,null,null,null,null,null,{"$f":"VLOOKUP(H583,'Drop down items'!B583:C5449,2,FALSE)","v":{"$error":"#N/A"}}]
[null,null,null,null,null,null,null,null,{"$f":"VLOOKUP(H584,'Drop down items'!B584:C5450,2,FALSE)","v":{"$error":"#N/A"}}]
[null,null,null,null,null,null,null,null,{"$f":"VLOOKUP(H585,'Drop down items'!B585:C5451,2,FALSE)","v":{"$error":"#N/A"}}]
[null,null,null,null,null,null,null,null,{"$f":"VLOOKUP(H586,'Drop down items'!B586:C5452,2,FALSE)","v":{"$error":"#N/A"}}]
[null,null,null,null,null,null,null,null,{"$f":"VLOOKUP(H587,'Drop down items'!B587:C5453,2,FALSE)","v":{"$error":"#N/A"}}]
[null,null,null,null,null,null,null,null,{"$f":"VLOOKUP(H588,'Drop down items'!B588:C5454,2,FALSE)","v":{"$error":"#N/A"}}]
[null,null,null,null,null,null,null,null,{"$f":"VLOOKUP(H589,'Drop down items'!B589:C5455,2,FALSE)","v":{"$error":"#N/A"}}]
[null,null,null,null,null,null,null,null,{"$f":"VLOOKUP(H590,'Drop down items'!B590:C5456,2,FALSE)","v":{"$error":"#N/A"}}]
[null,null,null,null,null,null,null,null,{"$f":"VLOOKUP(H591,'Drop down items'!B591:C5457,2,FALSE)","v":{"$error":"#N/A"}}]
[null,null,null,null,null,null,null,null,{"$f":"VLOOKUP(H592,'Drop down items'!B592:C5458,2,FALSE)","v":{"$error":"#N/A"}}]
[null,null,null,null,null,null,null,null,{"$f":"VLOOKUP(H593,'Drop down items'!B593:C5459,2,FALSE)","v":{"$error":"#N/A"}}]
[null,null,null,null,null,null,null,null,{"$f":"VLOOKUP(H594,'Drop down items'!B594:C5460,2,FALSE)","v":{"$error":"#N/A"}}]
[null,null,null,null,null,null,null,null,{"$f":"VLOOKUP(H595,'Drop down items'!B595:C5461,2,FALSE)","v":{"$error":"#N/A"}}]
[null,null,null,null,null,null,null,null,{"$f":"VLOOKUP(H596,'Drop down items'!B596:C5462,2,FALSE)","v":{"$error":"#N/A"}}]
[null,null,null,null,null,null,null,null,{"$f":"VLOOKUP(H597,'Drop down items'!B597:C5463,2,FALSE)","v":{"$error":"#N/A"}}]
[null,null,null,null,null,null,null,null,{"$f":"VLOOKUP(H598,'Drop down items'!B598:C5464,2,FALSE)","v":{"$error":"#N/A"}}]
[null,null,null,null,null,null,null,null,{"$f":"VLOOKUP(H599,'Drop down items'!B599:C5465,2,FALSE)","v":{"$error":"#N/A"}}]
[null,null,null,null,null,null,null,null,{"$f":"VLOOKUP(H600,'Drop down items'!B600:C5466,2,FALSE)","v":{"$error":"#N/A"}}]
[null,null,null,null,null,null,null,null,{"$f":"VLOOKUP(H601,'Drop down items'!B601:C5467,2,FALSE)","v":{"$error":"#N/A"}}]
[null,null,null,null,null,null,null,null,{"$f":"VLOOKUP(H602,'Drop down items'!B602:C5468,2,FALSE)","v":{"$error":"#N/A"}}]
[null,null,null,null,null,null,null,null,{"$f":"VLOOKUP(H603,'Drop down items'!B603:C5469,2,FALSE)","v":{"$error":"#N/A"}}]
[null,null,null,null,null,null,null,null,{"$f":"VLOOKUP(H604,'Drop down items'!B604:C5470,2,FALSE)","v":{"$error":"#N/A"}}]
[null,null,null,null,null,null,null,null,{"$f":"VLOOKUP(H605,'Drop down items'!B605:C5471,2,FALSE)","v":{"$error":"#N/A"}}]
[null,null,null,null,null,null,null,null,{"$f":"VLOOKUP(H606,'Drop down items'!B606:C5472,2,FALSE)","v":{"$error":"#N/A"}}]
[null,null,null,null,null,null,null,null,{"$f":"VLOOKUP(H607,'Drop down items'!B607:C5473,2,FALSE)","v":{"$error":"#N/A"}}]
[null,null,null,null,null,null,null,null,{"$f":"VLOOKUP(H608,'Drop down items'!B608:C5474,2,FALSE)","v":{"$error":"#N/A"}}]
[null,null,null,null,null,null,null,null,{"$f":"VLOOKUP(H609,'Drop down items'!B609:C5475,2,FALSE)","v":{"$error":"#N/A"}}]
[null,null,null,null,null,null,null,null,{"$f":"VLOOKUP(H610,'Drop down items'!B610:C5476,2,FALSE)","v":{"$error":"#N/A"}}]
[null,null,null,null,null,null,null,null,{"$f":"VLOOKUP(H611,'Drop down items'!B611:C5477,2,FALSE)","v":{"$error":"#N/A"}}]
[null,null,null,null,null,null,null,null,{"$f":"VLOOKUP(H612,'Drop down items'!B612:C5478,2,FALSE)","v":{"$error":"#N/A"}}]
[null,null,null,null,null,null,null,null,{"$f":"VLOOKUP(H613,'Drop down items'!B613:C5479,2,FALSE)","v":{"$error":"#N/A"}}]
[null,null,null,null,null,null,null,null,{"$f":"VLOOKUP(H614,'Drop down items'!B614:C5480,2,FALSE)","v":{"$error":"#N/A"}}]
[null,null,null,null,null,null,null,null,{"$f":"VLOOKUP(H615,'Drop down items'!B615:C5481,2,FALSE)","v":{"$error":"#N/A"}}]
[null,null,null,null,null,null,null,null,{"$f":"VLOOKUP(H616,'Drop down items'!B616:C5482,2,FALSE)","v":{"$error":"#N/A"}}]
[null,null,null,null,null,null,null,null,{"$f":"VLOOKUP(H617,'Drop down items'!B617:C5483,2,FALSE)","v":{"$error":"#N/A"}}]
[null,null,null,null,null,null,null,null,{"$f":"VLOOKUP(H618,'Drop down items'!B618:C5484,2,FALSE)","v":{"$error":"#N/A"}}]
[null,null,null,null,null,null,null,null,{"$f":"VLOOKUP(H619,'Drop down items'!B619:C5485,2,FALSE)","v":{"$error":"#N/A"}}]
[null,null,null,null,null,null,null,null,{"$f":"VLOOKUP(H620,'Drop down items'!B620:C5486,2,FALSE)","v":{"$error":"#N/A"}}]
[null,null,null,null,null,null,null,null,{"$f":"VLOOKUP(H621,'Drop down items'!B621:C5487,2,FALSE)","v":{"$error":"#N/A"}}]
[null,null,null,null,null,null,null,null,{"$f":"VLOOKUP(H622,'Drop down items'!B622:C5488,2,FALSE)","v":{"$error":"#N/A"}}]
[null,null,null,null,null,null,null,null,{"$f":"VLOOKUP(H623,'Drop down items'!B623:C5489,2,FALSE)","v":{"$error":"#N/A"}}]
[null,null,null,null,null,null,null,null,{"$f":"VLOOKUP(H624,'Drop down items'!B624:C5490,2,FALSE)","v":{"$error":"#N/A"}}]
[null,null,null,null,null,null,null,null,{"$f":"VLOOKUP(H625,'Drop down items'!B625:C5491,2,FALSE)","v":{"$error":"#N/A"}}]
[null,null,null,null,null,null,null,null,{"$f":"VLOOKUP(H626,'Drop down items'!B626:C5492,2,FALSE)","v":{"$error":"#N/A"}}]
[null,null,null,null,null,null,null,null,{"$f":"VLOOKUP(H627,'Drop down items'!B627:C5493,2,FALSE)","v":{"$error":"#N/A"}}]
[null,null,null,null,null,null,null,null,{"$f":"VLOOKUP(H628,'Drop down items'!B628:C5494,2,FALSE)","v":{"$error":"#N/A"}}]
[null,null,null,null,null,null,null,null,{"$f":"VLOOKUP(H629,'Drop down items'!B629:C5495,2,FALSE)","v":{"$error":"#N/A"}}]
[null,null,null,null,null,null,null,null,{"$f":"VLOOKUP(H630,'Drop down items'!B630:C5496,2,FALSE)","v":{"$error":"#N/A"}}]
[null,null,null,null,null,null,null,null,{"$f":"VLOOKUP(H631,'Drop down items'!B631:C5497,2,FALSE)","v":{"$error":"#N/A"}}]
[null,null,null,null,null,null,null,null,{"$f":"VLOOKUP(H632,'Drop down items'!B632:C5498,2,FALSE)","v":{"$error":"#N/A"}}]
[null,null,null,null,null,null,null,null,{"$f":"VLOOKUP(H633,'Drop down items'!B633:C5499,2,FALSE)","v":{"$error":"#N/A"}}]
[null,null,null,null,null,null,null,null,{"$f":"VLOOKUP(H634,'Drop down items'!B634:C5500,2,FALSE)","v":{"$error":"#N/A"}}]
[null,null,null,null,null,null,null,null,{"$f":"VLOOKUP(H635,'Drop down items'!B635:C5501,2,FALSE)","v":{"$error":"#N/A"}}]
[null,null,null,null,null,null,null,null,{"$f":"VLOOKUP(H636,'Drop down items'!B636:C5502,2,FALSE)","v":{"$error":"#N/A"}}]
[null,null,null,null,null,null,null,null,{"$f":"VLOOKUP(H637,'Drop down items'!B637:C5503,2,FALSE)","v":{"$error":"#N/A"}}]
[null,null,null,null,null,null,null,null,{"$f":"VLOOKUP(H638,'Drop down items'!B638:C5504,2,FALSE)","v":{"$error":"#N/A"}}]
[null,null,null,null,null,null,null,null,{"$f":"VLOOKUP(H639,'Drop down items'!B639:C5505,2,FALSE)","v":{"$error":"#N/A"}}]
[null,null,null,null,null,null,null,null,{"$f":"VLOOKUP(H640,'Drop down items'!B640:C5506,2,FALSE)","v":{"$error":"#N/A"}}]
[null,null,null,null,null,null,null,null,{"$f":"VLOOKUP(H641,'Drop down items'!B641:C5507,2,FALSE)","v":{"$error":"#N/A"}}]
[null,null,null,null,null,null,null,null,{"$f":"VLOOKUP(H642,'Drop down items'!B642:C5508,2,FALSE)","v":{"$error":"#N/A"}}]
[null,null,null,null,null,null,null,null,{"$f":"VLOOKUP(H643,'Drop down items'!B643:C5509,2,FALSE)","v":{"$error":"#N/A"}}]
[null,null,null,null,null,null,null,null,{"$f":"VLOOKUP(H644,'Drop down items'!B644:C5510,2,FALSE)","v":{"$error":"#N/A"}}]
[null,null,null,null,null,null,null,null,{"$f":"VLOOKUP(H645,'Drop down items'!B645:C5511,2,FALSE)","v":{"$error":"#N/A"}}]
[null,null,null,null,null,null,null,null,{"$f":"VLOOKUP(H646,'Drop down items'!B646:C5512,2,FALSE)","v":{"$error":"#N/A"}}]
[null,null,null,null,null,null,null,null,{"$f":"VLOOKUP(H647,'Drop down items'!B647:C5513,2,FALSE)","v":{"$error":"#N/A"}}]
[null,null,null,null,null,null,null,null,{"$f":"VLOOKUP(H648,'Drop down items'!B648:C5514,2,FALSE)","v":{"$error":"#N/A"}}]
[null,null,null,null,null,null,null,null,{"$f":"VLOOKUP(H649,'Drop down items'!B649:C5515,2,FALSE)","v":{"$error":"#N/A"}}]
[null,null,null,null,null,null,null,null,{"$f":"VLOOKUP(H650,'Drop down items'!B650:C5516,2,FALSE)","v":{"$error":"#N/A"}}]
[null,null,null,null,null,null,null,null,{"$f":"VLOOKUP(H651,'Drop down items'!B651:C5517,2,FALSE)","v":{"$error":"#N/A"}}]
[null,null,null,null,null,null,null,null,{"$f":"VLOOKUP(H652,'Drop down items'!B652:C5518,2,FALSE)","v":{"$error":"#N/A"}}]
[null,null,null,null,null,null,null,null,{"$f":"VLOOKUP(H653,'Drop down items'!B653:C5519,2,FALSE)","v":{"$error":"#N/A"}}]
[null,null,null,null,null,null,null,null,{"$f":"VLOOKUP(H654,'Drop down items'!B654:C5520,2,FALSE)","v":{"$error":"#N/A"}}]
[null,null,null,null,null,null,null,null,{"$f":"VLOOKUP(H655,'Drop down items'!B655:C5521,2,FALSE)","v":{"$error":"#N/A"}}]
[null,null,null,null,null,null,null,null,{"$f":"VLOOKUP(H656,'Drop down items'!B656:C5522,2,FALSE)","v":{"$error":"#N/A"}}]
[null,null,null,null,null,null,null,null,{"$f":"VLOOKUP(H657,'Drop down items'!B657:C5523,2,FALSE)","v":{"$error":"#N/A"}}]
[null,null,null,null,null,null,null,null,{"$f":"VLOOKUP(H658,'Drop down items'!B658:C5524,2,FALSE)","v":{"$error":"#N/A"}}]
[null,null,null,null,null,null,null,null,{"$f":"VLOOKUP(H659,'Drop down items'!B659:C5525,2,FALSE)","v":{"$error":"#N/A"}}]
[null,null,null,null,null,null,null,null,{"$f":"VLOOKUP(H660,'Drop down items'!B660:C5526,2,FALSE)","v":{"$error":"#N/A"}}]
[null,null,null,null,null,null,null,null,{"$f":"VLOOKUP(H661,'Drop down items'!B661:C5527,2,FALSE)","v":{"$error":"#N/A"}}]
[null,null,null,null,null,null,null,null,{"$f":"VLOOKUP(H662,'Drop down items'!B662:C5528,2,FALSE)","v":{"$error":"#N/A"}}]
[null,null,null,null,null,null,null,null,{"$f":"VLOOKUP(H663,'Drop down items'!B663:C5529,2,FALSE)","v":{"$error":"#N/A"}}]
[null,null,null,null,null,null,null,null,{"$f":"VLOOKUP(H664,'Drop down items'!B664:C5530,2,FALSE)","v":{"$error":"#N/A"}}]
[null,null,null,null,null,null,null,null,{"$f":"VLOOKUP(H665,'Drop down items'!B665:C5531,2,FALSE)","v":{"$error":"#N/A"}}]
[null,null,null,null,null,null,null,null,{"$f":"VLOOKUP(H666,'Drop down items'!B666:C5532,2,FALSE)","v":{"$error":"#N/A"}}]
[null,null,null,null,null,null,null,null,{"$f":"VLOOKUP(H667,'Drop down items'!B667:C5533,2,FALSE)","v":{"$error":"#N/A"}}]
[null,null,null,null,null,null,null,null,{"$f":"VLOOKUP(H668,'Drop down items'!B668:C5534,2,FALSE)","v":{"$error":"#N/A"}}]
[null,null,null,null,null,null,null,null,{"$f":"VLOOKUP(H669,'Drop down items'!B669:C5535,2,FALSE)","v":{"$error":"#N/A"}}]
[null,null,null,null,null,null,null,null,{"$f":"VLOOKUP(H670,'Drop down items'!B670:C5536,2,FALSE)","v":{"$error":"#N/A"}}]
[null,null,null,null,null,null,null,null,{"$f":"VLOOKUP(H671,'Drop down items'!B671:C5537,2,FALSE)","v":{"$error":"#N/A"}}]
[null,null,null,null,null,null,null,null,{"$f":"VLOOKUP(H672,'Drop down items'!B672:C5538,2,FALSE)","v":{"$error":"#N/A"}}]
[null,null,null,null,null,null,null,null,{"$f":"VLOOKUP(H673,'Drop down items'!B673:C5539,2,FALSE)","v":{"$error":"#N/A"}}]
[null,null,null,null,null,null,null,null,{"$f":"VLOOKUP(H674,'Drop down items'!B674:C5540,2,FALSE)","v":{"$error":"#N/A"}}]
[null,null,null,null,null,null,null,null,{"$f":"VLOOKUP(H675,'Drop down items'!B675:C5541,2,FALSE)","v":{"$error":"#N/A"}}]
[null,null,null,null,null,null,null,null,{"$f":"VLOOKUP(H676,'Drop down items'!B676:C5542,2,FALSE)","v":{"$error":"#N/A"}}]
[null,null,null,null,null,null,null,null,{"$f":"VLOOKUP(H677,'Drop down items'!B677:C5543,2,FALSE)","v":{"$error":"#N/A"}}]
[null,null,null,null,null,null,null,null,{"$f":"VLOOKUP(H678,'Drop down items'!B678:C5544,2,FALSE)","v":{"$error":"#N/A"}}]
[null,null,null,null,null,null,null,null,{"$f":"VLOOKUP(H679,'Drop down items'!B679:C5545,2,FALSE)","v":{"$error":"#N/A"}}]
[null,null,null,null,null,null,null,null,{"$f":"VLOOKUP(H680,'Drop down items'!B680:C5546,2,FALSE)","v":{"$error":"#N/A"}}]
[null,null,null,null,null,null,null,null,{"$f":"VLOOKUP(H681,'Drop down items'!B681:C5547,2,FALSE)","v":{"$error":"#N/A"}}]
[null,null,null,null,null,null,null,null,{"$f":"VLOOKUP(H682,'Drop down items'!B682:C5548,2,FALSE)","v":{"$error":"#N/A"}}]
[null,null,null,null,null,null,null,null,{"$f":"VLOOKUP(H683,'Drop down items'!B683:C5549,2,FALSE)","v":{"$error":"#N/A"}}]
[null,null,null,null,null,null,null,null,{"$f":"VLOOKUP(H684,'Drop down items'!B684:C5550,2,FALSE)","v":{"$error":"#N/A"}}]
[null,null,null,null,null,null,null,null,{"$f":"VLOOKUP(H685,'Drop down items'!B685:C5551,2,FALSE)","v":{"$error":"#N/A"}}]
[null,null,null,null,null,null,null,null,{"$f":"VLOOKUP(H686,'Drop down items'!B686:C5552,2,FALSE)","v":{"$error":"#N/A"}}]
[null,null,null,null,null,null,null,null,{"$f":"VLOOKUP(H687,'Drop down items'!B687:C5553,2,FALSE)","v":{"$error":"#N/A"}}]
[null,null,null,null,null,null,null,null,{"$f":"VLOOKUP(H688,'Drop down items'!B688:C5554,2,FALSE)","v":{"$error":"#N/A"}}]
[null,null,null,null,null,null,null,null,{"$f":"VLOOKUP(H689,'Drop down items'!B689:C5555,2,FALSE)","v":{"$error":"#N/A"}}]
[null,null,null,null,null,null,null,null,{"$f":"VLOOKUP(H690,'Drop down items'!B690:C5556,2,FALSE)","v":{"$error":"#N/A"}}]
[null,null,null,null,null,null,null,null,{"$f":"VLOOKUP(H691,'Drop down items'!B691:C5557,2,FALSE)","v":{"$error":"#N/A"}}]
[null,null,null,null,null,null,null,null,{"$f":"VLOOKUP(H692,'Drop down items'!B692:C5558,2,FALSE)","v":{"$error":"#N/A"}}]
[null,null,null,null,null,null,null,null,{"$f":"VLOOKUP(H693,'Drop down items'!B693:C5559,2,FALSE)","v":{"$error":"#N/A"}}]
[null,null,null,null,null,null,null,null,{"$f":"VLOOKUP(H694,'Drop down items'!B694:C5560,2,FALSE)","v":{"$error":"#N/A"}}]
[null,null,null,null,null,null,null,null,{"$f":"VLOOKUP(H695,'Drop down items'!B695:C5561,2,FALSE)","v":{"$error":"#N/A"}}]
[null,null,null,null,null,null,null,null,{"$f":"VLOOKUP(H696,'Drop down items'!B696:C5562,2,FALSE)","v":{"$error":"#N/A"}}]
[null,null,null,null,null,null,null,null,{"$f":"VLOOKUP(H697,'Drop down items'!B697:C5563,2,FALSE)","v":{"$error":"#N/A"}}]
[null,null,null,null,null,null,null,null,{"$f":"VLOOKUP(H698,'Drop down items'!B698:C5564,2,FALSE)","v":{"$error":"#N/A"}}]
[null,null,null,null,null,null,null,null,{"$f":"VLOOKUP(H699,'Drop down items'!B699:C5565,2,FALSE)","v":{"$error":"#N/A"}}]
[null,null,null,null,null,null,null,null,{"$f":"VLOOKUP(H700,'Drop down items'!B700:C5566,2,FALSE)","v":{"$error":"#N/A"}}]
[null,null,null,null,null,null,null,null,{"$f":"VLOOKUP(H701,'Drop down items'!B701:C5567,2,FALSE)","v":{"$error":"#N/A"}}]
[null,null,null,null,null,null,null,null,{"$f":"VLOOKUP(H702,'Drop down items'!B702:C5568,2,FALSE)","v":{"$error":"#N/A"}}]
[null,null,null,null,null,null,null,null,{"$f":"VLOOKUP(H703,'Drop down items'!B703:C5569,2,FALSE)","v":{"$error":"#N/A"}}]
[null,null,null,null,null,null,null,null,{"$f":"VLOOKUP(H704,'Drop down items'!B704:C5570,2,FALSE)","v":{"$error":"#N/A"}}]
[null,null,null,null,null,null,null,null,{"$f":"VLOOKUP(H705,'Drop down items'!B705:C5571,2,FALSE)","v":{"$error":"#N/A"}}]
[null,null,null,null,null,null,null,null,{"$f":"VLOOKUP(H706,'Drop down items'!B706:C5572,2,FALSE)","v":{"$error":"#N/A"}}]
[null,null,null,null,null,null,null,null,{"$f":"VLOOKUP(H707,'Drop down items'!B707:C5573,2,FALSE)","v":{"$error":"#N/A"}}]
[null,null,null,null,null,null,null,null,{"$f":"VLOOKUP(H708,'Drop down items'!B708:C5574,2,FALSE)","v":{"$error":"#N/A"}}]
[null,null,null,null,null,null,null,null,{"$f":"VLOOKUP(H709,'Drop down items'!B709:C5575,2,FALSE)","v":{"$error":"#N/A"}}]
[null,null,null,null,null,null,null,null,{"$f":"VLOOKUP(H710,'Drop down items'!B710:C5576,2,FALSE)","v":{"$error":"#N/A"}}]
[null,null,null,null,null,null,null,null,{"$f":"VLOOKUP(H711,'Drop down items'!B711:C5577,2,FALSE)","v":{"$error":"#N/A"}}]
[null,null,null,null,null,null,null,null,{"$f":"VLOOKUP(H712,'Drop down items'!B712:C5578,2,FALSE)","v":{"$error":"#N/A"}}]
[null,null,null,null,null,null,null,null,{"$f":"VLOOKUP(H713,'Drop down items'!B713:C5579,2,FALSE)","v":{"$error":"#N/A"}}]
[null,null,null,null,null,null,null,null,{"$f":"VLOOKUP(H714,'Drop down items'!B714:C5580,2,FALSE)","v":{"$error":"#N/A"}}]
[null,null,null,null,null,null,null,null,{"$f":"VLOOKUP(H715,'Drop down items'!B715:C5581,2,FALSE)","v":{"$error":"#N/A"}}]
[null,null,null,null,null,null,null,null,{"$f":"VLOOKUP(H716,'Drop down items'!B716:C5582,2,FALSE)","v":{"$error":"#N/A"}}]
[null,null,null,null,null,null,null,null,{"$f":"VLOOKUP(H717,'Drop down items'!B717:C5583,2,FALSE)","v":{"$error":"#N/A"}}]
[null,null,null,null,null,null,null,null,{"$f":"VLOOKUP(H718,'Drop down items'!B718:C5584,2,FALSE)","v":{"$error":"#N/A"}}]
[null,null,null,null,null,null,null,null,{"$f":"VLOOKUP(H719,'Drop down items'!B719:C5585,2,FALSE)","v":{"$error":"#N/A"}}]
[null,null,null,null,null,null,null,null,{"$f":"VLOOKUP(H720,'Drop down items'!B720:C5586,2,FALSE)","v":{"$error":"#N/A"}}]
[null,null,null,null,null,null,null,null,{"$f":"VLOOKUP(H721,'Drop down items'!B721:C5587,2,FALSE)","v":{"$error":"#N/A"}}]
[null,null,null,null,null,null,null,null,{"$f":"VLOOKUP(H722,'Drop down items'!B722:C5588,2,FALSE)","v":{"$error":"#N/A"}}]
[null,null,null,null,null,null,null,null,{"$f":"VLOOKUP(H723,'Drop down items'!B723:C5589,2,FALSE)","v":{"$error":"#N/A"}}]
[null,null,null,null,null,null,null,null,{"$f":"VLOOKUP(H724,'Drop down items'!B724:C5590,2,FALSE)","v":{"$error":"#N/A"}}]
[null,null,null,null,null,null,null,null,{"$f":"VLOOKUP(H725,'Drop down items'!B725:C5591,2,FALSE)","v":{"$error":"#N/A"}}]
[null,null,null,null,null,null,null,null,{"$f":"VLOOKUP(H726,'Drop down items'!B726:C5592,2,FALSE)","v":{"$error":"#N/A"}}]
[null,null,null,null,null,null,null,null,{"$f":"VLOOKUP(H727,'Drop down items'!B727:C5593,2,FALSE)","v":{"$error":"#N/A"}}]
[null,null,null,null,null,null,null,null,{"$f":"VLOOKUP(H728,'Drop down items'!B728:C5594,2,FALSE)","v":{"$error":"#N/A"}}]
[null,null,null,null,null,null,null,null,{"$f":"VLOOKUP(H729,'Drop down items'!B729:C5595,2,FALSE)","v":{"$error":"#N/A"}}]
[null,null,null,null,null,null,null,null,{"$f":"VLOOKUP(H730,'Drop down items'!B730:C5596,2,FALSE)","v":{"$error":"#N/A"}}]
[null,null,null,null,null,null,null,null,{"$f":"VLOOKUP(H731,'Drop down items'!B731:C5597,2,FALSE)","v":{"$error":"#N/A"}}]
[null,null,null,null,null,null,null,null,{"$f":"VLOOKUP(H732,'Drop down items'!B732:C5598,2,FALSE)","v":{"$error":"#N/A"}}]
[null,null,null,null,null,null,null,null,{"$f":"VLOOKUP(H733,'Drop down items'!B733:C5599,2,FALSE)","v":{"$error":"#N/A"}}]
[null,null,null,null,null,null,null,null,{"$f":"VLOOKUP(H734,'Drop down items'!B734:C5600,2,FALSE)","v":{"$error":"#N/A"}}]
[null,null,null,null,null,null,null,null,{"$f":"VLOOKUP(H735,'Drop down items'!B735:C5601,2,FALSE)","v":{"$error":"#N/A"}}]
[null,null,null,null,null,null,null,null,{"$f":"VLOOKUP(H736,'Drop down items'!B736:C5602,2,FALSE)","v":{"$error":"#N/A"}}]
[null,null,null,null,null,null,null,null,{"$f":"VLOOKUP(H737,'Drop down items'!B737:C5603,2,FALSE)","v":{"$error":"#N/A"}}]
[null,null,null,null,null,null,null,null,{"$f":"VLOOKUP(H738,'Drop down items'!B738:C5604,2,FALSE)","v":{"$error":"#N/A"}}]
[null,null,null,null,null,null,null,null,{"$f":"VLOOKUP(H739,'Drop down items'!B739:C5605,2,FALSE)","v":{"$error":"#N/A"}}]
[null,null,null,null,null,null,null,null,{"$f":"VLOOKUP(H740,'Drop down items'!B740:C5606,2,FALSE)","v":{"$error":"#N/A"}}]
[null,null,null,null,null,null,null,null,{"$f":"VLOOKUP(H741,'Drop down items'!B741:C5607,2,FALSE)","v":{"$error":"#N/A"}}]
[null,null,null,null,null,null,null,null,{"$f":"VLOOKUP(H742,'Drop down items'!B742:C5608,2,FALSE)","v":{"$error":"#N/A"}}]
[null,null,null,null,null,null,null,null,{"$f":"VLOOKUP(H743,'Drop down items'!B743:C5609,2,FALSE)","v":{"$error":"#N/A"}}]
[null,null,null,null,null,null,null,null,{"$f":"VLOOKUP(H744,'Drop down items'!B744:C5610,2,FALSE)","v":{"$error":"#N/A"}}]
[null,null,null,null,null,null,null,null,{"$f":"VLOOKUP(H745,'Drop down items'!B745:C5611,2,FALSE)","v":{"$error":"#N/A"}}]
[null,null,null,null,null,null,null,null,{"$f":"VLOOKUP(H746,'Drop down items'!B746:C5612,2,FALSE)","v":{"$error":"#N/A"}}]
[null,null,null,null,null,null,null,null,{"$f":"VLOOKUP(H747,'Drop down items'!B747:C5613,2,FALSE)","v":{"$error":"#N/A"}}]
[null,null,null,null,null,null,null,null,{"$f":"VLOOKUP(H748,'Drop down items'!B748:C5614,2,FALSE)","v":{"$error":"#N/A"}}]
[null,null,null,null,null,null,null,null,{"$f":"VLOOKUP(H749,'Drop down items'!B749:C5615,2,FALSE)","v":{"$error":"#N/A"}}]
[null,null,null,null,null,null,null,null,{"$f":"VLOOKUP(H750,'Drop down items'!B750:C5616,2,FALSE)","v":{"$error":"#N/A"}}]
[null,null,null,null,null,null,null,null,{"$f":"VLOOKUP(H751,'Drop down items'!B751:C5617,2,FALSE)","v":{"$error":"#N/A"}}]
[null,null,null,null,null,null,null,null,{"$f":"VLOOKUP(H752,'Drop down items'!B752:C5618,2,FALSE)","v":{"$error":"#N/A"}}]
[null,null,null,null,null,null,null,null,{"$f":"VLOOKUP(H753,'Drop down items'!B753:C5619,2,FALSE)","v":{"$error":"#N/A"}}]
[null,null,null,null,null,null,null,null,{"$f":"VLOOKUP(H754,'Drop down items'!B754:C5620,2,FALSE)","v":{"$error":"#N/A"}}]
[null,null,null,null,null,null,null,null,{"$f":"VLOOKUP(H755,'Drop down items'!B755:C5621,2,FALSE)","v":{"$error":"#N/A"}}]
[null,null,null,null,null,null,null,null,{"$f":"VLOOKUP(H756,'Drop down items'!B756:C5622,2,FALSE)","v":{"$error":"#N/A"}}]
[null,null,null,null,null,null,null,null,{"$f":"VLOOKUP(H757,'Drop down items'!B757:C5623,2,FALSE)","v":{"$error":"#N/A"}}]
[null,null,null,null,null,null,null,null,{"$f":"VLOOKUP(H758,'Drop down items'!B758:C5624,2,FALSE)","v":{"$error":"#N/A"}}]
[null,null,null,null,null,null,null,null,{"$f":"VLOOKUP(H759,'Drop down items'!B759:C5625,2,FALSE)","v":{"$error":"#N/A"}}]
[null,null,null,null,null,null,null,null,{"$f":"VLOOKUP(H760,'Drop down items'!B760:C5626,2,FALSE)","v":{"$error":"#N/A"}}]
[null,null,null,null,null,null,null,null,{"$f":"VLOOKUP(H761,'Drop down items'!B761:C5627,2,FALSE)","v":{"$error":"#N/A"}}]
[null,null,null,null,null,null,null,null,{"$f":"VLOOKUP(H762,'Drop down items'!B762:C5628,2,FALSE)","v":{"$error":"#N/A"}}]
[null,null,null,null,null,null,null,null,{"$f":"VLOOKUP(H763,'Drop down items'!B763:C5629,2,FALSE)","v":{"$error":"#N/A"}}]
[null,null,null,null,null,null,null,null,{"$f":"VLOOKUP(H764,'Drop down items'!B764:C5630,2,FALSE)","v":{"$error":"#N/A"}}]
[null,null,null,null,null,null,null,null,{"$f":"VLOOKUP(H765,'Drop down items'!B765:C5631,2,FALSE)","v":{"$error":"#N/A"}}]
[null,null,null,null,null,null,null,null,{"$f":"VLOOKUP(H766,'Drop down items'!B766:C5632,2,FALSE)","v":{"$error":"#N/A"}}]
[null,null,null,null,null,null,null,null,{"$f":"VLOOKUP(H767,'Drop down items'!B767:C5633,2,FALSE)","v":{"$error":"#N/A"}}]
[null,null,null,null,null,null,null,null,{"$f":"VLOOKUP(H768,'Drop down items'!B768:C5634,2,FALSE)","v":{"$error":"#N/A"}}]
[null,null,null,null,null,null,null,null,{"$f":"VLOOKUP(H769,'Drop down items'!B769:C5635,2,FALSE)","v":{"$error":"#N/A"}}]
[null,null,null,null,null,null,null,null,{"$f":"VLOOKUP(H770,'Drop down items'!B770:C5636,2,FALSE)","v":{"$error":"#N/A"}}]
[null,null,null,null,null,null,null,null,{"$f":"VLOOKUP(H771,'Drop down items'!B771:C5637,2,FALSE)","v":{"$error":"#N/A"}}]
[null,null,null,null,null,null,null,null,{"$f":"VLOOKUP(H772,'Drop down items'!B772:C5638,2,FALSE)","v":{"$error":"#N/A"}}]
[null,null,null,null,null,null,null,null,{"$f":"VLOOKUP(H773,'Drop down items'!B773:C5639,2,FALSE)","v":{"$error":"#N/A"}}]
[null,null,null,null,null,null,null,null,{"$f":"VLOOKUP(H774,'Drop down items'!B774:C5640,2,FALSE)","v":{"$error":"#N/A"}}]
[null,null,null,null,null,null,null,null,{"$f":"VLOOKUP(H775,'Drop down items'!B775:C5641,2,FALSE)","v":{"$error":"#N/A"}}]
[null,null,null,null,null,null,null,null,{"$f":"VLOOKUP(H776,'Drop down items'!B776:C5642,2,FALSE)","v":{"$error":"#N/A"}}]
[null,null,null,null,null,null,null,null,{"$f":"VLOOKUP(H777,'Drop down items'!B777:C5643,2,FALSE)","v":{"$error":"#N/A"}}]
[null,null,null,null,null,null,null,null,{"$f":"VLOOKUP(H778,'Drop down items'!B778:C5644,2,FALSE)","v":{"$error":"#N/A"}}]
[null,null,null,null,null,null,null,null,{"$f":"VLOOKUP(H779,'Drop down items'!B779:C5645,2,FALSE)","v":{"$error":"#N/A"}}]
[null,null,null,null,null,null,null,null,{"$f":"VLOOKUP(H780,'Drop down items'!B780:C5646,2,FALSE)","v":{"$error":"#N/A"}}]
[null,null,null,null,null,null,null,null,{"$f":"VLOOKUP(H781,'Drop down items'!B781:C5647,2,FALSE)","v":{"$error":"#N/A"}}]
[null,null,null,null,null,null,null,null,{"$f":"VLOOKUP(H782,'Drop down items'!B782:C5648,2,FALSE)","v":{"$error":"#N/A"}}]
[null,null,null,null,null,null,null,null,{"$f":"VLOOKUP(H783,'Drop down items'!B783:C5649,2,FALSE)","v":{"$error":"#N/A"}}]
[null,null,null,null,null,null,null,null,{"$f":"VLOOKUP(H784,'Drop down items'!B784:C5650,2,FALSE)","v":{"$error":"#N/A"}}]
[null,null,null,null,null,null,null,null,{"$f":"VLOOKUP(H785,'Drop down items'!B785:C5651,2,FALSE)","v":{"$error":"#N/A"}}]
[null,null,null,null,null,null,null,null,{"$f":"VLOOKUP(H786,'Drop down items'!B786:C5652,2,FALSE)","v":{"$error":"#N/A"}}]
[null,null,null,null,null,null,null,null,{"$f":"VLOOKUP(H787,'Drop down items'!B787:C5653,2,FALSE)","v":{"$error":"#N/A"}}]
[null,null,null,null,null,null,null,null,{"$f":"VLOOKUP(H788,'Drop down items'!B788:C5654,2,FALSE)","v":{"$error":"#N/A"}}]
[null,null,null,null,null,null,null,null,{"$f":"VLOOKUP(H789,'Drop down items'!B789:C5655,2,FALSE)","v":{"$error":"#N/A"}}]
[null,null,null,null,null,null,null,null,{"$f":"VLOOKUP(H790,'Drop down items'!B790:C5656,2,FALSE)","v":{"$error":"#N/A"}}]
[null,null,null,null,null,null,null,null,{"$f":"VLOOKUP(H791,'Drop down items'!B791:C5657,2,FALSE)","v":{"$error":"#N/A"}}]
[null,null,null,null,null,null,null,null,{"$f":"VLOOKUP(H792,'Drop down items'!B792:C5658,2,FALSE)","v":{"$error":"#N/A"}}]
[null,null,null,null,null,null,null,null,{"$f":"VLOOKUP(H793,'Drop down items'!B793:C5659,2,FALSE)","v":{"$error":"#N/A"}}]
[null,null,null,null,null,null,null,null,{"$f":"VLOOKUP(H794,'Drop down items'!B794:C5660,2,FALSE)","v":{"$error":"#N/A"}}]
[null,null,null,null,null,null,null,null,{"$f":"VLOOKUP(H795,'Drop down items'!B795:C5661,2,FALSE)","v":{"$error":"#N/A"}}]
[null,null,null,null,null,null,null,null,{"$f":"VLOOKUP(H796,'Drop down items'!B796:C5662,2,FALSE)","v":{"$error":"#N/A"}}]
[null,null,null,null,null,null,null,null,{"$f":"VLOOKUP(H797,'Drop down items'!B797:C5663,2,FALSE)","v":{"$error":"#N/A"}}]
[null,null,null,null,null,null,null,null,{"$f":"VLOOKUP(H798,'Drop down items'!B798:C5664,2,FALSE)","v":{"$error":"#N/A"}}]
[null,null,null,null,null,null,null,null,{"$f":"VLOOKUP(H799,'Drop down items'!B799:C5665,2,FALSE)","v":{"$error":"#N/A"}}]
[null,null,null,null,null,null,null,null,{"$f":"VLOOKUP(H800,'Drop down items'!B800:C5666,2,FALSE)","v":{"$error":"#N/A"}}]
[null,null,null,null,null,null,null,null,{"$f":"VLOOKUP(H801,'Drop down items'!B801:C5667,2,FALSE)","v":{"$error":"#N/A"}}]
[null,null,null,null,null,null,null,null,{"$f":"VLOOKUP(H802,'Drop down items'!B802:C5668,2,FALSE)","v":{"$error":"#N/A"}}]
[null,null,null,null,null,null,null,null,{"$f":"VLOOKUP(H803,'Drop down items'!B803:C5669,2,FALSE)","v":{"$error":"#N/A"}}]
[null,null,null,null,null,null,null,null,{"$f":"VLOOKUP(H804,'Drop down items'!B804:C5670,2,FALSE)","v":{"$error":"#N/A"}}]
[null,null,null,null,null,null,null,null,{"$f":"VLOOKUP(H805,'Drop down items'!B805:C5671,2,FALSE)","v":{"$error":"#N/A"}}]
[null,null,null,null,null,null,null,null,{"$f":"VLOOKUP(H806,'Drop down items'!B806:C5672,2,FALSE)","v":{"$error":"#N/A"}}]
[null,null,null,null,null,null,null,null,{"$f":"VLOOKUP(H807,'Drop down items'!B807:C5673,2,FALSE)","v":{"$error":"#N/A"}}]
[null,null,null,null,null,null,null,null,{"$f":"VLOOKUP(H808,'Drop down items'!B808:C5674,2,FALSE)","v":{"$error":"#N/A"}}]
[null,null,null,null,null,null,null,null,{"$f":"VLOOKUP(H809,'Drop down items'!B809:C5675,2,FALSE)","v":{"$error":"#N/A"}}]
[null,null,null,null,null,null,null,null,{"$f":"VLOOKUP(H810,'Drop down items'!B810:C5676,2,FALSE)","v":{"$error":"#N/A"}}]
[null,null,null,null,null,null,null,null,{"$f":"VLOOKUP(H811,'Drop down items'!B811:C5677,2,FALSE)","v":{"$error":"#N/A"}}]
[null,null,null,null,null,null,null,null,{"$f":"VLOOKUP(H812,'Drop down items'!B812:C5678,2,FALSE)","v":{"$error":"#N/A"}}]
[null,null,null,null,null,null,null,null,{"$f":"VLOOKUP(H813,'Drop down items'!B813:C5679,2,FALSE)","v":{"$error":"#N/A"}}]
[null,null,null,null,null,null,null,null,{"$f":"VLOOKUP(H814,'Drop down items'!B814:C5680,2,FALSE)","v":{"$error":"#N/A"}}]
[null,null,null,null,null,null,null,null,{"$f":"VLOOKUP(H815,'Drop down items'!B815:C5681,2,FALSE)","v":{"$error":"#N/A"}}]
[null,null,null,null,null,null,null,null,{"$f":"VLOOKUP(H816,'Drop down items'!B816:C5682,2,FALSE)","v":{"$error":"#N/A"}}]
[null,null,null,null,null,null,null,null,{"$f":"VLOOKUP(H817,'Drop down items'!B817:C5683,2,FALSE)","v":{"$error":"#N/A"}}]
[null,null,null,null,null,null,null,null,{"$f":"VLOOKUP(H818,'Drop down items'!B818:C5684,2,FALSE)","v":{"$error":"#N/A"}}]
[null,null,null,null,null,null,null,null,{"$f":"VLOOKUP(H819,'Drop down items'!B819:C5685,2,FALSE)","v":{"$error":"#N/A"}}]
[null,null,null,null,null,null,null,null,{"$f":"VLOOKUP(H820,'Drop down items'!B820:C5686,2,FALSE)","v":{"$error":"#N/A"}}]
[null,null,null,null,null,null,null,null,{"$f":"VLOOKUP(H821,'Drop down items'!B821:C5687,2,FALSE)","v":{"$error":"#N/A"}}]
[null,null,null,null,null,null,null,null,{"$f":"VLOOKUP(H822,'Drop down items'!B822:C5688,2,FALSE)","v":{"$error":"#N/A"}}]
[null,null,null,null,null,null,null,null,{"$f":"VLOOKUP(H823,'Drop down items'!B823:C5689,2,FALSE)","v":{"$error":"#N/A"}}]
[null,null,null,null,null,null,null,null,{"$f":"VLOOKUP(H824,'Drop down items'!B824:C5690,2,FALSE)","v":{"$error":"#N/A"}}]
[null,null,null,null,null,null,null,null,{"$f":"VLOOKUP(H825,'Drop down items'!B825:C5691,2,FALSE)","v":{"$error":"#N/A"}}]
[null,null,null,null,null,null,null,null,{"$f":"VLOOKUP(H826,'Drop down items'!B826:C5692,2,FALSE)","v":{"$error":"#N/A"}}]
[null,null,null,null,null,null,null,null,{"$f":"VLOOKUP(H827,'Drop down items'!B827:C5693,2,FALSE)","v":{"$error":"#N/A"}}]
[null,null,null,null,null,null,null,null,{"$f":"VLOOKUP(H828,'Drop down items'!B828:C5694,2,FALSE)","v":{"$error":"#N/A"}}]
[null,null,null,null,null,null,null,null,{"$f":"VLOOKUP(H829,'Drop down items'!B829:C5695,2,FALSE)","v":{"$error":"#N/A"}}]
[null,null,null,null,null,null,null,null,{"$f":"VLOOKUP(H830,'Drop down items'!B830:C5696,2,FALSE)","v":{"$error":"#N/A"}}]
[null,null,null,null,null,null,null,null,{"$f":"VLOOKUP(H831,'Drop down items'!B831:C5697,2,FALSE)","v":{"$error":"#N/A"}}]
[null,null,null,null,null,null,null,null,{"$f":"VLOOKUP(H832,'Drop down items'!B832:C5698,2,FALSE)","v":{"$error":"#N/A"}}]
[null,null,null,null,null,null,null,null,{"$f":"VLOOKUP(H833,'Drop down items'!B833:C5699,2,FALSE)","v":{"$error":"#N/A"}}]
[null,null,null,null,null,null,null,null,{"$f":"VLOOKUP(H834,'Drop down items'!B834:C5700,2,FALSE)","v":{"$error":"#N/A"}}]
[null,null,null,null,null,null,null,null,{"$f":"VLOOKUP(H835,'Drop down items'!B835:C5701,2,FALSE)","v":{"$error":"#N/A"}}]
[null,null,null,null,null,null,null,null,{"$f":"VLOOKUP(H836,'Drop down items'!B836:C5702,2,FALSE)","v":{"$error":"#N/A"}}]
[null,null,null,null,null,null,null,null,{"$f":"VLOOKUP(H837,'Drop down items'!B837:C5703,2,FALSE)","v":{"$error":"#N/A"}}]
[null,null,null,null,null,null,null,null,{"$f":"VLOOKUP(H838,'Drop down items'!B838:C5704,2,FALSE)","v":{"$error":"#N/A"}}]
[null,null,null,null,null,null,null,null,{"$f":"VLOOKUP(H839,'Drop down items'!B839:C5705,2,FALSE)","v":{"$error":"#N/A"}}]
[null,null,null,null,null,null,null,null,{"$f":"VLOOKUP(H840,'Drop down items'!B840:C5706,2,FALSE)","v":{"$error":"#N/A"}}]
[null,null,null,null,null,null,null,null,{"$f":"VLOOKUP(H841,'Drop down items'!B841:C5707,2,FALSE)","v":{"$error":"#N/A"}}]
[null,null,null,null,null,null,null,null,{"$f":"VLOOKUP(H842,'Drop down items'!B842:C5708,2,FALSE)","v":{"$error":"#N/A"}}]
[null,null,null,null,null,null,null,null,{"$f":"VLOOKUP(H843,'Drop down items'!B843:C5709,2,FALSE)","v":{"$error":"#N/A"}}]
[null,null,null,null,null,null,null,null,{"$f":"VLOOKUP(H844,'Drop down items'!B844:C5710,2,FALSE)","v":{"$error":"#N/A"}}]
[null,null,null,null,null,null,null,null,{"$f":"VLOOKUP(H845,'Drop down items'!B845:C5711,2,FALSE)","v":{"$error":"#N/A"}}]
[null,null,null,null,null,null,null,null,{"$f":"VLOOKUP(H846,'Drop down items'!B846:C5712,2,FALSE)","v":{"$error":"#N/A"}}]
[null,null,null,null,null,null,null,null,{"$f":"VLOOKUP(H847,'Drop down items'!B847:C5713,2,FALSE)","v":{"$error":"#N/A"}}]
[null,null,null,null,null,null,null,null,{"$f":"VLOOKUP(H848,'Drop down items'!B848:C5714,2,FALSE)","v":{"$error":"#N/A"}}]
[null,null,null,null,null,null,null,null,{"$f":"VLOOKUP(H849,'Drop down items'!B849:C5715,2,FALSE)","v":{"$error":"#N/A"}}]
[null,null,null,null,null,null,null,null,{"$f":"VLOOKUP(H850,'Drop down items'!B850:C5716,2,FALSE)","v":{"$error":"#N/A"}}]
[null,null,null,null,null,null,null,null,{"$f":"VLOOKUP(H851,'Drop down items'!B851:C5717,2,FALSE)","v":{"$error":"#N/A"}}]
[null,null,null,null,null,null,null,null,{"$f":"VLOOKUP(H852,'Drop down items'!B852:C5718,2,FALSE)","v":{"$error":"#N/A"}}]
[null,null,null,null,null,null,null,null,{"$f":"VLOOKUP(H853,'Drop down items'!B853:C5719,2,FALSE)","v":{"$error":"#N/A"}}]
[null,null,null,null,null,null,null,null,{"$f":"VLOOKUP(H854,'Drop down items'!B854:C5720,2,FALSE)","v":{"$error":"#N/A"}}]
[null,null,null,null,null,null,null,null,{"$f":"VLOOKUP(H855,'Drop down items'!B855:C5721,2,FALSE)","v":{"$error":"#N/A"}}]
[null,null,null,null,null,null,null,null,{"$f":"VLOOKUP(H856,'Drop down items'!B856:C5722,2,FALSE)","v":{"$error":"#N/A"}}]
[null,null,null,null,null,null,null,null,{"$f":"VLOOKUP(H857,'Drop down items'!B857:C5723,2,FALSE)","v":{"$error":"#N/A"}}]
[null,null,null,null,null,null,null,null,{"$f":"VLOOKUP(H858,'Drop down items'!B858:C5724,2,FALSE)","v":{"$error":"#N/A"}}]
[null,null,null,null,null,null,null,null,{"$f":"VLOOKUP(H859,'Drop down items'!B859:C5725,2,FALSE)","v":{"$error":"#N/A"}}]
[null,null,null,null,null,null,null,null,{"$f":"VLOOKUP(H860,'Drop down items'!B860:C5726,2,FALSE)","v":{"$error":"#N/A"}}]
[null,null,null,null,null,null,null,null,{"$f":"VLOOKUP(H861,'Drop down items'!B861:C5727,2,FALSE)","v":{"$error":"#N/A"}}]
[null,null,null,null,null,null,null,null,{"$f":"VLOOKUP(H862,'Drop down items'!B862:C5728,2,FALSE)","v":{"$error":"#N/A"}}]
[null,null,null,null,null,null,null,null,{"$f":"VLOOKUP(H863,'Drop down items'!B863:C5729,2,FALSE)","v":{"$error":"#N/A"}}]
[null,null,null,null,null,null,null,null,{"$f":"VLOOKUP(H864,'Drop down items'!B864:C5730,2,FALSE)","v":{"$error":"#N/A"}}]
[null,null,null,null,null,null,null,null,{"$f":"VLOOKUP(H865,'Drop down items'!B865:C5731,2,FALSE)","v":{"$error":"#N/A"}}]
[null,null,null,null,null,null,null,null,{"$f":"VLOOKUP(H866,'Drop down items'!B866:C5732,2,FALSE)","v":{"$error":"#N/A"}}]
[null,null,null,null,null,null,null,null,{"$f":"VLOOKUP(H867,'Drop down items'!B867:C5733,2,FALSE)","v":{"$error":"#N/A"}}]
[null,null,null,null,null,null,null,null,{"$f":"VLOOKUP(H868,'Drop down items'!B868:C5734,2,FALSE)","v":{"$error":"#N/A"}}]
[null,null,null,null,null,null,null,null,{"$f":"VLOOKUP(H869,'Drop down items'!B869:C5735,2,FALSE)","v":{"$error":"#N/A"}}]
[null,null,null,null,null,null,null,null,{"$f":"VLOOKUP(H870,'Drop down items'!B870:C5736,2,FALSE)","v":{"$error":"#N/A"}}]
[null,null,null,null,null,null,null,null,{"$f":"VLOOKUP(H871,'Drop down items'!B871:C5737,2,FALSE)","v":{"$error":"#N/A"}}]
[null,null,null,null,null,null,null,null,{"$f":"VLOOKUP(H872,'Drop down items'!B872:C5738,2,FALSE)","v":{"$error":"#N/A"}}]
[null,null,null,null,null,null,null,null,{"$f":"VLOOKUP(H873,'Drop down items'!B873:C5739,2,FALSE)","v":{"$error":"#N/A"}}]
[null,null,null,null,null,null,null,null,{"$f":"VLOOKUP(H874,'Drop down items'!B874:C5740,2,FALSE)","v":{"$error":"#N/A"}}]
[null,null,null,null,null,null,null,null,{"$f":"VLOOKUP(H875,'Drop down items'!B875:C5741,2,FALSE)","v":{"$error":"#N/A"}}]
[null,null,null,null,null,null,null,null,{"$f":"VLOOKUP(H876,'Drop down items'!B876:C5742,2,FALSE)","v":{"$error":"#N/A"}}]
[null,null,null,null,null,null,null,null,{"$f":"VLOOKUP(H877,'Drop down items'!B877:C5743,2,FALSE)","v":{"$error":"#N/A"}}]
[null,null,null,null,null,null,null,null,{"$f":"VLOOKUP(H878,'Drop down items'!B878:C5744,2,FALSE)","v":{"$error":"#N/A"}}]
[null,null,null,null,null,null,null,null,{"$f":"VLOOKUP(H879,'Drop down items'!B879:C5745,2,FALSE)","v":{"$error":"#N/A"}}]
[null,null,null,null,null,null,null,null,{"$f":"VLOOKUP(H880,'Drop down items'!B880:C5746,2,FALSE)","v":{"$error":"#N/A"}}]
[null,null,null,null,null,null,null,null,{"$f":"VLOOKUP(H881,'Drop down items'!B881:C5747,2,FALSE)","v":{"$error":"#N/A"}}]
[null,null,null,null,null,null,null,null,{"$f":"VLOOKUP(H882,'Drop down items'!B882:C5748,2,FALSE)","v":{"$error":"#N/A"}}]
[null,null,null,null,null,null,null,null,{"$f":"VLOOKUP(H883,'Drop down items'!B883:C5749,2,FALSE)","v":{"$error":"#N/A"}}]
[null,null,null,null,null,null,null,null,{"$f":"VLOOKUP(H884,'Drop down items'!B884:C5750,2,FALSE)","v":{"$error":"#N/A"}}]
[null,null,null,null,null,null,null,null,{"$f":"VLOOKUP(H885,'Drop down items'!B885:C5751,2,FALSE)","v":{"$error":"#N/A"}}]
[null,null,null,null,null,null,null,null,{"$f":"VLOOKUP(H886,'Drop down items'!B886:C5752,2,FALSE)","v":{"$error":"#N/A"}}]
[null,null,null,null,null,null,null,null,{"$f":"VLOOKUP(H887,'Drop down items'!B887:C5753,2,FALSE)","v":{"$error":"#N/A"}}]
[null,null,null,null,null,null,null,null,{"$f":"VLOOKUP(H888,'Drop down items'!B888:C5754,2,FALSE)","v":{"$error":"#N/A"}}]
[null,null,null,null,null,null,null,null,{"$f":"VLOOKUP(H889,'Drop down items'!B889:C5755,2,FALSE)","v":{"$error":"#N/A"}}]
[null,null,null,null,null,null,null,null,{"$f":"VLOOKUP(H890,'Drop down items'!B890:C5756,2,FALSE)","v":{"$error":"#N/A"}}]
[null,null,null,null,null,null,null,null,{"$f":"VLOOKUP(H891,'Drop down items'!B891:C5757,2,FALSE)","v":{"$error":"#N/A"}}]
[null,null,null,null,null,null,null,null,{"$f":"VLOOKUP(H892,'Drop down items'!B892:C5758,2,FALSE)","v":{"$error":"#N/A"}}]
[null,null,null,null,null,null,null,null,{"$f":"VLOOKUP(H893,'Drop down items'!B893:C5759,2,FALSE)","v":{"$error":"#N/A"}}]
[null,null,null,null,null,null,null,null,{"$f":"VLOOKUP(H894,'Drop down items'!B894:C5760,2,FALSE)","v":{"$error":"#N/A"}}]
[null,null,null,null,null,null,null,null,{"$f":"VLOOKUP(H895,'Drop down items'!B895:C5761,2,FALSE)","v":{"$error":"#N/A"}}]
[null,null,null,null,null,null,null,null,{"$f":"VLOOKUP(H896,'Drop down items'!B896:C5762,2,FALSE)","v":{"$error":"#N/A"}}]
[null,null,null,null,null,null,null,null,{"$f":"VLOOKUP(H897,'Drop down items'!B897:C5763,2,FALSE)","v":{"$error":"#N/A"}}]
[null,null,null,null,null,null,null,null,{"$f":"VLOOKUP(H898,'Drop down items'!B898:C5764,2,FALSE)","v":{"$error":"#N/A"}}]
[null,null,null,null,null,null,null,null,{"$f":"VLOOKUP(H899,'Drop down items'!B899:C5765,2,FALSE)","v":{"$error":"#N/A"}}]
[null,null,null,null,null,null,null,null,{"$f":"VLOOKUP(H900,'Drop down items'!B900:C5766,2,FALSE)","v":{"$error":"#N/A"}}]
[null,null,null,null,null,null,null,null,{"$f":"VLOOKUP(H901,'Drop down items'!B901:C5767,2,FALSE)","v":{"$error":"#N/A"}}]
[null,null,null,null,null,null,null,null,{"$f":"VLOOKUP(H902,'Drop down items'!B902:C5768,2,FALSE)","v":{"$error":"#N/A"}}]
[null,null,null,null,null,null,null,null,{"$f":"VLOOKUP(H903,'Drop down items'!B903:C5769,2,FALSE)","v":{"$error":"#N/A"}}]
[null,null,null,null,null,null,null,null,{"$f":"VLOOKUP(H904,'Drop down items'!B904:C5770,2,FALSE)","v":{"$error":"#N/A"}}]
[null,null,null,null,null,null,null,null,{"$f":"VLOOKUP(H905,'Drop down items'!B905:C5771,2,FALSE)","v":{"$error":"#N/A"}}]
[null,null,null,null,null,null,null,null,{"$f":"VLOOKUP(H906,'Drop down items'!B906:C5772,2,FALSE)","v":{"$error":"#N/A"}}]
[null,null,null,null,null,null,null,null,{"$f":"VLOOKUP(H907,'Drop down items'!B907:C5773,2,FALSE)","v":{"$error":"#N/A"}}]
[null,null,null,null,null,null,null,null,{"$f":"VLOOKUP(H908,'Drop down items'!B908:C5774,2,FALSE)","v":{"$error":"#N/A"}}]
[null,null,null,null,null,null,null,null,{"$f":"VLOOKUP(H909,'Drop down items'!B909:C5775,2,FALSE)","v":{"$error":"#N/A"}}]
[null,null,null,null,null,null,null,null,{"$f":"VLOOKUP(H910,'Drop down items'!B910:C5776,2,FALSE)","v":{"$error":"#N/A"}}]
[null,null,null,null,null,null,null,null,{"$f":"VLOOKUP(H911,'Drop down items'!B911:C5777,2,FALSE)","v":{"$error":"#N/A"}}]
[null,null,null,null,null,null,null,null,{"$f":"VLOOKUP(H912,'Drop down items'!B912:C5778,2,FALSE)","v":{"$error":"#N/A"}}]
[null,null,null,null,null,null,null,null,{"$f":"VLOOKUP(H913,'Drop down items'!B913:C5779,2,FALSE)","v":{"$error":"#N/A"}}]
[null,null,null,null,null,null,null,null,{"$f":"VLOOKUP(H914,'Drop down items'!B914:C5780,2,FALSE)","v":{"$error":"#N/A"}}]
[null,null,null,null,null,null,null,null,{"$f":"VLOOKUP(H915,'Drop down items'!B915:C5781,2,FALSE)","v":{"$error":"#N/A"}}]
[null,null,null,null,null,null,null,null,{"$f":"VLOOKUP(H916,'Drop down items'!B916:C5782,2,FALSE)","v":{"$error":"#N/A"}}]
[null,null,null,null,null,null,null,null,{"$f":"VLOOKUP(H917,'Drop down items'!B917:C5783,2,FALSE)","v":{"$error":"#N/A"}}]
[null,null,null,null,null,null,null,null,{"$f":"VLOOKUP(H918,'Drop down items'!B918:C5784,2,FALSE)","v":{"$error":"#N/A"}}]
[null,null,null,null,null,null,null,null,{"$f":"VLOOKUP(H919,'Drop down items'!B919:C5785,2,FALSE)","v":{"$error":"#N/A"}}]
[null,null,null,null,null,null,null,null,{"$f":"VLOOKUP(H920,'Drop down items'!B920:C5786,2,FALSE)","v":{"$error":"#N/A"}}]
[null,null,null,null,null,null,null,null,{"$f":"VLOOKUP(H921,'Drop down items'!B921:C5787,2,FALSE)","v":{"$error":"#N/A"}}]
[null,null,null,null,null,null,null,null,{"$f":"VLOOKUP(H922,'Drop down items'!B922:C5788,2,FALSE)","v":{"$error":"#N/A"}}]
[null,null,null,null,null,null,null,null,{"$f":"VLOOKUP(H923,'Drop down items'!B923:C5789,2,FALSE)","v":{"$error":"#N/A"}}]
[null,null,null,null,null,null,null,null,{"$f":"VLOOKUP(H924,'Drop down items'!B924:C5790,2,FALSE)","v":{"$error":"#N/A"}}]
[null,null,null,null,null,null,null,null,{"$f":"VLOOKUP(H925,'Drop down items'!B925:C5791,2,FALSE)","v":{"$error":"#N/A"}}]
[null,null,null,null,null,null,null,null,{"$f":"VLOOKUP(H926,'Drop down items'!B926:C5792,2,FALSE)","v":{"$error":"#N/A"}}]
[null,null,null,null,null,null,null,null,{"$f":"VLOOKUP(H927,'Drop down items'!B927:C5793,2,FALSE)","v":{"$error":"#N/A"}}]
[null,null,null,null,null,null,null,null,{"$f":"VLOOKUP(H928,'Drop down items'!B928:C5794,2,FALSE)","v":{"$error":"#N/A"}}]
[null,null,null,null,null,null,null,null,{"$f":"VLOOKUP(H929,'Drop down items'!B929:C5795,2,FALSE)","v":{"$error":"#N/A"}}]
[null,null,null,null,null,null,null,null,{"$f":"VLOOKUP(H930,'Drop down items'!B930:C5796,2,FALSE)","v":{"$error":"#N/A"}}]
[null,null,null,null,null,null,null,null,{"$f":"VLOOKUP(H931,'Drop down items'!B931:C5797,2,FALSE)","v":{"$error":"#N/A"}}]
[null,null,null,null,null,null,null,null,{"$f":"VLOOKUP(H932,'Drop down items'!B932:C5798,2,FALSE)","v":{"$error":"#N/A"}}]
[null,null,null,null,null,null,null,null,{"$f":"VLOOKUP(H933,'Drop down items'!B933:C5799,2,FALSE)","v":{"$error":"#N/A"}}]
[null,null,null,null,null,null,null,null,{"$f":"VLOOKUP(H934,'Drop down items'!B934:C5800,2,FALSE)","v":{"$error":"#N/A"}}]
[null,null,null,null,null,null,null,null,{"$f":"VLOOKUP(H935,'Drop down items'!B935:C5801,2,FALSE)","v":{"$error":"#N/A"}}]
[null,null,null,null,null,null,null,null,{"$f":"VLOOKUP(H936,'Drop down items'!B936:C5802,2,FALSE)","v":{"$error":"#N/A"}}]
[null,null,null,null,null,null,null,null,{"$f":"VLOOKUP(H937,'Drop down items'!B937:C5803,2,FALSE)","v":{"$error":"#N/A"}}]
[null,null,null,null,null,null,null,null,{"$f":"VLOOKUP(H938,'Drop down items'!B938:C5804,2,FALSE)","v":{"$error":"#N/A"}}]
[null,null,null,null,null,null,null,null,{"$f":"VLOOKUP(H939,'Drop down items'!B939:C5805,2,FALSE)","v":{"$error":"#N/A"}}]
[null,null,null,null,null,null,null,null,{"$f":"VLOOKUP(H940,'Drop down items'!B940:C5806,2,FALSE)","v":{"$error":"#N/A"}}]
[null,null,null,null,null,null,null,null,{"$f":"VLOOKUP(H941,'Drop down items'!B941:C5807,2,FALSE)","v":{"$error":"#N/A"}}]
[null,null,null,null,null,null,null,null,{"$f":"VLOOKUP(H942,'Drop down items'!B942:C5808,2,FALSE)","v":{"$error":"#N/A"}}]
[null,null,null,null,null,null,null,null,{"$f":"VLOOKUP(H943,'Drop down items'!B943:C5809,2,FALSE)","v":{"$error":"#N/A"}}]
[null,null,null,null,null,null,null,null,{"$f":"VLOOKUP(H944,'Drop down items'!B944:C5810,2,FALSE)","v":{"$error":"#N/A"}}]
[null,null,null,null,null,null,null,null,{"$f":"VLOOKUP(H945,'Drop down items'!B945:C5811,2,FALSE)","v":{"$error":"#N/A"}}]
[null,null,null,null,null,null,null,null,{"$f":"VLOOKUP(H946,'Drop down items'!B946:C5812,2,FALSE)","v":{"$error":"#N/A"}}]
[null,null,null,null,null,null,null,null,{"$f":"VLOOKUP(H947,'Drop down items'!B947:C5813,2,FALSE)","v":{"$error":"#N/A"}}]
[null,null,null,null,null,null,null,null,{"$f":"VLOOKUP(H948,'Drop down items'!B948:C5814,2,FALSE)","v":{"$error":"#N/A"}}]
[null,null,null,null,null,null,null,null,{"$f":"VLOOKUP(H949,'Drop down items'!B949:C5815,2,FALSE)","v":{"$error":"#N/A"}}]
[null,null,null,null,null,null,null,null,{"$f":"VLOOKUP(H950,'Drop down items'!B950:C5816,2,FALSE)","v":{"$error":"#N/A"}}]
[null,null,null,null,null,null,null,null,{"$f":"VLOOKUP(H951,'Drop down items'!B951:C5817,2,FALSE)","v":{"$error":"#N/A"}}]
[null,null,null,null,null,null,null,null,{"$f":"VLOOKUP(H952,'Drop down items'!B952:C5818,2,FALSE)","v":{"$error":"#N/A"}}]
[null,null,null,null,null,null,null,null,{"$f":"VLOOKUP(H953,'Drop down items'!B953:C5819,2,FALSE)","v":{"$error":"#N/A"}}]
[null,null,null,null,null,null,null,null,{"$f":"VLOOKUP(H954,'Drop down items'!B954:C5820,2,FALSE)","v":{"$error":"#N/A"}}]
[null,null,null,null,null,null,null,null,{"$f":"VLOOKUP(H955,'Drop down items'!B955:C5821,2,FALSE)","v":{"$error":"#N/A"}}]
[null,null,null,null,null,null,null,null,{"$f":"VLOOKUP(H956,'Drop down items'!B956:C5822,2,FALSE)","v":{"$error":"#N/A"}}]
[null,null,null,null,null,null,null,null,{"$f":"VLOOKUP(H957,'Drop down items'!B957:C5823,2,FALSE)","v":{"$error":"#N/A"}}]
[null,null,null,null,null,null,null,null,{"$f":"VLOOKUP(H958,'Drop down items'!B958:C5824,2,FALSE)","v":{"$error":"#N/A"}}]
[null,null,null,null,null,null,null,null,{"$f":"VLOOKUP(H959,'Drop down items'!B959:C5825,2,FALSE)","v":{"$error":"#N/A"}}]
[null,null,null,null,null,null,null,null,{"$f":"VLOOKUP(H960,'Drop down items'!B960:C5826,2,FALSE)","v":{"$error":"#N/A"}}]
[null,null,null,null,null,null,null,null,{"$f":"VLOOKUP(H961,'Drop down items'!B961:C5827,2,FALSE)","v":{"$error":"#N/A"}}]
[null,null,null,null,null,null,null,null,{"$f":"VLOOKUP(H962,'Drop down items'!B962:C5828,2,FALSE)","v":{"$error":"#N/A"}}]
[null,null,null,null,null,null,null,null,{"$f":"VLOOKUP(H963,'Drop down items'!B963:C5829,2,FALSE)","v":{"$error":"#N/A"}}]
[null,null,null,null,null,null,null,null,{"$f":"VLOOKUP(H964,'Drop down items'!B964:C5830,2,FALSE)","v":{"$error":"#N/A"}}]
[null,null,null,null,null,null,null,null,{"$f":"VLOOKUP(H965,'Drop down items'!B965:C5831,2,FALSE)","v":{"$error":"#N/A"}}]
[null,null,null,null,null,null,null,null,{"$f":"VLOOKUP(H966,'Drop down items'!B966:C5832,2,FALSE)","v":{"$error":"#N/A"}}]
[null,null,null,null,null,null,null,null,{"$f":"VLOOKUP(H967,'Drop down items'!B967:C5833,2,FALSE)","v":{"$error":"#N/A"}}]
[null,null,null,null,null,null,null,null,{"$f":"VLOOKUP(H968,'Drop down items'!B968:C5834,2,FALSE)","v":{"$error":"#N/A"}}]
[null,null,null,null,null,null,null,null,{"$f":"VLOOKUP(H969,'Drop down items'!B969:C5835,2,FALSE)","v":{"$error":"#N/A"}}]
[null,null,null,null,null,null,null,null,{"$f":"VLOOKUP(H970,'Drop down items'!B970:C5836,2,FALSE)","v":{"$error":"#N/A"}}]
[null,null,null,null,null,null,null,null,{"$f":"VLOOKUP(H971,'Drop down items'!B971:C5837,2,FALSE)","v":{"$error":"#N/A"}}]
[null,null,null,null,null,null,null,null,{"$f":"VLOOKUP(H972,'Drop down items'!B972:C5838,2,FALSE)","v":{"$error":"#N/A"}}]
[null,null,null,null,null,null,null,null,{"$f":"VLOOKUP(H973,'Drop down items'!B973:C5839,2,FALSE)","v":{"$error":"#N/A"}}]
[null,null,null,null,null,null,null,null,{"$f":"VLOOKUP(H974,'Drop down items'!B974:C5840,2,FALSE)","v":{"$error":"#N/A"}}]
[null,null,null,null,null,null,null,null,{"$f":"VLOOKUP(H975,'Drop down items'!B975:C5841,2,FALSE)","v":{"$error":"#N/A"}}]
[null,null,null,null,null,null,null,null,{"$f":"VLOOKUP(H976,'Drop down items'!B976:C5842,2,FALSE)","v":{"$error":"#N/A"}}]
[null,null,null,null,null,null,null,null,{"$f":"VLOOKUP(H977,'Drop down items'!B977:C5843,2,FALSE)","v":{"$error":"#N/A"}}]
[null,null,null,null,null,null,null,null,{"$f":"VLOOKUP(H978,'Drop down items'!B978:C5844,2,FALSE)","v":{"$error":"#N/A"}}]
[null,null,null,null,null,null,null,null,{"$f":"VLOOKUP(H979,'Drop down items'!B979:C5845,2,FALSE)","v":{"$error":"#N/A"}}]
[null,null,null,null,null,null,null,null,{"$f":"VLOOKUP(H980,'Drop down items'!B980:C5846,2,FALSE)","v":{"$error":"#N/A"}}]
[null,null,null,null,null,null,null,null,{"$f":"VLOOKUP(H981,'Drop down items'!B981:C5847,2,FALSE)","v":{"$error":"#N/A"}}]
[null,null,null,null,null,null,null,null,{"$f":"VLOOKUP(H982,'Drop down items'!B982:C5848,2,FALSE)","v":{"$error":"#N/A"}}]
[null,null,null,null,null,null,null,null,{"$f":"VLOOKUP(H983,'Drop down items'!B983:C5849,2,FALSE)","v":{"$error":"#N/A"}}]
[null,null,null,null,null,null,null,null,{"$f":"VLOOKUP(H984,'Drop down items'!B984:C5850,2,FALSE)","v":{"$error":"#N/A"}}]
[null,null,null,null,null,null,null,null,{"$f":"VLOOKUP(H985,'Drop down items'!B985:C5851,2,FALSE)","v":{"$error":"#N/A"}}]
[null,null,null,null,null,null,null,null,{"$f":"VLOOKUP(H986,'Drop down items'!B986:C5852,2,FALSE)","v":{"$error":"#N/A"}}]
[null,null,null,null,null,null,null,null,{"$f":"VLOOKUP(H987,'Drop down items'!B987:C5853,2,FALSE)","v":{"$error":"#N/A"}}]
[null,null,null,null,null,null,null,null,{"$f":"VLOOKUP(H988,'Drop down items'!B988:C5854,2,FALSE)","v":{"$error":"#N/A"}}]
[null,null,null,null,null,null,null,null,{"$f":"VLOOKUP(H989,'Drop down items'!B989:C5855,2,FALSE)","v":{"$error":"#N/A"}}]
[null,null,null,null,null,null,null,null,{"$f":"VLOOKUP(H990,'Drop down items'!B990:C5856,2,FALSE)","v":{"$error":"#N/A"}}]
[null,null,null,null,null,null,null,null,{"$f":"VLOOKUP(H991,'Drop down items'!B991:C5857,2,FALSE)","v":{"$error":"#N/A"}}]
[null,null,null,null,null,null,null,null,{"$f":"VLOOKUP(H992,'Drop down items'!B992:C5858,2,FALSE)","v":{"$error":"#N/A"}}]
[null,null,null,null,null,null,null,null,{"$f":"VLOOKUP(H993,'Drop down items'!B993:C5859,2,FALSE)","v":{"$error":"#N/A"}}]
[null,null,null,null,null,null,null,null,{"$f":"VLOOKUP(H994,'Drop down items'!B994:C5860,2,FALSE)","v":{"$error":"#N/A"}}]
[null,null,null,null,null,null,null,null,{"$f":"VLOOKUP(H995,'Drop down items'!B995:C5861,2,FALSE)","v":{"$error":"#N/A"}}]
[null,null,null,null,null,null,null,null,{"$f":"VLOOKUP(H996,'Drop down items'!B996:C5862,2,FALSE)","v":{"$error":"#N/A"}}]
[null,null,null,null,null,null,null,null,{"$f":"VLOOKUP(H997,'Drop down items'!B997:C5863,2,FALSE)","v":{"$error":"#N/A"}}]
[null,null,null,null,null,null,null,null,{"$f":"VLOOKUP(H998,'Drop down items'!B998:C5864,2,FALSE)","v":{"$error":"#N/A"}}]
[null,null,null,null,null,null,null,null,{"$f":"VLOOKUP(H999,'Drop down items'!B999:C5865,2,FALSE)","v":{"$error":"#N/A"}}]
[null,null,null,null,null,null,null,null,{"$f":"VLOOKUP(H1000,'Drop down items'!B1000:C5866,2,FALSE)","v":{"$error":"#N/A"}}]
[null,null,null,null,null,null,null,null,{"$f":"VLOOKUP(H1001,'Drop down items'!B1001:C5867,2,FALSE)","v":{"$error":"#N/A"}}]
[null,null,null,null,null,null,null,null,{"$f":"VLOOKUP(H1002,'Drop down items'!B1002:C5868,2,FALSE)","v":{"$error":"#N/A"}}]
[null,null,null,null,null,null,null,null,{"$f":"VLOOKUP(H1003,'Drop down items'!B1003:C5869,2,FALSE)","v":{"$error":"#N/A"}}]
[null,null,null,null,null,null,null,null,{"$f":"VLOOKUP(H1004,'Drop down items'!B1004:C5870,2,FALSE)","v":{"$error":"#N/A"}}]
[null,null,null,null,null,null,null,null,{"$f":"VLOOKUP(H1005,'Drop down items'!B1005:C5871,2,FALSE)","v":{"$error":"#N/A"}}]
[null,null,null,null,null,null,null,null,{"$f":"VLOOKUP(H1006,'Drop down items'!B1006:C5872,2,FALSE)","v":{"$error":"#N/A"}}]
[null,null,null,null,null,null,null,null,{"$f":"VLOOKUP(H1007,'Drop down items'!B1007:C5873,2,FALSE)","v":{"$error":"#N/A"}}]
[null,null,null,null,null,null,null,null,{"$f":"VLOOKUP(H1008,'Drop down items'!B1008:C5874,2,FALSE)","v":{"$error":"#N/A"}}]
[null,null,null,null,null,null,null,null,{"$f":"VLOOKUP(H1009,'Drop down items'!B1009:C5875,2,FALSE)","v":{"$error":"#N/A"}}]
[null,null,null,null,null,null,null,null,{"$f":"VLOOKUP(H1010,'Drop down items'!B1010:C5876,2,FALSE)","v":{"$error":"#N/A"}}]
[null,null,null,null,null,null,null,null,{"$f":"VLOOKUP(H1011,'Drop down items'!B1011:C5877,2,FALSE)","v":{"$error":"#N/A"}}]
[null,null,null,null,null,null,null,null,{"$f":"VLOOKUP(H1012,'Drop down items'!B1012:C5878,2,FALSE)","v":{"$error":"#N/A"}}]
[null,null,null,null,null,null,null,null,{"$f":"VLOOKUP(H1013,'Drop down items'!B1013:C5879,2,FALSE)","v":{"$error":"#N/A"}}]
[null,null,null,null,null,null,null,null,{"$f":"VLOOKUP(H1014,'Drop down items'!B1014:C5880,2,FALSE)","v":{"$error":"#N/A"}}]
[null,null,null,null,null,null,null,null,{"$f":"VLOOKUP(H1015,'Drop down items'!B1015:C5881,2,FALSE)","v":{"$error":"#N/A"}}]
[null,null,null,null,null,null,null,null,{"$f":"VLOOKUP(H1016,'Drop down items'!B1016:C5882,2,FALSE)","v":{"$error":"#N/A"}}]
[null,null,null,null,null,null,null,null,{"$f":"VLOOKUP(H1017,'Drop down items'!B1017:C5883,2,FALSE)","v":{"$error":"#N/A"}}]
[null,null,null,null,null,null,null,null,{"$f":"VLOOKUP(H1018,'Drop down items'!B1018:C5884,2,FALSE)","v":{"$error":"#N/A"}}]
[null,null,null,null,null,null,null,null,{"$f":"VLOOKUP(H1019,'Drop down items'!B1019:C5885,2,FALSE)","v":{"$error":"#N/A"}}]
[null,null,null,null,null,null,null,null,{"$f":"VLOOKUP(H1020,'Drop down items'!B1020:C5886,2,FALSE)","v":{"$error":"#N/A"}}]
[null,null,null,null,null,null,null,null,{"$f":"VLOOKUP(H1021,'Drop down items'!B1021:C5887,2,FALSE)","v":{"$error":"#N/A"}}]
[null,null,null,null,null,null,null,null,{"$f":"VLOOKUP(H1022,'Drop down items'!B1022:C5888,2,FALSE)","v":{"$error":"#N/A"}}]
[null,null,null,null,null,null,null,null,{"$f":"VLOOKUP(H1023,'Drop down items'!B1023:C5889,2,FALSE)","v":{"$error":"#N/A"}}]
[null,null,null,null,null,null,null,null,{"$f":"VLOOKUP(H1024,'Drop down items'!B1024:C5890,2,FALSE)","v":{"$error":"#N/A"}}]
[null,null,null,null,null,null,null,null,{"$f":"VLOOKUP(H1025,'Drop down items'!B1025:C5891,2,FALSE)","v":{"$error":"#N/A"}}]
[null,null,null,null,null,null,null,null,{"$f":"VLOOKUP(H1026,'Drop down items'!B1026:C5892,2,FALSE)","v":{"$error":"#N/A"}}]
[null,null,null,null,null,null,null,null,{"$f":"VLOOKUP(H1027,'Drop down items'!B1027:C5893,2,FALSE)","v":{"$error":"#N/A"}}]
[null,null,null,null,null,null,null,null,{"$f":"VLOOKUP(H1028,'Drop down items'!B1028:C5894,2,FALSE)","v":{"$error":"#N/A"}}]
[null,null,null,null,null,null,null,null,{"$f":"VLOOKUP(H1029,'Drop down items'!B1029:C5895,2,FALSE)","v":{"$error":"#N/A"}}]
[null,null,null,null,null,null,null,null,{"$f":"VLOOKUP(H1030,'Drop down items'!B1030:C5896,2,FALSE)","v":{"$error":"#N/A"}}]
[null,null,null,null,null,null,null,null,{"$f":"VLOOKUP(H1031,'Drop down items'!B1031:C5897,2,FALSE)","v":{"$error":"#N/A"}}]
[null,null,null,null,null,null,null,null,{"$f":"VLOOKUP(H1032,'Drop down items'!B1032:C5898,2,FALSE)","v":{"$error":"#N/A"}}]
[null,null,null,null,null,null,null,null,{"$f":"VLOOKUP(H1033,'Drop down items'!B1033:C5899,2,FALSE)","v":{"$error":"#N/A"}}]
[null,null,null,null,null,null,null,null,{"$f":"VLOOKUP(H1034,'Drop down items'!B1034:C5900,2,FALSE)","v":{"$error":"#N/A"}}]
[null,null,null,null,null,null,null,null,{"$f":"VLOOKUP(H1035,'Drop down items'!B1035:C5901,2,FALSE)","v":{"$error":"#N/A"}}]
[null,null,null,null,null,null,null,null,{"$f":"VLOOKUP(H1036,'Drop down items'!B1036:C5902,2,FALSE)","v":{"$error":"#N/A"}}]
[null,null,null,null,null,null,null,null,{"$f":"VLOOKUP(H1037,'Drop down items'!B1037:C5903,2,FALSE)","v":{"$error":"#N/A"}}]
[null,null,null,null,null,null,null,null,{"$f":"VLOOKUP(H1038,'Drop down items'!B1038:C5904,2,FALSE)","v":{"$error":"#N/A"}}]
[null,null,null,null,null,null,null,null,{"$f":"VLOOKUP(H1039,'Drop down items'!B1039:C5905,2,FALSE)","v":{"$error":"#N/A"}}]
[null,null,null,null,null,null,null,null,{"$f":"VLOOKUP(H1040,'Drop down items'!B1040:C5906,2,FALSE)","v":{"$error":"#N/A"}}]
[null,null,null,null,null,null,null,null,{"$f":"VLOOKUP(H1041,'Drop down items'!B1041:C5907,2,FALSE)","v":{"$error":"#N/A"}}]
[null,null,null,null,null,null,null,null,{"$f":"VLOOKUP(H1042,'Drop down items'!B1042:C5908,2,FALSE)","v":{"$error":"#N/A"}}]
[null,null,null,null,null,null,null,null,{"$f":"VLOOKUP(H1043,'Drop down items'!B1043:C5909,2,FALSE)","v":{"$error":"#N/A"}}]
[null,null,null,null,null,null,null,null,{"$f":"VLOOKUP(H1044,'Drop down items'!B1044:C5910,2,FALSE)","v":{"$error":"#N/A"}}]
[null,null,null,null,null,null,null,null,{"$f":"VLOOKUP(H1045,'Drop down items'!B1045:C5911,2,FALSE)","v":{"$error":"#N/A"}}]
[null,null,null,null,null,null,null,null,{"$f":"VLOOKUP(H1046,'Drop down items'!B1046:C5912,2,FALSE)","v":{"$error":"#N/A"}}]
[null,null,null,null,null,null,null,null,{"$f":"VLOOKUP(H1047,'Drop down items'!B1047:C5913,2,FALSE)","v":{"$error":"#N/A"}}]
[null,null,null,null,null,null,null,null,{"$f":"VLOOKUP(H1048,'Drop down items'!B1048:C5914,2,FALSE)","v":{"$error":"#N/A"}}]
[null,null,null,null,null,null,null,null,{"$f":"VLOOKUP(H1049,'Drop down items'!B1049:C5915,2,FALSE)","v":{"$error":"#N/A"}}]
[null,null,null,null,null,null,null,null,{"$f":"VLOOKUP(H1050,'Drop down items'!B1050:C5916,2,FALSE)","v":{"$error":"#N/A"}}]
[null,null,null,null,null,null,null,null,{"$f":"VLOOKUP(H1051,'Drop down items'!B1051:C5917,2,FALSE)","v":{"$error":"#N/A"}}]
[null,null,null,null,null,null,null,null,{"$f":"VLOOKUP(H1052,'Drop down items'!B1052:C5918,2,FALSE)","v":{"$error":"#N/A"}}]
[null,null,null,null,null,null,null,null,{"$f":"VLOOKUP(H1053,'Drop down items'!B1053:C5919,2,FALSE)","v":{"$error":"#N/A"}}]
[null,null,null,null,null,null,null,null,{"$f":"VLOOKUP(H1054,'Drop down items'!B1054:C5920,2,FALSE)","v":{"$error":"#N/A"}}]
[null,null,null,null,null,null,null,null,{"$f":"VLOOKUP(H1055,'Drop down items'!B1055:C5921,2,FALSE)","v":{"$error":"#N/A"}}]
[null,null,null,null,null,null,null,null,{"$f":"VLOOKUP(H1056,'Drop down items'!B1056:C5922,2,FALSE)","v":{"$error":"#N/A"}}]
[null,null,null,null,null,null,null,null,{"$f":"VLOOKUP(H1057,'Drop down items'!B1057:C5923,2,FALSE)","v":{"$error":"#N/A"}}]
[null,null,null,null,null,null,null,null,{"$f":"VLOOKUP(H1058,'Drop down items'!B1058:C5924,2,FALSE)","v":{"$error":"#N/A"}}]
[null,null,null,null,null,null,null,null,{"$f":"VLOOKUP(H1059,'Drop down items'!B1059:C5925,2,FALSE)","v":{"$error":"#N/A"}}]
[null,null,null,null,null,null,null,null,{"$f":"VLOOKUP(H1060,'Drop down items'!B1060:C5926,2,FALSE)","v":{"$error":"#N/A"}}]
[null,null,null,null,null,null,null,null,{"$f":"VLOOKUP(H1061,'Drop down items'!B1061:C5927,2,FALSE)","v":{"$error":"#N/A"}}]
[null,null,null,null,null,null,null,null,{"$f":"VLOOKUP(H1062,'Drop down items'!B1062:C5928,2,FALSE)","v":{"$error":"#N/A"}}]
[null,null,null,null,null,null,null,null,{"$f":"VLOOKUP(H1063,'Drop down items'!B1063:C5929,2,FALSE)","v":{"$error":"#N/A"}}]
[null,null,null,null,null,null,null,null,{"$f":"VLOOKUP(H1064,'Drop down items'!B1064:C5930,2,FALSE)","v":{"$error":"#N/A"}}]
[null,null,null,null,null,null,null,null,{"$f":"VLOOKUP(H1065,'Drop down items'!B1065:C5931,2,FALSE)","v":{"$error":"#N/A"}}]
[null,null,null,null,null,null,null,null,{"$f":"VLOOKUP(H1066,'Drop down items'!B1066:C5932,2,FALSE)","v":{"$error":"#N/A"}}]
[null,null,null,null,null,null,null,null,{"$f":"VLOOKUP(H1067,'Drop down items'!B1067:C5933,2,FALSE)","v":{"$error":"#N/A"}}]
[null,null,null,null,null,null,null,null,{"$f":"VLOOKUP(H1068,'Drop down items'!B1068:C5934,2,FALSE)","v":{"$error":"#N/A"}}]
[null,null,null,null,null,null,null,null,{"$f":"VLOOKUP(H1069,'Drop down items'!B1069:C5935,2,FALSE)","v":{"$error":"#N/A"}}]
[null,null,null,null,null,null,null,null,{"$f":"VLOOKUP(H1070,'Drop down items'!B1070:C5936,2,FALSE)","v":{"$error":"#N/A"}}]
[null,null,null,null,null,null,null,null,{"$f":"VLOOKUP(H1071,'Drop down items'!B1071:C5937,2,FALSE)","v":{"$error":"#N/A"}}]
[null,null,null,null,null,null,null,null,{"$f":"VLOOKUP(H1072,'Drop down items'!B1072:C5938,2,FALSE)","v":{"$error":"#N/A"}}]
[null,null,null,null,null,null,null,null,{"$f":"VLOOKUP(H1073,'Drop down items'!B1073:C5939,2,FALSE)","v":{"$error":"#N/A"}}]
[null,null,null,null,null,null,null,null,{"$f":"VLOOKUP(H1074,'Drop down items'!B1074:C5940,2,FALSE)","v":{"$error":"#N/A"}}]
[null,null,null,null,null,null,null,null,{"$f":"VLOOKUP(H1075,'Drop down items'!B1075:C5941,2,FALSE)","v":{"$error":"#N/A"}}]
[null,null,null,null,null,null,null,null,{"$f":"VLOOKUP(H1076,'Drop down items'!B1076:C5942,2,FALSE)","v":{"$error":"#N/A"}}]
[null,null,null,null,null,null,null,null,{"$f":"VLOOKUP(H1077,'Drop down items'!B1077:C5943,2,FALSE)","v":{"$error":"#N/A"}}]
[null,null,null,null,null,null,null,null,{"$f":"VLOOKUP(H1078,'Drop down items'!B1078:C5944,2,FALSE)","v":{"$error":"#N/A"}}]
[null,null,null,null,null,null,null,null,{"$f":"VLOOKUP(H1079,'Drop down items'!B1079:C5945,2,FALSE)","v":{"$error":"#N/A"}}]
[null,null,null,null,null,null,null,null,{"$f":"VLOOKUP(H1080,'Drop down items'!B1080:C5946,2,FALSE)","v":{"$error":"#N/A"}}]
[null,null,null,null,null,null,null,null,{"$f":"VLOOKUP(H1081,'Drop down items'!B1081:C5947,2,FALSE)","v":{"$error":"#N/A"}}]
[null,null,null,null,null,null,null,null,{"$f":"VLOOKUP(H1082,'Drop down items'!B1082:C5948,2,FALSE)","v":{"$error":"#N/A"}}]
[null,null,null,null,null,null,null,null,{"$f":"VLOOKUP(H1083,'Drop down items'!B1083:C5949,2,FALSE)","v":{"$error":"#N/A"}}]
[null,null,null,null,null,null,null,null,{"$f":"VLOOKUP(H1084,'Drop down items'!B1084:C5950,2,FALSE)","v":{"$error":"#N/A"}}]
[null,null,null,null,null,null,null,null,{"$f":"VLOOKUP(H1085,'Drop down items'!B1085:C5951,2,FALSE)","v":{"$error":"#N/A"}}]
[null,null,null,null,null,null,null,null,{"$f":"VLOOKUP(H1086,'Drop down items'!B1086:C5952,2,FALSE)","v":{"$error":"#N/A"}}]
[null,null,null,null,null,null,null,null,{"$f":"VLOOKUP(H1087,'Drop down items'!B1087:C5953,2,FALSE)","v":{"$error":"#N/A"}}]
[null,null,null,null,null,null,null,null,{"$f":"VLOOKUP(H1088,'Drop down items'!B1088:C5954,2,FALSE)","v":{"$error":"#N/A"}}]
[null,null,null,null,null,null,null,null,{"$f":"VLOOKUP(H1089,'Drop down items'!B1089:C5955,2,FALSE)","v":{"$error":"#N/A"}}]
[null,null,null,null,null,null,null,null,{"$f":"VLOOKUP(H1090,'Drop down items'!B1090:C5956,2,FALSE)","v":{"$error":"#N/A"}}]
[null,null,null,null,null,null,null,null,{"$f":"VLOOKUP(H1091,'Drop down items'!B1091:C5957,2,FALSE)","v":{"$error":"#N/A"}}]
[null,null,null,null,null,null,null,null,{"$f":"VLOOKUP(H1092,'Drop down items'!B1092:C5958,2,FALSE)","v":{"$error":"#N/A"}}]
[null,null,null,null,null,null,null,null,{"$f":"VLOOKUP(H1093,'Drop down items'!B1093:C5959,2,FALSE)","v":{"$error":"#N/A"}}]
[null,null,null,null,null,null,null,null,{"$f":"VLOOKUP(H1094,'Drop down items'!B1094:C5960,2,FALSE)","v":{"$error":"#N/A"}}]
[null,null,null,null,null,null,null,null,{"$f":"VLOOKUP(H1095,'Drop down items'!B1095:C5961,2,FALSE)","v":{"$error":"#N/A"}}]
[null,null,null,null,null,null,null,null,{"$f":"VLOOKUP(H1096,'Drop down items'!B1096:C5962,2,FALSE)","v":{"$error":"#N/A"}}]
[null,null,null,null,null,null,null,null,{"$f":"VLOOKUP(H1097,'Drop down items'!B1097:C5963,2,FALSE)","v":{"$error":"#N/A"}}]
[null,null,null,null,null,null,null,null,{"$f":"VLOOKUP(H1098,'Drop down items'!B1098:C5964,2,FALSE)","v":{"$error":"#N/A"}}]
[null,null,null,null,null,null,null,null,{"$f":"VLOOKUP(H1099,'Drop down items'!B1099:C5965,2,FALSE)","v":{"$error":"#N/A"}}]
[null,null,null,null,null,null,null,null,{"$f":"VLOOKUP(H1100,'Drop down items'!B1100:C5966,2,FALSE)","v":{"$error":"#N/A"}}]
[null,null,null,null,null,null,null,null,{"$f":"VLOOKUP(H1101,'Drop down items'!B1101:C5967,2,FALSE)","v":{"$error":"#N/A"}}]
[null,null,null,null,null,null,null,null,{"$f":"VLOOKUP(H1102,'Drop down items'!B1102:C5968,2,FALSE)","v":{"$error":"#N/A"}}]
[null,null,null,null,null,null,null,null,{"$f":"VLOOKUP(H1103,'Drop down items'!B1103:C5969,2,FALSE)","v":{"$error":"#N/A"}}]
[null,null,null,null,null,null,null,null,{"$f":"VLOOKUP(H1104,'Drop down items'!B1104:C5970,2,FALSE)","v":{"$error":"#N/A"}}]
[null,null,null,null,null,null,null,null,{"$f":"VLOOKUP(H1105,'Drop down items'!B1105:C5971,2,FALSE)","v":{"$error":"#N/A"}}]
[null,null,null,null,null,null,null,null,{"$f":"VLOOKUP(H1106,'Drop down items'!B1106:C5972,2,FALSE)","v":{"$error":"#N/A"}}]
[null,null,null,null,null,null,null,null,{"$f":"VLOOKUP(H1107,'Drop down items'!B1107:C5973,2,FALSE)","v":{"$error":"#N/A"}}]
[null,null,null,null,null,null,null,null,{"$f":"VLOOKUP(H1108,'Drop down items'!B1108:C5974,2,FALSE)","v":{"$error":"#N/A"}}]
[null,null,null,null,null,null,null,null,{"$f":"VLOOKUP(H1109,'Drop down items'!B1109:C5975,2,FALSE)","v":{"$error":"#N/A"}}]
[null,null,null,null,null,null,null,null,{"$f":"VLOOKUP(H1110,'Drop down items'!B1110:C5976,2,FALSE)","v":{"$error":"#N/A"}}]
[null,null,null,null,null,null,null,null,{"$f":"VLOOKUP(H1111,'Drop down items'!B1111:C5977,2,FALSE)","v":{"$error":"#N/A"}}]
[null,null,null,null,null,null,null,null,{"$f":"VLOOKUP(H1112,'Drop down items'!B1112:C5978,2,FALSE)","v":{"$error":"#N/A"}}]
[null,null,null,null,null,null,null,null,{"$f":"VLOOKUP(H1113,'Drop down items'!B1113:C5979,2,FALSE)","v":{"$error":"#N/A"}}]
[null,null,null,null,null,null,null,null,{"$f":"VLOOKUP(H1114,'Drop down items'!B1114:C5980,2,FALSE)","v":{"$error":"#N/A"}}]
[null,null,null,null,null,null,null,null,{"$f":"VLOOKUP(H1115,'Drop down items'!B1115:C5981,2,FALSE)","v":{"$error":"#N/A"}}]
[null,null,null,null,null,null,null,null,{"$f":"VLOOKUP(H1116,'Drop down items'!B1116:C5982,2,FALSE)","v":{"$error":"#N/A"}}]
[null,null,null,null,null,null,null,null,{"$f":"VLOOKUP(H1117,'Drop down items'!B1117:C5983,2,FALSE)","v":{"$error":"#N/A"}}]
[null,null,null,null,null,null,null,null,{"$f":"VLOOKUP(H1118,'Drop down items'!B1118:C5984,2,FALSE)","v":{"$error":"#N/A"}}]
[null,null,null,null,null,null,null,null,{"$f":"VLOOKUP(H1119,'Drop down items'!B1119:C5985,2,FALSE)","v":{"$error":"#N/A"}}]
[null,null,null,null,null,null,null,null,{"$f":"VLOOKUP(H1120,'Drop down items'!B1120:C5986,2,FALSE)","v":{"$error":"#N/A"}}]
[null,null,null,null,null,null,null,null,{"$f":"VLOOKUP(H1121,'Drop down items'!B1121:C5987,2,FALSE)","v":{"$error":"#N/A"}}]
[null,null,null,null,null,null,null,null,{"$f":"VLOOKUP(H1122,'Drop down items'!B1122:C5988,2,FALSE)","v":{"$error":"#N/A"}}]
[null,null,null,null,null,null,null,null,{"$f":"VLOOKUP(H1123,'Drop down items'!B1123:C5989,2,FALSE)","v":{"$error":"#N/A"}}]
[null,null,null,null,null,null,null,null,{"$f":"VLOOKUP(H1124,'Drop down items'!B1124:C5990,2,FALSE)","v":{"$error":"#N/A"}}]
[null,null,null,null,null,null,null,null,{"$f":"VLOOKUP(H1125,'Drop down items'!B1125:C5991,2,FALSE)","v":{"$error":"#N/A"}}]
[null,null,null,null,null,null,null,null,{"$f":"VLOOKUP(H1126,'Drop down items'!B1126:C5992,2,FALSE)","v":{"$error":"#N/A"}}]
[null,null,null,null,null,null,null,null,{"$f":"VLOOKUP(H1127,'Drop down items'!B1127:C5993,2,FALSE)","v":{"$error":"#N/A"}}]
[null,null,null,null,null,null,null,null,{"$f":"VLOOKUP(H1128,'Drop down items'!B1128:C5994,2,FALSE)","v":{"$error":"#N/A"}}]
[null,null,null,null,null,null,null,null,{"$f":"VLOOKUP(H1129,'Drop down items'!B1129:C5995,2,FALSE)","v":{"$error":"#N/A"}}]
[null,null,null,null,null,null,null,null,{"$f":"VLOOKUP(H1130,'Drop down items'!B1130:C5996,2,FALSE)","v":{"$error":"#N/A"}}]
[null,null,null,null,null,null,null,null,{"$f":"VLOOKUP(H1131,'Drop down items'!B1131:C5997,2,FALSE)","v":{"$error":"#N/A"}}]
[null,null,null,null,null,null,null,null,{"$f":"VLOOKUP(H1132,'Drop down items'!B1132:C5998,2,FALSE)","v":{"$error":"#N/A"}}]
[null,null,null,null,null,null,null,null,{"$f":"VLOOKUP(H1133,'Drop down items'!B1133:C5999,2,FALSE)","v":{"$error":"#N/A"}}]
[null,null,null,null,null,null,null,null,{"$f":"VLOOKUP(H1134,'Drop down items'!B1134:C6000,2,FALSE)","v":{"$error":"#N/A"}}]
[null,null,null,null,null,null,null,null,{"$f":"VLOOKUP(H1135,'Drop down items'!B1135:C6001,2,FALSE)","v":{"$error":"#N/A"}}]
[null,null,null,null,null,null,null,null,{"$f":"VLOOKUP(H1136,'Drop down items'!B1136:C6002,2,FALSE)","v":{"$error":"#N/A"}}]
[null,null,null,null,null,null,null,null,{"$f":"VLOOKUP(H1137,'Drop down items'!B1137:C6003,2,FALSE)","v":{"$error":"#N/A"}}]
[null,null,null,null,null,null,null,null,{"$f":"VLOOKUP(H1138,'Drop down items'!B1138:C6004,2,FALSE)","v":{"$error":"#N/A"}}]
[null,null,null,null,null,null,null,null,{"$f":"VLOOKUP(H1139,'Drop down items'!B1139:C6005,2,FALSE)","v":{"$error":"#N/A"}}]
[null,null,null,null,null,null,null,null,{"$f":"VLOOKUP(H1140,'Drop down items'!B1140:C6006,2,FALSE)","v":{"$error":"#N/A"}}]
[null,null,null,null,null,null,null,null,{"$f":"VLOOKUP(H1141,'Drop down items'!B1141:C6007,2,FALSE)","v":{"$error":"#N/A"}}]
[null,null,null,null,null,null,null,null,{"$f":"VLOOKUP(H1142,'Drop down items'!B1142:C6008,2,FALSE)","v":{"$error":"#N/A"}}]
[null,null,null,null,null,null,null,null,{"$f":"VLOOKUP(H1143,'Drop down items'!B1143:C6009,2,FALSE)","v":{"$error":"#N/A"}}]
[null,null,null,null,null,null,null,null,{"$f":"VLOOKUP(H1144,'Drop down items'!B1144:C6010,2,FALSE)","v":{"$error":"#N/A"}}]
[null,null,null,null,null,null,null,null,{"$f":"VLOOKUP(H1145,'Drop down items'!B1145:C6011,2,FALSE)","v":{"$error":"#N/A"}}]
[null,null,null,null,null,null,null,null,{"$f":"VLOOKUP(H1146,'Drop down items'!B1146:C6012,2,FALSE)","v":{"$error":"#N/A"}}]
[null,null,null,null,null,null,null,null,{"$f":"VLOOKUP(H1147,'Drop down items'!B1147:C6013,2,FALSE)","v":{"$error":"#N/A"}}]
[null,null,null,null,null,null,null,null,{"$f":"VLOOKUP(H1148,'Drop down items'!B1148:C6014,2,FALSE)","v":{"$error":"#N/A"}}]
[null,null,null,null,null,null,null,null,{"$f":"VLOOKUP(H1149,'Drop down items'!B1149:C6015,2,FALSE)","v":{"$error":"#N/A"}}]
[null,null,null,null,null,null,null,null,{"$f":"VLOOKUP(H1150,'Drop down items'!B1150:C6016,2,FALSE)","v":{"$error":"#N/A"}}]
[null,null,null,null,null,null,null,null,{"$f":"VLOOKUP(H1151,'Drop down items'!B1151:C6017,2,FALSE)","v":{"$error":"#N/A"}}]
[null,null,null,null,null,null,null,null,{"$f":"VLOOKUP(H1152,'Drop down items'!B1152:C6018,2,FALSE)","v":{"$error":"#N/A"}}]
[null,null,null,null,null,null,null,null,{"$f":"VLOOKUP(H1153,'Drop down items'!B1153:C6019,2,FALSE)","v":{"$error":"#N/A"}}]
[null,null,null,null,null,null,null,null,{"$f":"VLOOKUP(H1154,'Drop down items'!B1154:C6020,2,FALSE)","v":{"$error":"#N/A"}}]
[null,null,null,null,null,null,null,null,{"$f":"VLOOKUP(H1155,'Drop down items'!B1155:C6021,2,FALSE)","v":{"$error":"#N/A"}}]
[null,null,null,null,null,null,null,null,{"$f":"VLOOKUP(H1156,'Drop down items'!B1156:C6022,2,FALSE)","v":{"$error":"#N/A"}}]
[null,null,null,null,null,null,null,null,{"$f":"VLOOKUP(H1157,'Drop down items'!B1157:C6023,2,FALSE)","v":{"$error":"#N/A"}}]
[null,null,null,null,null,null,null,null,{"$f":"VLOOKUP(H1158,'Drop down items'!B1158:C6024,2,FALSE)","v":{"$error":"#N/A"}}]
[null,null,null,null,null,null,null,null,{"$f":"VLOOKUP(H1159,'Drop down items'!B1159:C6025,2,FALSE)","v":{"$error":"#N/A"}}]
[null,null,null,null,null,null,null,null,{"$f":"VLOOKUP(H1160,'Drop down items'!B1160:C6026,2,FALSE)","v":{"$error":"#N/A"}}]
[null,null,null,null,null,null,null,null,{"$f":"VLOOKUP(H1161,'Drop down items'!B1161:C6027,2,FALSE)","v":{"$error":"#N/A"}}]
[null,null,null,null,null,null,null,null,{"$f":"VLOOKUP(H1162,'Drop down items'!B1162:C6028,2,FALSE)","v":{"$error":"#N/A"}}]
[null,null,null,null,null,null,null,null,{"$f":"VLOOKUP(H1163,'Drop down items'!B1163:C6029,2,FALSE)","v":{"$error":"#N/A"}}]
[null,null,null,null,null,null,null,null,{"$f":"VLOOKUP(H1164,'Drop down items'!B1164:C6030,2,FALSE)","v":{"$error":"#N/A"}}]
[null,null,null,null,null,null,null,null,{"$f":"VLOOKUP(H1165,'Drop down items'!B1165:C6031,2,FALSE)","v":{"$error":"#N/A"}}]
[null,null,null,null,null,null,null,null,{"$f":"VLOOKUP(H1166,'Drop down items'!B1166:C6032,2,FALSE)","v":{"$error":"#N/A"}}]
[null,null,null,null,null,null,null,null,{"$f":"VLOOKUP(H1167,'Drop down items'!B1167:C6033,2,FALSE)","v":{"$error":"#N/A"}}]
[null,null,null,null,null,null,null,null,{"$f":"VLOOKUP(H1168,'Drop down items'!B1168:C6034,2,FALSE)","v":{"$error":"#N/A"}}]
[null,null,null,null,null,null,null,null,{"$f":"VLOOKUP(H1169,'Drop down items'!B1169:C6035,2,FALSE)","v":{"$error":"#N/A"}}]
[null,null,null,null,null,null,null,null,{"$f":"VLOOKUP(H1170,'Drop down items'!B1170:C6036,2,FALSE)","v":{"$error":"#N/A"}}]
[null,null,null,null,null,null,null,null,{"$f":"VLOOKUP(H1171,'Drop down items'!B1171:C6037,2,FALSE)","v":{"$error":"#N/A"}}]
[null,null,null,null,null,null,null,null,{"$f":"VLOOKUP(H1172,'Drop down items'!B1172:C6038,2,FALSE)","v":{"$error":"#N/A"}}]
[null,null,null,null,null,null,null,null,{"$f":"VLOOKUP(H1173,'Drop down items'!B1173:C6039,2,FALSE)","v":{"$error":"#N/A"}}]
[null,null,null,null,null,null,null,null,{"$f":"VLOOKUP(H1174,'Drop down items'!B1174:C6040,2,FALSE)","v":{"$error":"#N/A"}}]
[null,null,null,null,null,null,null,null,{"$f":"VLOOKUP(H1175,'Drop down items'!B1175:C6041,2,FALSE)","v":{"$error":"#N/A"}}]
[null,null,null,null,null,null,null,null,{"$f":"VLOOKUP(H1176,'Drop down items'!B1176:C6042,2,FALSE)","v":{"$error":"#N/A"}}]
[null,null,null,null,null,null,null,null,{"$f":"VLOOKUP(H1177,'Drop down items'!B1177:C6043,2,FALSE)","v":{"$error":"#N/A"}}]
[null,null,null,null,null,null,null,null,{"$f":"VLOOKUP(H1178,'Drop down items'!B1178:C6044,2,FALSE)","v":{"$error":"#N/A"}}]
[null,null,null,null,null,null,null,null,{"$f":"VLOOKUP(H1179,'Drop down items'!B1179:C6045,2,FALSE)","v":{"$error":"#N/A"}}]
[null,null,null,null,null,null,null,null,{"$f":"VLOOKUP(H1180,'Drop down items'!B1180:C6046,2,FALSE)","v":{"$error":"#N/A"}}]
[null,null,null,null,null,null,null,null,{"$f":"VLOOKUP(H1181,'Drop down items'!B1181:C6047,2,FALSE)","v":{"$error":"#N/A"}}]
[null,null,null,null,null,null,null,null,{"$f":"VLOOKUP(H1182,'Drop down items'!B1182:C6048,2,FALSE)","v":{"$error":"#N/A"}}]
[null,null,null,null,null,null,null,null,{"$f":"VLOOKUP(H1183,'Drop down items'!B1183:C6049,2,FALSE)","v":{"$error":"#N/A"}}]
[null,null,null,null,null,null,null,null,{"$f":"VLOOKUP(H1184,'Drop down items'!B1184:C6050,2,FALSE)","v":{"$error":"#N/A"}}]
[null,null,null,null,null,null,null,null,{"$f":"VLOOKUP(H1185,'Drop down items'!B1185:C6051,2,FALSE)","v":{"$error":"#N/A"}}]
[null,null,null,null,null,null,null,null,{"$f":"VLOOKUP(H1186,'Drop down items'!B1186:C6052,2,FALSE)","v":{"$error":"#N/A"}}]
[null,null,null,null,null,null,null,null,{"$f":"VLOOKUP(H1187,'Drop down items'!B1187:C6053,2,FALSE)","v":{"$error":"#N/A"}}]
[null,null,null,null,null,null,null,null,{"$f":"VLOOKUP(H1188,'Drop down items'!B1188:C6054,2,FALSE)","v":{"$error":"#N/A"}}]
[null,null,null,null,null,null,null,null,{"$f":"VLOOKUP(H1189,'Drop down items'!B1189:C6055,2,FALSE)","v":{"$error":"#N/A"}}]
[null,null,null,null,null,null,null,null,{"$f":"VLOOKUP(H1190,'Drop down items'!B1190:C6056,2,FALSE)","v":{"$error":"#N/A"}}]
[null,null,null,null,null,null,null,null,{"$f":"VLOOKUP(H1191,'Drop down items'!B1191:C6057,2,FALSE)","v":{"$error":"#N/A"}}]
[null,null,null,null,null,null,null,null,{"$f":"VLOOKUP(H1192,'Drop down items'!B1192:C6058,2,FALSE)","v":{"$error":"#N/A"}}]
[null,null,null,null,null,null,null,null,{"$f":"VLOOKUP(H1193,'Drop down items'!B1193:C6059,2,FALSE)","v":{"$error":"#N/A"}}]
[null,null,null,null,null,null,null,null,{"$f":"VLOOKUP(H1194,'Drop down items'!B1194:C6060,2,FALSE)","v":{"$error":"#N/A"}}]
[null,null,null,null,null,null,null,null,{"$f":"VLOOKUP(H1195,'Drop down items'!B1195:C6061,2,FALSE)","v":{"$error":"#N/A"}}]
[null,null,null,null,null,null,null,null,{"$f":"VLOOKUP(H1196,'Drop down items'!B1196:C6062,2,FALSE)","v":{"$error":"#N/A"}}]
[null,null,null,null,null,null,null,null,{"$f":"VLOOKUP(H1197,'Drop down items'!B1197:C6063,2,FALSE)","v":{"$error":"#N/A"}}]
[null,null,null,null,null,null,null,null,{"$f":"VLOOKUP(H1198,'Drop down items'!B1198:C6064,2,FALSE)","v":{"$error":"#N/A"}}]
[null,null,null,null,null,null,null,null,{"$f":"VLOOKUP(H1199,'Drop down items'!B1199:C6065,2,FALSE)","v":{"$error":"#N/A"}}]
[null,null,null,null,null,null,null,null,{"$f":"VLOOKUP(H1200,'Drop down items'!B1200:C6066,2,FALSE)","v":{"$error":"#N/A"}}]
[null,null,null,null,null,null,null,null,{"$f":"VLOOKUP(H1201,'Drop down items'!B1201:C6067,2,FALSE)","v":{"$error":"#N/A"}}]
[null,null,null,null,null,null,null,null,{"$f":"VLOOKUP(H1202,'Drop down items'!B1202:C6068,2,FALSE)","v":{"$error":"#N/A"}}]
[null,null,null,null,null,null,null,null,{"$f":"VLOOKUP(H1203,'Drop down items'!B1203:C6069,2,FALSE)","v":{"$error":"#N/A"}}]
[null,null,null,null,null,null,null,null,{"$f":"VLOOKUP(H1204,'Drop down items'!B1204:C6070,2,FALSE)","v":{"$error":"#N/A"}}]
[null,null,null,null,null,null,null,null,{"$f":"VLOOKUP(H1205,'Drop down items'!B1205:C6071,2,FALSE)","v":{"$error":"#N/A"}}]
[null,null,null,null,null,null,null,null,{"$f":"VLOOKUP(H1206,'Drop down items'!B1206:C6072,2,FALSE)","v":{"$error":"#N/A"}}]
[null,null,null,null,null,null,null,null,{"$f":"VLOOKUP(H1207,'Drop down items'!B1207:C6073,2,FALSE)","v":{"$error":"#N/A"}}]
[null,null,null,null,null,null,null,null,{"$f":"VLOOKUP(H1208,'Drop down items'!B1208:C6074,2,FALSE)","v":{"$error":"#N/A"}}]
[null,null,null,null,null,null,null,null,{"$f":"VLOOKUP(H1209,'Drop down items'!B1209:C6075,2,FALSE)","v":{"$error":"#N/A"}}]
[null,null,null,null,null,null,null,null,{"$f":"VLOOKUP(H1210,'Drop down items'!B1210:C6076,2,FALSE)","v":{"$error":"#N/A"}}]
[null,null,null,null,null,null,null,null,{"$f":"VLOOKUP(H1211,'Drop down items'!B1211:C6077,2,FALSE)","v":{"$error":"#N/A"}}]
[null,null,null,null,null,null,null,null,{"$f":"VLOOKUP(H1212,'Drop down items'!B1212:C6078,2,FALSE)","v":{"$error":"#N/A"}}]
[null,null,null,null,null,null,null,null,{"$f":"VLOOKUP(H1213,'Drop down items'!B1213:C6079,2,FALSE)","v":{"$error":"#N/A"}}]
[null,null,null,null,null,null,null,null,{"$f":"VLOOKUP(H1214,'Drop down items'!B1214:C6080,2,FALSE)","v":{"$error":"#N/A"}}]
[null,null,null,null,null,null,null,null,{"$f":"VLOOKUP(H1215,'Drop down items'!B1215:C6081,2,FALSE)","v":{"$error":"#N/A"}}]
[null,null,null,null,null,null,null,null,{"$f":"VLOOKUP(H1216,'Drop down items'!B1216:C6082,2,FALSE)","v":{"$error":"#N/A"}}]
[null,null,null,null,null,null,null,null,{"$f":"VLOOKUP(H1217,'Drop down items'!B1217:C6083,2,FALSE)","v":{"$error":"#N/A"}}]
[null,null,null,null,null,null,null,null,{"$f":"VLOOKUP(H1218,'Drop down items'!B1218:C6084,2,FALSE)","v":{"$error":"#N/A"}}]
[null,null,null,null,null,null,null,null,{"$f":"VLOOKUP(H1219,'Drop down items'!B1219:C6085,2,FALSE)","v":{"$error":"#N/A"}}]
[null,null,null,null,null,null,null,null,{"$f":"VLOOKUP(H1220,'Drop down items'!B1220:C6086,2,FALSE)","v":{"$error":"#N/A"}}]
[null,null,null,null,null,null,null,null,{"$f":"VLOOKUP(H1221,'Drop down items'!B1221:C6087,2,FALSE)","v":{"$error":"#N/A"}}]
[null,null,null,null,null,null,null,null,{"$f":"VLOOKUP(H1222,'Drop down items'!B1222:C6088,2,FALSE)","v":{"$error":"#N/A"}}]
[null,null,null,null,null,null,null,null,{"$f":"VLOOKUP(H1223,'Drop down items'!B1223:C6089,2,FALSE)","v":{"$error":"#N/A"}}]
[null,null,null,null,null,null,null,null,{"$f":"VLOOKUP(H1224,'Drop down items'!B1224:C6090,2,FALSE)","v":{"$error":"#N/A"}}]
[null,null,null,null,null,null,null,null,{"$f":"VLOOKUP(H1225,'Drop down items'!B1225:C6091,2,FALSE)","v":{"$error":"#N/A"}}]
[null,null,null,null,null,null,null,null,{"$f":"VLOOKUP(H1226,'Drop down items'!B1226:C6092,2,FALSE)","v":{"$error":"#N/A"}}]
[null,null,null,null,null,null,null,null,{"$f":"VLOOKUP(H1227,'Drop down items'!B1227:C6093,2,FALSE)","v":{"$error":"#N/A"}}]
[null,null,null,null,null,null,null,null,{"$f":"VLOOKUP(H1228,'Drop down items'!B1228:C6094,2,FALSE)","v":{"$error":"#N/A"}}]
[null,null,null,null,null,null,null,null,{"$f":"VLOOKUP(H1229,'Drop down items'!B1229:C6095,2,FALSE)","v":{"$error":"#N/A"}}]
[null,null,null,null,null,null,null,null,{"$f":"VLOOKUP(H1230,'Drop down items'!B1230:C6096,2,FALSE)","v":{"$error":"#N/A"}}]
[null,null,null,null,null,null,null,null,{"$f":"VLOOKUP(H1231,'Drop down items'!B1231:C6097,2,FALSE)","v":{"$error":"#N/A"}}]
[null,null,null,null,null,null,null,null,{"$f":"VLOOKUP(H1232,'Drop down items'!B1232:C6098,2,FALSE)","v":{"$error":"#N/A"}}]
[null,null,null,null,null,null,null,null,{"$f":"VLOOKUP(H1233,'Drop down items'!B1233:C6099,2,FALSE)","v":{"$error":"#N/A"}}]
[null,null,null,null,null,null,null,null,{"$f":"VLOOKUP(H1234,'Drop down items'!B1234:C6100,2,FALSE)","v":{"$error":"#N/A"}}]
[null,null,null,null,null,null,null,null,{"$f":"VLOOKUP(H1235,'Drop down items'!B1235:C6101,2,FALSE)","v":{"$error":"#N/A"}}]
[null,null,null,null,null,null,null,null,{"$f":"VLOOKUP(H1236,'Drop down items'!B1236:C6102,2,FALSE)","v":{"$error":"#N/A"}}]
[null,null,null,null,null,null,null,null,{"$f":"VLOOKUP(H1237,'Drop down items'!B1237:C6103,2,FALSE)","v":{"$error":"#N/A"}}]
[null,null,null,null,null,null,null,null,{"$f":"VLOOKUP(H1238,'Drop down items'!B1238:C6104,2,FALSE)","v":{"$error":"#N/A"}}]
[null,null,null,null,null,null,null,null,{"$f":"VLOOKUP(H1239,'Drop down items'!B1239:C6105,2,FALSE)","v":{"$error":"#N/A"}}]
[null,null,null,null,null,null,null,null,{"$f":"VLOOKUP(H1240,'Drop down items'!B1240:C6106,2,FALSE)","v":{"$error":"#N/A"}}]
[null,null,null,null,null,null,null,null,{"$f":"VLOOKUP(H1241,'Drop down items'!B1241:C6107,2,FALSE)","v":{"$error":"#N/A"}}]
[null,null,null,null,null,null,null,null,{"$f":"VLOOKUP(H1242,'Drop down items'!B1242:C6108,2,FALSE)","v":{"$error":"#N/A"}}]
[null,null,null,null,null,null,null,null,{"$f":"VLOOKUP(H1243,'Drop down items'!B1243:C6109,2,FALSE)","v":{"$error":"#N/A"}}]
[null,null,null,null,null,null,null,null,{"$f":"VLOOKUP(H1244,'Drop down items'!B1244:C6110,2,FALSE)","v":{"$error":"#N/A"}}]
[null,null,null,null,null,null,null,null,{"$f":"VLOOKUP(H1245,'Drop down items'!B1245:C6111,2,FALSE)","v":{"$error":"#N/A"}}]
[null,null,null,null,null,null,null,null,{"$f":"VLOOKUP(H1246,'Drop down items'!B1246:C6112,2,FALSE)","v":{"$error":"#N/A"}}]
[null,null,null,null,null,null,null,null,{"$f":"VLOOKUP(H1247,'Drop down items'!B1247:C6113,2,FALSE)","v":{"$error":"#N/A"}}]
[null,null,null,null,null,null,null,null,{"$f":"VLOOKUP(H1248,'Drop down items'!B1248:C6114,2,FALSE)","v":{"$error":"#N/A"}}]
[null,null,null,null,null,null,null,null,{"$f":"VLOOKUP(H1249,'Drop down items'!B1249:C6115,2,FALSE)","v":{"$error":"#N/A"}}]
[null,null,null,null,null,null,null,null,{"$f":"VLOOKUP(H1250,'Drop down items'!B1250:C6116,2,FALSE)","v":{"$error":"#N/A"}}]
[null,null,null,null,null,null,null,null,{"$f":"VLOOKUP(H1251,'Drop down items'!B1251:C6117,2,FALSE)","v":{"$error":"#N/A"}}]
[null,null,null,null,null,null,null,null,{"$f":"VLOOKUP(H1252,'Drop down items'!B1252:C6118,2,FALSE)","v":{"$error":"#N/A"}}]
[null,null,null,null,null,null,null,null,{"$f":"VLOOKUP(H1253,'Drop down items'!B1253:C6119,2,FALSE)","v":{"$error":"#N/A"}}]
[null,null,null,null,null,null,null,null,{"$f":"VLOOKUP(H1254,'Drop down items'!B1254:C6120,2,FALSE)","v":{"$error":"#N/A"}}]
[null,null,null,null,null,null,null,null,{"$f":"VLOOKUP(H1255,'Drop down items'!B1255:C6121,2,FALSE)","v":{"$error":"#N/A"}}]
[null,null,null,null,null,null,null,null,{"$f":"VLOOKUP(H1256,'Drop down items'!B1256:C6122,2,FALSE)","v":{"$error":"#N/A"}}]
[null,null,null,null,null,null,null,null,{"$f":"VLOOKUP(H1257,'Drop down items'!B1257:C6123,2,FALSE)","v":{"$error":"#N/A"}}]
[null,null,null,null,null,null,null,null,{"$f":"VLOOKUP(H1258,'Drop down items'!B1258:C6124,2,FALSE)","v":{"$error":"#N/A"}}]
[null,null,null,null,null,null,null,null,{"$f":"VLOOKUP(H1259,'Drop down items'!B1259:C6125,2,FALSE)","v":{"$error":"#N/A"}}]
[null,null,null,null,null,null,null,null,{"$f":"VLOOKUP(H1260,'Drop down items'!B1260:C6126,2,FALSE)","v":{"$error":"#N/A"}}]
[null,null,null,null,null,null,null,null,{"$f":"VLOOKUP(H1261,'Drop down items'!B1261:C6127,2,FALSE)","v":{"$error":"#N/A"}}]
[null,null,null,null,null,null,null,null,{"$f":"VLOOKUP(H1262,'Drop down items'!B1262:C6128,2,FALSE)","v":{"$error":"#N/A"}}]
[null,null,null,null,null,null,null,null,{"$f":"VLOOKUP(H1263,'Drop down items'!B1263:C6129,2,FALSE)","v":{"$error":"#N/A"}}]
[null,null,null,null,null,null,null,null,{"$f":"VLOOKUP(H1264,'Drop down items'!B1264:C6130,2,FALSE)","v":{"$error":"#N/A"}}]
[null,null,null,null,null,null,null,null,{"$f":"VLOOKUP(H1265,'Drop down items'!B1265:C6131,2,FALSE)","v":{"$error":"#N/A"}}]
[null,null,null,null,null,null,null,null,{"$f":"VLOOKUP(H1266,'Drop down items'!B1266:C6132,2,FALSE)","v":{"$error":"#N/A"}}]
[null,null,null,null,null,null,null,null,{"$f":"VLOOKUP(H1267,'Drop down items'!B1267:C6133,2,FALSE)","v":{"$error":"#N/A"}}]
[null,null,null,null,null,null,null,null,{"$f":"VLOOKUP(H1268,'Drop down items'!B1268:C6134,2,FALSE)","v":{"$error":"#N/A"}}]
[null,null,null,null,null,null,null,null,{"$f":"VLOOKUP(H1269,'Drop down items'!B1269:C6135,2,FALSE)","v":{"$error":"#N/A"}}]
[null,null,null,null,null,null,null,null,{"$f":"VLOOKUP(H1270,'Drop down items'!B1270:C6136,2,FALSE)","v":{"$error":"#N/A"}}]
[null,null,null,null,null,null,null,null,{"$f":"VLOOKUP(H1271,'Drop down items'!B1271:C6137,2,FALSE)","v":{"$error":"#N/A"}}]
[null,null,null,null,null,null,null,null,{"$f":"VLOOKUP(H1272,'Drop down items'!B1272:C6138,2,FALSE)","v":{"$error":"#N/A"}}]
[null,null,null,null,null,null,null,null,{"$f":"VLOOKUP(H1273,'Drop down items'!B1273:C6139,2,FALSE)","v":{"$error":"#N/A"}}]
[null,null,null,null,null,null,null,null,{"$f":"VLOOKUP(H1274,'Drop down items'!B1274:C6140,2,FALSE)","v":{"$error":"#N/A"}}]
[null,null,null,null,null,null,null,null,{"$f":"VLOOKUP(H1275,'Drop down items'!B1275:C6141,2,FALSE)","v":{"$error":"#N/A"}}]
[null,null,null,null,null,null,null,null,{"$f":"VLOOKUP(H1276,'Drop down items'!B1276:C6142,2,FALSE)","v":{"$error":"#N/A"}}]
[null,null,null,null,null,null,null,null,{"$f":"VLOOKUP(H1277,'Drop down items'!B1277:C6143,2,FALSE)","v":{"$error":"#N/A"}}]
[null,null,null,null,null,null,null,null,{"$f":"VLOOKUP(H1278,'Drop down items'!B1278:C6144,2,FALSE)","v":{"$error":"#N/A"}}]
[null,null,null,null,null,null,null,null,{"$f":"VLOOKUP(H1279,'Drop down items'!B1279:C6145,2,FALSE)","v":{"$error":"#N/A"}}]
[null,null,null,null,null,null,null,null,{"$f":"VLOOKUP(H1280,'Drop down items'!B1280:C6146,2,FALSE)","v":{"$error":"#N/A"}}]
[null,null,null,null,null,null,null,null,{"$f":"VLOOKUP(H1281,'Drop down items'!B1281:C6147,2,FALSE)","v":{"$error":"#N/A"}}]
[null,null,null,null,null,null,null,null,{"$f":"VLOOKUP(H1282,'Drop down items'!B1282:C6148,2,FALSE)","v":{"$error":"#N/A"}}]
[null,null,null,null,null,null,null,null,{"$f":"VLOOKUP(H1283,'Drop down items'!B1283:C6149,2,FALSE)","v":{"$error":"#N/A"}}]
[null,null,null,null,null,null,null,null,{"$f":"VLOOKUP(H1284,'Drop down items'!B1284:C6150,2,FALSE)","v":{"$error":"#N/A"}}]
[null,null,null,null,null,null,null,null,{"$f":"VLOOKUP(H1285,'Drop down items'!B1285:C6151,2,FALSE)","v":{"$error":"#N/A"}}]
[null,null,null,null,null,null,null,null,{"$f":"VLOOKUP(H1286,'Drop down items'!B1286:C6152,2,FALSE)","v":{"$error":"#N/A"}}]
[null,null,null,null,null,null,null,null,{"$f":"VLOOKUP(H1287,'Drop down items'!B1287:C6153,2,FALSE)","v":{"$error":"#N/A"}}]
[null,null,null,null,null,null,null,null,{"$f":"VLOOKUP(H1288,'Drop down items'!B1288:C6154,2,FALSE)","v":{"$error":"#N/A"}}]
[null,null,null,null,null,null,null,null,{"$f":"VLOOKUP(H1289,'Drop down items'!B1289:C6155,2,FALSE)","v":{"$error":"#N/A"}}]
[null,null,null,null,null,null,null,null,{"$f":"VLOOKUP(H1290,'Drop down items'!B1290:C6156,2,FALSE)","v":{"$error":"#N/A"}}]
[null,null,null,null,null,null,null,null,{"$f":"VLOOKUP(H1291,'Drop down items'!B1291:C6157,2,FALSE)","v":{"$error":"#N/A"}}]
[null,null,null,null,null,null,null,null,{"$f":"VLOOKUP(H1292,'Drop down items'!B1292:C6158,2,FALSE)","v":{"$error":"#N/A"}}]
[null,null,null,null,null,null,null,null,{"$f":"VLOOKUP(H1293,'Drop down items'!B1293:C6159,2,FALSE)","v":{"$error":"#N/A"}}]
[null,null,null,null,null,null,null,null,{"$f":"VLOOKUP(H1294,'Drop down items'!B1294:C6160,2,FALSE)","v":{"$error":"#N/A"}}]
[null,null,null,null,null,null,null,null,{"$f":"VLOOKUP(H1295,'Drop down items'!B1295:C6161,2,FALSE)","v":{"$error":"#N/A"}}]
[null,null,null,null,null,null,null,null,{"$f":"VLOOKUP(H1296,'Drop down items'!B1296:C6162,2,FALSE)","v":{"$error":"#N/A"}}]
[null,null,null,null,null,null,null,null,{"$f":"VLOOKUP(H1297,'Drop down items'!B1297:C6163,2,FALSE)","v":{"$error":"#N/A"}}]
[null,null,null,null,null,null,null,null,{"$f":"VLOOKUP(H1298,'Drop down items'!B1298:C6164,2,FALSE)","v":{"$error":"#N/A"}}]
[null,null,null,null,null,null,null,null,{"$f":"VLOOKUP(H1299,'Drop down items'!B1299:C6165,2,FALSE)","v":{"$error":"#N/A"}}]
[null,null,null,null,null,null,null,null,{"$f":"VLOOKUP(H1300,'Drop down items'!B1300:C6166,2,FALSE)","v":{"$error":"#N/A"}}]
[null,null,null,null,null,null,null,null,{"$f":"VLOOKUP(H1301,'Drop down items'!B1301:C6167,2,FALSE)","v":{"$error":"#N/A"}}]
[null,null,null,null,null,null,null,null,{"$f":"VLOOKUP(H1302,'Drop down items'!B1302:C6168,2,FALSE)","v":{"$error":"#N/A"}}]
[null,null,null,null,null,null,null,null,{"$f":"VLOOKUP(H1303,'Drop down items'!B1303:C6169,2,FALSE)","v":{"$error":"#N/A"}}]
[null,null,null,null,null,null,null,null,{"$f":"VLOOKUP(H1304,'Drop down items'!B1304:C6170,2,FALSE)","v":{"$error":"#N/A"}}]
[null,null,null,null,null,null,null,null,{"$f":"VLOOKUP(H1305,'Drop down items'!B1305:C6171,2,FALSE)","v":{"$error":"#N/A"}}]
[null,null,null,null,null,null,null,null,{"$f":"VLOOKUP(H1306,'Drop down items'!B1306:C6172,2,FALSE)","v":{"$error":"#N/A"}}]
[null,null,null,null,null,null,null,null,{"$f":"VLOOKUP(H1307,'Drop down items'!B1307:C6173,2,FALSE)","v":{"$error":"#N/A"}}]
[null,null,null,null,null,null,null,null,{"$f":"VLOOKUP(H1308,'Drop down items'!B1308:C6174,2,FALSE)","v":{"$error":"#N/A"}}]
[null,null,null,null,null,null,null,null,{"$f":"VLOOKUP(H1309,'Drop down items'!B1309:C6175,2,FALSE)","v":{"$error":"#N/A"}}]
[null,null,null,null,null,null,null,null,{"$f":"VLOOKUP(H1310,'Drop down items'!B1310:C6176,2,FALSE)","v":{"$error":"#N/A"}}]
[null,null,null,null,null,null,null,null,{"$f":"VLOOKUP(H1311,'Drop down items'!B1311:C6177,2,FALSE)","v":{"$error":"#N/A"}}]
[null,null,null,null,null,null,null,null,{"$f":"VLOOKUP(H1312,'Drop down items'!B1312:C6178,2,FALSE)","v":{"$error":"#N/A"}}]
[null,null,null,null,null,null,null,null,{"$f":"VLOOKUP(H1313,'Drop down items'!B1313:C6179,2,FALSE)","v":{"$error":"#N/A"}}]
[null,null,null,null,null,null,null,null,{"$f":"VLOOKUP(H1314,'Drop down items'!B1314:C6180,2,FALSE)","v":{"$error":"#N/A"}}]
[null,null,null,null,null,null,null,null,{"$f":"VLOOKUP(H1315,'Drop down items'!B1315:C6181,2,FALSE)","v":{"$error":"#N/A"}}]
[null,null,null,null,null,null,null,null,{"$f":"VLOOKUP(H1316,'Drop down items'!B1316:C6182,2,FALSE)","v":{"$error":"#N/A"}}]
[null,null,null,null,null,null,null,null,{"$f":"VLOOKUP(H1317,'Drop down items'!B1317:C6183,2,FALSE)","v":{"$error":"#N/A"}}]
[null,null,null,null,null,null,null,null,{"$f":"VLOOKUP(H1318,'Drop down items'!B1318:C6184,2,FALSE)","v":{"$error":"#N/A"}}]
[null,null,null,null,null,null,null,null,{"$f":"VLOOKUP(H1319,'Drop down items'!B1319:C6185,2,FALSE)","v":{"$error":"#N/A"}}]
[null,null,null,null,null,null,null,null,{"$f":"VLOOKUP(H1320,'Drop down items'!B1320:C6186,2,FALSE)","v":{"$error":"#N/A"}}]
[null,null,null,null,null,null,null,null,{"$f":"VLOOKUP(H1321,'Drop down items'!B1321:C6187,2,FALSE)","v":{"$error":"#N/A"}}]
[null,null,null,null,null,null,null,null,{"$f":"VLOOKUP(H1322,'Drop down items'!B1322:C6188,2,FALSE)","v":{"$error":"#N/A"}}]
[null,null,null,null,null,null,null,null,{"$f":"VLOOKUP(H1323,'Drop down items'!B1323:C6189,2,FALSE)","v":{"$error":"#N/A"}}]
[null,null,null,null,null,null,null,null,{"$f":"VLOOKUP(H1324,'Drop down items'!B1324:C6190,2,FALSE)","v":{"$error":"#N/A"}}]
[null,null,null,null,null,null,null,null,{"$f":"VLOOKUP(H1325,'Drop down items'!B1325:C6191,2,FALSE)","v":{"$error":"#N/A"}}]
[null,null,null,null,null,null,null,null,{"$f":"VLOOKUP(H1326,'Drop down items'!B1326:C6192,2,FALSE)","v":{"$error":"#N/A"}}]
[null,null,null,null,null,null,null,null,{"$f":"VLOOKUP(H1327,'Drop down items'!B1327:C6193,2,FALSE)","v":{"$error":"#N/A"}}]
[null,null,null,null,null,null,null,null,{"$f":"VLOOKUP(H1328,'Drop down items'!B1328:C6194,2,FALSE)","v":{"$error":"#N/A"}}]
[null,null,null,null,null,null,null,null,{"$f":"VLOOKUP(H1329,'Drop down items'!B1329:C6195,2,FALSE)","v":{"$error":"#N/A"}}]
[null,null,null,null,null,null,null,null,{"$f":"VLOOKUP(H1330,'Drop down items'!B1330:C6196,2,FALSE)","v":{"$error":"#N/A"}}]
[null,null,null,null,null,null,null,null,{"$f":"VLOOKUP(H1331,'Drop down items'!B1331:C6197,2,FALSE)","v":{"$error":"#N/A"}}]
[null,null,null,null,null,null,null,null,{"$f":"VLOOKUP(H1332,'Drop down items'!B1332:C6198,2,FALSE)","v":{"$error":"#N/A"}}]
[null,null,null,null,null,null,null,null,{"$f":"VLOOKUP(H1333,'Drop down items'!B1333:C6199,2,FALSE)","v":{"$error":"#N/A"}}]
[null,null,null,null,null,null,null,null,{"$f":"VLOOKUP(H1334,'Drop down items'!B1334:C6200,2,FALSE)","v":{"$error":"#N/A"}}]
[null,null,null,null,null,null,null,null,{"$f":"VLOOKUP(H1335,'Drop down items'!B1335:C6201,2,FALSE)","v":{"$error":"#N/A"}}]
[null,null,null,null,null,null,null,null,{"$f":"VLOOKUP(H1336,'Drop down items'!B1336:C6202,2,FALSE)","v":{"$error":"#N/A"}}]
[null,null,null,null,null,null,null,null,{"$f":"VLOOKUP(H1337,'Drop down items'!B1337:C6203,2,FALSE)","v":{"$error":"#N/A"}}]
[null,null,null,null,null,null,null,null,{"$f":"VLOOKUP(H1338,'Drop down items'!B1338:C6204,2,FALSE)","v":{"$error":"#N/A"}}]
[null,null,null,null,null,null,null,null,{"$f":"VLOOKUP(H1339,'Drop down items'!B1339:C6205,2,FALSE)","v":{"$error":"#N/A"}}]
[null,null,null,null,null,null,null,null,{"$f":"VLOOKUP(H1340,'Drop down items'!B1340:C6206,2,FALSE)","v":{"$error":"#N/A"}}]
[null,null,null,null,null,null,null,null,{"$f":"VLOOKUP(H1341,'Drop down items'!B1341:C6207,2,FALSE)","v":{"$error":"#N/A"}}]
[null,null,null,null,null,null,null,null,{"$f":"VLOOKUP(H1342,'Drop down items'!B1342:C6208,2,FALSE)","v":{"$error":"#N/A"}}]
[null,null,null,null,null,null,null,null,{"$f":"VLOOKUP(H1343,'Drop down items'!B1343:C6209,2,FALSE)","v":{"$error":"#N/A"}}]
[null,null,null,null,null,null,null,null,{"$f":"VLOOKUP(H1344,'Drop down items'!B1344:C6210,2,FALSE)","v":{"$error":"#N/A"}}]
[null,null,null,null,null,null,null,null,{"$f":"VLOOKUP(H1345,'Drop down items'!B1345:C6211,2,FALSE)","v":{"$error":"#N/A"}}]
[null,null,null,null,null,null,null,null,{"$f":"VLOOKUP(H1346,'Drop down items'!B1346:C6212,2,FALSE)","v":{"$error":"#N/A"}}]
[null,null,null,null,null,null,null,null,{"$f":"VLOOKUP(H1347,'Drop down items'!B1347:C6213,2,FALSE)","v":{"$error":"#N/A"}}]
[null,null,null,null,null,null,null,null,{"$f":"VLOOKUP(H1348,'Drop down items'!B1348:C6214,2,FALSE)","v":{"$error":"#N/A"}}]
[null,null,null,null,null,null,null,null,{"$f":"VLOOKUP(H1349,'Drop down items'!B1349:C6215,2,FALSE)","v":{"$error":"#N/A"}}]
[null,null,null,null,null,null,null,null,{"$f":"VLOOKUP(H1350,'Drop down items'!B1350:C6216,2,FALSE)","v":{"$error":"#N/A"}}]
[null,null,null,null,null,null,null,null,{"$f":"VLOOKUP(H1351,'Drop down items'!B1351:C6217,2,FALSE)","v":{"$error":"#N/A"}}]
[null,null,null,null,null,null,null,null,{"$f":"VLOOKUP(H1352,'Drop down items'!B1352:C6218,2,FALSE)","v":{"$error":"#N/A"}}]
[null,null,null,null,null,null,null,null,{"$f":"VLOOKUP(H1353,'Drop down items'!B1353:C6219,2,FALSE)","v":{"$error":"#N/A"}}]
[null,null,null,null,null,null,null,null,{"$f":"VLOOKUP(H1354,'Drop down items'!B1354:C6220,2,FALSE)","v":{"$error":"#N/A"}}]
[null,null,null,null,null,null,null,null,{"$f":"VLOOKUP(H1355,'Drop down items'!B1355:C6221,2,FALSE)","v":{"$error":"#N/A"}}]
[null,null,null,null,null,null,null,null,{"$f":"VLOOKUP(H1356,'Drop down items'!B1356:C6222,2,FALSE)","v":{"$error":"#N/A"}}]
[null,null,null,null,null,null,null,null,{"$f":"VLOOKUP(H1357,'Drop down items'!B1357:C6223,2,FALSE)","v":{"$error":"#N/A"}}]
[null,null,null,null,null,null,null,null,{"$f":"VLOOKUP(H1358,'Drop down items'!B1358:C6224,2,FALSE)","v":{"$error":"#N/A"}}]
[null,null,null,null,null,null,null,null,{"$f":"VLOOKUP(H1359,'Drop down items'!B1359:C6225,2,FALSE)","v":{"$error":"#N/A"}}]
[null,null,null,null,null,null,null,null,{"$f":"VLOOKUP(H1360,'Drop down items'!B1360:C6226,2,FALSE)","v":{"$error":"#N/A"}}]
[null,null,null,null,null,null,null,null,{"$f":"VLOOKUP(H1361,'Drop down items'!B1361:C6227,2,FALSE)","v":{"$error":"#N/A"}}]
[null,null,null,null,null,null,null,null,{"$f":"VLOOKUP(H1362,'Drop down items'!B1362:C6228,2,FALSE)","v":{"$error":"#N/A"}}]
[null,null,null,null,null,null,null,null,{"$f":"VLOOKUP(H1363,'Drop down items'!B1363:C6229,2,FALSE)","v":{"$error":"#N/A"}}]
[null,null,null,null,null,null,null,null,{"$f":"VLOOKUP(H1364,'Drop down items'!B1364:C6230,2,FALSE)","v":{"$error":"#N/A"}}]
[null,null,null,null,null,null,null,null,{"$f":"VLOOKUP(H1365,'Drop down items'!B1365:C6231,2,FALSE)","v":{"$error":"#N/A"}}]
[null,null,null,null,null,null,null,null,{"$f":"VLOOKUP(H1366,'Drop down items'!B1366:C6232,2,FALSE)","v":{"$error":"#N/A"}}]
[null,null,null,null,null,null,null,null,{"$f":"VLOOKUP(H1367,'Drop down items'!B1367:C6233,2,FALSE)","v":{"$error":"#N/A"}}]
[null,null,null,null,null,null,null,null,{"$f":"VLOOKUP(H1368,'Drop down items'!B1368:C6234,2,FALSE)","v":{"$error":"#N/A"}}]
[null,null,null,null,null,null,null,null,{"$f":"VLOOKUP(H1369,'Drop down items'!B1369:C6235,2,FALSE)","v":{"$error":"#N/A"}}]
[null,null,null,null,null,null,null,null,{"$f":"VLOOKUP(H1370,'Drop down items'!B1370:C6236,2,FALSE)","v":{"$error":"#N/A"}}]
[null,null,null,null,null,null,null,null,{"$f":"VLOOKUP(H1371,'Drop down items'!B1371:C6237,2,FALSE)","v":{"$error":"#N/A"}}]
[null,null,null,null,null,null,null,null,{"$f":"VLOOKUP(H1372,'Drop down items'!B1372:C6238,2,FALSE)","v":{"$error":"#N/A"}}]
[null,null,null,null,null,null,null,null,{"$f":"VLOOKUP(H1373,'Drop down items'!B1373:C6239,2,FALSE)","v":{"$error":"#N/A"}}]
[null,null,null,null,null,null,null,null,{"$f":"VLOOKUP(H1374,'Drop down items'!B1374:C6240,2,FALSE)","v":{"$error":"#N/A"}}]
[null,null,null,null,null,null,null,null,{"$f":"VLOOKUP(H1375,'Drop down items'!B1375:C6241,2,FALSE)","v":{"$error":"#N/A"}}]
[null,null,null,null,null,null,null,null,{"$f":"VLOOKUP(H1376,'Drop down items'!B1376:C6242,2,FALSE)","v":{"$error":"#N/A"}}]
[null,null,null,null,null,null,null,null,{"$f":"VLOOKUP(H1377,'Drop down items'!B1377:C6243,2,FALSE)","v":{"$error":"#N/A"}}]
[null,null,null,null,null,null,null,null,{"$f":"VLOOKUP(H1378,'Drop down items'!B1378:C6244,2,FALSE)","v":{"$error":"#N/A"}}]
[null,null,null,null,null,null,null,null,{"$f":"VLOOKUP(H1379,'Drop down items'!B1379:C6245,2,FALSE)","v":{"$error":"#N/A"}}]
[null,null,null,null,null,null,null,null,{"$f":"VLOOKUP(H1380,'Drop down items'!B1380:C6246,2,FALSE)","v":{"$error":"#N/A"}}]
[null,null,null,null,null,null,null,null,{"$f":"VLOOKUP(H1381,'Drop down items'!B1381:C6247,2,FALSE)","v":{"$error":"#N/A"}}]
[null,null,null,null,null,null,null,null,{"$f":"VLOOKUP(H1382,'Drop down items'!B1382:C6248,2,FALSE)","v":{"$error":"#N/A"}}]
[null,null,null,null,null,null,null,null,{"$f":"VLOOKUP(H1383,'Drop down items'!B1383:C6249,2,FALSE)","v":{"$error":"#N/A"}}]
[null,null,null,null,null,null,null,null,{"$f":"VLOOKUP(H1384,'Drop down items'!B1384:C6250,2,FALSE)","v":{"$error":"#N/A"}}]
[null,null,null,null,null,null,null,null,{"$f":"VLOOKUP(H1385,'Drop down items'!B1385:C6251,2,FALSE)","v":{"$error":"#N/A"}}]
[null,null,null,null,null,null,null,null,{"$f":"VLOOKUP(H1386,'Drop down items'!B1386:C6252,2,FALSE)","v":{"$error":"#N/A"}}]
[null,null,null,null,null,null,null,null,{"$f":"VLOOKUP(H1387,'Drop down items'!B1387:C6253,2,FALSE)","v":{"$error":"#N/A"}}]
[null,null,null,null,null,null,null,null,{"$f":"VLOOKUP(H1388,'Drop down items'!B1388:C6254,2,FALSE)","v":{"$error":"#N/A"}}]
[null,null,null,null,null,null,null,null,{"$f":"VLOOKUP(H1389,'Drop down items'!B1389:C6255,2,FALSE)","v":{"$error":"#N/A"}}]
[null,null,null,null,null,null,null,null,{"$f":"VLOOKUP(H1390,'Drop down items'!B1390:C6256,2,FALSE)","v":{"$error":"#N/A"}}]
[null,null,null,null,null,null,null,null,{"$f":"VLOOKUP(H1391,'Drop down items'!B1391:C6257,2,FALSE)","v":{"$error":"#N/A"}}]
[null,null,null,null,null,null,null,null,{"$f":"VLOOKUP(H1392,'Drop down items'!B1392:C6258,2,FALSE)","v":{"$error":"#N/A"}}]
[null,null,null,null,null,null,null,null,{"$f":"VLOOKUP(H1393,'Drop down items'!B1393:C6259,2,FALSE)","v":{"$error":"#N/A"}}]
[null,null,null,null,null,null,null,null,{"$f":"VLOOKUP(H1394,'Drop down items'!B1394:C6260,2,FALSE)","v":{"$error":"#N/A"}}]
[null,null,null,null,null,null,null,null,{"$f":"VLOOKUP(H1395,'Drop down items'!B1395:C6261,2,FALSE)","v":{"$error":"#N/A"}}]
[null,null,null,null,null,null,null,null,{"$f":"VLOOKUP(H1396,'Drop down items'!B1396:C6262,2,FALSE)","v":{"$error":"#N/A"}}]
[null,null,null,null,null,null,null,null,{"$f":"VLOOKUP(H1397,'Drop down items'!B1397:C6263,2,FALSE)","v":{"$error":"#N/A"}}]
[null,null,null,null,null,null,null,null,{"$f":"VLOOKUP(H1398,'Drop down items'!B1398:C6264,2,FALSE)","v":{"$error":"#N/A"}}]
[null,null,null,null,null,null,null,null,{"$f":"VLOOKUP(H1399,'Drop down items'!B1399:C6265,2,FALSE)","v":{"$error":"#N/A"}}]
[null,null,null,null,null,null,null,null,{"$f":"VLOOKUP(H1400,'Drop down items'!B1400:C6266,2,FALSE)","v":{"$error":"#N/A"}}]
[null,null,null,null,null,null,null,null,{"$f":"VLOOKUP(H1401,'Drop down items'!B1401:C6267,2,FALSE)","v":{"$error":"#N/A"}}]
[null,null,null,null,null,null,null,null,{"$f":"VLOOKUP(H1402,'Drop down items'!B1402:C6268,2,FALSE)","v":{"$error":"#N/A"}}]
[null,null,null,null,null,null,null,null,{"$f":"VLOOKUP(H1403,'Drop down items'!B1403:C6269,2,FALSE)","v":{"$error":"#N/A"}}]
[null,null,null,null,null,null,null,null,{"$f":"VLOOKUP(H1404,'Drop down items'!B1404:C6270,2,FALSE)","v":{"$error":"#N/A"}}]
[null,null,null,null,null,null,null,null,{"$f":"VLOOKUP(H1405,'Drop down items'!B1405:C6271,2,FALSE)","v":{"$error":"#N/A"}}]
[null,null,null,null,null,null,null,null,{"$f":"VLOOKUP(H1406,'Drop down items'!B1406:C6272,2,FALSE)","v":{"$error":"#N/A"}}]
[null,null,null,null,null,null,null,null,{"$f":"VLOOKUP(H1407,'Drop down items'!B1407:C6273,2,FALSE)","v":{"$error":"#N/A"}}]
[null,null,null,null,null,null,null,null,{"$f":"VLOOKUP(H1408,'Drop down items'!B1408:C6274,2,FALSE)","v":{"$error":"#N/A"}}]
[null,null,null,null,null,null,null,null,{"$f":"VLOOKUP(H1409,'Drop down items'!B1409:C6275,2,FALSE)","v":{"$error":"#N/A"}}]
[null,null,null,null,null,null,null,null,{"$f":"VLOOKUP(H1410,'Drop down items'!B1410:C6276,2,FALSE)","v":{"$error":"#N/A"}}]
[null,null,null,null,null,null,null,null,{"$f":"VLOOKUP(H1411,'Drop down items'!B1411:C6277,2,FALSE)","v":{"$error":"#N/A"}}]
[null,null,null,null,null,null,null,null,{"$f":"VLOOKUP(H1412,'Drop down items'!B1412:C6278,2,FALSE)","v":{"$error":"#N/A"}}]
[null,null,null,null,null,null,null,null,{"$f":"VLOOKUP(H1413,'Drop down items'!B1413:C6279,2,FALSE)","v":{"$error":"#N/A"}}]
[null,null,null,null,null,null,null,null,{"$f":"VLOOKUP(H1414,'Drop down items'!B1414:C6280,2,FALSE)","v":{"$error":"#N/A"}}]
[null,null,null,null,null,null,null,null,{"$f":"VLOOKUP(H1415,'Drop down items'!B1415:C6281,2,FALSE)","v":{"$error":"#N/A"}}]
[null,null,null,null,null,null,null,null,{"$f":"VLOOKUP(H1416,'Drop down items'!B1416:C6282,2,FALSE)","v":{"$error":"#N/A"}}]
[null,null,null,null,null,null,null,null,{"$f":"VLOOKUP(H1417,'Drop down items'!B1417:C6283,2,FALSE)","v":{"$error":"#N/A"}}]
[null,null,null,null,null,null,null,null,{"$f":"VLOOKUP(H1418,'Drop down items'!B1418:C6284,2,FALSE)","v":{"$error":"#N/A"}}]
[null,null,null,null,null,null,null,null,{"$f":"VLOOKUP(H1419,'Drop down items'!B1419:C6285,2,FALSE)","v":{"$error":"#N/A"}}]
[null,null,null,null,null,null,null,null,{"$f":"VLOOKUP(H1420,'Drop down items'!B1420:C6286,2,FALSE)","v":{"$error":"#N/A"}}]
[null,null,null,null,null,null,null,null,{"$f":"VLOOKUP(H1421,'Drop down items'!B1421:C6287,2,FALSE)","v":{"$error":"#N/A"}}]
[null,null,null,null,null,null,null,null,{"$f":"VLOOKUP(H1422,'Drop down items'!B1422:C6288,2,FALSE)","v":{"$error":"#N/A"}}]
[null,null,null,null,null,null,null,null,{"$f":"VLOOKUP(H1423,'Drop down items'!B1423:C6289,2,FALSE)","v":{"$error":"#N/A"}}]
[null,null,null,null,null,null,null,null,{"$f":"VLOOKUP(H1424,'Drop down items'!B1424:C6290,2,FALSE)","v":{"$error":"#N/A"}}]
[null,null,null,null,null,null,null,null,{"$f":"VLOOKUP(H1425,'Drop down items'!B1425:C6291,2,FALSE)","v":{"$error":"#N/A"}}]
[null,null,null,null,null,null,null,null,{"$f":"VLOOKUP(H1426,'Drop down items'!B1426:C6292,2,FALSE)","v":{"$error":"#N/A"}}]
[null,null,null,null,null,null,null,null,{"$f":"VLOOKUP(H1427,'Drop down items'!B1427:C6293,2,FALSE)","v":{"$error":"#N/A"}}]
[null,null,null,null,null,null,null,null,{"$f":"VLOOKUP(H1428,'Drop down items'!B1428:C6294,2,FALSE)","v":{"$error":"#N/A"}}]
[null,null,null,null,null,null,null,null,{"$f":"VLOOKUP(H1429,'Drop down items'!B1429:C6295,2,FALSE)","v":{"$error":"#N/A"}}]
[null,null,null,null,null,null,null,null,{"$f":"VLOOKUP(H1430,'Drop down items'!B1430:C6296,2,FALSE)","v":{"$error":"#N/A"}}]
[null,null,null,null,null,null,null,null,{"$f":"VLOOKUP(H1431,'Drop down items'!B1431:C6297,2,FALSE)","v":{"$error":"#N/A"}}]
[null,null,null,null,null,null,null,null,{"$f":"VLOOKUP(H1432,'Drop down items'!B1432:C6298,2,FALSE)","v":{"$error":"#N/A"}}]
[null,null,null,null,null,null,null,null,{"$f":"VLOOKUP(H1433,'Drop down items'!B1433:C6299,2,FALSE)","v":{"$error":"#N/A"}}]
[null,null,null,null,null,null,null,null,{"$f":"VLOOKUP(H1434,'Drop down items'!B1434:C6300,2,FALSE)","v":{"$error":"#N/A"}}]
[null,null,null,null,null,null,null,null,{"$f":"VLOOKUP(H1435,'Drop down items'!B1435:C6301,2,FALSE)","v":{"$error":"#N/A"}}]
[null,null,null,null,null,null,null,null,{"$f":"VLOOKUP(H1436,'Drop down items'!B1436:C6302,2,FALSE)","v":{"$error":"#N/A"}}]
[null,null,null,null,null,null,null,null,{"$f":"VLOOKUP(H1437,'Drop down items'!B1437:C6303,2,FALSE)","v":{"$error":"#N/A"}}]
[null,null,null,null,null,null,null,null,{"$f":"VLOOKUP(H1438,'Drop down items'!B1438:C6304,2,FALSE)","v":{"$error":"#N/A"}}]
[null,null,null,null,null,null,null,null,{"$f":"VLOOKUP(H1439,'Drop down items'!B1439:C6305,2,FALSE)","v":{"$error":"#N/A"}}]
[null,null,null,null,null,null,null,null,{"$f":"VLOOKUP(H1440,'Drop down items'!B1440:C6306,2,FALSE)","v":{"$error":"#N/A"}}]
[null,null,null,null,null,null,null,null,{"$f":"VLOOKUP(H1441,'Drop down items'!B1441:C6307,2,FALSE)","v":{"$error":"#N/A"}}]
[null,null,null,null,null,null,null,null,{"$f":"VLOOKUP(H1442,'Drop down items'!B1442:C6308,2,FALSE)","v":{"$error":"#N/A"}}]
[null,null,null,null,null,null,null,null,{"$f":"VLOOKUP(H1443,'Drop down items'!B1443:C6309,2,FALSE)","v":{"$error":"#N/A"}}]
[null,null,null,null,null,null,null,null,{"$f":"VLOOKUP(H1444,'Drop down items'!B1444:C6310,2,FALSE)","v":{"$error":"#N/A"}}]
[null,null,null,null,null,null,null,null,{"$f":"VLOOKUP(H1445,'Drop down items'!B1445:C6311,2,FALSE)","v":{"$error":"#N/A"}}]
[null,null,null,null,null,null,null,null,{"$f":"VLOOKUP(H1446,'Drop down items'!B1446:C6312,2,FALSE)","v":{"$error":"#N/A"}}]
[null,null,null,null,null,null,null,null,{"$f":"VLOOKUP(H1447,'Drop down items'!B1447:C6313,2,FALSE)","v":{"$error":"#N/A"}}]
[null,null,null,null,null,null,null,null,{"$f":"VLOOKUP(H1448,'Drop down items'!B1448:C6314,2,FALSE)","v":{"$error":"#N/A"}}]
[null,null,null,null,null,null,null,null,{"$f":"VLOOKUP(H1449,'Drop down items'!B1449:C6315,2,FALSE)","v":{"$error":"#N/A"}}]
[null,null,null,null,null,null,null,null,{"$f":"VLOOKUP(H1450,'Drop down items'!B1450:C6316,2,FALSE)","v":{"$error":"#N/A"}}]
[null,null,null,null,null,null,null,null,{"$f":"VLOOKUP(H1451,'Drop down items'!B1451:C6317,2,FALSE)","v":{"$error":"#N/A"}}]
[null,null,null,null,null,null,null,null,{"$f":"VLOOKUP(H1452,'Drop down items'!B1452:C6318,2,FALSE)","v":{"$error":"#N/A"}}]
[null,null,null,null,null,null,null,null,{"$f":"VLOOKUP(H1453,'Drop down items'!B1453:C6319,2,FALSE)","v":{"$error":"#N/A"}}]
[null,null,null,null,null,null,null,null,{"$f":"VLOOKUP(H1454,'Drop down items'!B1454:C6320,2,FALSE)","v":{"$error":"#N/A"}}]
[null,null,null,null,null,null,null,null,{"$f":"VLOOKUP(H1455,'Drop down items'!B1455:C6321,2,FALSE)","v":{"$error":"#N/A"}}]
[null,null,null,null,null,null,null,null,{"$f":"VLOOKUP(H1456,'Drop down items'!B1456:C6322,2,FALSE)","v":{"$error":"#N/A"}}]
[null,null,null,null,null,null,null,null,{"$f":"VLOOKUP(H1457,'Drop down items'!B1457:C6323,2,FALSE)","v":{"$error":"#N/A"}}]
[null,null,null,null,null,null,null,null,{"$f":"VLOOKUP(H1458,'Drop down items'!B1458:C6324,2,FALSE)","v":{"$error":"#N/A"}}]
[null,null,null,null,null,null,null,null,{"$f":"VLOOKUP(H1459,'Drop down items'!B1459:C6325,2,FALSE)","v":{"$error":"#N/A"}}]
[null,null,null,null,null,null,null,null,{"$f":"VLOOKUP(H1460,'Drop down items'!B1460:C6326,2,FALSE)","v":{"$error":"#N/A"}}]
[null,null,null,null,null,null,null,null,{"$f":"VLOOKUP(H1461,'Drop down items'!B1461:C6327,2,FALSE)","v":{"$error":"#N/A"}}]
[null,null,null,null,null,null,null,null,{"$f":"VLOOKUP(H1462,'Drop down items'!B1462:C6328,2,FALSE)","v":{"$error":"#N/A"}}]
[null,null,null,null,null,null,null,null,{"$f":"VLOOKUP(H1463,'Drop down items'!B1463:C6329,2,FALSE)","v":{"$error":"#N/A"}}]
[null,null,null,null,null,null,null,null,{"$f":"VLOOKUP(H1464,'Drop down items'!B1464:C6330,2,FALSE)","v":{"$error":"#N/A"}}]
[null,null,null,null,null,null,null,null,{"$f":"VLOOKUP(H1465,'Drop down items'!B1465:C6331,2,FALSE)","v":{"$error":"#N/A"}}]
[null,null,null,null,null,null,null,null,{"$f":"VLOOKUP(H1466,'Drop down items'!B1466:C6332,2,FALSE)","v":{"$error":"#N/A"}}]
[null,null,null,null,null,null,null,null,{"$f":"VLOOKUP(H1467,'Drop down items'!B1467:C6333,2,FALSE)","v":{"$error":"#N/A"}}]
[null,null,null,null,null,null,null,null,{"$f":"VLOOKUP(H1468,'Drop down items'!B1468:C6334,2,FALSE)","v":{"$error":"#N/A"}}]
[null,null,null,null,null,null,null,null,{"$f":"VLOOKUP(H1469,'Drop down items'!B1469:C6335,2,FALSE)","v":{"$error":"#N/A"}}]
[null,null,null,null,null,null,null,null,{"$f":"VLOOKUP(H1470,'Drop down items'!B1470:C6336,2,FALSE)","v":{"$error":"#N/A"}}]
[null,null,null,null,null,null,null,null,{"$f":"VLOOKUP(H1471,'Drop down items'!B1471:C6337,2,FALSE)","v":{"$error":"#N/A"}}]
[null,null,null,null,null,null,null,null,{"$f":"VLOOKUP(H1472,'Drop down items'!B1472:C6338,2,FALSE)","v":{"$error":"#N/A"}}]
[null,null,null,null,null,null,null,null,{"$f":"VLOOKUP(H1473,'Drop down items'!B1473:C6339,2,FALSE)","v":{"$error":"#N/A"}}]
[null,null,null,null,null,null,null,null,{"$f":"VLOOKUP(H1474,'Drop down items'!B1474:C6340,2,FALSE)","v":{"$error":"#N/A"}}]
[null,null,null,null,null,null,null,null,{"$f":"VLOOKUP(H1475,'Drop down items'!B1475:C6341,2,FALSE)","v":{"$error":"#N/A"}}]
[null,null,null,null,null,null,null,null,{"$f":"VLOOKUP(H1476,'Drop down items'!B1476:C6342,2,FALSE)","v":{"$error":"#N/A"}}]
[null,null,null,null,null,null,null,null,{"$f":"VLOOKUP(H1477,'Drop down items'!B1477:C6343,2,FALSE)","v":{"$error":"#N/A"}}]
[null,null,null,null,null,null,null,null,{"$f":"VLOOKUP(H1478,'Drop down items'!B1478:C6344,2,FALSE)","v":{"$error":"#N/A"}}]
[null,null,null,null,null,null,null,null,{"$f":"VLOOKUP(H1479,'Drop down items'!B1479:C6345,2,FALSE)","v":{"$error":"#N/A"}}]
[null,null,null,null,null,null,null,null,{"$f":"VLOOKUP(H1480,'Drop down items'!B1480:C6346,2,FALSE)","v":{"$error":"#N/A"}}]
[null,null,null,null,null,null,null,null,{"$f":"VLOOKUP(H1481,'Drop down items'!B1481:C6347,2,FALSE)","v":{"$error":"#N/A"}}]
[null,null,null,null,null,null,null,null,{"$f":"VLOOKUP(H1482,'Drop down items'!B1482:C6348,2,FALSE)","v":{"$error":"#N/A"}}]
[null,null,null,null,null,null,null,null,{"$f":"VLOOKUP(H1483,'Drop down items'!B1483:C6349,2,FALSE)","v":{"$error":"#N/A"}}]
[null,null,null,null,null,null,null,null,{"$f":"VLOOKUP(H1484,'Drop down items'!B1484:C6350,2,FALSE)","v":{"$error":"#N/A"}}]
[null,null,null,null,null,null,null,null,{"$f":"VLOOKUP(H1485,'Drop down items'!B1485:C6351,2,FALSE)","v":{"$error":"#N/A"}}]
[null,null,null,null,null,null,null,null,{"$f":"VLOOKUP(H1486,'Drop down items'!B1486:C6352,2,FALSE)","v":{"$error":"#N/A"}}]
[null,null,null,null,null,null,null,null,{"$f":"VLOOKUP(H1487,'Drop down items'!B1487:C6353,2,FALSE)","v":{"$error":"#N/A"}}]
[null,null,null,null,null,null,null,null,{"$f":"VLOOKUP(H1488,'Drop down items'!B1488:C6354,2,FALSE)","v":{"$error":"#N/A"}}]
[null,null,null,null,null,null,null,null,{"$f":"VLOOKUP(H1489,'Drop down items'!B1489:C6355,2,FALSE)","v":{"$error":"#N/A"}}]
[null,null,null,null,null,null,null,null,{"$f":"VLOOKUP(H1490,'Drop down items'!B1490:C6356,2,FALSE)","v":{"$error":"#N/A"}}]
[null,null,null,null,null,null,null,null,{"$f":"VLOOKUP(H1491,'Drop down items'!B1491:C6357,2,FALSE)","v":{"$error":"#N/A"}}]
[null,null,null,null,null,null,null,null,{"$f":"VLOOKUP(H1492,'Drop down items'!B1492:C6358,2,FALSE)","v":{"$error":"#N/A"}}]
[null,null,null,null,null,null,null,null,{"$f":"VLOOKUP(H1493,'Drop down items'!B1493:C6359,2,FALSE)","v":{"$error":"#N/A"}}]
[null,null,null,null,null,null,null,null,{"$f":"VLOOKUP(H1494,'Drop down items'!B1494:C6360,2,FALSE)","v":{"$error":"#N/A"}}]
[null,null,null,null,null,null,null,null,{"$f":"VLOOKUP(H1495,'Drop down items'!B1495:C6361,2,FALSE)","v":{"$error":"#N/A"}}]
[null,null,null,null,null,null,null,null,{"$f":"VLOOKUP(H1496,'Drop down items'!B1496:C6362,2,FALSE)","v":{"$error":"#N/A"}}]
[null,null,null,null,null,null,null,null,{"$f":"VLOOKUP(H1497,'Drop down items'!B1497:C6363,2,FALSE)","v":{"$error":"#N/A"}}]
[null,null,null,null,null,null,null,null,{"$f":"VLOOKUP(H1498,'Drop down items'!B1498:C6364,2,FALSE)","v":{"$error":"#N/A"}}]
[null,null,null,null,null,null,null,null,{"$f":"VLOOKUP(H1499,'Drop down items'!B1499:C6365,2,FALSE)","v":{"$error":"#N/A"}}]
[null,null,null,null,null,null,null,null,{"$f":"VLOOKUP(H1500,'Drop down items'!B1500:C6366,2,FALSE)","v":{"$error":"#N/A"}}]
[null,null,null,null,null,null,null,null,{"$f":"VLOOKUP(H1501,'Drop down items'!B1501:C6367,2,FALSE)","v":{"$error":"#N/A"}}]
[null,null,null,null,null,null,null,null,{"$f":"VLOOKUP(H1502,'Drop down items'!B1502:C6368,2,FALSE)","v":{"$error":"#N/A"}}]
[null,null,null,null,null,null,null,null,{"$f":"VLOOKUP(H1503,'Drop down items'!B1503:C6369,2,FALSE)","v":{"$error":"#N/A"}}]
[null,null,null,null,null,null,null,null,{"$f":"VLOOKUP(H1504,'Drop down items'!B1504:C6370,2,FALSE)","v":{"$error":"#N/A"}}]
[null,null,null,null,null,null,null,null,{"$f":"VLOOKUP(H1505,'Drop down items'!B1505:C6371,2,FALSE)","v":{"$error":"#N/A"}}]
[null,null,null,null,null,null,null,null,{"$f":"VLOOKUP(H1506,'Drop down items'!B1506:C6372,2,FALSE)","v":{"$error":"#N/A"}}]
[null,null,null,null,null,null,null,null,{"$f":"VLOOKUP(H1507,'Drop down items'!B1507:C6373,2,FALSE)","v":{"$error":"#N/A"}}]
[null,null,null,null,null,null,null,null,{"$f":"VLOOKUP(H1508,'Drop down items'!B1508:C6374,2,FALSE)","v":{"$error":"#N/A"}}]
[null,null,null,null,null,null,null,null,{"$f":"VLOOKUP(H1509,'Drop down items'!B1509:C6375,2,FALSE)","v":{"$error":"#N/A"}}]
[null,null,null,null,null,null,null,null,{"$f":"VLOOKUP(H1510,'Drop down items'!B1510:C6376,2,FALSE)","v":{"$error":"#N/A"}}]
[null,null,null,null,null,null,null,null,{"$f":"VLOOKUP(H1511,'Drop down items'!B1511:C6377,2,FALSE)","v":{"$error":"#N/A"}}]
[null,null,null,null,null,null,null,null,{"$f":"VLOOKUP(H1512,'Drop down items'!B1512:C6378,2,FALSE)","v":{"$error":"#N/A"}}]
[null,null,null,null,null,null,null,null,{"$f":"VLOOKUP(H1513,'Drop down items'!B1513:C6379,2,FALSE)","v":{"$error":"#N/A"}}]
[null,null,null,null,null,null,null,null,{"$f":"VLOOKUP(H1514,'Drop down items'!B1514:C6380,2,FALSE)","v":{"$error":"#N/A"}}]
[null,null,null,null,null,null,null,null,{"$f":"VLOOKUP(H1515,'Drop down items'!B1515:C6381,2,FALSE)","v":{"$error":"#N/A"}}]
[null,null,null,null,null,null,null,null,{"$f":"VLOOKUP(H1516,'Drop down items'!B1516:C6382,2,FALSE)","v":{"$error":"#N/A"}}]
[null,null,null,null,null,null,null,null,{"$f":"VLOOKUP(H1517,'Drop down items'!B1517:C6383,2,FALSE)","v":{"$error":"#N/A"}}]
[null,null,null,null,null,null,null,null,{"$f":"VLOOKUP(H1518,'Drop down items'!B1518:C6384,2,FALSE)","v":{"$error":"#N/A"}}]
[null,null,null,null,null,null,null,null,{"$f":"VLOOKUP(H1519,'Drop down items'!B1519:C6385,2,FALSE)","v":{"$error":"#N/A"}}]
[null,null,null,null,null,null,null,null,{"$f":"VLOOKUP(H1520,'Drop down items'!B1520:C6386,2,FALSE)","v":{"$error":"#N/A"}}]
[null,null,null,null,null,null,null,null,{"$f":"VLOOKUP(H1521,'Drop down items'!B1521:C6387,2,FALSE)","v":{"$error":"#N/A"}}]
[null,null,null,null,null,null,null,null,{"$f":"VLOOKUP(H1522,'Drop down items'!B1522:C6388,2,FALSE)","v":{"$error":"#N/A"}}]
[null,null,null,null,null,null,null,null,{"$f":"VLOOKUP(H1523,'Drop down items'!B1523:C6389,2,FALSE)","v":{"$error":"#N/A"}}]
[null,null,null,null,null,null,null,null,{"$f":"VLOOKUP(H1524,'Drop down items'!B1524:C6390,2,FALSE)","v":{"$error":"#N/A"}}]
[null,null,null,null,null,null,null,null,{"$f":"VLOOKUP(H1525,'Drop down items'!B1525:C6391,2,FALSE)","v":{"$error":"#N/A"}}]
[null,null,null,null,null,null,null,null,{"$f":"VLOOKUP(H1526,'Drop down items'!B1526:C6392,2,FALSE)","v":{"$error":"#N/A"}}]
[null,null,null,null,null,null,null,null,{"$f":"VLOOKUP(H1527,'Drop down items'!B1527:C6393,2,FALSE)","v":{"$error":"#N/A"}}]
[null,null,null,null,null,null,null,null,{"$f":"VLOOKUP(H1528,'Drop down items'!B1528:C6394,2,FALSE)","v":{"$error":"#N/A"}}]
[null,null,null,null,null,null,null,null,{"$f":"VLOOKUP(H1529,'Drop down items'!B1529:C6395,2,FALSE)","v":{"$error":"#N/A"}}]
[null,null,null,null,null,null,null,null,{"$f":"VLOOKUP(H1530,'Drop down items'!B1530:C6396,2,FALSE)","v":{"$error":"#N/A"}}]
[null,null,null,null,null,null,null,null,{"$f":"VLOOKUP(H1531,'Drop down items'!B1531:C6397,2,FALSE)","v":{"$error":"#N/A"}}]
[null,null,null,null,null,null,null,null,{"$f":"VLOOKUP(H1532,'Drop down items'!B1532:C6398,2,FALSE)","v":{"$error":"#N/A"}}]
[null,null,null,null,null,null,null,null,{"$f":"VLOOKUP(H1533,'Drop down items'!B1533:C6399,2,FALSE)","v":{"$error":"#N/A"}}]
[null,null,null,null,null,null,null,null,{"$f":"VLOOKUP(H1534,'Drop down items'!B1534:C6400,2,FALSE)","v":{"$error":"#N/A"}}]
[null,null,null,null,null,null,null,null,{"$f":"VLOOKUP(H1535,'Drop down items'!B1535:C6401,2,FALSE)","v":{"$error":"#N/A"}}]
[null,null,null,null,null,null,null,null,{"$f":"VLOOKUP(H1536,'Drop down items'!B1536:C6402,2,FALSE)","v":{"$error":"#N/A"}}]
[null,null,null,null,null,null,null,null,{"$f":"VLOOKUP(H1537,'Drop down items'!B1537:C6403,2,FALSE)","v":{"$error":"#N/A"}}]
[null,null,null,null,null,null,null,null,{"$f":"VLOOKUP(H1538,'Drop down items'!B1538:C6404,2,FALSE)","v":{"$error":"#N/A"}}]
[null,null,null,null,null,null,null,null,{"$f":"VLOOKUP(H1539,'Drop down items'!B1539:C6405,2,FALSE)","v":{"$error":"#N/A"}}]
[null,null,null,null,null,null,null,null,{"$f":"VLOOKUP(H1540,'Drop down items'!B1540:C6406,2,FALSE)","v":{"$error":"#N/A"}}]
[null,null,null,null,null,null,null,null,{"$f":"VLOOKUP(H1541,'Drop down items'!B1541:C6407,2,FALSE)","v":{"$error":"#N/A"}}]
[null,null,null,null,null,null,null,null,{"$f":"VLOOKUP(H1542,'Drop down items'!B1542:C6408,2,FALSE)","v":{"$error":"#N/A"}}]
[null,null,null,null,null,null,null,null,{"$f":"VLOOKUP(H1543,'Drop down items'!B1543:C6409,2,FALSE)","v":{"$error":"#N/A"}}]
[null,null,null,null,null,null,null,null,{"$f":"VLOOKUP(H1544,'Drop down items'!B1544:C6410,2,FALSE)","v":{"$error":"#N/A"}}]
[null,null,null,null,null,null,null,null,{"$f":"VLOOKUP(H1545,'Drop down items'!B1545:C6411,2,FALSE)","v":{"$error":"#N/A"}}]
[null,null,null,null,null,null,null,null,{"$f":"VLOOKUP(H1546,'Drop down items'!B1546:C6412,2,FALSE)","v":{"$error":"#N/A"}}]
[null,null,null,null,null,null,null,null,{"$f":"VLOOKUP(H1547,'Drop down items'!B1547:C6413,2,FALSE)","v":{"$error":"#N/A"}}]
[null,null,null,null,null,null,null,null,{"$f":"VLOOKUP(H1548,'Drop down items'!B1548:C6414,2,FALSE)","v":{"$error":"#N/A"}}]
[null,null,null,null,null,null,null,null,{"$f":"VLOOKUP(H1549,'Drop down items'!B1549:C6415,2,FALSE)","v":{"$error":"#N/A"}}]
[null,null,null,null,null,null,null,null,{"$f":"VLOOKUP(H1550,'Drop down items'!B1550:C6416,2,FALSE)","v":{"$error":"#N/A"}}]
[null,null,null,null,null,null,null,null,{"$f":"VLOOKUP(H1551,'Drop down items'!B1551:C6417,2,FALSE)","v":{"$error":"#N/A"}}]
[null,null,null,null,null,null,null,null,{"$f":"VLOOKUP(H1552,'Drop down items'!B1552:C6418,2,FALSE)","v":{"$error":"#N/A"}}]
[null,null,null,null,null,null,null,null,{"$f":"VLOOKUP(H1553,'Drop down items'!B1553:C6419,2,FALSE)","v":{"$error":"#N/A"}}]
[null,null,null,null,null,null,null,null,{"$f":"VLOOKUP(H1554,'Drop down items'!B1554:C6420,2,FALSE)","v":{"$error":"#N/A"}}]
[null,null,null,null,null,null,null,null,{"$f":"VLOOKUP(H1555,'Drop down items'!B1555:C6421,2,FALSE)","v":{"$error":"#N/A"}}]
[null,null,null,null,null,null,null,null,{"$f":"VLOOKUP(H1556,'Drop down items'!B1556:C6422,2,FALSE)","v":{"$error":"#N/A"}}]
[null,null,null,null,null,null,null,null,{"$f":"VLOOKUP(H1557,'Drop down items'!B1557:C6423,2,FALSE)","v":{"$error":"#N/A"}}]
[null,null,null,null,null,null,null,null,{"$f":"VLOOKUP(H1558,'Drop down items'!B1558:C6424,2,FALSE)","v":{"$error":"#N/A"}}]
[null,null,null,null,null,null,null,null,{"$f":"VLOOKUP(H1559,'Drop down items'!B1559:C6425,2,FALSE)","v":{"$error":"#N/A"}}]
[null,null,null,null,null,null,null,null,{"$f":"VLOOKUP(H1560,'Drop down items'!B1560:C6426,2,FALSE)","v":{"$error":"#N/A"}}]
[null,null,null,null,null,null,null,null,{"$f":"VLOOKUP(H1561,'Drop down items'!B1561:C6427,2,FALSE)","v":{"$error":"#N/A"}}]
[null,null,null,null,null,null,null,null,{"$f":"VLOOKUP(H1562,'Drop down items'!B1562:C6428,2,FALSE)","v":{"$error":"#N/A"}}]
[null,null,null,null,null,null,null,null,{"$f":"VLOOKUP(H1563,'Drop down items'!B1563:C6429,2,FALSE)","v":{"$error":"#N/A"}}]
[null,null,null,null,null,null,null,null,{"$f":"VLOOKUP(H1564,'Drop down items'!B1564:C6430,2,FALSE)","v":{"$error":"#N/A"}}]
[null,null,null,null,null,null,null,null,{"$f":"VLOOKUP(H1565,'Drop down items'!B1565:C6431,2,FALSE)","v":{"$error":"#N/A"}}]
[null,null,null,null,null,null,null,null,{"$f":"VLOOKUP(H1566,'Drop down items'!B1566:C6432,2,FALSE)","v":{"$error":"#N/A"}}]
[null,null,null,null,null,null,null,null,{"$f":"VLOOKUP(H1567,'Drop down items'!B1567:C6433,2,FALSE)","v":{"$error":"#N/A"}}]
[null,null,null,null,null,null,null,null,{"$f":"VLOOKUP(H1568,'Drop down items'!B1568:C6434,2,FALSE)","v":{"$error":"#N/A"}}]
[null,null,null,null,null,null,null,null,{"$f":"VLOOKUP(H1569,'Drop down items'!B1569:C6435,2,FALSE)","v":{"$error":"#N/A"}}]
[null,null,null,null,null,null,null,null,{"$f":"VLOOKUP(H1570,'Drop down items'!B1570:C6436,2,FALSE)","v":{"$error":"#N/A"}}]
[null,null,null,null,null,null,null,null,{"$f":"VLOOKUP(H1571,'Drop down items'!B1571:C6437,2,FALSE)","v":{"$error":"#N/A"}}]
[null,null,null,null,null,null,null,null,{"$f":"VLOOKUP(H1572,'Drop down items'!B1572:C6438,2,FALSE)","v":{"$error":"#N/A"}}]
[null,null,null,null,null,null,null,null,{"$f":"VLOOKUP(H1573,'Drop down items'!B1573:C6439,2,FALSE)","v":{"$error":"#N/A"}}]
[null,null,null,null,null,null,null,null,{"$f":"VLOOKUP(H1574,'Drop down items'!B1574:C6440,2,FALSE)","v":{"$error":"#N/A"}}]
[null,null,null,null,null,null,null,null,{"$f":"VLOOKUP(H1575,'Drop down items'!B1575:C6441,2,FALSE)","v":{"$error":"#N/A"}}]
[null,null,null,null,null,null,null,null,{"$f":"VLOOKUP(H1576,'Drop down items'!B1576:C6442,2,FALSE)","v":{"$error":"#N/A"}}]
[null,null,null,null,null,null,null,null,{"$f":"VLOOKUP(H1577,'Drop down items'!B1577:C6443,2,FALSE)","v":{"$error":"#N/A"}}]
[null,null,null,null,null,null,null,null,{"$f":"VLOOKUP(H1578,'Drop down items'!B1578:C6444,2,FALSE)","v":{"$error":"#N/A"}}]
[null,null,null,null,null,null,null,null,{"$f":"VLOOKUP(H1579,'Drop down items'!B1579:C6445,2,FALSE)","v":{"$error":"#N/A"}}]
[null,null,null,null,null,null,null,null,{"$f":"VLOOKUP(H1580,'Drop down items'!B1580:C6446,2,FALSE)","v":{"$error":"#N/A"}}]
[null,null,null,null,null,null,null,null,{"$f":"VLOOKUP(H1581,'Drop down items'!B1581:C6447,2,FALSE)","v":{"$error":"#N/A"}}]
[null,null,null,null,null,null,null,null,{"$f":"VLOOKUP(H1582,'Drop down items'!B1582:C6448,2,FALSE)","v":{"$error":"#N/A"}}]
[null,null,null,null,null,null,null,null,{"$f":"VLOOKUP(H1583,'Drop down items'!B1583:C6449,2,FALSE)","v":{"$error":"#N/A"}}]
[null,null,null,null,null,null,null,null,{"$f":"VLOOKUP(H1584,'Drop down items'!B1584:C6450,2,FALSE)","v":{"$error":"#N/A"}}]
[null,null,null,null,null,null,null,null,{"$f":"VLOOKUP(H1585,'Drop down items'!B1585:C6451,2,FALSE)","v":{"$error":"#N/A"}}]
[null,null,null,null,null,null,null,null,{"$f":"VLOOKUP(H1586,'Drop down items'!B1586:C6452,2,FALSE)","v":{"$error":"#N/A"}}]
[null,null,null,null,null,null,null,null,{"$f":"VLOOKUP(H1587,'Drop down items'!B1587:C6453,2,FALSE)","v":{"$error":"#N/A"}}]
[null,null,null,null,null,null,null,null,{"$f":"VLOOKUP(H1588,'Drop down items'!B1588:C6454,2,FALSE)","v":{"$error":"#N/A"}}]
[null,null,null,null,null,null,null,null,{"$f":"VLOOKUP(H1589,'Drop down items'!B1589:C6455,2,FALSE)","v":{"$error":"#N/A"}}]
[null,null,null,null,null,null,null,null,{"$f":"VLOOKUP(H1590,'Drop down items'!B1590:C6456,2,FALSE)","v":{"$error":"#N/A"}}]
[null,null,null,null,null,null,null,null,{"$f":"VLOOKUP(H1591,'Drop down items'!B1591:C6457,2,FALSE)","v":{"$error":"#N/A"}}]
[null,null,null,null,null,null,null,null,{"$f":"VLOOKUP(H1592,'Drop down items'!B1592:C6458,2,FALSE)","v":{"$error":"#N/A"}}]
[null,null,null,null,null,null,null,null,{"$f":"VLOOKUP(H1593,'Drop down items'!B1593:C6459,2,FALSE)","v":{"$error":"#N/A"}}]
[null,null,null,null,null,null,null,null,{"$f":"VLOOKUP(H1594,'Drop down items'!B1594:C6460,2,FALSE)","v":{"$error":"#N/A"}}]
[null,null,null,null,null,null,null,null,{"$f":"VLOOKUP(H1595,'Drop down items'!B1595:C6461,2,FALSE)","v":{"$error":"#N/A"}}]
[null,null,null,null,null,null,null,null,{"$f":"VLOOKUP(H1596,'Drop down items'!B1596:C6462,2,FALSE)","v":{"$error":"#N/A"}}]
[null,null,null,null,null,null,null,null,{"$f":"VLOOKUP(H1597,'Drop down items'!B1597:C6463,2,FALSE)","v":{"$error":"#N/A"}}]
[null,null,null,null,null,null,null,null,{"$f":"VLOOKUP(H1598,'Drop down items'!B1598:C6464,2,FALSE)","v":{"$error":"#N/A"}}]
[null,null,null,null,null,null,null,null,{"$f":"VLOOKUP(H1599,'Drop down items'!B1599:C6465,2,FALSE)","v":{"$error":"#N/A"}}]
[null,null,null,null,null,null,null,null,{"$f":"VLOOKUP(H1600,'Drop down items'!B1600:C6466,2,FALSE)","v":{"$error":"#N/A"}}]
[null,null,null,null,null,null,null,null,{"$f":"VLOOKUP(H1601,'Drop down items'!B1601:C6467,2,FALSE)","v":{"$error":"#N/A"}}]
[null,null,null,null,null,null,null,null,{"$f":"VLOOKUP(H1602,'Drop down items'!B1602:C6468,2,FALSE)","v":{"$error":"#N/A"}}]
[null,null,null,null,null,null,null,null,{"$f":"VLOOKUP(H1603,'Drop down items'!B1603:C6469,2,FALSE)","v":{"$error":"#N/A"}}]
[null,null,null,null,null,null,null,null,{"$f":"VLOOKUP(H1604,'Drop down items'!B1604:C6470,2,FALSE)","v":{"$error":"#N/A"}}]
[null,null,null,null,null,null,null,null,{"$f":"VLOOKUP(H1605,'Drop down items'!B1605:C6471,2,FALSE)","v":{"$error":"#N/A"}}]
[null,null,null,null,null,null,null,null,{"$f":"VLOOKUP(H1606,'Drop down items'!B1606:C6472,2,FALSE)","v":{"$error":"#N/A"}}]
[null,null,null,null,null,null,null,null,{"$f":"VLOOKUP(H1607,'Drop down items'!B1607:C6473,2,FALSE)","v":{"$error":"#N/A"}}]
[null,null,null,null,null,null,null,null,{"$f":"VLOOKUP(H1608,'Drop down items'!B1608:C6474,2,FALSE)","v":{"$error":"#N/A"}}]
[null,null,null,null,null,null,null,null,{"$f":"VLOOKUP(H1609,'Drop down items'!B1609:C6475,2,FALSE)","v":{"$error":"#N/A"}}]
[null,null,null,null,null,null,null,null,{"$f":"VLOOKUP(H1610,'Drop down items'!B1610:C6476,2,FALSE)","v":{"$error":"#N/A"}}]
[null,null,null,null,null,null,null,null,{"$f":"VLOOKUP(H1611,'Drop down items'!B1611:C6477,2,FALSE)","v":{"$error":"#N/A"}}]
[null,null,null,null,null,null,null,null,{"$f":"VLOOKUP(H1612,'Drop down items'!B1612:C6478,2,FALSE)","v":{"$error":"#N/A"}}]
[null,null,null,null,null,null,null,null,{"$f":"VLOOKUP(H1613,'Drop down items'!B1613:C6479,2,FALSE)","v":{"$error":"#N/A"}}]
[null,null,null,null,null,null,null,null,{"$f":"VLOOKUP(H1614,'Drop down items'!B1614:C6480,2,FALSE)","v":{"$error":"#N/A"}}]
[null,null,null,null,null,null,null,null,{"$f":"VLOOKUP(H1615,'Drop down items'!B1615:C6481,2,FALSE)","v":{"$error":"#N/A"}}]
[null,null,null,null,null,null,null,null,{"$f":"VLOOKUP(H1616,'Drop down items'!B1616:C6482,2,FALSE)","v":{"$error":"#N/A"}}]
[null,null,null,null,null,null,null,null,{"$f":"VLOOKUP(H1617,'Drop down items'!B1617:C6483,2,FALSE)","v":{"$error":"#N/A"}}]
[null,null,null,null,null,null,null,null,{"$f":"VLOOKUP(H1618,'Drop down items'!B1618:C6484,2,FALSE)","v":{"$error":"#N/A"}}]
[null,null,null,null,null,null,null,null,{"$f":"VLOOKUP(H1619,'Drop down items'!B1619:C6485,2,FALSE)","v":{"$error":"#N/A"}}]
[null,null,null,null,null,null,null,null,{"$f":"VLOOKUP(H1620,'Drop down items'!B1620:C6486,2,FALSE)","v":{"$error":"#N/A"}}]
[null,null,null,null,null,null,null,null,{"$f":"VLOOKUP(H1621,'Drop down items'!B1621:C6487,2,FALSE)","v":{"$error":"#N/A"}}]
[null,null,null,null,null,null,null,null,{"$f":"VLOOKUP(H1622,'Drop down items'!B1622:C6488,2,FALSE)","v":{"$error":"#N/A"}}]
[null,null,null,null,null,null,null,null,{"$f":"VLOOKUP(H1623,'Drop down items'!B1623:C6489,2,FALSE)","v":{"$error":"#N/A"}}]
[null,null,null,null,null,null,null,null,{"$f":"VLOOKUP(H1624,'Drop down items'!B1624:C6490,2,FALSE)","v":{"$error":"#N/A"}}]
[null,null,null,null,null,null,null,null,{"$f":"VLOOKUP(H1625,'Drop down items'!B1625:C6491,2,FALSE)","v":{"$error":"#N/A"}}]
[null,null,null,null,null,null,null,null,{"$f":"VLOOKUP(H1626,'Drop down items'!B1626:C6492,2,FALSE)","v":{"$error":"#N/A"}}]
[null,null,null,null,null,null,null,null,{"$f":"VLOOKUP(H1627,'Drop down items'!B1627:C6493,2,FALSE)","v":{"$error":"#N/A"}}]
[null,null,null,null,null,null,null,null,{"$f":"VLOOKUP(H1628,'Drop down items'!B1628:C6494,2,FALSE)","v":{"$error":"#N/A"}}]
[null,null,null,null,null,null,null,null,{"$f":"VLOOKUP(H1629,'Drop down items'!B1629:C6495,2,FALSE)","v":{"$error":"#N/A"}}]
[null,null,null,null,null,null,null,null,{"$f":"VLOOKUP(H1630,'Drop down items'!B1630:C6496,2,FALSE)","v":{"$error":"#N/A"}}]
[null,null,null,null,null,null,null,null,{"$f":"VLOOKUP(H1631,'Drop down items'!B1631:C6497,2,FALSE)","v":{"$error":"#N/A"}}]
[null,null,null,null,null,null,null,null,{"$f":"VLOOKUP(H1632,'Drop down items'!B1632:C6498,2,FALSE)","v":{"$error":"#N/A"}}]
[null,null,null,null,null,null,null,null,{"$f":"VLOOKUP(H1633,'Drop down items'!B1633:C6499,2,FALSE)","v":{"$error":"#N/A"}}]
[null,null,null,null,null,null,null,null,{"$f":"VLOOKUP(H1634,'Drop down items'!B1634:C6500,2,FALSE)","v":{"$error":"#N/A"}}]
[null,null,null,null,null,null,null,null,{"$f":"VLOOKUP(H1635,'Drop down items'!B1635:C6501,2,FALSE)","v":{"$error":"#N/A"}}]
[null,null,null,null,null,null,null,null,{"$f":"VLOOKUP(H1636,'Drop down items'!B1636:C6502,2,FALSE)","v":{"$error":"#N/A"}}]
[null,null,null,null,null,null,null,null,{"$f":"VLOOKUP(H1637,'Drop down items'!B1637:C6503,2,FALSE)","v":{"$error":"#N/A"}}]
[null,null,null,null,null,null,null,null,{"$f":"VLOOKUP(H1638,'Drop down items'!B1638:C6504,2,FALSE)","v":{"$error":"#N/A"}}]
[null,null,null,null,null,null,null,null,{"$f":"VLOOKUP(H1639,'Drop down items'!B1639:C6505,2,FALSE)","v":{"$error":"#N/A"}}]
[null,null,null,null,null,null,null,null,{"$f":"VLOOKUP(H1640,'Drop down items'!B1640:C6506,2,FALSE)","v":{"$error":"#N/A"}}]
[null,null,null,null,null,null,null,null,{"$f":"VLOOKUP(H1641,'Drop down items'!B1641:C6507,2,FALSE)","v":{"$error":"#N/A"}}]
[null,null,null,null,null,null,null,null,{"$f":"VLOOKUP(H1642,'Drop down items'!B1642:C6508,2,FALSE)","v":{"$error":"#N/A"}}]
[null,null,null,null,null,null,null,null,{"$f":"VLOOKUP(H1643,'Drop down items'!B1643:C6509,2,FALSE)","v":{"$error":"#N/A"}}]
[null,null,null,null,null,null,null,null,{"$f":"VLOOKUP(H1644,'Drop down items'!B1644:C6510,2,FALSE)","v":{"$error":"#N/A"}}]
[null,null,null,null,null,null,null,null,{"$f":"VLOOKUP(H1645,'Drop down items'!B1645:C6511,2,FALSE)","v":{"$error":"#N/A"}}]
[null,null,null,null,null,null,null,null,{"$f":"VLOOKUP(H1646,'Drop down items'!B1646:C6512,2,FALSE)","v":{"$error":"#N/A"}}]
[null,null,null,null,null,null,null,null,{"$f":"VLOOKUP(H1647,'Drop down items'!B1647:C6513,2,FALSE)","v":{"$error":"#N/A"}}]
[null,null,null,null,null,null,null,null,{"$f":"VLOOKUP(H1648,'Drop down items'!B1648:C6514,2,FALSE)","v":{"$error":"#N/A"}}]
[null,null,null,null,null,null,null,null,{"$f":"VLOOKUP(H1649,'Drop down items'!B1649:C6515,2,FALSE)","v":{"$error":"#N/A"}}]
[null,null,null,null,null,null,null,null,{"$f":"VLOOKUP(H1650,'Drop down items'!B1650:C6516,2,FALSE)","v":{"$error":"#N/A"}}]
[null,null,null,null,null,null,null,null,{"$f":"VLOOKUP(H1651,'Drop down items'!B1651:C6517,2,FALSE)","v":{"$error":"#N/A"}}]
[null,null,null,null,null,null,null,null,{"$f":"VLOOKUP(H1652,'Drop down items'!B1652:C6518,2,FALSE)","v":{"$error":"#N/A"}}]
[null,null,null,null,null,null,null,null,{"$f":"VLOOKUP(H1653,'Drop down items'!B1653:C6519,2,FALSE)","v":{"$error":"#N/A"}}]
[null,null,null,null,null,null,null,null,{"$f":"VLOOKUP(H1654,'Drop down items'!B1654:C6520,2,FALSE)","v":{"$error":"#N/A"}}]
[null,null,null,null,null,null,null,null,{"$f":"VLOOKUP(H1655,'Drop down items'!B1655:C6521,2,FALSE)","v":{"$error":"#N/A"}}]
[null,null,null,null,null,null,null,null,{"$f":"VLOOKUP(H1656,'Drop down items'!B1656:C6522,2,FALSE)","v":{"$error":"#N/A"}}]
[null,null,null,null,null,null,null,null,{"$f":"VLOOKUP(H1657,'Drop down items'!B1657:C6523,2,FALSE)","v":{"$error":"#N/A"}}]
[null,null,null,null,null,null,null,null,{"$f":"VLOOKUP(H1658,'Drop down items'!B1658:C6524,2,FALSE)","v":{"$error":"#N/A"}}]
[null,null,null,null,null,null,null,null,{"$f":"VLOOKUP(H1659,'Drop down items'!B1659:C6525,2,FALSE)","v":{"$error":"#N/A"}}]
[null,null,null,null,null,null,null,null,{"$f":"VLOOKUP(H1660,'Drop down items'!B1660:C6526,2,FALSE)","v":{"$error":"#N/A"}}]
[null,null,null,null,null,null,null,null,{"$f":"VLOOKUP(H1661,'Drop down items'!B1661:C6527,2,FALSE)","v":{"$error":"#N/A"}}]
[null,null,null,null,null,null,null,null,{"$f":"VLOOKUP(H1662,'Drop down items'!B1662:C6528,2,FALSE)","v":{"$error":"#N/A"}}]
[null,null,null,null,null,null,null,null,{"$f":"VLOOKUP(H1663,'Drop down items'!B1663:C6529,2,FALSE)","v":{"$error":"#N/A"}}]
[null,null,null,null,null,null,null,null,{"$f":"VLOOKUP(H1664,'Drop down items'!B1664:C6530,2,FALSE)","v":{"$error":"#N/A"}}]
[null,null,null,null,null,null,null,null,{"$f":"VLOOKUP(H1665,'Drop down items'!B1665:C6531,2,FALSE)","v":{"$error":"#N/A"}}]
[null,null,null,null,null,null,null,null,{"$f":"VLOOKUP(H1666,'Drop down items'!B1666:C6532,2,FALSE)","v":{"$error":"#N/A"}}]
[null,null,null,null,null,null,null,null,{"$f":"VLOOKUP(H1667,'Drop down items'!B1667:C6533,2,FALSE)","v":{"$error":"#N/A"}}]
[null,null,null,null,null,null,null,null,{"$f":"VLOOKUP(H1668,'Drop down items'!B1668:C6534,2,FALSE)","v":{"$error":"#N/A"}}]
[null,null,null,null,null,null,null,null,{"$f":"VLOOKUP(H1669,'Drop down items'!B1669:C6535,2,FALSE)","v":{"$error":"#N/A"}}]
[null,null,null,null,null,null,null,null,{"$f":"VLOOKUP(H1670,'Drop down items'!B1670:C6536,2,FALSE)","v":{"$error":"#N/A"}}]
[null,null,null,null,null,null,null,null,{"$f":"VLOOKUP(H1671,'Drop down items'!B1671:C6537,2,FALSE)","v":{"$error":"#N/A"}}]
[null,null,null,null,null,null,null,null,{"$f":"VLOOKUP(H1672,'Drop down items'!B1672:C6538,2,FALSE)","v":{"$error":"#N/A"}}]
[null,null,null,null,null,null,null,null,{"$f":"VLOOKUP(H1673,'Drop down items'!B1673:C6539,2,FALSE)","v":{"$error":"#N/A"}}]
[null,null,null,null,null,null,null,null,{"$f":"VLOOKUP(H1674,'Drop down items'!B1674:C6540,2,FALSE)","v":{"$error":"#N/A"}}]
[null,null,null,null,null,null,null,null,{"$f":"VLOOKUP(H1675,'Drop down items'!B1675:C6541,2,FALSE)","v":{"$error":"#N/A"}}]
[null,null,null,null,null,null,null,null,{"$f":"VLOOKUP(H1676,'Drop down items'!B1676:C6542,2,FALSE)","v":{"$error":"#N/A"}}]
[null,null,null,null,null,null,null,null,{"$f":"VLOOKUP(H1677,'Drop down items'!B1677:C6543,2,FALSE)","v":{"$error":"#N/A"}}]
[null,null,null,null,null,null,null,null,{"$f":"VLOOKUP(H1678,'Drop down items'!B1678:C6544,2,FALSE)","v":{"$error":"#N/A"}}]
[null,null,null,null,null,null,null,null,{"$f":"VLOOKUP(H1679,'Drop down items'!B1679:C6545,2,FALSE)","v":{"$error":"#N/A"}}]
[null,null,null,null,null,null,null,null,{"$f":"VLOOKUP(H1680,'Drop down items'!B1680:C6546,2,FALSE)","v":{"$error":"#N/A"}}]
[null,null,null,null,null,null,null,null,{"$f":"VLOOKUP(H1681,'Drop down items'!B1681:C6547,2,FALSE)","v":{"$error":"#N/A"}}]
[null,null,null,null,null,null,null,null,{"$f":"VLOOKUP(H1682,'Drop down items'!B1682:C6548,2,FALSE)","v":{"$error":"#N/A"}}]
[null,null,null,null,null,null,null,null,{"$f":"VLOOKUP(H1683,'Drop down items'!B1683:C6549,2,FALSE)","v":{"$error":"#N/A"}}]
[null,null,null,null,null,null,null,null,{"$f":"VLOOKUP(H1684,'Drop down items'!B1684:C6550,2,FALSE)","v":{"$error":"#N/A"}}]
[null,null,null,null,null,null,null,null,{"$f":"VLOOKUP(H1685,'Drop down items'!B1685:C6551,2,FALSE)","v":{"$error":"#N/A"}}]
[null,null,null,null,null,null,null,null,{"$f":"VLOOKUP(H1686,'Drop down items'!B1686:C6552,2,FALSE)","v":{"$error":"#N/A"}}]
[null,null,null,null,null,null,null,null,{"$f":"VLOOKUP(H1687,'Drop down items'!B1687:C6553,2,FALSE)","v":{"$error":"#N/A"}}]
[null,null,null,null,null,null,null,null,{"$f":"VLOOKUP(H1688,'Drop down items'!B1688:C6554,2,FALSE)","v":{"$error":"#N/A"}}]
[null,null,null,null,null,null,null,null,{"$f":"VLOOKUP(H1689,'Drop down items'!B1689:C6555,2,FALSE)","v":{"$error":"#N/A"}}]
[null,null,null,null,null,null,null,null,{"$f":"VLOOKUP(H1690,'Drop down items'!B1690:C6556,2,FALSE)","v":{"$error":"#N/A"}}]
[null,null,null,null,null,null,null,null,{"$f":"VLOOKUP(H1691,'Drop down items'!B1691:C6557,2,FALSE)","v":{"$error":"#N/A"}}]
[null,null,null,null,null,null,null,null,{"$f":"VLOOKUP(H1692,'Drop down items'!B1692:C6558,2,FALSE)","v":{"$error":"#N/A"}}]
[null,null,null,null,null,null,null,null,{"$f":"VLOOKUP(H1693,'Drop down items'!B1693:C6559,2,FALSE)","v":{"$error":"#N/A"}}]
[null,null,null,null,null,null,null,null,{"$f":"VLOOKUP(H1694,'Drop down items'!B1694:C6560,2,FALSE)","v":{"$error":"#N/A"}}]
[null,null,null,null,null,null,null,null,{"$f":"VLOOKUP(H1695,'Drop down items'!B1695:C6561,2,FALSE)","v":{"$error":"#N/A"}}]
[null,null,null,null,null,null,null,null,{"$f":"VLOOKUP(H1696,'Drop down items'!B1696:C6562,2,FALSE)","v":{"$error":"#N/A"}}]
[null,null,null,null,null,null,null,null,{"$f":"VLOOKUP(H1697,'Drop down items'!B1697:C6563,2,FALSE)","v":{"$error":"#N/A"}}]
[null,null,null,null,null,null,null,null,{"$f":"VLOOKUP(H1698,'Drop down items'!B1698:C6564,2,FALSE)","v":{"$error":"#N/A"}}]
[null,null,null,null,null,null,null,null,{"$f":"VLOOKUP(H1699,'Drop down items'!B1699:C6565,2,FALSE)","v":{"$error":"#N/A"}}]
[null,null,null,null,null,null,null,null,{"$f":"VLOOKUP(H1700,'Drop down items'!B1700:C6566,2,FALSE)","v":{"$error":"#N/A"}}]
[null,null,null,null,null,null,null,null,{"$f":"VLOOKUP(H1701,'Drop down items'!B1701:C6567,2,FALSE)","v":{"$error":"#N/A"}}]
[null,null,null,null,null,null,null,null,{"$f":"VLOOKUP(H1702,'Drop down items'!B1702:C6568,2,FALSE)","v":{"$error":"#N/A"}}]
[null,null,null,null,null,null,null,null,{"$f":"VLOOKUP(H1703,'Drop down items'!B1703:C6569,2,FALSE)","v":{"$error":"#N/A"}}]
[null,null,null,null,null,null,null,null,{"$f":"VLOOKUP(H1704,'Drop down items'!B1704:C6570,2,FALSE)","v":{"$error":"#N/A"}}]
[null,null,null,null,null,null,null,null,{"$f":"VLOOKUP(H1705,'Drop down items'!B1705:C6571,2,FALSE)","v":{"$error":"#N/A"}}]
[null,null,null,null,null,null,null,null,{"$f":"VLOOKUP(H1706,'Drop down items'!B1706:C6572,2,FALSE)","v":{"$error":"#N/A"}}]
[null,null,null,null,null,null,null,null,{"$f":"VLOOKUP(H1707,'Drop down items'!B1707:C6573,2,FALSE)","v":{"$error":"#N/A"}}]
[null,null,null,null,null,null,null,null,{"$f":"VLOOKUP(H1708,'Drop down items'!B1708:C6574,2,FALSE)","v":{"$error":"#N/A"}}]
[null,null,null,null,null,null,null,null,{"$f":"VLOOKUP(H1709,'Drop down items'!B1709:C6575,2,FALSE)","v":{"$error":"#N/A"}}]
[null,null,null,null,null,null,null,null,{"$f":"VLOOKUP(H1710,'Drop down items'!B1710:C6576,2,FALSE)","v":{"$error":"#N/A"}}]
[null,null,null,null,null,null,null,null,{"$f":"VLOOKUP(H1711,'Drop down items'!B1711:C6577,2,FALSE)","v":{"$error":"#N/A"}}]
[null,null,null,null,null,null,null,null,{"$f":"VLOOKUP(H1712,'Drop down items'!B1712:C6578,2,FALSE)","v":{"$error":"#N/A"}}]
[null,null,null,null,null,null,null,null,{"$f":"VLOOKUP(H1713,'Drop down items'!B1713:C6579,2,FALSE)","v":{"$error":"#N/A"}}]
[null,null,null,null,null,null,null,null,{"$f":"VLOOKUP(H1714,'Drop down items'!B1714:C6580,2,FALSE)","v":{"$error":"#N/A"}}]
[null,null,null,null,null,null,null,null,{"$f":"VLOOKUP(H1715,'Drop down items'!B1715:C6581,2,FALSE)","v":{"$error":"#N/A"}}]
[null,null,null,null,null,null,null,null,{"$f":"VLOOKUP(H1716,'Drop down items'!B1716:C6582,2,FALSE)","v":{"$error":"#N/A"}}]
[null,null,null,null,null,null,null,null,{"$f":"VLOOKUP(H1717,'Drop down items'!B1717:C6583,2,FALSE)","v":{"$error":"#N/A"}}]
[null,null,null,null,null,null,null,null,{"$f":"VLOOKUP(H1718,'Drop down items'!B1718:C6584,2,FALSE)","v":{"$error":"#N/A"}}]
[null,null,null,null,null,null,null,null,{"$f":"VLOOKUP(H1719,'Drop down items'!B1719:C6585,2,FALSE)","v":{"$error":"#N/A"}}]
[null,null,null,null,null,null,null,null,{"$f":"VLOOKUP(H1720,'Drop down items'!B1720:C6586,2,FALSE)","v":{"$error":"#N/A"}}]
[null,null,null,null,null,null,null,null,{"$f":"VLOOKUP(H1721,'Drop down items'!B1721:C6587,2,FALSE)","v":{"$error":"#N/A"}}]
[null,null,null,null,null,null,null,null,{"$f":"VLOOKUP(H1722,'Drop down items'!B1722:C6588,2,FALSE)","v":{"$error":"#N/A"}}]
[null,null,null,null,null,null,null,null,{"$f":"VLOOKUP(H1723,'Drop down items'!B1723:C6589,2,FALSE)","v":{"$error":"#N/A"}}]
[null,null,null,null,null,null,null,null,{"$f":"VLOOKUP(H1724,'Drop down items'!B1724:C6590,2,FALSE)","v":{"$error":"#N/A"}}]
[null,null,null,null,null,null,null,null,{"$f":"VLOOKUP(H1725,'Drop down items'!B1725:C6591,2,FALSE)","v":{"$error":"#N/A"}}]
[null,null,null,null,null,null,null,null,{"$f":"VLOOKUP(H1726,'Drop down items'!B1726:C6592,2,FALSE)","v":{"$error":"#N/A"}}]
[null,null,null,null,null,null,null,null,{"$f":"VLOOKUP(H1727,'Drop down items'!B1727:C6593,2,FALSE)","v":{"$error":"#N/A"}}]
[null,null,null,null,null,null,null,null,{"$f":"VLOOKUP(H1728,'Drop down items'!B1728:C6594,2,FALSE)","v":{"$error":"#N/A"}}]
[null,null,null,null,null,null,null,null,{"$f":"VLOOKUP(H1729,'Drop down items'!B1729:C6595,2,FALSE)","v":{"$error":"#N/A"}}]
[null,null,null,null,null,null,null,null,{"$f":"VLOOKUP(H1730,'Drop down items'!B1730:C6596,2,FALSE)","v":{"$error":"#N/A"}}]
[null,null,null,null,null,null,null,null,{"$f":"VLOOKUP(H1731,'Drop down items'!B1731:C6597,2,FALSE)","v":{"$error":"#N/A"}}]
[null,null,null,null,null,null,null,null,{"$f":"VLOOKUP(H1732,'Drop down items'!B1732:C6598,2,FALSE)","v":{"$error":"#N/A"}}]
[null,null,null,null,null,null,null,null,{"$f":"VLOOKUP(H1733,'Drop down items'!B1733:C6599,2,FALSE)","v":{"$error":"#N/A"}}]
[null,null,null,null,null,null,null,null,{"$f":"VLOOKUP(H1734,'Drop down items'!B1734:C6600,2,FALSE)","v":{"$error":"#N/A"}}]
[null,null,null,null,null,null,null,null,{"$f":"VLOOKUP(H1735,'Drop down items'!B1735:C6601,2,FALSE)","v":{"$error":"#N/A"}}]
[null,null,null,null,null,null,null,null,{"$f":"VLOOKUP(H1736,'Drop down items'!B1736:C6602,2,FALSE)","v":{"$error":"#N/A"}}]
[null,null,null,null,null,null,null,null,{"$f":"VLOOKUP(H1737,'Drop down items'!B1737:C6603,2,FALSE)","v":{"$error":"#N/A"}}]
[null,null,null,null,null,null,null,null,{"$f":"VLOOKUP(H1738,'Drop down items'!B1738:C6604,2,FALSE)","v":{"$error":"#N/A"}}]
[null,null,null,null,null,null,null,null,{"$f":"VLOOKUP(H1739,'Drop down items'!B1739:C6605,2,FALSE)","v":{"$error":"#N/A"}}]
[null,null,null,null,null,null,null,null,{"$f":"VLOOKUP(H1740,'Drop down items'!B1740:C6606,2,FALSE)","v":{"$error":"#N/A"}}]
[null,null,null,null,null,null,null,null,{"$f":"VLOOKUP(H1741,'Drop down items'!B1741:C6607,2,FALSE)","v":{"$error":"#N/A"}}]
[null,null,null,null,null,null,null,null,{"$f":"VLOOKUP(H1742,'Drop down items'!B1742:C6608,2,FALSE)","v":{"$error":"#N/A"}}]
[null,null,null,null,null,null,null,null,{"$f":"VLOOKUP(H1743,'Drop down items'!B1743:C6609,2,FALSE)","v":{"$error":"#N/A"}}]
[null,null,null,null,null,null,null,null,{"$f":"VLOOKUP(H1744,'Drop down items'!B1744:C6610,2,FALSE)","v":{"$error":"#N/A"}}]
[null,null,null,null,null,null,null,null,{"$f":"VLOOKUP(H1745,'Drop down items'!B1745:C6611,2,FALSE)","v":{"$error":"#N/A"}}]
[null,null,null,null,null,null,null,null,{"$f":"VLOOKUP(H1746,'Drop down items'!B1746:C6612,2,FALSE)","v":{"$error":"#N/A"}}]
[null,null,null,null,null,null,null,null,{"$f":"VLOOKUP(H1747,'Drop down items'!B1747:C6613,2,FALSE)","v":{"$error":"#N/A"}}]
[null,null,null,null,null,null,null,null,{"$f":"VLOOKUP(H1748,'Drop down items'!B1748:C6614,2,FALSE)","v":{"$error":"#N/A"}}]
[null,null,null,null,null,null,null,null,{"$f":"VLOOKUP(H1749,'Drop down items'!B1749:C6615,2,FALSE)","v":{"$error":"#N/A"}}]
[null,null,null,null,null,null,null,null,{"$f":"VLOOKUP(H1750,'Drop down items'!B1750:C6616,2,FALSE)","v":{"$error":"#N/A"}}]
[null,null,null,null,null,null,null,null,{"$f":"VLOOKUP(H1751,'Drop down items'!B1751:C6617,2,FALSE)","v":{"$error":"#N/A"}}]
[null,null,null,null,null,null,null,null,{"$f":"VLOOKUP(H1752,'Drop down items'!B1752:C6618,2,FALSE)","v":{"$error":"#N/A"}}]
[null,null,null,null,null,null,null,null,{"$f":"VLOOKUP(H1753,'Drop down items'!B1753:C6619,2,FALSE)","v":{"$error":"#N/A"}}]
[null,null,null,null,null,null,null,null,{"$f":"VLOOKUP(H1754,'Drop down items'!B1754:C6620,2,FALSE)","v":{"$error":"#N/A"}}]
[null,null,null,null,null,null,null,null,{"$f":"VLOOKUP(H1755,'Drop down items'!B1755:C6621,2,FALSE)","v":{"$error":"#N/A"}}]
[null,null,null,null,null,null,null,null,{"$f":"VLOOKUP(H1756,'Drop down items'!B1756:C6622,2,FALSE)","v":{"$error":"#N/A"}}]
[null,null,null,null,null,null,null,null,{"$f":"VLOOKUP(H1757,'Drop down items'!B1757:C6623,2,FALSE)","v":{"$error":"#N/A"}}]
[null,null,null,null,null,null,null,null,{"$f":"VLOOKUP(H1758,'Drop down items'!B1758:C6624,2,FALSE)","v":{"$error":"#N/A"}}]
[null,null,null,null,null,null,null,null,{"$f":"VLOOKUP(H1759,'Drop down items'!B1759:C6625,2,FALSE)","v":{"$error":"#N/A"}}]
[null,null,null,null,null,null,null,null,{"$f":"VLOOKUP(H1760,'Drop down items'!B1760:C6626,2,FALSE)","v":{"$error":"#N/A"}}]
[null,null,null,null,null,null,null,null,{"$f":"VLOOKUP(H1761,'Drop down items'!B1761:C6627,2,FALSE)","v":{"$error":"#N/A"}}]
[null,null,null,null,null,null,null,null,{"$f":"VLOOKUP(H1762,'Drop down items'!B1762:C6628,2,FALSE)","v":{"$error":"#N/A"}}]
[null,null,null,null,null,null,null,null,{"$f":"VLOOKUP(H1763,'Drop down items'!B1763:C6629,2,FALSE)","v":{"$error":"#N/A"}}]
[null,null,null,null,null,null,null,null,{"$f":"VLOOKUP(H1764,'Drop down items'!B1764:C6630,2,FALSE)","v":{"$error":"#N/A"}}]
[null,null,null,null,null,null,null,null,{"$f":"VLOOKUP(H1765,'Drop down items'!B1765:C6631,2,FALSE)","v":{"$error":"#N/A"}}]
[null,null,null,null,null,null,null,null,{"$f":"VLOOKUP(H1766,'Drop down items'!B1766:C6632,2,FALSE)","v":{"$error":"#N/A"}}]
[null,null,null,null,null,null,null,null,{"$f":"VLOOKUP(H1767,'Drop down items'!B1767:C6633,2,FALSE)","v":{"$error":"#N/A"}}]
[null,null,null,null,null,null,null,null,{"$f":"VLOOKUP(H1768,'Drop down items'!B1768:C6634,2,FALSE)","v":{"$error":"#N/A"}}]
[null,null,null,null,null,null,null,null,{"$f":"VLOOKUP(H1769,'Drop down items'!B1769:C6635,2,FALSE)","v":{"$error":"#N/A"}}]
[null,null,null,null,null,null,null,null,{"$f":"VLOOKUP(H1770,'Drop down items'!B1770:C6636,2,FALSE)","v":{"$error":"#N/A"}}]
[null,null,null,null,null,null,null,null,{"$f":"VLOOKUP(H1771,'Drop down items'!B1771:C6637,2,FALSE)","v":{"$error":"#N/A"}}]
[null,null,null,null,null,null,null,null,{"$f":"VLOOKUP(H1772,'Drop down items'!B1772:C6638,2,FALSE)","v":{"$error":"#N/A"}}]
[null,null,null,null,null,null,null,null,{"$f":"VLOOKUP(H1773,'Drop down items'!B1773:C6639,2,FALSE)","v":{"$error":"#N/A"}}]
[null,null,null,null,null,null,null,null,{"$f":"VLOOKUP(H1774,'Drop down items'!B1774:C6640,2,FALSE)","v":{"$error":"#N/A"}}]
[null,null,null,null,null,null,null,null,{"$f":"VLOOKUP(H1775,'Drop down items'!B1775:C6641,2,FALSE)","v":{"$error":"#N/A"}}]
[null,null,null,null,null,null,null,null,{"$f":"VLOOKUP(H1776,'Drop down items'!B1776:C6642,2,FALSE)","v":{"$error":"#N/A"}}]
[null,null,null,null,null,null,null,null,{"$f":"VLOOKUP(H1777,'Drop down items'!B1777:C6643,2,FALSE)","v":{"$error":"#N/A"}}]
[null,null,null,null,null,null,null,null,{"$f":"VLOOKUP(H1778,'Drop down items'!B1778:C6644,2,FALSE)","v":{"$error":"#N/A"}}]
[null,null,null,null,null,null,null,null,{"$f":"VLOOKUP(H1779,'Drop down items'!B1779:C6645,2,FALSE)","v":{"$error":"#N/A"}}]
[null,null,null,null,null,null,null,null,{"$f":"VLOOKUP(H1780,'Drop down items'!B1780:C6646,2,FALSE)","v":{"$error":"#N/A"}}]
[null,null,null,null,null,null,null,null,{"$f":"VLOOKUP(H1781,'Drop down items'!B1781:C6647,2,FALSE)","v":{"$error":"#N/A"}}]
[null,null,null,null,null,null,null,null,{"$f":"VLOOKUP(H1782,'Drop down items'!B1782:C6648,2,FALSE)","v":{"$error":"#N/A"}}]
[null,null,null,null,null,null,null,null,{"$f":"VLOOKUP(H1783,'Drop down items'!B1783:C6649,2,FALSE)","v":{"$error":"#N/A"}}]
[null,null,null,null,null,null,null,null,{"$f":"VLOOKUP(H1784,'Drop down items'!B1784:C6650,2,FALSE)","v":{"$error":"#N/A"}}]
[null,null,null,null,null,null,null,null,{"$f":"VLOOKUP(H1785,'Drop down items'!B1785:C6651,2,FALSE)","v":{"$error":"#N/A"}}]
[null,null,null,null,null,null,null,null,{"$f":"VLOOKUP(H1786,'Drop down items'!B1786:C6652,2,FALSE)","v":{"$error":"#N/A"}}]
[null,null,null,null,null,null,null,null,{"$f":"VLOOKUP(H1787,'Drop down items'!B1787:C6653,2,FALSE)","v":{"$error":"#N/A"}}]
[null,null,null,null,null,null,null,null,{"$f":"VLOOKUP(H1788,'Drop down items'!B1788:C6654,2,FALSE)","v":{"$error":"#N/A"}}]
[null,null,null,null,null,null,null,null,{"$f":"VLOOKUP(H1789,'Drop down items'!B1789:C6655,2,FALSE)","v":{"$error":"#N/A"}}]
[null,null,null,null,null,null,null,null,{"$f":"VLOOKUP(H1790,'Drop down items'!B1790:C6656,2,FALSE)","v":{"$error":"#N/A"}}]
[null,null,null,null,null,null,null,null,{"$f":"VLOOKUP(H1791,'Drop down items'!B1791:C6657,2,FALSE)","v":{"$error":"#N/A"}}]
[null,null,null,null,null,null,null,null,{"$f":"VLOOKUP(H1792,'Drop down items'!B1792:C6658,2,FALSE)","v":{"$error":"#N/A"}}]
[null,null,null,null,null,null,null,null,{"$f":"VLOOKUP(H1793,'Drop down items'!B1793:C6659,2,FALSE)","v":{"$error":"#N/A"}}]
[null,null,null,null,null,null,null,null,{"$f":"VLOOKUP(H1794,'Drop down items'!B1794:C6660,2,FALSE)","v":{"$error":"#N/A"}}]
[null,null,null,null,null,null,null,null,{"$f":"VLOOKUP(H1795,'Drop down items'!B1795:C6661,2,FALSE)","v":{"$error":"#N/A"}}]
[null,null,null,null,null,null,null,null,{"$f":"VLOOKUP(H1796,'Drop down items'!B1796:C6662,2,FALSE)","v":{"$error":"#N/A"}}]
[null,null,null,null,null,null,null,null,{"$f":"VLOOKUP(H1797,'Drop down items'!B1797:C6663,2,FALSE)","v":{"$error":"#N/A"}}]
[null,null,null,null,null,null,null,null,{"$f":"VLOOKUP(H1798,'Drop down items'!B1798:C6664,2,FALSE)","v":{"$error":"#N/A"}}]
[null,null,null,null,null,null,null,null,{"$f":"VLOOKUP(H1799,'Drop down items'!B1799:C6665,2,FALSE)","v":{"$error":"#N/A"}}]
[null,null,null,null,null,null,null,null,{"$f":"VLOOKUP(H1800,'Drop down items'!B1800:C6666,2,FALSE)","v":{"$error":"#N/A"}}]
[null,null,null,null,null,null,null,null,{"$f":"VLOOKUP(H1801,'Drop down items'!B1801:C6667,2,FALSE)","v":{"$error":"#N/A"}}]
[null,null,null,null,null,null,null,null,{"$f":"VLOOKUP(H1802,'Drop down items'!B1802:C6668,2,FALSE)","v":{"$error":"#N/A"}}]
[null,null,null,null,null,null,null,null,{"$f":"VLOOKUP(H1803,'Drop down items'!B1803:C6669,2,FALSE)","v":{"$error":"#N/A"}}]
[null,null,null,null,null,null,null,null,{"$f":"VLOOKUP(H1804,'Drop down items'!B1804:C6670,2,FALSE)","v":{"$error":"#N/A"}}]
[null,null,null,null,null,null,null,null,{"$f":"VLOOKUP(H1805,'Drop down items'!B1805:C6671,2,FALSE)","v":{"$error":"#N/A"}}]
[null,null,null,null,null,null,null,null,{"$f":"VLOOKUP(H1806,'Drop down items'!B1806:C6672,2,FALSE)","v":{"$error":"#N/A"}}]
[null,null,null,null,null,null,null,null,{"$f":"VLOOKUP(H1807,'Drop down items'!B1807:C6673,2,FALSE)","v":{"$error":"#N/A"}}]
[null,null,null,null,null,null,null,null,{"$f":"VLOOKUP(H1808,'Drop down items'!B1808:C6674,2,FALSE)","v":{"$error":"#N/A"}}]
[null,null,null,null,null,null,null,null,{"$f":"VLOOKUP(H1809,'Drop down items'!B1809:C6675,2,FALSE)","v":{"$error":"#N/A"}}]
[null,null,null,null,null,null,null,null,{"$f":"VLOOKUP(H1810,'Drop down items'!B1810:C6676,2,FALSE)","v":{"$error":"#N/A"}}]
[null,null,null,null,null,null,null,null,{"$f":"VLOOKUP(H1811,'Drop down items'!B1811:C6677,2,FALSE)","v":{"$error":"#N/A"}}]
[null,null,null,null,null,null,null,null,{"$f":"VLOOKUP(H1812,'Drop down items'!B1812:C6678,2,FALSE)","v":{"$error":"#N/A"}}]
[null,null,null,null,null,null,null,null,{"$f":"VLOOKUP(H1813,'Drop down items'!B1813:C6679,2,FALSE)","v":{"$error":"#N/A"}}]
[null,null,null,null,null,null,null,null,{"$f":"VLOOKUP(H1814,'Drop down items'!B1814:C6680,2,FALSE)","v":{"$error":"#N/A"}}]
[null,null,null,null,null,null,null,null,{"$f":"VLOOKUP(H1815,'Drop down items'!B1815:C6681,2,FALSE)","v":{"$error":"#N/A"}}]
[null,null,null,null,null,null,null,null,{"$f":"VLOOKUP(H1816,'Drop down items'!B1816:C6682,2,FALSE)","v":{"$error":"#N/A"}}]
[null,null,null,null,null,null,null,null,{"$f":"VLOOKUP(H1817,'Drop down items'!B1817:C6683,2,FALSE)","v":{"$error":"#N/A"}}]
[null,null,null,null,null,null,null,null,{"$f":"VLOOKUP(H1818,'Drop down items'!B1818:C6684,2,FALSE)","v":{"$error":"#N/A"}}]
[null,null,null,null,null,null,null,null,{"$f":"VLOOKUP(H1819,'Drop down items'!B1819:C6685,2,FALSE)","v":{"$error":"#N/A"}}]
[null,null,null,null,null,null,null,null,{"$f":"VLOOKUP(H1820,'Drop down items'!B1820:C6686,2,FALSE)","v":{"$error":"#N/A"}}]
[null,null,null,null,null,null,null,null,{"$f":"VLOOKUP(H1821,'Drop down items'!B1821:C6687,2,FALSE)","v":{"$error":"#N/A"}}]
[null,null,null,null,null,null,null,null,{"$f":"VLOOKUP(H1822,'Drop down items'!B1822:C6688,2,FALSE)","v":{"$error":"#N/A"}}]
[null,null,null,null,null,null,null,null,{"$f":"VLOOKUP(H1823,'Drop down items'!B1823:C6689,2,FALSE)","v":{"$error":"#N/A"}}]
[null,null,null,null,null,null,null,null,{"$f":"VLOOKUP(H1824,'Drop down items'!B1824:C6690,2,FALSE)","v":{"$error":"#N/A"}}]
[null,null,null,null,null,null,null,null,{"$f":"VLOOKUP(H1825,'Drop down items'!B1825:C6691,2,FALSE)","v":{"$error":"#N/A"}}]
[null,null,null,null,null,null,null,null,{"$f":"VLOOKUP(H1826,'Drop down items'!B1826:C6692,2,FALSE)","v":{"$error":"#N/A"}}]
[null,null,null,null,null,null,null,null,{"$f":"VLOOKUP(H1827,'Drop down items'!B1827:C6693,2,FALSE)","v":{"$error":"#N/A"}}]
[null,null,null,null,null,null,null,null,{"$f":"VLOOKUP(H1828,'Drop down items'!B1828:C6694,2,FALSE)","v":{"$error":"#N/A"}}]
[null,null,null,null,null,null,null,null,{"$f":"VLOOKUP(H1829,'Drop down items'!B1829:C6695,2,FALSE)","v":{"$error":"#N/A"}}]
[null,null,null,null,null,null,null,null,{"$f":"VLOOKUP(H1830,'Drop down items'!B1830:C6696,2,FALSE)","v":{"$error":"#N/A"}}]
[null,null,null,null,null,null,null,null,{"$f":"VLOOKUP(H1831,'Drop down items'!B1831:C6697,2,FALSE)","v":{"$error":"#N/A"}}]
[null,null,null,null,null,null,null,null,{"$f":"VLOOKUP(H1832,'Drop down items'!B1832:C6698,2,FALSE)","v":{"$error":"#N/A"}}]
[null,null,null,null,null,null,null,null,{"$f":"VLOOKUP(H1833,'Drop down items'!B1833:C6699,2,FALSE)","v":{"$error":"#N/A"}}]
[null,null,null,null,null,null,null,null,{"$f":"VLOOKUP(H1834,'Drop down items'!B1834:C6700,2,FALSE)","v":{"$error":"#N/A"}}]
[null,null,null,null,null,null,null,null,{"$f":"VLOOKUP(H1835,'Drop down items'!B1835:C6701,2,FALSE)","v":{"$error":"#N/A"}}]
[null,null,null,null,null,null,null,null,{"$f":"VLOOKUP(H1836,'Drop down items'!B1836:C6702,2,FALSE)","v":{"$error":"#N/A"}}]
[null,null,null,null,null,null,null,null,{"$f":"VLOOKUP(H1837,'Drop down items'!B1837:C6703,2,FALSE)","v":{"$error":"#N/A"}}]
[null,null,null,null,null,null,null,null,{"$f":"VLOOKUP(H1838,'Drop down items'!B1838:C6704,2,FALSE)","v":{"$error":"#N/A"}}]
[null,null,null,null,null,null,null,null,{"$f":"VLOOKUP(H1839,'Drop down items'!B1839:C6705,2,FALSE)","v":{"$error":"#N/A"}}]
[null,null,null,null,null,null,null,null,{"$f":"VLOOKUP(H1840,'Drop down items'!B1840:C6706,2,FALSE)","v":{"$error":"#N/A"}}]
[null,null,null,null,null,null,null,null,{"$f":"VLOOKUP(H1841,'Drop down items'!B1841:C6707,2,FALSE)","v":{"$error":"#N/A"}}]
[null,null,null,null,null,null,null,null,{"$f":"VLOOKUP(H1842,'Drop down items'!B1842:C6708,2,FALSE)","v":{"$error":"#N/A"}}]
[null,null,null,null,null,null,null,null,{"$f":"VLOOKUP(H1843,'Drop down items'!B1843:C6709,2,FALSE)","v":{"$error":"#N/A"}}]
[null,null,null,null,null,null,null,null,{"$f":"VLOOKUP(H1844,'Drop down items'!B1844:C6710,2,FALSE)","v":{"$error":"#N/A"}}]
[null,null,null,null,null,null,null,null,{"$f":"VLOOKUP(H1845,'Drop down items'!B1845:C6711,2,FALSE)","v":{"$error":"#N/A"}}]
[null,null,null,null,null,null,null,null,{"$f":"VLOOKUP(H1846,'Drop down items'!B1846:C6712,2,FALSE)","v":{"$error":"#N/A"}}]
[null,null,null,null,null,null,null,null,{"$f":"VLOOKUP(H1847,'Drop down items'!B1847:C6713,2,FALSE)","v":{"$error":"#N/A"}}]
[null,null,null,null,null,null,null,null,{"$f":"VLOOKUP(H1848,'Drop down items'!B1848:C6714,2,FALSE)","v":{"$error":"#N/A"}}]
[null,null,null,null,null,null,null,null,{"$f":"VLOOKUP(H1849,'Drop down items'!B1849:C6715,2,FALSE)","v":{"$error":"#N/A"}}]
[null,null,null,null,null,null,null,null,{"$f":"VLOOKUP(H1850,'Drop down items'!B1850:C6716,2,FALSE)","v":{"$error":"#N/A"}}]
[null,null,null,null,null,null,null,null,{"$f":"VLOOKUP(H1851,'Drop down items'!B1851:C6717,2,FALSE)","v":{"$error":"#N/A"}}]
[null,null,null,null,null,null,null,null,{"$f":"VLOOKUP(H1852,'Drop down items'!B1852:C6718,2,FALSE)","v":{"$error":"#N/A"}}]
[null,null,null,null,null,null,null,null,{"$f":"VLOOKUP(H1853,'Drop down items'!B1853:C6719,2,FALSE)","v":{"$error":"#N/A"}}]
[null,null,null,null,null,null,null,null,{"$f":"VLOOKUP(H1854,'Drop down items'!B1854:C6720,2,FALSE)","v":{"$error":"#N/A"}}]
[null,null,null,null,null,null,null,null,{"$f":"VLOOKUP(H1855,'Drop down items'!B1855:C6721,2,FALSE)","v":{"$error":"#N/A"}}]
[null,null,null,null,null,null,null,null,{"$f":"VLOOKUP(H1856,'Drop down items'!B1856:C6722,2,FALSE)","v":{"$error":"#N/A"}}]
[null,null,null,null,null,null,null,null,{"$f":"VLOOKUP(H1857,'Drop down items'!B1857:C6723,2,FALSE)","v":{"$error":"#N/A"}}]
[null,null,null,null,null,null,null,null,{"$f":"VLOOKUP(H1858,'Drop down items'!B1858:C6724,2,FALSE)","v":{"$error":"#N/A"}}]
[null,null,null,null,null,null,null,null,{"$f":"VLOOKUP(H1859,'Drop down items'!B1859:C6725,2,FALSE)","v":{"$error":"#N/A"}}]
[null,null,null,null,null,null,null,null,{"$f":"VLOOKUP(H1860,'Drop down items'!B1860:C6726,2,FALSE)","v":{"$error":"#N/A"}}]
[null,null,null,null,null,null,null,null,{"$f":"VLOOKUP(H1861,'Drop down items'!B1861:C6727,2,FALSE)","v":{"$error":"#N/A"}}]
[null,null,null,null,null,null,null,null,{"$f":"VLOOKUP(H1862,'Drop down items'!B1862:C6728,2,FALSE)","v":{"$error":"#N/A"}}]
[null,null,null,null,null,null,null,null,{"$f":"VLOOKUP(H1863,'Drop down items'!B1863:C6729,2,FALSE)","v":{"$error":"#N/A"}}]
[null,null,null,null,null,null,null,null,{"$f":"VLOOKUP(H1864,'Drop down items'!B1864:C6730,2,FALSE)","v":{"$error":"#N/A"}}]
[null,null,null,null,null,null,null,null,{"$f":"VLOOKUP(H1865,'Drop down items'!B1865:C6731,2,FALSE)","v":{"$error":"#N/A"}}]
[null,null,null,null,null,null,null,null,{"$f":"VLOOKUP(H1866,'Drop down items'!B1866:C6732,2,FALSE)","v":{"$error":"#N/A"}}]
[null,null,null,null,null,null,null,null,{"$f":"VLOOKUP(H1867,'Drop down items'!B1867:C6733,2,FALSE)","v":{"$error":"#N/A"}}]
[null,null,null,null,null,null,null,null,{"$f":"VLOOKUP(H1868,'Drop down items'!B1868:C6734,2,FALSE)","v":{"$error":"#N/A"}}]
[null,null,null,null,null,null,null,null,{"$f":"VLOOKUP(H1869,'Drop down items'!B1869:C6735,2,FALSE)","v":{"$error":"#N/A"}}]
[null,null,null,null,null,null,null,null,{"$f":"VLOOKUP(H1870,'Drop down items'!B1870:C6736,2,FALSE)","v":{"$error":"#N/A"}}]
[null,null,null,null,null,null,null,null,{"$f":"VLOOKUP(H1871,'Drop down items'!B1871:C6737,2,FALSE)","v":{"$error":"#N/A"}}]
[null,null,null,null,null,null,null,null,{"$f":"VLOOKUP(H1872,'Drop down items'!B1872:C6738,2,FALSE)","v":{"$error":"#N/A"}}]
[null,null,null,null,null,null,null,null,{"$f":"VLOOKUP(H1873,'Drop down items'!B1873:C6739,2,FALSE)","v":{"$error":"#N/A"}}]
[null,null,null,null,null,null,null,null,{"$f":"VLOOKUP(H1874,'Drop down items'!B1874:C6740,2,FALSE)","v":{"$error":"#N/A"}}]
[null,null,null,null,null,null,null,null,{"$f":"VLOOKUP(H1875,'Drop down items'!B1875:C6741,2,FALSE)","v":{"$error":"#N/A"}}]
[null,null,null,null,null,null,null,null,{"$f":"VLOOKUP(H1876,'Drop down items'!B1876:C6742,2,FALSE)","v":{"$error":"#N/A"}}]
[null,null,null,null,null,null,null,null,{"$f":"VLOOKUP(H1877,'Drop down items'!B1877:C6743,2,FALSE)","v":{"$error":"#N/A"}}]
[null,null,null,null,null,null,null,null,{"$f":"VLOOKUP(H1878,'Drop down items'!B1878:C6744,2,FALSE)","v":{"$error":"#N/A"}}]
[null,null,null,null,null,null,null,null,{"$f":"VLOOKUP(H1879,'Drop down items'!B1879:C6745,2,FALSE)","v":{"$error":"#N/A"}}]
[null,null,null,null,null,null,null,null,{"$f":"VLOOKUP(H1880,'Drop down items'!B1880:C6746,2,FALSE)","v":{"$error":"#N/A"}}]
[null,null,null,null,null,null,null,null,{"$f":"VLOOKUP(H1881,'Drop down items'!B1881:C6747,2,FALSE)","v":{"$error":"#N/A"}}]
[null,null,null,null,null,null,null,null,{"$f":"VLOOKUP(H1882,'Drop down items'!B1882:C6748,2,FALSE)","v":{"$error":"#N/A"}}]
[null,null,null,null,null,null,null,null,{"$f":"VLOOKUP(H1883,'Drop down items'!B1883:C6749,2,FALSE)","v":{"$error":"#N/A"}}]
[null,null,null,null,null,null,null,null,{"$f":"VLOOKUP(H1884,'Drop down items'!B1884:C6750,2,FALSE)","v":{"$error":"#N/A"}}]
[null,null,null,null,null,null,null,null,{"$f":"VLOOKUP(H1885,'Drop down items'!B1885:C6751,2,FALSE)","v":{"$error":"#N/A"}}]
[null,null,null,null,null,null,null,null,{"$f":"VLOOKUP(H1886,'Drop down items'!B1886:C6752,2,FALSE)","v":{"$error":"#N/A"}}]
[null,null,null,null,null,null,null,null,{"$f":"VLOOKUP(H1887,'Drop down items'!B1887:C6753,2,FALSE)","v":{"$error":"#N/A"}}]
[null,null,null,null,null,null,null,null,{"$f":"VLOOKUP(H1888,'Drop down items'!B1888:C6754,2,FALSE)","v":{"$error":"#N/A"}}]
[null,null,null,null,null,null,null,null,{"$f":"VLOOKUP(H1889,'Drop down items'!B1889:C6755,2,FALSE)","v":{"$error":"#N/A"}}]
[null,null,null,null,null,null,null,null,{"$f":"VLOOKUP(H1890,'Drop down items'!B1890:C6756,2,FALSE)","v":{"$error":"#N/A"}}]
[null,null,null,null,null,null,null,null,{"$f":"VLOOKUP(H1891,'Drop down items'!B1891:C6757,2,FALSE)","v":{"$error":"#N/A"}}]
[null,null,null,null,null,null,null,null,{"$f":"VLOOKUP(H1892,'Drop down items'!B1892:C6758,2,FALSE)","v":{"$error":"#N/A"}}]
[null,null,null,null,null,null,null,null,{"$f":"VLOOKUP(H1893,'Drop down items'!B1893:C6759,2,FALSE)","v":{"$error":"#N/A"}}]
[null,null,null,null,null,null,null,null,{"$f":"VLOOKUP(H1894,'Drop down items'!B1894:C6760,2,FALSE)","v":{"$error":"#N/A"}}]
[null,null,null,null,null,null,null,null,{"$f":"VLOOKUP(H1895,'Drop down items'!B1895:C6761,2,FALSE)","v":{"$error":"#N/A"}}]
[null,null,null,null,null,null,null,null,{"$f":"VLOOKUP(H1896,'Drop down items'!B1896:C6762,2,FALSE)","v":{"$error":"#N/A"}}]
[null,null,null,null,null,null,null,null,{"$f":"VLOOKUP(H1897,'Drop down items'!B1897:C6763,2,FALSE)","v":{"$error":"#N/A"}}]
[null,null,null,null,null,null,null,null,{"$f":"VLOOKUP(H1898,'Drop down items'!B1898:C6764,2,FALSE)","v":{"$error":"#N/A"}}]
[null,null,null,null,null,null,null,null,{"$f":"VLOOKUP(H1899,'Drop down items'!B1899:C6765,2,FALSE)","v":{"$error":"#N/A"}}]
[null,null,null,null,null,null,null,null,{"$f":"VLOOKUP(H1900,'Drop down items'!B1900:C6766,2,FALSE)","v":{"$error":"#N/A"}}]
[null,null,null,null,null,null,null,null,{"$f":"VLOOKUP(H1901,'Drop down items'!B1901:C6767,2,FALSE)","v":{"$error":"#N/A"}}]
[null,null,null,null,null,null,null,null,{"$f":"VLOOKUP(H1902,'Drop down items'!B1902:C6768,2,FALSE)","v":{"$error":"#N/A"}}]
[null,null,null,null,null,null,null,null,{"$f":"VLOOKUP(H1903,'Drop down items'!B1903:C6769,2,FALSE)","v":{"$error":"#N/A"}}]
[null,null,null,null,null,null,null,null,{"$f":"VLOOKUP(H1904,'Drop down items'!B1904:C6770,2,FALSE)","v":{"$error":"#N/A"}}]
[null,null,null,null,null,null,null,null,{"$f":"VLOOKUP(H1905,'Drop down items'!B1905:C6771,2,FALSE)","v":{"$error":"#N/A"}}]
[null,null,null,null,null,null,null,null,{"$f":"VLOOKUP(H1906,'Drop down items'!B1906:C6772,2,FALSE)","v":{"$error":"#N/A"}}]
[null,null,null,null,null,null,null,null,{"$f":"VLOOKUP(H1907,'Drop down items'!B1907:C6773,2,FALSE)","v":{"$error":"#N/A"}}]
[null,null,null,null,null,null,null,null,{"$f":"VLOOKUP(H1908,'Drop down items'!B1908:C6774,2,FALSE)","v":{"$error":"#N/A"}}]
[null,null,null,null,null,null,null,null,{"$f":"VLOOKUP(H1909,'Drop down items'!B1909:C6775,2,FALSE)","v":{"$error":"#N/A"}}]
[null,null,null,null,null,null,null,null,{"$f":"VLOOKUP(H1910,'Drop down items'!B1910:C6776,2,FALSE)","v":{"$error":"#N/A"}}]
[null,null,null,null,null,null,null,null,{"$f":"VLOOKUP(H1911,'Drop down items'!B1911:C6777,2,FALSE)","v":{"$error":"#N/A"}}]
[null,null,null,null,null,null,null,null,{"$f":"VLOOKUP(H1912,'Drop down items'!B1912:C6778,2,FALSE)","v":{"$error":"#N/A"}}]
[null,null,null,null,null,null,null,null,{"$f":"VLOOKUP(H1913,'Drop down items'!B1913:C6779,2,FALSE)","v":{"$error":"#N/A"}}]
[null,null,null,null,null,null,null,null,{"$f":"VLOOKUP(H1914,'Drop down items'!B1914:C6780,2,FALSE)","v":{"$error":"#N/A"}}]
[null,null,null,null,null,null,null,null,{"$f":"VLOOKUP(H1915,'Drop down items'!B1915:C6781,2,FALSE)","v":{"$error":"#N/A"}}]
[null,null,null,null,null,null,null,null,{"$f":"VLOOKUP(H1916,'Drop down items'!B1916:C6782,2,FALSE)","v":{"$error":"#N/A"}}]
[null,null,null,null,null,null,null,null,{"$f":"VLOOKUP(H1917,'Drop down items'!B1917:C6783,2,FALSE)","v":{"$error":"#N/A"}}]
[null,null,null,null,null,null,null,null,{"$f":"VLOOKUP(H1918,'Drop down items'!B1918:C6784,2,FALSE)","v":{"$error":"#N/A"}}]
[null,null,null,null,null,null,null,null,{"$f":"VLOOKUP(H1919,'Drop down items'!B1919:C6785,2,FALSE)","v":{"$error":"#N/A"}}]
[null,null,null,null,null,null,null,null,{"$f":"VLOOKUP(H1920,'Drop down items'!B1920:C6786,2,FALSE)","v":{"$error":"#N/A"}}]
[null,null,null,null,null,null,null,null,{"$f":"VLOOKUP(H1921,'Drop down items'!B1921:C6787,2,FALSE)","v":{"$error":"#N/A"}}]
[null,null,null,null,null,null,null,null,{"$f":"VLOOKUP(H1922,'Drop down items'!B1922:C6788,2,FALSE)","v":{"$error":"#N/A"}}]
[null,null,null,null,null,null,null,null,{"$f":"VLOOKUP(H1923,'Drop down items'!B1923:C6789,2,FALSE)","v":{"$error":"#N/A"}}]
[null,null,null,null,null,null,null,null,{"$f":"VLOOKUP(H1924,'Drop down items'!B1924:C6790,2,FALSE)","v":{"$error":"#N/A"}}]
[null,null,null,null,null,null,null,null,{"$f":"VLOOKUP(H1925,'Drop down items'!B1925:C6791,2,FALSE)","v":{"$error":"#N/A"}}]
[null,null,null,null,null,null,null,null,{"$f":"VLOOKUP(H1926,'Drop down items'!B1926:C6792,2,FALSE)","v":{"$error":"#N/A"}}]
[null,null,null,null,null,null,null,null,{"$f":"VLOOKUP(H1927,'Drop down items'!B1927:C6793,2,FALSE)","v":{"$error":"#N/A"}}]
[null,null,null,null,null,null,null,null,{"$f":"VLOOKUP(H1928,'Drop down items'!B1928:C6794,2,FALSE)","v":{"$error":"#N/A"}}]
[null,null,null,null,null,null,null,null,{"$f":"VLOOKUP(H1929,'Drop down items'!B1929:C6795,2,FALSE)","v":{"$error":"#N/A"}}]
[null,null,null,null,null,null,null,null,{"$f":"VLOOKUP(H1930,'Drop down items'!B1930:C6796,2,FALSE)","v":{"$error":"#N/A"}}]
[null,null,null,null,null,null,null,null,{"$f":"VLOOKUP(H1931,'Drop down items'!B1931:C6797,2,FALSE)","v":{"$error":"#N/A"}}]
[null,null,null,null,null,null,null,null,{"$f":"VLOOKUP(H1932,'Drop down items'!B1932:C6798,2,FALSE)","v":{"$error":"#N/A"}}]
[null,null,null,null,null,null,null,null,{"$f":"VLOOKUP(H1933,'Drop down items'!B1933:C6799,2,FALSE)","v":{"$error":"#N/A"}}]
[null,null,null,null,null,null,null,null,{"$f":"VLOOKUP(H1934,'Drop down items'!B1934:C6800,2,FALSE)","v":{"$error":"#N/A"}}]
[null,null,null,null,null,null,null,null,{"$f":"VLOOKUP(H1935,'Drop down items'!B1935:C6801,2,FALSE)","v":{"$error":"#N/A"}}]
[null,null,null,null,null,null,null,null,{"$f":"VLOOKUP(H1936,'Drop down items'!B1936:C6802,2,FALSE)","v":{"$error":"#N/A"}}]
[null,null,null,null,null,null,null,null,{"$f":"VLOOKUP(H1937,'Drop down items'!B1937:C6803,2,FALSE)","v":{"$error":"#N/A"}}]
[null,null,null,null,null,null,null,null,{"$f":"VLOOKUP(H1938,'Drop down items'!B1938:C6804,2,FALSE)","v":{"$error":"#N/A"}}]
[null,null,null,null,null,null,null,null,{"$f":"VLOOKUP(H1939,'Drop down items'!B1939:C6805,2,FALSE)","v":{"$error":"#N/A"}}]
[null,null,null,null,null,null,null,null,{"$f":"VLOOKUP(H1940,'Drop down items'!B1940:C6806,2,FALSE)","v":{"$error":"#N/A"}}]
[null,null,null,null,null,null,null,null,{"$f":"VLOOKUP(H1941,'Drop down items'!B1941:C6807,2,FALSE)","v":{"$error":"#N/A"}}]
[null,null,null,null,null,null,null,null,{"$f":"VLOOKUP(H1942,'Drop down items'!B1942:C6808,2,FALSE)","v":{"$error":"#N/A"}}]
[null,null,null,null,null,null,null,null,{"$f":"VLOOKUP(H1943,'Drop down items'!B1943:C6809,2,FALSE)","v":{"$error":"#N/A"}}]
[null,null,null,null,null,null,null,null,{"$f":"VLOOKUP(H1944,'Drop down items'!B1944:C6810,2,FALSE)","v":{"$error":"#N/A"}}]
[null,null,null,null,null,null,null,null,{"$f":"VLOOKUP(H1945,'Drop down items'!B1945:C6811,2,FALSE)","v":{"$error":"#N/A"}}]
[null,null,null,null,null,null,null,null,{"$f":"VLOOKUP(H1946,'Drop down items'!B1946:C6812,2,FALSE)","v":{"$error":"#N/A"}}]
[null,null,null,null,null,null,null,null,{"$f":"VLOOKUP(H1947,'Drop down items'!B1947:C6813,2,FALSE)","v":{"$error":"#N/A"}}]
[null,null,null,null,null,null,null,null,{"$f":"VLOOKUP(H1948,'Drop down items'!B1948:C6814,2,FALSE)","v":{"$error":"#N/A"}}]
[null,null,null,null,null,null,null,null,{"$f":"VLOOKUP(H1949,'Drop down items'!B1949:C6815,2,FALSE)","v":{"$error":"#N/A"}}]
[null,null,null,null,null,null,null,null,{"$f":"VLOOKUP(H1950,'Drop down items'!B1950:C6816,2,FALSE)","v":{"$error":"#N/A"}}]
[null,null,null,null,null,null,null,null,{"$f":"VLOOKUP(H1951,'Drop down items'!B1951:C6817,2,FALSE)","v":{"$error":"#N/A"}}]
[null,null,null,null,null,null,null,null,{"$f":"VLOOKUP(H1952,'Drop down items'!B1952:C6818,2,FALSE)","v":{"$error":"#N/A"}}]
[null,null,null,null,null,null,null,null,{"$f":"VLOOKUP(H1953,'Drop down items'!B1953:C6819,2,FALSE)","v":{"$error":"#N/A"}}]
[null,null,null,null,null,null,null,null,{"$f":"VLOOKUP(H1954,'Drop down items'!B1954:C6820,2,FALSE)","v":{"$error":"#N/A"}}]
[null,null,null,null,null,null,null,null,{"$f":"VLOOKUP(H1955,'Drop down items'!B1955:C6821,2,FALSE)","v":{"$error":"#N/A"}}]
[null,null,null,null,null,null,null,null,{"$f":"VLOOKUP(H1956,'Drop down items'!B1956:C6822,2,FALSE)","v":{"$error":"#N/A"}}]
[null,null,null,null,null,null,null,null,{"$f":"VLOOKUP(H1957,'Drop down items'!B1957:C6823,2,FALSE)","v":{"$error":"#N/A"}}]
[null,null,null,null,null,null,null,null,{"$f":"VLOOKUP(H1958,'Drop down items'!B1958:C6824,2,FALSE)","v":{"$error":"#N/A"}}]
[null,null,null,null,null,null,null,null,{"$f":"VLOOKUP(H1959,'Drop down items'!B1959:C6825,2,FALSE)","v":{"$error":"#N/A"}}]
[null,null,null,null,null,null,null,null,{"$f":"VLOOKUP(H1960,'Drop down items'!B1960:C6826,2,FALSE)","v":{"$error":"#N/A"}}]
[null,null,null,null,null,null,null,null,{"$f":"VLOOKUP(H1961,'Drop down items'!B1961:C6827,2,FALSE)","v":{"$error":"#N/A"}}]
[null,null,null,null,null,null,null,null,{"$f":"VLOOKUP(H1962,'Drop down items'!B1962:C6828,2,FALSE)","v":{"$error":"#N/A"}}]
[null,null,null,null,null,null,null,null,{"$f":"VLOOKUP(H1963,'Drop down items'!B1963:C6829,2,FALSE)","v":{"$error":"#N/A"}}]
[null,null,null,null,null,null,null,null,{"$f":"VLOOKUP(H1964,'Drop down items'!B1964:C6830,2,FALSE)","v":{"$error":"#N/A"}}]
[null,null,null,null,null,null,null,null,{"$f":"VLOOKUP(H1965,'Drop down items'!B1965:C6831,2,FALSE)","v":{"$error":"#N/A"}}]
[null,null,null,null,null,null,null,null,{"$f":"VLOOKUP(H1966,'Drop down items'!B1966:C6832,2,FALSE)","v":{"$error":"#N/A"}}]
[null,null,null,null,null,null,null,null,{"$f":"VLOOKUP(H1967,'Drop down items'!B1967:C6833,2,FALSE)","v":{"$error":"#N/A"}}]
[null,null,null,null,null,null,null,null,{"$f":"VLOOKUP(H1968,'Drop down items'!B1968:C6834,2,FALSE)","v":{"$error":"#N/A"}}]
[null,null,null,null,null,null,null,null,{"$f":"VLOOKUP(H1969,'Drop down items'!B1969:C6835,2,FALSE)","v":{"$error":"#N/A"}}]
[null,null,null,null,null,null,null,null,{"$f":"VLOOKUP(H1970,'Drop down items'!B1970:C6836,2,FALSE)","v":{"$error":"#N/A"}}]
[null,null,null,null,null,null,null,null,{"$f":"VLOOKUP(H1971,'Drop down items'!B1971:C6837,2,FALSE)","v":{"$error":"#N/A"}}]
[null,null,null,null,null,null,null,null,{"$f":"VLOOKUP(H1972,'Drop down items'!B1972:C6838,2,FALSE)","v":{"$error":"#N/A"}}]
[null,null,null,null,null,null,null,null,{"$f":"VLOOKUP(H1973,'Drop down items'!B1973:C6839,2,FALSE)","v":{"$error":"#N/A"}}]
[null,null,null,null,null,null,null,null,{"$f":"VLOOKUP(H1974,'Drop down items'!B1974:C6840,2,FALSE)","v":{"$error":"#N/A"}}]
[null,null,null,null,null,null,null,null,{"$f":"VLOOKUP(H1975,'Drop down items'!B1975:C6841,2,FALSE)","v":{"$error":"#N/A"}}]
[null,null,null,null,null,null,null,null,{"$f":"VLOOKUP(H1976,'Drop down items'!B1976:C6842,2,FALSE)","v":{"$error":"#N/A"}}]
[null,null,null,null,null,null,null,null,{"$f":"VLOOKUP(H1977,'Drop down items'!B1977:C6843,2,FALSE)","v":{"$error":"#N/A"}}]
[null,null,null,null,null,null,null,null,{"$f":"VLOOKUP(H1978,'Drop down items'!B1978:C6844,2,FALSE)","v":{"$error":"#N/A"}}]
[null,null,null,null,null,null,null,null,{"$f":"VLOOKUP(H1979,'Drop down items'!B1979:C6845,2,FALSE)","v":{"$error":"#N/A"}}]
[null,null,null,null,null,null,null,null,{"$f":"VLOOKUP(H1980,'Drop down items'!B1980:C6846,2,FALSE)","v":{"$error":"#N/A"}}]
[null,null,null,null,null,null,null,null,{"$f":"VLOOKUP(H1981,'Drop down items'!B1981:C6847,2,FALSE)","v":{"$error":"#N/A"}}]
[null,null,null,null,null,null,null,null,{"$f":"VLOOKUP(H1982,'Drop down items'!B1982:C6848,2,FALSE)","v":{"$error":"#N/A"}}]
[null,null,null,null,null,null,null,null,{"$f":"VLOOKUP(H1983,'Drop down items'!B1983:C6849,2,FALSE)","v":{"$error":"#N/A"}}]
[null,null,null,null,null,null,null,null,{"$f":"VLOOKUP(H1984,'Drop down items'!B1984:C6850,2,FALSE)","v":{"$error":"#N/A"}}]
[null,null,null,null,null,null,null,null,{"$f":"VLOOKUP(H1985,'Drop down items'!B1985:C6851,2,FALSE)","v":{"$error":"#N/A"}}]
[null,null,null,null,null,null,null,null,{"$f":"VLOOKUP(H1986,'Drop down items'!B1986:C6852,2,FALSE)","v":{"$error":"#N/A"}}]
[null,null,null,null,null,null,null,null,{"$f":"VLOOKUP(H1987,'Drop down items'!B1987:C6853,2,FALSE)","v":{"$error":"#N/A"}}]
[null,null,null,null,null,null,null,null,{"$f":"VLOOKUP(H1988,'Drop down items'!B1988:C6854,2,FALSE)","v":{"$error":"#N/A"}}]
[null,null,null,null,null,null,null,null,{"$f":"VLOOKUP(H1989,'Drop down items'!B1989:C6855,2,FALSE)","v":{"$error":"#N/A"}}]
[null,null,null,null,null,null,null,null,{"$f":"VLOOKUP(H1990,'Drop down items'!B1990:C6856,2,FALSE)","v":{"$error":"#N/A"}}]
[null,null,null,null,null,null,null,null,{"$f":"VLOOKUP(H1991,'Drop down items'!B1991:C6857,2,FALSE)","v":{"$error":"#N/A"}}]
[null,null,null,null,null,null,null,null,{"$f":"VLOOKUP(H1992,'Drop down items'!B1992:C6858,2,FALSE)","v":{"$error":"#N/A"}}]
[null,null,null,null,null,null,null,null,{"$f":"VLOOKUP(H1993,'Drop down items'!B1993:C6859,2,FALSE)","v":{"$error":"#N/A"}}]
[null,null,null,null,null,null,null,null,{"$f":"VLOOKUP(H1994,'Drop down items'!B1994:C6860,2,FALSE)","v":{"$error":"#N/A"}}]
[null,null,null,null,null,null,null,null,{"$f":"VLOOKUP(H1995,'Drop down items'!B1995:C6861,2,FALSE)","v":{"$error":"#N/A"}}]
[null,null,null,null,null,null,null,null,{"$f":"VLOOKUP(H1996,'Drop down items'!B1996:C6862,2,FALSE)","v":{"$error":"#N/A"}}]
[null,null,null,null,null,null,null,null,{"$f":"VLOOKUP(H1997,'Drop down items'!B1997:C6863,2,FALSE)","v":{"$error":"#N/A"}}]
[null,null,null,null,null,null,null,null,{"$f":"VLOOKUP(H1998,'Drop down items'!B1998:C6864,2,FALSE)","v":{"$error":"#N/A"}}]
[null,null,null,null,null,null,null,null,{"$f":"VLOOKUP(H1999,'Drop down items'!B1999:C6865,2,FALSE)","v":{"$error":"#N/A"}}]
[null,null,null,null,null,null,null,null,{"$f":"VLOOKUP(H2000,'Drop down items'!B2000:C6866,2,FALSE)","v":{"$error":"#N/A"}}]

{"sheet":"New species","index":3,"n_rows":1,"n_cols":6,"rows_kept":1,"cut":false,"hidden":false,"merged":[]}
["SCIENTIFIC_NAME","APHIA_ID","ITIS_TSN","OTHER_ID","SOURCE_OTHER_ID","SPECIES_GROUP"]

{"sheet":"Drop down items","index":4,"n_rows":4868,"n_cols":9,"rows_kept":4868,"cut":false,"hidden":false,"merged":[]}
["Sampling group","Scientific_name","Species_ID","Day","Month","Year","Countries","Port name","Species_group"]
["Benthos","Abietinaria abietina",1403,1,1,2000,"Belgium","Brofjorden","Benthic Invertebrates"]
["Fouling","Ablabesmyia longistyla",994,2,2,2001,"Denmark","Cuxhaven","Birds"]
["Mobile Epifauna","Ablabesmyia monilis",995,3,3,2002,"Finland","Gdnask","Fish and Lamprey"]
["Phytoplankton","Ablabesmyia phatta",996,4,4,2003,"France","Gdynia","Macrophytes"]
["Zooplankton","Abludomelita obtusata",1424,5,5,2004,"Germany","Gothenburg","Mammals"]
[null,"Abra alba",1,6,6,2005,"Iceland","Hamburg","Phytoplankton"]
[null,"Abra nitida",2,7,7,2006,"Ireland","Hamina","Zooplankton"]
[null,"Abra prismatica",3,8,8,2007,"Luxembourg","Helsinki","Bacteria"]
[null,"Abramis brama",1425,9,9,2008,"The Netherlands","Hull"]
[null,"Abyssoninoe hibernica",1426,10,10,2009,"Norway","JadeWeser"]
[null,"Abyssoninoe scopa",1427,11,11,2010,"Portugal","Kiel"]
[null,"Acanthocardia echinata",1428,12,12,2011,"Spain","Kokkola"]
[null,"Acanthoceras zachariasii",4390,13,null,2012,"Sweden","Kotka"]
[null,"Acanthocyclops robustus",4391,14,null,2013,"Switzerland","Las Palmas"]
[null,"Acanthocyclops vernalis",4392,15,null,2014,"United Kingdom","Liepaja"]
[null,"Acanthocythereis dunelmensis",1429,16,null,2015,"Estonia","Malmö"]
[null,"Acanthodoris pilosa",1430,17,null,2016,"Latvia","Muuga"]
[null,"Acantholabrus palloni",4,18,null,2017,"Lithuania","Naantali"]
[null,"Acartia (Acanthacartia) bifilosa",5,19,null,2018,"Poland","Riga"]
[null,"Acartia (Acanthacartia) tonsa",6,20,null,2019,"Russia","Rotterdam"]
[null,"Acartia (Acartia) danae",7,21,null,2020,null,"Skoldvik"]
[null,"Acartia (Acartia) negligens",8,22,null,2021,null,"Świnoujście"]
[null,"Acartia (Acartiura) clausi",9,23,null,2022,null,"Szczecin"]
[null,"Acartia (Acartiura) discaudata",1431,24,null,2023,null,"Trelleborg"]
[null,"Acartia (Acartiura) longiremis",10,25,null,2024,null,"Turku"]
[null,"Acartia bifilosa",11,26,null,2025,null,"Ventspils"]
[null,"Acartia clausi",12,27,null,null,null,"Ystad marina"]
[null,"Acartia danae",13,28]
[null,"Acartia discaudata",1432,29]
[null,"Acartia longiremis",14,30]
[null,"Acartia negligens",15,31]
[null,"Acartia tonsa",16]
[null,"Acaulis primarius",1433]
[null,"Acentria ephemerella",997]
[null,"Acera bullata",1434]
[null,"Achnanthes brevipes",17]
[null,"Achnanthes hauckiana var. hauckiana",18]
[null,"Achnanthes lemmermannii",19]
[null,"Achnanthes longipes",20]
[null,"Achnanthes taeniata",21]
[null,"Achnanthidium delicatulum f. delicatulum",22]
[null,"Achnanthidium minutissimum",4393]
[null,"Acidostoma neglectum",1435]
[null,"Acidostoma nodiferum",1436]
[null,"Acidostoma obesum",1437]
[null,"Acidostoma sarsi",1438]
[null,"Acilius canaliculatus",998]
[null,"Acinetospora crinita",1439]
[null,"Acipenser baeri",1440]
[null,"Acipenser baerii",1441]
[null,"Acipenser gueldenstaedtii",1442]
[null,"Acipenser oxyrinchus",1443]
[null,"Acipenser ruthenus",1444]
[null,"Acipenser stellatus",1445]
[null,"Acipenser sturio",1446]
[null,"Acipenserobdella volgensis",4394]
[null,"Aclis minor",1447]
[null,"Aclis walleri",1448]
[null,"Acmira cerrutii",1449]
[null,"Acricotopus lucens",999]
[null,"Acrocephalus arundinaceus",4211]
[null,"Acrocephalus schoenobaenus",4212]
[null,"Acrocephalus scirpaceus",4210]
[null,"Acrochaete cladophorae",1450]
[null,"Acrochaete flustrae",1451]
[null,"Acrochaete heteroclada",1452]
[null,"Acrochaete inflata",1453]
[null,"Acrochaete leptochaete",1454]
[null,"Acrochaete operculata",1455]
[null,"Acrochaete repens",1456]
[null,"Acrochaete viridis",1457]
[null,"Acrochaete wittrockii",1458]
[null,"Acrochaetium attenuatum",1459]
[null,"Acrochaetium balticum",1460]
[null,"Acrochaetium catenulatum",1461]
[null,"Acrochaetium cytophagum",1462]
[null,"Acrochaetium daviesii",1463]
[null,"Acrochaetium densum",1464]
[null,"Acrochaetium dumontiae",1465]
[null,"Acrochaetium emergens",1466]
[null,"Acrochaetium endozoicum",1467]
[null,"Acrochaetium gynandrum",1468]
[null,"Acrochaetium hallandicum",1469]
[null,"Acrochaetium humile",1470]
[null,"Acrochaetium immersum",1471]
[null,"Acrochaetium kylinii",1472]
[null,"Acrochaetium leptonema",1473]
[null,"Acrochaetium macula",1474]
[null,"Acrochaetium microscopicum",1475]
[null,"Acrochaetium minimum",1476]
[null,"Acrochaetium moniliforme",1477]
[null,"Acrochaetium nemalii",1478]
[null,"Acrochaetium parvulum",1479]
[null,"Acrochaetium reductum",1480]
[null,"Acrochaetium rhipidandrum",1481]
[null,"Acrochaetium rosulatum",1482]
[null,"Acrochaetium savianum",1483]
[null,"Acrochaetium secundatum",1484]
[null,"Acrochaetium stilophorae",1485]
[null,"Acrochaetium strictum",1486]
[null,"Acrochaetium thuretii",1487]
[null,"Acrochaetium virgatulum",1488]
[null,"Acroloxus lacustris",1489]
[null,"Acrosiphonia arcta",1490]
[null,"Acrosiphonia centralis",1491]
[null,"Acrosiphonia sonderi",1492]
[null,"Acrothrix gracilis",1493]
[null,"Acteon tornatilis",1494]
[null,"Actinastrum hantzschii",4303]
[null,"Actinia equina",1495]
[null,"Actinocyclus normanii",23]
[null,"Actinocyclus normanii f. normanii",4847]
[null,"Actinocyclus normanii f. subsalsus",4395]
[null,"Actinocyclus octonarius",24]
[null,"Actinocyclus octonarius var. crassus",4396]
[null,"Actinocyclus octonarius var. octonarius",4397]
[null,"Actinocyclus senarius",25]
[null,"Actinocythereis dunelmensis",1496]
[null,"Actinoptychus octonarius",26]
[null,"Actinoptychus senarius",27]
[null,"Actinoptychus splendens",28]
[null,"Actitis hypoleucos",1497]
[null,"Acutodesmus acuminatus",4304]
[null,"Acutodesmus acutiformis",4398]
[null,"Acutodesmus obliquus",29]
[null,"Adalaria proxima",1498]
[null,"Aegagropila linnaei",1499]
[null,"Aeginina longicornis",1500]
[null,"Aeolidia papillosa",1501]
[null,"Aeolidiella glauca",1502]
[null,"Aeolosoma hemprichii",1503]
[null,"Aequipecten opercularis",1504]
[null,"Aeromonas veronii",30]
[null,"Aeshna grandis",1000]
[null,"Aeshna juncea",1001]
[null,"Aeshna mixta",1002]
[null,"Aeshna serrata",1003]
[null,"Aetea anguina",1505]
[null,"Aetea sica",1506]
[null,"Aetea truncata",1507]
[null,"Agabus bipustulatus",1004]
[null,"Agabus sturmii",1005]
[null,"Agarophyton vermiculophyllum",31]
[null,"Aglaophamus agilis",1508]
[null,"Aglaophamus pulcher",1509]
[null,"Aglaophamus rubella",1510]
[null,"Aglaothamnion bipinnatum",1511]
[null,"Aglaothamnion byssoides",1512]
[null,"Aglaothamnion halliae",4399]
[null,"Aglaothamnion hookeri",32]
[null,"Aglaothamnion roseum",33]
[null,"Aglaothamnion tenuissimum",1513]
[null,"Agonus cataphractus",1514]
[null,"Agraylea multipunctata",1006]
[null,"Agraylea pallicornis",1007]
[null,"Agraylea sexmaculata",1008]
[null,"Agrypnetes crassicornis",1515]
[null,"Agrypnia obsoleta",1009]
[null,"Agrypnia pagetana",1010]
[null,"Agrypnia varia",1011]
[null,"Ahnfeltia plicata",1516]
[null,"Akanthophoreus gracilis",1517]
[null,"Akashiwo sanguinea",34]
[null,"Akera bullata",1518]
[null,"Aktedrilus monospermathecus",1519]
[null,"Alaria esculenta",1520]
[null,"Alauda arvensis",4220]
[null,"Alaurina composita",4786]
[null,"Alboglossiphonia heteroclita",1012]
[null,"Alboglossiphonia hyalina",1013]
[null,"Alboglossiphonia striata",1014]
[null,"Alburnus alburnus",1521]
[null,"Alca torda",1522]
[null,"Alca torda islandica",4201]
[null,"Alca torda torda",4200]
[null,"Alcyonidioides mytili",35]
[null,"Alcyonidium albidum",1523]
[null,"Alcyonidium diaphanum",1524]
[null,"Alcyonidium gelatinosum",1525]
[null,"Alcyonidium hirsutum",1526]
[null,"Alcyonidium hydrocoalitum",4823]
[null,"Alcyonidium mamillatum",1527]
[null,"Alcyonidium mytili",1528]
[null,"Alcyonidium parasiticum",1529]
[null,"Alcyonidium polyoum",1530]
[null,"Alcyonium digitatum",1531]
[null,"Alcyonium glomeratum",1532]
[null,"Alderia modesta",1533]
[null,"Alderina imbellis",1534]
[null,"Alexandrium acatenella",36]
[null,"Alexandrium minutum",4400]
[null,"Alexandrium monilatum",37]
[null,"Alexandrium ostenfeldii",38]
[null,"Alexandrium pseudogonyaulax",39]
[null,"Alexandrium tamarense",4401]
[null,"Alisma gramineum ",1015]
[null,"Alisma plantago-aquatica",1535]
[null,"Alisma wahlenbergii",1536]
[null,"Alitta succinea",40]
[null,"Alitta virens",1537]
[null,"Alkmaria romijni",1538]
[null,"Alkmaria rominji",1539]
[null,"Alle alle",1540]
[null,"Alona quadrangularis",4308]
[null,"Alopias vulpinus",1541]
[null,"Alosa alosa",1542]
[null,"Alosa fallax",1543]
[null,"Alvania punctura",41]
[null,"Alvania subsoluta",1544]
[null,"Alvania testae",1545]
[null,"Amaeana trilobata",1546]
[null,"Amathia gracilis",1547]
[null,"Amathia imbricata",1548]
[null,"Amauropsis islandica",1549]
[null,"Amblyraja radiata",1550]
[null,"Ameira divagans",4402]
[null,"Ameiurus melas",4403]
[null,"Ameiurus nebulosus",1551]
[null,"Amicula specululum",42]
[null,"Ammodytes marinus",1552]
[null,"Ammodytes tobianus",1553]
[null,"Ampelisca brevicornis",1554]
[null,"Ampelisca diadema",1555]
[null,"Ampelisca macrocephala",1556]
[null,"Ampelisca spinipes",1557]
[null,"Ampelisca tenuicornis",43]
[null,"Ampelisca typica",1558]
[null,"Ampharete acutifrons",1559]
[null,"Ampharete baltica",1560]
[null,"Ampharete falcata",1561]
[null,"Ampharete finmarchica",1562]
[null,"Ampharete grubei",1563]
[null,"Ampharete lindstroemi",44]
[null,"Ampharete octocirrata",1564]
[null,"Amphibalanus eburneus",45]
[null,"Amphibalanus improvisus",46]
[null,"Amphiblestrum auritum",1565]
[null,"Amphiblestrum flemingii",1566]
[null,"Amphichaeta leydigi",1567]
[null,"Amphichaeta sannio",1568]
[null,"Amphicteis gunneri",1569]
[null,"Amphicteis midas",1570]
[null,"Amphictene auricoma",1571]
[null,"Amphidinium acutissimum",47]
[null,"Amphidinium carterae",48]
[null,"Amphidinium corpulentum",49]
[null,"Amphidinium crassum",50]
[null,"Amphidinium operculatum",51]
[null,"Amphidinium sphenoides",52]
[null,"Amphidinium steinii",53]
[null,"Amphilectus fucorum",1572]
[null,"Amphilectus lobatus",1573]
[null,"Amphilepis norvegica",1574]
[null,"Amphilochoides boecki",1575]
[null,"Amphilochoides serratipes",1576]
[null,"Amphilochus manudens",1577]
[null,"Amphipholis squamata",1578]
[null,"Amphiprora paludosa var. paludosa",4404]
[null,"Amphisbetia operculata",4233]
[null,"Amphitrite cirrata",1579]
[null,"Amphitrite johnstoni",1580]
[null,"Amphiura chiajei",54]
[null,"Amphiura filiformis",55]
[null,"Amphora coffeaeformis",56]
[null,"Amphora commutata",4405]
[null,"Amphora gracilis",57]
[null,"Amphora inariensis",58]
[null,"Amphora ovalis",4406]
[null,"Amphora pediculus",4407]
[null,"Amphora tenerrima",59]
[null,"Ampithoe rubricata",1581]
[null,"Ampullaceana ampla",1582]
[null,"Ampullaceana balthica",1583]
[null,"Amylax triacantha",60]
[null,"Anabaena baltica",4408]
[null,"Anabaena flosaquae var. intermedia",4409]
[null,"Anabaena inaequalis",61]
[null,"Anabaena lemmermannii",62]
[null,"Anabaena solitaria",4410]
[null,"Anabaena spiroides",4848]
[null,"Anabaenopsis elenkinii",4411]
[null,"Anabolia laevis",1016]
[null,"Anadara inaequivalvis",63]
[null,"Anadara transversa",64]
[null,"Anaitides groenlandica",1584]
[null,"Anaitides maculata",1585]
[null,"Anaitides mucosa",1586]
[null,"Anaitides subulifera",1587]
[null,"Anapagurus chiroacanthus",1588]
[null,"Anapagurus laevis",1589]
[null,"Anarhichas lupus",1590]
[null,"Anarhichas minor",1591]
[null,"Anas acuta",1592]
[null,"Anas clypeata",1593]
[null,"Anas crecca",1594]
[null,"Anas penelope",1595]
[null,"Anas platyrhynchos",1596]
[null,"Anas querquedula",4213]
[null,"Anas strepera",1597]
[null,"Ancula gibbosa",1598]
[null,"Ancylus fluviatilis",1599]
[null,"Anemonactis mazeli",1600]
[null,"Anguilla anguilla",65]
[null,"Anguillicola crassus",4412]
[null,"Anguinella palmata",4824]
[null,"Angulus tenuis",1601]
[null,"Anisus leucostoma",1602]
[null,"Anisus spirorbis",1603]
[null,"Anisus vortex",1604]
[null,"Anisus vorticulus",1605]
[null,"Ankistrodesmus falcatus",4413]
[null,"Ankistrodesmus fusiformis",4414]
[null,"Anobothrus gracilis",66]
[null,"Anodonta anatina",1606]
[null,"Anodonta cygnea",1607]
[null,"Anomia ephippium",4234]
[null,"Anoplodactylus petiolatus",1608]
[null,"Ansates pellucida",1609]
[null,"Anser albifrons",1610]
[null,"Anser anser",1611]
[null,"Anser brachyrhynchus",1612]
[null,"Anser erythropus",1613]
[null,"Anser fabalis",1614]
[null,"Anser fabalis rossicus",1017]
[null,"Anser fabalis fabalis",4202]
[null,"Antalis dentalis",1615]
[null,"Antalis entale",1616]
[null,"Antalis entalis",1617]
[null,"Antedon petasus",1618]
[null,"Anthus petrosus",1619]
[null,"Anthus pratensis",1620]
[null,"Antinoella sarsi",1621]
[null,"Antithamnion boreale",1622]
[null,"Antithamnion cruciatum",1623]
[null,"Antithamnion plumula",1624]
[null,"Antithamnion villosum",1625]
[null,"Antithamnionella floccosa",1626]
[null,"Antithamnionella spirographidis",4825]
[null,"Aonides oxycephala",1627]
[null,"Aonides paucibranchiata",1628]
[null,"Aora gracilis",1629]
[null,"Aora typica",1630]
[null,"Apatania stigmatella",1018]
[null,"Apatania wallengreni",1019]
[null,"Apedinella radians",67]
[null,"Apedinella spinifera",68]
[null,"Aphanizomenon flosaquae",69]
[null,"Aphanizomenon flos-aquae",70]
[null,"Aphanizomenon gracile",4415]
[null,"Aphanizomenon issatschenkoi",4416]
[null,"Aphanocapsa conferta",4849]
[null,"Aphanocapsa delicatissima",71]
[null,"Aphanocapsa holsatica",4850]
[null,"Aphanocapsa incerta",72]
[null,"Aphanocapsa planctonica",4851]
[null,"Aphanochaete repens",1631]
[null,"Aphanothece clathrata",4417]
[null,"Aphanothece paralleliformis",4418]
[null,"Aphanothece stagnina",4419]
[null,"Aphelochaeta filiformis",1632]
[null,"Aphelochaeta marioni",73]
[null,"Aphelochaeta mcintoshi",1633]
[null,"Aphelochaeta multibranchis",1634]
[null,"Aphelochaeta vivipara",1635]
[null,"Aphelocheirus aestivalis",1020]
[null,"Apherusa bispinosa",1636]
[null,"Apherusa jurinei",1637]
[null,"Apherusa ovalipes",1638]
[null,"Aphia minuta",1639]
[null,"Aphrodita aculeata",1640]
[null,"Aphrodite aculeata",1641]
[null,"Apistobranchus tenuis",1642]
[null,"Apistobranchus tullbergi",1643]
[null,"Aplidium proliferum",1644]
[null,"Aplysia punctata",1645]
[null,"Apocorophium acutum",74]
[null,"Apocorophium lacustre",75]
[null,"Apoglossum ruscifolium",1646]
[null,"Apohyale prevostii",4826]
[null,"Aponuphis bilineata",76]
[null,"Aporrhais pespelecani",1647]
[null,"Aporrhais pespelicani",1648]
[null,"Apseudes spinosus",1649]
[null,"Apseudes talpa",77]
[null,"Aquiloniella scabra",1650]
[null,"Arachnidium hippothooides",1651]
[null,"Araphura brevimanus",1652]
[null,"Archaeperidinium minutum",78]
[null,"Arcteonais lomondi",1653]
[null,"Arctica islandica",1654]
[null,"Arctozenus risso",1655]
[null,"Arcturella dilatata",1656]
[null,"Arcuatula senhousia",79]
[null,"Arenaria interpres",1657]
[null,"Arenicola brasiliensis",1658]
[null,"Arenicola defodiens",1659]
[null,"Arenicola marina",1660]
[null,"Arenocoris fallenii",1021]
[null,"Argentina silus",1661]
[null,"Argentina sphyraena",1662]
[null,"Argissa hamatipes",1663]
[null,"Argulus foliaceus",80]
[null,"Argyroneta aquatica",1022]
[null,"Argyrosomus regius",1664]
[null,"Aricidea (Acmira) assimilis",81]
[null,"Aricidea (Acmira) catherinae",1665]
[null,"Aricidea (Acmira) cerrutii",1666]
[null,"Aricidea (Aricidea) minuta",1667]
[null,"Aricidea (Strelzovia) suecica",1668]
[null,"Aricidea assimilis",82]
[null,"Aricidea cerrutii",1669]
[null,"Aricidea jeffreysi",1670]
[null,"Aricidea jeffreysii",1671]
[null,"Aricidea minuta",1672]
[null,"Aricidea suecica",1673]
[null,"Armiger crista",1674]
[null,"Armina loveni",1675]
[null,"Arnoglossus laterna",1676]
[null,"Arrhis phyllonyx",1677]
[null,"Artacama proboscidea",1678]
[null,"Arthrocladia villosa",1679]
[null,"Asbjornsenia pygmaea",1680]
[null,"Ascidia conchilega",1681]
[null,"Ascidia mentula",1682]
[null,"Ascidia obliqua",1683]
[null,"Ascidia virginea",83]
[null,"Ascidicola rosea",1684]
[null,"Ascidiella aspersa",84]
[null,"Ascidiella scabra",1685]
[null,"Ascomorpha saltans",4420]
[null,"Ascophyllum nodosum",1686]
[null,"Asellus (Asellus) aquaticus",85]
[null,"Asellus aquaticus",86]
[null,"Asparagopsis armata",4421]
[null,"Asperococcus bullosus",1687]
[null,"Asperococcus ensiformis",1688]
[null,"Asperococcus fistulosus",1689]
[null,"Asperococcus turneri",1690]
[null,"Aspius aspius",1691]
[null,"Asplanchna brightwellii",4422]
[null,"Asplanchna priodonta",4423]
[null,"Astacilla affinis",1692]
[null,"Astacilla dilatata",1693]
[null,"Astacilla intermedia",1694]
[null,"Astacilla longicornis",1695]
[null,"Astarte borealis",1696]
[null,"Astarte elliptica",1697]
[null,"Astarte montagui",1698]
[null,"Astarte sulcata",1699]
[null,"Asterias amurensis",87]
[null,"Asterias rubens",88]
[null,"Asterionella formosa",89]
[null,"Asterionella frauenfeldii",90]
[null,"Asterionella glacialis",91]
[null,"Asterionella kariana",4787]
[null,"Asterionellopsis glacialis",92]
[null,"Asterope norvegica",1700]
[null,"Astronotus ocellatus",1701]
[null,"Astropecten irregularis",1702]
[null,"Asychis biceps",1703]
[null,"Atelecyclus rotundatus",1704]
[null,"Athanas nitescens",1705]
[null,"Atherina presbyter",1706]
[null,"Athripsodes cinereus",1023]
[null,"Atlantopandalus propinqvus",1707]
[null,"Atractophora hypnoides",1708]
[null,"Attheya decora",4788]
[null,"Attheya longicornis",93]
[null,"Attheya septentrionalis",94]
[null,"Attheyella (Attheyella) crassa",1709]
[null,"Atyaephyra desmaresti",4424]
[null,"Atylus swammerdamei",1710]
[null,"Atylus vedlomensis",1711]
[null,"Audouinella efflorescens",1712]
[null,"Audouinella membranacea",1713]
[null,"Audouinella pectinata",1714]
[null,"Aulacoseira alpigena",4425]
[null,"Aulacoseira ambigua",4314]
[null,"Aulacoseira distans",4426]
[null,"Aulacoseira granulata",95]
[null,"Aulacoseira granulata var. angustissima",4428]
[null,"Aulacoseira granulata var. granulata",4427]
[null,"Aulacoseira islandica",96]
[null,"Aulacoseira islandica subsp. helvetica",4429]
[null,"Aulacoseira islandica subsp. islandica",4430]
[null,"Aulacoseira italica",97]
[null,"Aulactinia verrucosa",4235]
[null,"Aulodrilus japonicus",1715]
[null,"Aulodrilus limnobius",1716]
[null,"Aulodrilus pigueti",1717]
[null,"Aulodrilus pluriseta",1718]
[null,"Aurelia aurita",98]
[null,"Aurospio banyulensis",1719]
[null,"Austrominius modestus",99]
[null,"Autonoe longipes",1720]
[null,"Auxis rochei",1721]
[null,"Auxis rochei rochei",1722]
[null,"Axinella infundibuliformis",1723]
[null,"Axinella rugosa",1724]
[null,"Axiognathus squamata",1725]
[null,"Aythya ferina",1726]
[null,"Aythya fuligula",1727]
[null,"Aythya marila",1728]
[null,"Babka gymnotrachelus",100]
[null,"Bacillaria paxillifera",4315]
[null,"Bacteriastrum delicatulum",101]
[null,"Bacteriastrum hyalinum",102]
[null,"Baeonectes muticus",1729]
[null,"Baetis rhodani",1024]
[null,"Balanus balanoides",1730]
[null,"Balanus balanus",1731]
[null,"Balanus crenatus",103]
[null,"Balanus improvisus",104]
[null,"Balcis devians",1732]
[null,"Balistes capriscus",1733]
[null,"Ballerus ballerus",1734]
[null,"Baltidrilus costatus",105]
[null,"Baltoplana magna",1735]
[null,"Bangia atropurpurea",1736]
[null,"Bangiadulcis atropurpurea",1737]
[null,"Barbatula barbatula",1738]
[null,"Barbus barbus",1739]
[null,"Barentsia gracilis",1740]
[null,"Barentsia matsushimana",4316]
[null,"Barnea candida",1741]
[null,"Bathymedon longimanus",1742]
[null,"Bathyomphalus contortus",1743]
[null,"Bathyporeia elegans",1744]
[null,"Bathyporeia gracilis",1745]
[null,"Bathyporeia guilliamsoniana",1746]
[null,"Bathyporeia pelagica",1747]
[null,"Bathyporeia pilosa",106]
[null,"Bathyporeia sarsi",107]
[null,"Bathyporeia tenuipes",1748]
[null,"Batrachium circinatum",1749]
[null,"Batrachospermum",1750]
[null,"Batrachospermum atrum",1751]
[null,"Batracobdella paludosa",1752]
[null,"Batracobdelloides moogi",1025]
[null,"Battersia arctica",108]
[null,"Battersia plumigera",1753]
[null,"Bdellocephala punctata",1754]
[null,"Beania mirabilis",1755]
[null,"Bela brachystoma",1756]
[null,"Bela nebula",1757]
[null,"Bela powisiana",1758]
[null,"Belonastrum berolinensis",4908]
[null,"Belone belone",1759]
[null,"Benthalia carbonaria",1760]
[null,"Beroe cucumis",109]
[null,"Beroe gracilis",4789]
[null,"Beryx decadactylus",1761]
[null,"Bezzia solstitialis",1026]
[null,"Bicellariella ciliata",1762]
[null,"Bicosoeca planctonica",4431]
[null,"Biddulphia rhombus var. trigona",4790]
[null,"Biddulphia sinensis",110]
[null,"Bidessus unistriatus",1027]
[null,"Biecheleria baltica",111]
[null,"Binuclearia lauterbornii",112]
[null,"Bispira crassicornis",1763]
[null,"Bithynia leachii",1764]
[null,"Bithynia tentaculata",1765]
[null,"Bithynia troschelii",1766]
[null,"Bittium latreillii",113]
[null,"Bittium reticulatum",1767]
[null,"Blackfordia virginica",114]
[null,"Blastophysa rhizopus",1768]
[null,"Blicca bjoerkna",115]
[null,"Blidingia marginata",116]
[null,"Blidingia minima",117]
[null,"Boccardia redeki",1769]
[null,"Boccardiella ligerica",118]
[null,"Bodotria scorpioides",1770]
[null,"Bolbocoleon piliferum",1771]
[null,"Bolboschoenus maritimus",1772]
[null,"Bonnemaisonia asparagoides",1773]
[null,"Bonnemaisonia hamifera",1774]
[null,"Boops boops",119]
[null,"Boreochiton ruber",1775]
[null,"Boreotrophon truncatus",1776]
[null,"Borysthenia naticina",1777]
[null,"Bosmina (Bosmina) longirostris",4317]
[null,"Bosmina (Eubosmina) coregoni",120]
[null,"Bosmina (Eubosmina) crassicornis",4432]
[null,"Bosmina (Eubosmina) longispina",4433]
[null,"Bosmina maritima",121]
[null,"Bothriomolus balticus",1778]
[null,"Bothrioneurum vejdovskyanum",1779]
[null,"Bothromesostoma personatum",1780]
[null,"Botrylloides leachii",122]
[null,"Botrylloides violaceus",4434]
[null,"Botryllus leachii",123]
[null,"Botryllus schlosseri",124]
[null,"Botryococcus braunii",4435]
[null,"Botrytella micromora",1781]
[null,"Botrytella reinboldii",1782]
[null,"Bougainvillia britannica",1783]
[null,"Bougainvillia muscus",1784]
[null,"Bougainvillia rugosa",4436]
[null,"Bowerbankia gracilis",1785]
[null,"Bowerbankia imbricata",1786]
[null,"Brachidontes pharaonis",125]
[null,"Brachionus angularis",4437]
[null,"Brachionus bennini",4438]
[null,"Brachionus calyciflorus",126]
[null,"Brachionus diversicornis",4439]
[null,"Brachionus leydigii",4319]
[null,"Brachionus nilsoni",4440]
[null,"Brachionus pala",4320]
[null,"Brachionus quadridentatus",4321]
[null,"Brachionus urceolaris",4322]
[null,"Brachystomia eulimoides",1787]
[null,"Brachystomia scalaris",1788]
[null,"Brachytron pratense",1028]
[null,"Brada inhabilis",1789]
[null,"Brada villosa",1790]
[null,"Brama brama",1791]
[null,"Branchiomma bombyx",1792]
[null,"Branchiostoma lanceolatum",1793]
[null,"Branchiura sowerbyi",1794]
[null,"Branta bernicla hrota",1029]
[null,"Branta canadensis",1795]
[null,"Branta leucopsis",1796]
[null,"Branta ruficollis",4214]
[null,"Branta bernicla bernicla",1030]
[null,"Brissopsis lyrifera",127]
[null,"Brockmanniella brockmannii",128]
[null,"Brongniartella byssoides",129]
[null,"Brosme brosme",1797]
[null,"Bryopsis hypnoides",1798]
[null,"Bryopsis plumosa",1799]
[null,"Buccinum undatum",1800]
[null,"Bucephala clangula",1801]
[null,"Buglossidium luteum",1802]
[null,"Bugula neritina",4441]
[null,"Bugula plumosa",1803]
[null,"Bugula purporotincta",1804]
[null,"Bugulina avicularia",4236]
[null,"Bugulina stolonifera",4827]
[null,"Bulbella abscondita",1805]
[null,"Bushiella (Jugaria) granulata",1806]
[null,"Buskea nitida",1807]
[null,"Buskia nitens",4237]
[null,"Butomus umbellatus",1808]
[null,"Byblis abyssi",1809]
[null,"Byblis gaimardii",1810]
[null,"Bylgides groenlandicus",1811]
[null,"Bylgides sarsi",130]
[null,"Cadlina laevis",1812]
[null,"Caenis horaria",1031]
[null,"Caenis lactea",1032]
[null,"Caenis macrura",1033]
[null,"Caenis robusta",1034]
[null,"Calanus finmarchicus",131]
[null,"Calanus helgolandicus",4828]
[null,"Calidris alpina",1813]
[null,"Calidris alpina alpina",1035]
[null,"Calidris alpina schinzii ",1036]
[null,"Calidris maritima",1814]
[null,"Calidris temminckii",1815]
[null,"Calliacantha natans",132]
[null,"Callianassa subterranea",1816]
[null,"Callianassa tyrrhena",1817]
[null,"Callicorixa praeusta",1818]
[null,"Calliergon cordifolium",4286]
[null,"Calliergon megalophyllum",4302]
[null,"Callinectes sapidus",133]
[null,"Callionymus lyra",1819]
[null,"Callionymus maculatus",1820]
[null,"Calliopaea bellula",1821]
[null,"Calliopius laeviusculus",1822]
[null,"Calliopius rathkii",1823]
[null,"Callipallene brevirostris",1824]
[null,"Callithamnion bipinnatum",1825]
[null,"Callithamnion brodiei",1826]
[null,"Callithamnion byssoides",1827]
[null,"Callithamnion corymbosum",134]
[null,"Callithamnion hookeri",1828]
[null,"Callithamnion roseum",1829]
[null,"Callithamnion tetragonum",1830]
[null,"Callitriche cophocarpa ",1037]
[null,"Callitriche hermaphroditica",1831]
[null,"Callitriche palustris",1038]
[null,"Callochiton septemvalvis",1832]
[null,"Callophyllis cristata",1833]
[null,"Callopora craticula",1834]
[null,"Callopora dumerilii",135]
[null,"Callopora lineata",1835]
[null,"Callopora rylandi",4238]
[null,"Calocalanus styliremis",136]
[null,"Calocaris macandreae",1836]
[null,"Caloneis amphisbaena",4442]
[null,"Caloneis silicula",4443]
[null,"Caltha palustris ",1039]
[null,"Calycella syringa",1837]
[null,"Calyptraea chinensis",4444]
[null,"Campanularia hincksii",4239]
[null,"Campanulina pumila",1838]
[null,"Campylaspis costata",1839]
[null,"Campylaspis glabra",1840]
[null,"Campylaspis rubicunda",1841]
[null,"Campylodiscus clypeus",4445]
[null,"Campylosira cymbelliformis",137]
[null,"Cancer pagurus",138]
[null,"Candacia armata",1842]
[null,"Candacia simplex",139]
[null,"Capitella capitata",140]
[null,"Capitella giardi",1843]
[null,"Capitella minima",1844]
[null,"Capitellides giardi",1845]
[null,"Capitomastus minima",1846]
[null,"Capitomastus minimus",1847]
[null,"Caprella linearis",141]
[null,"Caprella mutica",142]
[null,"Caprella punctata",1848]
[null,"Caprella septentrionalis",1849]
[null,"Capros aper",1850]
[null,"Capsosiphon fulvescens",1851]
[null,"Capulus ungaricus",1852]
[null,"Carassius carassius",1853]
[null,"Carassius gibelio",1854]
[null,"Carcinus maenas",143]
[null,"Cardium echinatum",1855]
[null,"Cardium edule",1856]
[null,"Cardium exiguum",1857]
[null,"Cardium fasciatum",1858]
[null,"Cardium glaucum",1859]
[null,"Cardium hauniense",1860]
[null,"Cardium minimum",1861]
[null,"Cardium nodosum",1862]
[null,"Cardium ovale",1863]
[null,"Carduelis flavirostris",1864]
[null,"Carijoa riisei",4446]
[null,"Caryophyllaeus laticeps",1865]
[null,"Caryophyllia (Caryophyllia) smithii",1866]
[null,"Caryophyllia smithii",1867]
[null,"Caspiobdella fadejewi",1868]
[null,"Catostomus catostomus",1869]
[null,"Caulerpa cylindracea",144]
[null,"Caulerpa taxifolia",145]
[null,"Caulleriella killariensis",1870]
[null,"Cellaria fistulosa",1871]
[null,"Cellaria sinuosa",1872]
[null,"Celleporella hyalina",1873]
[null,"Celleporina decipiens",1874]
[null,"Centraloecetes kroyeranus",1875]
[null,"Centraloecetes striatus",1876]
[null,"Centrolabrus exoletus",146]
[null,"Centrolophus niger",1877]
[null,"Centropages hamatus",147]
[null,"Centropages typicus",148]
[null,"Centroptilum luteolum",1040]
[null,"Cephalothrix linearis",1878]
[null,"Cepphus grylle",1879]
[null,"Cepphus grylle arcticus",1041]
[null,"Cepphus grylle grylle",1042]
[null,"Ceraclea annulicornis",1043]
[null,"Ceraclea dissimilis",1880]
[null,"Ceraclea fulva",1044]
[null,"Ceraclea nigronervosa",1045]
[null,"Ceraclea senilis",1046]
[null,"Ceramium cimbricum",149]
[null,"Ceramium circinatum",1881]
[null,"Ceramium deslongchampsii",1882]
[null,"Ceramium diaphanum",150]
[null,"Ceramium echionotum",1883]
[null,"Ceramium gobii",1884]
[null,"Ceramium nodulosum",1885]
[null,"Ceramium pallidum",1886]
[null,"Ceramium rubrum",1887]
[null,"Ceramium siliquosum",1888]
[null,"Ceramium strictum",1889]
[null,"Ceramium tenuicorne",151]
[null,"Ceramium tenuissimum",1890]
[null,"Ceramium virgatum",152]
[null,"Cerastoderma edule",153]
[null,"Cerastoderma exiguum",1891]
[null,"Cerastoderma glaucum",154]
[null,"Cerastoderma lamarcki",1892]
[null,"Cerastoderma scabrum",1893]
[null,"Cerataulina bergonii",155]
[null,"Cerataulina pelagica",156]
[null,"Ceratium furca",157]
[null,"Ceratium furcoides",4326]
[null,"Ceratium fusus",158]
[null,"Ceratium hirundinella",4447]
[null,"Ceratium horridum",159]
[null,"Ceratium lineatum",160]
[null,"Ceratium longipes",161]
[null,"Ceratium macroceros",162]
[null,"Ceratium tripos",163]
[null,"Ceratocephale loveni",1894]
[null,"Ceratocolax hartzii",1895]
[null,"Ceratocorys horrida",164]
[null,"Ceratoneis closterium",165]
[null,"Ceratoneis fasciola",166]
[null,"Ceratophyllum demersum",1896]
[null,"Ceratophyllum submersum",4448]
[null,"Cercopagis (Cercopagis) pengoi",167]
[null,"Cercopagis pengoi",168]
[null,"Cerebratulus marginatus",1897]
[null,"Cerianthus lloydi",1898]
[null,"Cerianthus lloydii",1899]
[null,"Cernosvitoviella immota",1900]
[null,"Cetorhinus maximus",1901]
[null,"Chaetoceros affinis",169]
[null,"Chaetoceros anastomosans",170]
[null,"Chaetoceros borealis",4791]
[null,"Chaetoceros castracanei",4902]
[null,"Chaetoceros ceratosporus",171]
[null,"Chaetoceros ceratosporus var. ceratosporus",4449]
[null,"Chaetoceros compressus",172]
[null,"Chaetoceros constrictus",173]
[null,"Chaetoceros contortus",174]
[null,"Chaetoceros curvisetus",175]
[null,"Chaetoceros danicus",176]
[null,"Chaetoceros debilis",177]
[null,"Chaetoceros decipiens",178]
[null,"Chaetoceros densus",179]
[null,"Chaetoceros diadema",4792]
[null,"Chaetoceros didymus",180]
[null,"Chaetoceros gracilis",4450]
[null,"Chaetoceros holsaticus",181]
[null,"Chaetoceros laciniosus",182]
[null,"Chaetoceros lauderi",183]
[null,"Chaetoceros lorenzianus",184]
[null,"Chaetoceros minimus",185]
[null,"Chaetoceros pseudocurvisetus",186]
[null,"Chaetoceros radians",4793]
[null,"Chaetoceros radicans",187]
[null,"Chaetoceros septentrionalis",188]
[null,"Chaetoceros similis",189]
[null,"Chaetoceros simplex",4785]
[null,"Chaetoceros socialis",190]
[null,"Chaetoceros subtilis",191]
[null,"Chaetoceros subtilis var. subtilis",4451]
[null,"Chaetoceros tenuissimus",192]
[null,"Chaetoceros throndsenii",193]
[null,"Chaetoceros throndsenii var. throndsenii",4452]
[null,"Chaetoceros wighamii",194]
[null,"Chaetoderma nitidulum",1902]
[null,"Chaetogammarus stoerensis",1903]
[null,"Chaetogaster diaphanus",1904]
[null,"Chaetogaster diastrophus",1905]
[null,"Chaetogaster langi",1906]
[null,"Chaetogaster limnaei",1907]
[null,"Chaetogaster setosus",1908]
[null,"Chaetomorpha aerea",1909]
[null,"Chaetomorpha capillaris",1910]
[null,"Chaetomorpha ligustica",1911]
[null,"Chaetomorpha linum",195]
[null,"Chaetomorpha melagonium",1912]
[null,"Chaetophora incrassata",1913]
[null,"Chaetophora lobata",1914]
[null,"Chaetopteris plumosa",1915]
[null,"Chaetopterus norvegicus",1916]
[null,"Chaetopterus variopedatus",1917]
[null,"Chaetozone caputesocis",1918]
[null,"Chaetozone christiei",1919]
[null,"Chaetozone setosa",196]
[null,"Chaetozone vivipara",1920]
[null,"Chalinula limbata",1921]
[null,"Chama macerophylla",1922]
[null,"Chama pacifica",197]
[null,"Chamelea gallina",1923]
[null,"Chamelea striatula",198]
[null,"Chantransia attenuata",1924]
[null,"Chantransia efflorescens",1925]
[null,"Chantransia gynandra",1926]
[null,"Chaoborus flavicans",1047]
[null,"Chara aspera",1927]
[null,"Chara baltica",1928]
[null,"Chara braunii",1929]
[null,"Chara canescens",1930]
[null,"Chara connivens",1931]
[null,"Chara globularis",1932]
[null,"Chara hispida",1933]
[null,"Chara horrida",1934]
[null,"Chara polyacantha",1935]
[null,"Chara tomentosa",1936]
[null,"Chara virgata",1937]
[null,"Chara vulgaris",1938]
[null,"Charadrius alexandrinus",1939]
[null,"Charadrius dubius",4215]
[null,"Charadrius hiaticula",1940]
[null,"Charadrius hiaticula hiaticula ",1048]
[null,"Charadrius hiaticula tundrae",1049]
[null,"Chartella barleei",1941]
[null,"Cheilopogon heterurus",1942]
[null,"Cheilotrichia cinerascens",1050]
[null,"Cheirocratus assimilis",1943]
[null,"Cheirocratus intermedius",1944]
[null,"Cheirocratus sundevallii",1945]
[null,"Chelicorophium curvispinum",1946]
[null,"Chelicorophium robustum",4328]
[null,"Chelidonichthys cuculus",1947]
[null,"Chelidonichthys lastoviza",1948]
[null,"Chelidonichthys lucerna",1949]
[null,"Chelon aurata",1950]
[null,"Chelon auratus",4204]
[null,"Chelon labrosus",1951]
[null,"Chelon ramada",1952]
[null,"Chernovskiia orbicus",1051]
[null,"Chilionema ocellatum",1953]
[null,"Chimaera monstrosa",1954]
[null,"Chionoecetes opilio",199]
[null,"Chiridota laevis",4240]
[null,"Chirimia biceps biceps",1955]
[null,"Chirolophis ascanii",1956]
[null,"Chirona hameri",1957]
[null,"Chironomus agilis",1052]
[null,"Chironomus annularius",1053]
[null,"Chironomus anthracinus",1054]
[null,"Chironomus aprilinus",1958]
[null,"Chironomus balatonicus",1055]
[null,"Chironomus cingulatus",1056]
[null,"Chironomus dorsalis",1057]
[null,"Chironomus halophilus",1959]
[null,"Chironomus neocorax",1058]
[null,"Chironomus pallidivittatus",1059]
[null,"Chironomus plumosus",1960]
[null,"Chironomus riparius",1060]
[null,"Chironomus salinarius",1961]
[null,"Chironomus tentans",1061]
[null,"Chironomus thummi",1062]
[null,"Chlidonias niger",4216]
[null,"Chlorochytrium cohnii",1962]
[null,"Chlorochytrium dermatocolax",1963]
[null,"Chlorogonium maximum",200]
[null,"Chlorogonium minimum",4453]
[null,"Chlorotetraëdron incus",4454]
[null,"Choanites ficus",1964]
[null,"Chondria dasyphylla",1965]
[null,"Chondrus crispus",1966]
[null,"Chone duneri",1967]
[null,"Chone fauveli",1968]
[null,"Chone filicaudata",1969]
[null,"Chone infundibuliformis",1970]
[null,"Chorda filum",1971]
[null,"Chordaria flagelliformis",201]
[null,"Choreonema thuretii",1972]
[null,"Choricystis coccoides",4852]
[null,"Chorizopora brongniartii",1973]
[null,"Chromastrum hallandicum",1974]
[null,"Chromastrum humile",1975]
[null,"Chromastrum macula",1976]
[null,"Chromastrum moniliforme",1977]
[null,"Chromastrum virgatulum",1978]
[null,"Chromis limbata",202]
[null,"Chroococcus aphanocapsoides",203]
[null,"Chroococcus microscopicus",204]
[null,"Chroococcus minimus",4455]
[null,"Chroococcus minor",4456]
[null,"Chroococcus minutus",4457]
[null,"Chroococcus turgidus",4458]
[null,"Chroodactylon ornatum",1979]
[null,"Chrysallida interstincta",1980]
[null,"Chrysallida pellucida",1981]
[null,"Chrysaora hysoscella",205]
[null,"Chrysochromulina birgeri",4459]
[null,"Chrysococcus biporus",4460]
[null,"Chydorus latus",4461]
[null,"Chydorus sphaericus",206]
[null,"Chylocladia verticillata",1982]
[null,"Cicuta virosa",4301]
[null,"Ciliata mustela",207]
[null,"Cingula striata",1983]
[null,"Ciona intestinalis",1984]
[null,"Circeis spirillum",4241]
[null,"Circus aeruginosus",4221]
[null,"Cirolana borealis",1985]
[null,"Cirolana parva",1986]
[null,"Cirratulus caudatus",1987]
[null,"Cirratulus cirratus",1988]
[null,"Cirratulus filiformis",1989]
[null,"Cirriformia tentaculata",1990]
[null,"Cirrophorus eliasoni",1991]
[null,"Cladopelma edwardsi",1063]
[null,"Cladopelma goetghebueri",1064]
[null,"Cladopelma lateralis",1065]
[null,"Cladopelma virescens",1066]
[null,"Cladopelma viridula",1067]
[null,"Cladopelma viridulum",1992]
[null,"Cladophora aegagropila",1993]
[null,"Cladophora albida",1994]
[null,"Cladophora dalmatica",1995]
[null,"Cladophora flexuosa",1996]
[null,"Cladophora fracta",1997]
[null,"Cladophora glomerata",208]
[null,"Cladophora hamosa",1998]
[null,"Cladophora hutchinsiae",1999]
[null,"Cladophora laetevirens",2000]
[null,"Cladophora lehmanniana",2001]
[null,"Cladophora pachyderma",2002]
[null,"Cladophora pygmaea",2003]
[null,"Cladophora rupestris",2004]
[null,"Cladophora sericea",2005]
[null,"Cladophora vadorum",2006]
[null,"Cladophora vagabunda",2007]
[null,"Cladosiphon contortus",2008]
[null,"Cladosiphon zosterae",2009]
[null,"Cladostephus spongiosus",2010]
[null,"Cladotanytarsus atridorsum",1068]
[null,"Cladotanytarsus mancus",1069]
[null,"Clangula hyemalis",2012]
[null,"Claparedrilus semifuscus",2013]
[null,"Clathrina blanca",2014]
[null,"Clathrus turtonis",2015]
[null,"Clausinella fasciata",2016]
[null,"Clausocalanus furcatus",209]
[null,"Clausocalanus jobei",210]
[null,"Clausocalanus paululus",211]
[null,"Clava multicornis",2017]
[null,"Clava squamata",2018]
[null,"Clavelina lepadiformis",4242]
[null,"Clavopsella navis",4462]
[null,"Clelandella miliaris",2019]
[null,"Clinotanypus nervosus",1070]
[null,"Cliona celata",2020]
[null,"Clitellio arenarius",2021]
[null,"Cloeon dipterum",1071]
[null,"Cloeon simile",1072]
[null,"Closteriopsis longissima",4853]
[null,"Closterium aciculare",4463]
[null,"Closterium acutum",4330]
[null,"Closterium acutum var. acutum",4854]
[null,"Closterium acutum var. variabile",4464]
[null,"Closterium gracile",4783]
[null,"Closterium moniliferum",4465]
[null,"Closterium parvulum",4855]
[null,"Closterium pronum",4466]
[null,"Closterium strigosum",4856]
[null,"Clunio balticus",2022]
[null,"Clunio marinus",2023]
[null,"Clupea harengus",2024]
[null,"Clytia gracilis",2025]
[null,"Clytia hemisphaerica",2026]
[null,"Cobitis taenia",2027]
[null,"Coccolithus pelagicus",212]
[null,"Coccomyxa parasitica",2028]
[null,"Cocconeis didyma",4467]
[null,"Cocconeis hauniensis",213]
[null,"Cocconeis neothumensis",214]
[null,"Cocconeis pediculus",215]
[null,"Cocconeis placentula",216]
[null,"Cocconeis placentula var. placentula",4468]
[null,"Coccotylus hartzii",2029]
[null,"Coccotylus truncatus",2030]
[null,"Cochlodesma praetenue",2031]
[null,"Cochlodinium pupa",217]
[null,"Codium fragile",2032]
[null,"Codonium proliferum",4829]
[null,"Coelastrum astroideum",4331]
[null,"Coelastrum cambricum",4469]
[null,"Coelastrum microporum",4470]
[null,"Coelastrum pseudomicroporum",4857]
[null,"Coelastrum pulchrum",4858]
[null,"Coelogynopora biarmata",2033]
[null,"Coelogynopora schulzii",2034]
[null,"Coelomoron pusillum",4471]
[null,"Coelosphaerium kuetzingianum",4859]
[null,"Coelosphaerium minutissimum",4860]
[null,"Coenagrion armatum",1073]
[null,"Coenagrion hastulatum",1074]
[null,"Coenagrion lunulatum",1075]
[null,"Coenagrion puella",1076]
[null,"Coenagrion pulchellum",1077]
[null,"Cognettia glandulosa",2035]
[null,"Cognettia sphagnetorum",2036]
[null,"Colaconema attenuatum",2037]
[null,"Colaconema daviesii",2038]
[null,"Colaconema emergens",2039]
[null,"Colaconema gynandrum",2040]
[null,"Colaconema hallandicum",2041]
[null,"Colaconema leptonema",2042]
[null,"Colaconema membranaceum",2043]
[null,"Colaconema minimum",2044]
[null,"Colaconema nemalionis",2045]
[null,"Colaconema pectinatum",2046]
[null,"Colaconema savianum",2047]
[null,"Colaconema strictum",2048]
[null,"Colpodaspis pusilla",2049]
[null,"Colpomenia peregrina",2050]
[null,"Colus islandicus",2051]
[null,"Colus jeffreysianus",2052]
[null,"Commensodorum commensalis",2053]
[null,"Compsonema saxicola",2054]
[null,"Compsothamnion gracillimum",2055]
[null,"Compsothamnion thuioides",2056]
[null,"Conger conger",2057]
[null,"Conochilus (Conochiloides) natans",4472]
[null,"Conochilus unicornis",4861]
[null,"Conopeum reticulum",218]
[null,"Conopeum seurati",2058]
[null,"Constempellina brevicosta",2059]
[null,"Copidognathus fabricii",2060]
[null,"Corallina officinalis",2061]
[null,"Corbicula fluminalis",219]
[null,"Corbicula fluminea",220]
[null,"Corbula gibba",221]
[null,"Cordulia aenea",1078]
[null,"Cordylophora caspia",222]
[null,"Coregonus albula",2063]
[null,"Coregonus maraena",2064]
[null,"Coregonus pallasii",2065]
[null,"Coregonus peled",2066]
[null,"Corella eumyota",4473]
[null,"Corella parallelogramma",2067]
[null,"Corethron criophilum",223]
[null,"Coris julis",2068]
[null,"Cornigerius maeoticus maeoticus",4474]
[null,"Coronia echeneis",4794]
[null,"Corophium acherusicum",2069]
[null,"Corophium acutum",224]
[null,"Corophium affine",225]
[null,"Corophium arenarium",2070]
[null,"Corophium bonelli",2071]
[null,"Corophium crassicorne",2072]
[null,"Corophium curvispinum",2073]
[null,"Corophium insidiosum",2074]
[null,"Corophium lacustre",226]
[null,"Corophium multisetosum",227]
[null,"Corophium volutator",228]
[null,"Corymorpha nutans",2075]
[null,"Corymorpha sarsii",2076]
[null,"Coryne pusilla",4243]
[null,"Corynoneura carriana",1079]
[null,"Corynoneura celeripes",1080]
[null,"Corynoneura scutellata",1081]
[null,"Coryphaenoides rupestris",2077]
[null,"Coryphella lineata",2078]
[null,"Coryphella verrucosa",2079]
[null,"Corystes cassivelaunus",2080]
[null,"Coscinodiscopsis commutata",229]
[null,"Coscinodiscus angustelineatus",230]
[null,"Coscinodiscus centralis",231]
[null,"Coscinodiscus commutatus",232]
[null,"Coscinodiscus concinnus",4795]
[null,"Coscinodiscus granii",233]
[null,"Coscinodiscus lacustris f. lacustris",234]
[null,"Coscinodiscus perforatus",235]
[null,"Coscinodiscus perforatus var. Pavillardii",4475]
[null,"Coscinodiscus radiatus",236]
[null,"Coscinodiscus sol",237]
[null,"Coscinodiscus wailesii",238]
[null,"Coscinosira oestrupii",239]
[null,"Cosmarium margaritiferum",4476]
[null,"Cosmarium phaseolus",4477]
[null,"Cossura longocirrata",2081]
[null,"Cottus gobio",2082]
[null,"Cottus poecilopus",2083]
[null,"Cradoscrupocellaria reptans",2084]
[null,"Crangon allmanni",2085]
[null,"Crangon crangon",240]
[null,"Crangonyx pseudogracilis",4478]
[null,"Crassicorophium bonellii",2086]
[null,"Crassicorophium crassicorne",2087]
[null,"Crassostrea gigas",241]
[null,"Crassula aquatica",2088]
[null,"Craticula ambigua",4479]
[null,"Crenella decussata",2089]
[null,"Crepidula fornicata",242]
[null,"Cribrilina (Cribrilina) cryptooecium",2090]
[null,"Cribrilina (Juxtacribrilina) annulata",4244]
[null,"Cribrilina cryptooecium",2091]
[null,"Cribrilina punctata",2092]
[null,"Cricotopus albiforceps ",1082]
[null,"Cricotopus algarum",1083]
[null,"Cricotopus bicinctus",1084]
[null,"Cricotopus festivellus",1085]
[null,"Cricotopus flavocinctus",1086]
[null,"Cricotopus fuscus",1087]
[null,"Cricotopus intersectus",1088]
[null,"Cricotopus ornatus",1089]
[null,"Cricotopus pilosellus",1090]
[null,"Cricotopus sylvestris",2093]
[null,"Cricotopus tremulus",2094]
[null,"Cricotopus trifascia",1091]
[null,"Criodrilus lacuum",2095]
[null,"Crisia aculeata",2096]
[null,"Crisia calyptostoma",2097]
[null,"Crisia denticulata",2098]
[null,"Crisia eburnea",2099]
[null,"Crisia klugei",2100]
[null,"Crisidia cornuta",2101]
[null,"Crisiella producta",2102]
[null,"Crisilla semistriata",2103]
[null,"Cristatella mucedo",2104]
[null,"Crisularia plumosa",2105]
[null,"Crisularia purpurotincta",2106]
[null,"Crossaster papposus",2107]
[null,"Crucigenia fenestrata",4480]
[null,"Crucigenia lauterbornii",4481]
[null,"Crucigenia quadrata",4482]
[null,"Crucigenia tetrapedia",243]
[null,"Crucigeniella irregularis",4333]
[null,"Crucigeniella rectangularis",4483]
[null,"Cruoria pellita",2108]
[null,"Cruoria rosea",2109]
[null,"Cruoriopsis danica",2110]
[null,"Cryothecomonas scybalophora",244]
[null,"Cryptocelides loveni",2111]
[null,"Cryptochironomus camptolabis",2112]
[null,"Cryptochironomus defectus",1092]
[null,"Cryptochironomus monstrosus",1093]
[null,"Cryptochironomus obreptans",1094]
[null,"Cryptochironomus redekei",1095]
[null,"Cryptochironomus rolli",1096]
[null,"Cryptochironomus supplicans",1097]
[null,"Cryptochironomus tshernovskii ",1098]
[null,"Cryptochironomus ussouriensis",1099]
[null,"Cryptomonas curvata",4484]
[null,"Cryptomonas erosa",4485]
[null,"Cryptomonas marssonii",4486]
[null,"Cryptomonas obovata",4487]
[null,"Cryptomonas ovata",4488]
[null,"Cryptomonas reflexa",4489]
[null,"Cryptonatica affinis",2113]
[null,"Cryptorchestia cavimana",2114]
[null,"Cryptosula pallasiana",245]
[null,"Crystallogobius linearis",2115]
[null,"Ctenolabrus rupestris",246]
[null,"Ctenopharyngodon idella",2116]
[null,"Cuculus canorus",4222]
[null,"Cucumaria elongata",2117]
[null,"Cultellus pellucidus",2118]
[null,"Cumella (Cumella) pygmaea",2119]
[null,"Cumopsis goodsir",4245]
[null,"Curtitoma trevelliana",2120]
[null,"Curveulima devians",2121]
[null,"Cuspidaria cuspidata",2122]
[null,"Cuspidaria obesa",2123]
[null,"Cuspidella humilis",4246]
[null,"Cuspidothrix issatschenkoi",4334]
[null,"Cutleria multifida",2124]
[null,"Cyanea capillata",2125]
[null,"Cyanocatena imperfecta",4909]
[null,"Cyanodictyon planctonicum",247]
[null,"Cyanodictyon reticulatum",4862]
[null,"Cyanophthalma obscura",248]
[null,"Cyathura carinata",249]
[null,"Cyclops strenuus strenuus",4490]
[null,"Cyclops vicinus",2126]
[null,"Cyclops vicinus vicinus",2127]
[null,"Cyclopterus lumpus",2128]
[null,"Cyclostephanos dubius",250]
[null,"Cyclotella atomus",251]
[null,"Cyclotella choctawhatcheeana",252]
[null,"Cyclotella comta f. radiosa",253]
[null,"Cyclotella dubia var. dubia",254]
[null,"Cyclotella meneghiniana",255]
[null,"Cyclotella radiosa",256]
[null,"Cyclotella stelligera",4491]
[null,"Cygnus columbianus",2129]
[null,"Cygnus cygnus",2130]
[null,"Cygnus olor",2131]
[null,"Cylichna alba",2132]
[null,"Cylichna cylindracea",257]
[null,"Cylichnina umbilicata",2133]
[null,"Cylindrotheca closterium",258]
[null,"Cylindrotheca gracilis",259]
[null,"Cymatia coleoptrata",1100]
[null,"Cymatopleura elliptica",4492]
[null,"Cymatopleura librile",260]
[null,"Cymatopleura solea",4493]
[null,"Cymatosira belgica",4796]
[null,"Cymbella cistula",4494]
[null,"Cymbella lanceolata",4495]
[null,"Cymbella neocistula",4496]
[null,"Cymbopleura inaequalis",4497]
[null,"Cyprideis torosa",2134]
[null,"Cyprina islandica",2135]
[null,"Cyprinus carpio",2136]
[null,"Cyrnus crenaticornis",1101]
[null,"Cyrnus flavidus",1102]
[null,"Cyrnus trimaculatus",1103]
[null,"Cystobranchus fasciatus",1104]
[null,"Cystobranchus pawlowskii",1105]
[null,"Cystoclonium purpureum",261]
[null,"Cystoseira baccata",2137]
[null,"Dactyliosolen fragilissimus",262]
[null,"Dactyliosolen phuketensis",263]
[null,"Dangemannia microcystris",2138]
[null,"Daphnia cucullata",264]
[null,"Daphnia longispina",4498]
[null,"Dasya baillouviana",2139]
[null,"Dasyatis pastinaca",2140]
[null,"Dasybranchus caducus",2141]
[null,"Dasysiphonia japonica",265]
[null,"Decipula tenella",2142]
[null,"Deflexilodes tenuirostratus",2143]
[null,"Delamarea attenuata",2144]
[null,"Delesseria sanguinea",2145]
[null,"Delphineis minutissima",266]
[null,"Demeijerea rufipes",1106]
[null,"Demicryptochironomus vulneratus",1107]
[null,"Dendrocoelum lacteum",2146]
[null,"Dendrodoa grossularia",2147]
[null,"Dendronotus frondosus",2148]
[null,"Dentex maroccanus",2149]
[null,"Denticula tenuis",267]
[null,"Derbesia marina",2150]
[null,"Dero digitata",2151]
[null,"Dero obtusa",4499]
[null,"Deshayesorchestia deshayesii",2152]
[null,"Desmarestia aculeata",2153]
[null,"Desmarestia viridis",2154]
[null,"Desmidium swartzii",4500]
[null,"Desmodesmus abundans",4501]
[null,"Desmodesmus armatus",268]
[null,"Desmodesmus armatus var. armatus",4502]
[null,"Desmodesmus armatus var. bicaudatus",4503]
[null,"Desmodesmus bicaudatus",4504]
[null,"Desmodesmus bicellularis",4505]
[null,"Desmodesmus brasiliensis",4863]
[null,"Desmodesmus communis",4335]
[null,"Desmodesmus costatogranulatus",4910]
[null,"Desmodesmus denticulatus",4336]
[null,"Desmodesmus denticulatus var. denticulatus",4864]
[null,"Desmodesmus dispar",4506]
[null,"Desmodesmus intermedius",4507]
[null,"Desmodesmus maximus",269]
[null,"Desmodesmus microspina",4830]
[null,"Desmodesmus opoliensis",4337]
[null,"Desmodesmus opoliensis var. opoliensis",4508]
[null,"Desmodesmus protuberans",4509]
[null,"Desmodesmus serratus",4510]
[null,"Desmodesmus spinosus",270]
[null,"Desmodesmus subspicatus",4511]
[null,"Desmotrichum undulatum",2155]
[null,"Detonula pumila",271]
[null,"Dexamine spinosa",272]
[null,"Diacyclops bicuspidatus",4512]
[null,"Diadema antillarum",273]
[null,"Diadumene cincta",2156]
[null,"Diaphana minuta",2157]
[null,"Diaphanoeca grandis",274]
[null,"Diaphanosoma brachyurum",4338]
[null,"Diaphanosoma mongolianum",275]
[null,"Diastylis boecki",2158]
[null,"Diastylis bradyi",276]
[null,"Diastylis cornuta",2159]
[null,"Diastylis goodsiri",2160]
[null,"Diastylis laevis",2161]
[null,"Diastylis lucifera",2162]
[null,"Diastylis rathkei",2163]
[null,"Diastylis rostrata",2164]
[null,"Diastylis rugosa",2165]
[null,"Diastylis tumida",2166]
[null,"Diastyloides biplicatus",277]
[null,"Diastyloides serrata",2167]
[null,"Diastyloides serratus",2168]
[null,"Diatoma mesodon",4513]
[null,"Diatoma moniliformis",278]
[null,"Diatoma tenue",4514]
[null,"Diatoma tenuis",279]
[null,"Diatoma vulgaris",280]
[null,"Dicentrarchus labrax",2169]
[null,"Dichelopandalus bonnieri",2170]
[null,"Dichotomococcus curvatus",4865]
[null,"Dicoryne conferta",2171]
[null,"Dicrotendipes lobiger",1108]
[null,"Dicrotendipes nervosus",1109]
[null,"Dicrotendipes pulsus",1110]
[null,"Dicrotendipes tritomus",1111]
[null,"Dictyocha fibula",281]
[null,"Dictyocha octonaria",282]
[null,"Dictyocha speculum",283]
[null,"Dictyocysta elegans",284]
[null,"Dictyosiphon chordaria",2172]
[null,"Dictyosiphon foeniculaceus",2173]
[null,"Dictyosphaerium ehrenbergianum",4515]
[null,"Dictyosphaerium planctonicum",4911]
[null,"Dictyosphaerium pulchellum",4516]
[null,"Dictyosphaerium subsolitarium",285]
[null,"Dictyota dichotoma",286]
[null,"Didemnum vexillum",287]
[null,"Didinium gargantua",288]
[null,"Dikerogammarus haemobaphes",2174]
[null,"Dikerogammarus villosus",289]
[null,"Dilsea carnosa",2175]
[null,"Dina apathyi",1112]
[null,"Dina lineata",1113]
[null,"Dinobryon acuminatum",4517]
[null,"Dinobryon balticum",290]
[null,"Dinobryon bavaricum",4518]
[null,"Dinobryon cylindricum",4519]
[null,"Dinobryon divergens",4340]
[null,"Dinobryon faculiferum",291]
[null,"Dinobryon sertularia",4520]
[null,"Dinophysis acuminata",292]
[null,"Dinophysis acuta",293]
[null,"Dinophysis caudata",294]
[null,"Dinophysis norvegica",295]
[null,"Dinophysis rotundata",296]
[null,"Dinophysis sacculus",297]
[null,"Dinophysis schroederi",298]
[null,"Diphasia attenuata",299]
[null,"Diphasia rosacea",4247]
[null,"Diplocirrus glaucus",300]
[null,"Diplocirrus hirsutus",301]
[null,"Diplodus cervinus",302]
[null,"Diplodus cervinus cervinus",4521]
[null,"Diplodus sargus",2176]
[null,"Diploneis bombus",303]
[null,"Diploneis crabro",304]
[null,"Diploneis didyma",305]
[null,"Diploneis interrupta",4903]
[null,"Diploneis smithii",4523]
[null,"Diplosolen obelia",2177]
[null,"Diplosolen obelium",2178]
[null,"Diplosoma listerianum",2179]
[null,"Dipolydora caulleryi",306]
[null,"Dipolydora coeca",2180]
[null,"Dipolydora giardi",2181]
[null,"Dipolydora quadrilobata",2182]
[null,"Dipturus batis",2183]
[null,"Dipturus nidarosiensis",2184]
[null,"Dipurena spongicola",2185]
[null,"Discocelides langi",2186]
[null,"Disparalona rostrata",4342]
[null,"Disporella hispida",2187]
[null,"Dissodinium pseudolunula",4831]
[null,"Ditrichocorycaeus anglicus",2188]
[null,"Ditylum brightwellii",307]
[null,"Dodecaceria concharum",2189]
[null,"Dolichospermum circinale",4524]
[null,"Dolichospermum crassum",4525]
[null,"Dolichospermum flosaquae",4526]
[null,"Dolichospermum lemmermannii",308]
[null,"Dolichospermum mendotae",4912]
[null,"Dolichospermum planctonicum",4527]
[null,"Dolichospermum sigmoideum",4528]
[null,"Dolichospermum spiroides",4343]
[null,"Donax vittatus",2190]
[null,"Doris pseudoargus",2191]
[null,"Dosinia exoleta",2192]
[null,"Dosinia lincta",2193]
[null,"Dosinia lupinus",2194]
[null,"Doto coronata",2195]
[null,"Dreissena bugensis",309]
[null,"Dreissena polymorpha",310]
[null,"Dreissena rostriformis bugensis",4529]
[null,"Drepanocladus aduncus ",1114]
[null,"Drepanocladus sordidus",4300]
[null,"Drilonereis filum",2196]
[null,"Drunella walkeri",1115]
[null,"Duasmodactyla commune",2197]
[null,"Dudresnaya verticillata",2198]
[null,"Dugesia lugubris",2199]
[null,"Dugesia polychroa",2200]
[null,"Dugesia tigrina",4530]
[null,"Dulichia falcata",2201]
[null,"Dulichia monacantha",2202]
[null,"Dulichia porrecta",2203]
[null,"Dulichia tuberculata",2204]
[null,"Dumontia contorta",2205]
[null,"Dynamena pumila",2206]
[null,"Dyopedos monacantha",2207]
[null,"Dyopedos monacanthus",2208]
[null,"Dyopedos porrectus",2209]
[null,"Dytiscus circumcinctus",1116]
[null,"Dytiscus marginalis",1117]
[null,"Ebala nitidissima",2210]
[null,"Ebalia cranchii",2211]
[null,"Ebalia granulosa",2212]
[null,"Ebalia tuberosa",2213]
[null,"Ebalia tumefacta",2214]
[null,"Ebria tripartita",311]
[null,"Echiichthys vipera",2215]
[null,"Echinocardium cordatum",312]
[null,"Echinocardium flavescens",2216]
[null,"Echinocardium pennatifidum",2217]
[null,"Echinocucumis hispida",2218]
[null,"Echinocyamus pusillus",313]
[null,"Echinocythereis echinata",2219]
[null,"Echinogammarus finmarchicus",2220]
[null,"Echinogammarus ischnus",2221]
[null,"Echinogammarus marinus",314]
[null,"Echinogammarus stoerensis",315]
[null,"Echinogammarus warpachowskyi",2222]
[null,"Echinozone coronata",2223]
[null,"Echinus esculentus",2224]
[null,"Echiurus echiurus",2225]
[null,"Ecnomus tenellus",1118]
[null,"Ecrobia ventrosa",2226]
[null,"Ectocarpus confervoides",2227]
[null,"Ectocarpus fasciculatus",2228]
[null,"Ectocarpus siliculosus",2229]
[null,"Ectopleura larynx",2230]
[null,"Edwardsia danica",2231]
[null,"Edwardsia longicornis",2232]
[null,"Edwardsia tuberculata",2233]
[null,"Edwardsiella carnea",2234]
[null,"Einfeldia carbonaria",2235]
[null,"Einhornia crustulenta",316]
[null,"Eiseniella tetraedra",2236]
[null,"Ekmania barthii",2237]
[null,"Elachista fucicola",317]
[null,"Elachista stellaris",2238]
[null,"Elakatothrix gelatinosa",4531]
[null,"Elakatothrix genevensis",4532]
[null,"Elatine hydropiper",2239]
[null,"Elatine orthosperma",2240]
[null,"Elatine triandra",2241]
[null,"Electra crustulenta",318]
[null,"Electra monostachys",4797]
[null,"Electra pilosa",319]
[null,"Eleocharis acicularis",2242]
[null,"Eleocharis mamillata",4299]
[null,"Eleocharis palustris",2243]
[null,"Eleocharis parvula",2244]
[null,"Eleocharis uniglumis",2245]
[null,"Elminius modestus",320]
[null,"Elodea canadensis",2246]
[null,"Elodea nuttallii",2247]
[null,"Elophila nymphaeata",1119]
[null,"Elysia viridis",2248]
[null,"Emarginula crassa",2249]
[null,"Emarginula fissura",2250]
[null,"Emberiza schoeniclus",4223]
[null,"Embletonia pallida",4533]
[null,"Embolocephalus velutinus",2251]
[null,"Emplectonema gracile",4832]
[null,"Emplectonema neesii",321]
[null,"Enallagma cyathigerum",1120]
[null,"Enchelyopus cimbrius",2252]
[null,"Enchytraeus albidus",2253]
[null,"Encyonema cespitosum",4534]
[null,"Encyonema silesiacum",4535]
[null,"Endeis spinosa",2254]
[null,"Endochironomus albipennis",1121]
[null,"Endochironomus dispar",1122]
[null,"Endochironomus stackelbergi",1123]
[null,"Endochironomus tendens",1124]
[null,"Endodictyon infestans",2255]
[null,"Engraulis encrasicolus",2256]
[null,"Enipo elisabethae",2257]
[null,"Enipo kinbergi",2258]
[null,"Ennucula tenuis",322]
[null,"Enochrus fuscipennis",1125]
[null,"Enochrus melanocephalus",1126]
[null,"Ensis americanus",323]
[null,"Ensis directus",324]
[null,"Ensis ensis",2259]
[null,"Ensis leei",325]
[null,"Ensis siliqua",2260]
[null,"Entalophoroecia deflexa",2261]
[null,"Entelurus aequoraeus",2262]
[null,"Entelurus aequoreus",2263]
[null,"Enteromorpha ahlneriana",2264]
[null,"Enteromorpha clathrata",2265]
[null,"Enteromorpha compressa",2266]
[null,"Enteromorpha flexuosa",2267]
[null,"Enteromorpha intestinalis",2268]
[null,"Enteromorpha jugoslavica",2269]
[null,"Enteromorpha prolifera",2270]
[null,"Enteromorpha torta",2271]
[null,"Entocladia viridis",2272]
[null,"Entomoneis paludosa",4536]
[null,"Ephemera danica",2273]
[null,"Ephemera vulgata",1127]
[null,"Ephemerella mucronata ",1128]
[null,"Ephesiella abyssorum",2275]
[null,"Ephoron virgo ",1129]
[null,"Ephydatia fluviatilis",2276]
[null,"Ephydatia muelleri",2277]
[null,"Ephydra riparia",2278]
[null,"Epicladia cyclostoma",2279]
[null,"Epicladia flustrae",2280]
[null,"Epicladia heterotricha",2281]
[null,"Epicladia perforans",2282]
[null,"Epicladia phillipsii",2283]
[null,"Epicladia testarum",2284]
[null,"Epimeria (Epimeria) cornigera",2285]
[null,"Epimeria cornigera",2286]
[null,"Epiplocylis inflata",4537]
[null,"Epitheca bimaculata",1130]
[null,"Epithemia adnata",4538]
[null,"Epithemia turgida",4539]
[null,"Epitonium clathratulum",2287]
[null,"Epitonium clathrus",2288]
[null,"Epitonium trevelyanum",2289]
[null,"Epitonium turtonis",2290]
[null,"Equisetum fluviatile",2291]
[null,"Eremophila alpestris",2292]
[null,"Ericthonius brasiliensis",2293]
[null,"Ericthonius difformis",2294]
[null,"Ericthonius hunteri",2295]
[null,"Ericthonius punctatus",2296]
[null,"Ericthonius rubricornis",326]
[null,"Erinaceusyllis erinaceus",2297]
[null,"Eriocheir sinensis",327]
[null,"Eriopisa elongata",328]
[null,"Erotesis baltica",1131]
[null,"Erpobdella monostriata",1132]
[null,"Erpobdella nigricollis",1133]
[null,"Erpobdella octoculata",2298]
[null,"Erpobdella testacea",1134]
[null,"Erpobdella vilnensis",4345]
[null,"Erythrocladia irregularis",2299]
[null,"Erythrodermis traillii",2300]
[null,"Erythromma najas",1135]
[null,"Erythrops elegans",2301]
[null,"Erythrops erythrophthalma",2302]
[null,"Erythrops erythrophthalmus",2303]
[null,"Erythrops serrata",2304]
[null,"Erythrops serratus",2305]
[null,"Erythrotrichia carnea",329]
[null,"Erythrotrichia investiens",2306]
[null,"Erythrotrichia reflexa",2307]
[null,"Escharella immersa",2308]
[null,"Escharella klugei",4248]
[null,"Escharella labiosa",4249]
[null,"Escharella laqueata",2309]
[null,"Escharella variolosa",4250]
[null,"Escharella ventricosa",2310]
[null,"Escharina vulgaris",2311]
[null,"Escherichia coli",4540]
[null,"Esox lucius",2312]
[null,"Eteone (Mysta) barbata",2313]
[null,"Eteone barbata",2314]
[null,"Eteone flava",2315]
[null,"Eteone foliosa",2316]
[null,"Eteone lactea",2317]
[null,"Eteone longa",2318]
[null,"Eteone pusilla",2319]
[null,"Ethmodiscus punctiger",4798]
[null,"Etmopterus spinax",2320]
[null,"Eualus cranchii",2321]
[null,"Eualus gaimardii",2322]
[null,"Eualus occultus",2323]
[null,"Eualus pusiolus",2324]
[null,"Eubosmina coregoni",4541]
[null,"Eubosmina maritima",4542]
[null,"Eubranchus exiguus",2325]
[null,"Eubranchus pallidus",2326]
[null,"Eubranchus tricolor",2327]
[null,"Eubrychius velutus",1136]
[null,"Eucampia cornuta",330]
[null,"Eucampia zodiacus",331]
[null,"Eucapsis microscopica",332]
[null,"Euchlanis deflexa",4543]
[null,"Euchlanis dilatata",4544]
[null,"Euchone analis",2328]
[null,"Euchone papillosa",2329]
[null,"Euchone rubrocincta",2330]
[null,"Euclymene affinis",2331]
[null,"Euclymene droebachiensis",4251]
[null,"Euclymene praetermissa",2332]
[null,"Eucratea loricata",2333]
[null,"Eudendrium arbuscula",4252]
[null,"Eudendrium rameum",2334]
[null,"Eudesme virescens",2335]
[null,"Eudiaptomus gracilis",333]
[null,"Eudiaptomus graciloides",4545]
[null,"Eudorella emarginata",334]
[null,"Eudorella hirsuta",4253]
[null,"Eudorella truncatula",2336]
[null,"Eudorellopsis deformis",2337]
[null,"Eudorina elegans",335]
[null,"Euglena viridis",4866]
[null,"Euglesa casertana",2338]
[null,"Euglesa conventus",4205]
[null,"Euglesa lilljeborgii",2339]
[null,"Eugomontia sacculata",2340]
[null,"Eugyra arenosa",2341]
[null,"Eulalia bilineata",2342]
[null,"Eulalia viridis",2343]
[null,"Eulima bilineata",2344]
[null,"Eumetula arctica",2345]
[null,"Eumida arctica",2346]
[null,"Eumida bahusiensis",2347]
[null,"Eumida ockelmanni",2348]
[null,"Eumida punctifera",2349]
[null,"Eumida sanguinea",2350]
[null,"Eunereis longissima",2351]
[null,"Eunoe nodosa",2352]
[null,"Eunotia bilunaris",4546]
[null,"Eunotogramma dubium",4799]
[null,"Euplana gracilis",4547]
[null,"Eupolymnia nebulosa",2353]
[null,"Eupolymnia nesidensis",2354]
[null,"Eurycercus lamellatus",2355]
[null,"Eurycope mutica",2356]
[null,"Eurydice pulchra",336]
[null,"Eurynome aspera",2357]
[null,"Eurynome spinosa",2358]
[null,"Eurystheus maculatus",2359]
[null,"Eurystheus melanops",2360]
[null,"Eurystheus palmatus",2361]
[null,"Eurytemora affinis",337]
[null,"Eurytemora hirundoides",2362]
[null,"Eurytemora velox",4346]
[null,"Euspira catena",2363]
[null,"Euspira montagui",2364]
[null,"Euspira nitida",2365]
[null,"Euspira pallida",2366]
[null,"Euspira pulchella",2367]
[null,"Eusyllis blomstrandi",4254]
[null,"Euterpina acutifrons",4800]
[null,"Euthora cristata",2368]
[null,"Euthynnus alletteratus",2369]
[null,"Eutreptiella braarudii",338]
[null,"Eutreptiella gymnastica",339]
[null,"Eutrigla gurnardus",2370]
[null,"Euzonus flabelligerus",2371]
[null,"Evadne anonyx",340]
[null,"Evadne nordmanni",341]
[null,"Exidmonea atlantica",2372]
[null,"Exogone (Exogone) dispar",2373]
[null,"Exogone (Exogone) naidina",2374]
[null,"Exogone (Exogone) verugera",2375]
[null,"Exogone (Parexogone) hebes",2376]
[null,"Exogone dispar",2377]
[null,"Exogone hebes",2378]
[null,"Exogone naidina",2379]
[null,"Exogone verugera",2380]
[null,"Fabricia sabella",2381]
[null,"Fabricia stellaris",342]
[null,"Fabricia stellaris stellaris",2382]
[null,"Fabriciola baltica",2383]
[null,"Fabulina fabula",2384]
[null,"Facelina bostoniensis",2385]
[null,"Falco peregrinus",4230]
[null,"Fallacia cassubiae",343]
[null,"Fallacia florinae",344]
[null,"Fallacia tenera",345]
[null,"Farranula gracilis",346]
[null,"Farrella repens",2386]
[null,"Favorinus branchialis",2387]
[null,"Faxonius limosus",2388]
[null,"Feldmannia irregularis",2389]
[null,"Feldmannia kjellmanii",2390]
[null,"Fenestrulina malusii",2391]
[null,"Ferrissia fragilis",4548]
[null,"Fibrocapsa japonica",347]
[null,"Ficopomatus enigmaticus",348]
[null,"Filellum serpens",2392]
[null,"Filinia passa",4549]
[null,"Filinia terminalis",4550]
[null,"Filograna implexa",2393]
[null,"Fissidens fontanus",1137]
[null,"Fissidens osmundoides",4298]
[null,"Fjordia lineata",2394]
[null,"Flabelligera affinis",2395]
[null,"Flabellina verrucosa",2396]
[null,"Flustra foliacea",2397]
[null,"Flustrellidra hispida",2398]
[null,"Fontinalis antipyretica",2399]
[null,"Fontinalis dalecarlica ",1138]
[null,"Fontinalis hypnoides",1139]
[null,"Fossaria truncatula",1140]
[null,"Fragilaria acus",4551]
[null,"Fragilaria atomus",349]
[null,"Fragilaria brevistriata",4552]
[null,"Fragilaria brevistriata f. brevistriata",350]
[null,"Fragilaria capucina",4553]
[null,"Fragilaria capucina var. capucina",4867]
[null,"Fragilaria construens",351]
[null,"Fragilaria crotonensis",4348]
[null,"Fragilaria gedanensis",352]
[null,"Fragilaria geocollegarum",4554]
[null,"Fragilaria guenter-grassii",353]
[null,"Fragilaria heidenii",4868]
[null,"Fragilaria istvanffyi",4869]
[null,"Fragilaria unipunctata",354]
[null,"Fragilariforma virescens",4870]
[null,"Fragilariopsis cylindrus",4555]
[null,"Franceia ovalis",4871]
[null,"Fridericia bulbosa",2400]
[null,"Fritillaria borealis",355]
[null,"Fucus distichus",2401]
[null,"Fucus distichus subsp. evanescens",2402]
[null,"Fucus edentatus",4349]
[null,"Fucus evanescens",2403]
[null,"Fucus guiryi",4833]
[null,"Fucus radicans",2404]
[null,"Fucus serratus",2405]
[null,"Fucus spiralis",356]
[null,"Fucus vesiculosus",357]
[null,"Fulica atra",2406]
[null,"Fulmarus glacialis",2407]
[null,"Funiculina quadrangularis",2408]
[null,"Furcellaria fastigiata",2409]
[null,"Furcellaria fastigiata f. aegagropila",2410]
[null,"Furcellaria lumbricalis",2411]
[null,"Gadus morhua",358]
[null,"Gaidropsarus vulgaris",2412]
[null,"Gaillona hookeri",359]
[null,"Gaillona rosea",360]
[null,"Galathea intermedia",2413]
[null,"Galathea rostrata",2414]
[null,"Galathea squamifera",2415]
[null,"Galathea strigosa",2416]
[null,"Galathowenia oculata",361]
[null,"Galeorhinus galeus",2417]
[null,"Galeus melastomus",2418]
[null,"Gallinago gallinago",4217]
[null,"Gallinula chloropus",4224]
[null,"Gammarellus angulosus",2419]
[null,"Gammarellus homari",2420]
[null,"Gammaropsis cornuta",2421]
[null,"Gammaropsis maculata",2422]
[null,"Gammaropsis melanops",2423]
[null,"Gammaropsis nitida",2424]
[null,"Gammaropsis palmata",2425]
[null,"Gammarus duebeni",2426]
[null,"Gammarus finmarchicus",2427]
[null,"Gammarus inaequicauda",2428]
[null,"Gammarus insensibilis",2429]
[null,"Gammarus lacustris",2430]
[null,"Gammarus locusta",362]
[null,"Gammarus oceanicus",2431]
[null,"Gammarus pulex",2432]
[null,"Gammarus roeselii",2433]
[null,"Gammarus salinus",363]
[null,"Gammarus tigrinus",364]
[null,"Gammarus zaddachi",365]
[null,"Gari fervensis",2434]
[null,"Gari tellinella",2435]
[null,"Garveia franciscana",2436]
[null,"Gasterosteus aculeatus",366]
[null,"Gasterosteus gymnurus",2437]
[null,"Gastrosaccus sanctus",4834]
[null,"Gastrosaccus spinifer",2438]
[null,"Gattyana amondseni",2439]
[null,"Gattyana cirrhosa",2440]
[null,"Gattyana cirrosa",2441]
[null,"Gavia adamsii",2442]
[null,"Gavia arctica",2443]
[null,"Gavia immer",2444]
[null,"Gavia stellata",2445]
[null,"Gayralia oxysperma",2446]
[null,"Gelochelidon nilotica",2447]
[null,"Genetyllis lutea",2448]
[null,"Gerris argentatus",1141]
[null,"Gerris lacustris",1142]
[null,"Gerris odontogaster",1143]
[null,"Gerris thoracicus",1144]
[null,"Geryon trispinosus",2449]
[null,"Gibbula cineraria",2450]
[null,"Gibbula tumida",2451]
[null,"Giffordia ovata",2452]
[null,"Giffordia sandriana",2453]
[null,"Gigartina stellata",2454]
[null,"Giraudya sphacelarioides",4198]
[null,"Gitana sarsi",2455]
[null,"Glochidinium pernardiforme",4556]
[null,"Gloeotila pelagica",4557]
[null,"Gloiosiphonia capillaris",2456]
[null,"Glossiphonia complanata",2457]
[null,"Glossiphonia concolor",1145]
[null,"Glossiphonia heteroclita",2458]
[null,"Glossiphonia paludosa",1146]
[null,"Glossiphonia verrucata",1147]
[null,"Glycera alba",367]
[null,"Glycera capitata",2459]
[null,"Glycera fallax",2460]
[null,"Glycera gigantea",2461]
[null,"Glycera lapidum",2462]
[null,"Glycera rouxi",2463]
[null,"Glycera rouxii",2464]
[null,"Glycera tesselata",2465]
[null,"Glycera unicornis",2466]
[null,"Glyceria maxima ",1148]
[null,"Glycinde nordmanni",2467]
[null,"Glyphohesione klatti",2468]
[null,"Glyphotaelius pellucidus",1149]
[null,"Glyptocephalus cynoglossus",2469]
[null,"Glyptotendipes barbipes",2470]
[null,"Glyptotendipes glaucus",1150]
[null,"Glyptotendipes gripekoveni",1151]
[null,"Glyptotendipes pallens",1152]
[null,"Glyptotendipes paripes",1153]
[null,"Gmelinoides fasciatus",2471]
[null,"Gnathia oxyuraea",2472]
[null,"Gobio gobio",2473]
[null,"Gobius niger",368]
[null,"Gobiusculus flavescens",2474]
[null,"Goera pilosa",1154]
[null,"Golenkinia radiata",4558]
[null,"Golfingia (Golfingia) elongata",2475]
[null,"Golfingia (Golfingia) margaritacea",2476]
[null,"Golfingia (Golfingia) vulgaris",369]
[null,"Golfingia (Golfingia) vulgaris vulgaris",2477]
[null,"Golfingia elongata",2478]
[null,"Golfingia margaritacea",2479]
[null,"Golfingia procera",2480]
[null,"Golfingia vulgaris",370]
[null,"Gomontia polyrhiza",2481]
[null,"Gomphonema olivaceum",371]
[null,"Gomphonema olivaceum var. balticum",4559]
[null,"Gomphus flavipes",1155]
[null,"Gomphus vulgatissimus",1156]
[null,"Gonactinia prolifera",2482]
[null,"Goniada maculata",372]
[null,"Goniada norvegica",2483]
[null,"Goniada pallida",2484]
[null,"Goniadella bobretzkii",2485]
[null,"Goniadella bobrezkii",2486]
[null,"Goniadella gracilis",4560]
[null,"Goniochloris mutica",4561]
[null,"Goniodoris nodosa",2487]
[null,"Gonionemus vertens",4562]
[null,"Goniotrichum alsidii",2488]
[null,"Gonium pectorale",4563]
[null,"Gonium sociale",4564]
[null,"Gononema aecidioides",2489]
[null,"Gonothyraea loveni",373]
[null,"Gonyaulax digitale",374]
[null,"Gonyaulax grindleyi",375]
[null,"Gonyaulax minuta",376]
[null,"Gonyaulax polyedra",377]
[null,"Gonyaulax polygramma",378]
[null,"Gonyaulax spinifera",379]
[null,"Gonyaulax verior",380]
[null,"Gordius aquaticus",1157]
[null,"Gossea corynetes",4801]
[null,"Gracilaria gracilis",2490]
[null,"Gracilaria vermiculophylla",381]
[null,"Gracilaria verrucosa",2491]
[null,"Gracilariopsis longissima",2492]
[null,"Gracilechinus acutus",2493]
[null,"Gracilechinus elegans",2494]
[null,"Grammatophora marina",382]
[null,"Grammotaulius nigropunctatus",1158]
[null,"Grandidierella japonica",383]
[null,"Grania efflorescens",2495]
[null,"Grania ovitheca",2496]
[null,"Grania pectinata",2497]
[null,"Grania postclitellochaeta",2498]
[null,"Grania variochaeta",2499]
[null,"Grania vikinga",2500]
[null,"Graphis albida",2501]
[null,"Grateloupia doryphora",384]
[null,"Grateloupia turuturu",385]
[null,"Griffithsia corallinoides",2502]
[null,"Griffithsia devoniensis",2503]
[null,"Grus grus",4225]
[null,"Guancha blanca",2504]
[null,"Guinardia delicatula",386]
[null,"Guinardia flaccida",387]
[null,"Guinardia striata",388]
[null,"Gymnocephalus cernua",389]
[null,"Gymnocephalus cernuus",390]
[null,"Gymnodinium aureolum",391]
[null,"Gymnodinium catenatum",392]
[null,"Gymnodinium galeatum",393]
[null,"Gymnodinium heterostriatum",394]
[null,"Gymnodinium sanguineum",4565]
[null,"Gymnodinium simplex",395]
[null,"Gymnodinium splendens",396]
[null,"Gymnodinium vestifici",4566]
[null,"Gymnogongrus",2505]
[null,"Gyptis helgolandica",2506]
[null,"Gyptis rosea",2507]
[null,"Gyraulus (Armiger) crista",2508]
[null,"Gyraulus albus",2509]
[null,"Gyraulus crista",2510]
[null,"Gyraulus riparius",2511]
[null,"Gyrinus distinctus",1159]
[null,"Gyrinus minutus",1160]
[null,"Gyrinus natator",1161]
[null,"Gyrodinium aureolum",397]
[null,"Gyrodinium britannicum",398]
[null,"Gyrodinium flagellare",399]
[null,"Gyrodinium fusiforme",4567]
[null,"Gyrodinium glaucum",400]
[null,"Gyrodinium spirale",401]
[null,"Gyrosigma acuminatum",402]
[null,"Gyrosigma attenuatum",4568]
[null,"Gyrosigma balticum",4835]
[null,"Gyrosigma fasciola",403]
[null,"Haematopus ostralegus",2512]
[null,"Haemescharia hennedyi",2513]
[null,"Haemopis elegans",1162]
[null,"Haemopis sanguisuga",1163]
[null,"Halarachnion ligulatum",2514]
[null,"Halcampa chrysanthellum",2515]
[null,"Halcampa duodecimcirrata",2516]
[null,"Halcampoides abyssorum",2517]
[null,"Halecium articulosum",4255]
[null,"Halecium beanii",4256]
[null,"Halecium halecinum",2518]
[null,"Halecium halecium",2519]
[null,"Halecium labrosum",2520]
[null,"Halecium lankesterii",4257]
[null,"Halecium muricatum",4258]
[null,"Halecium nanum",4259]
[null,"Halecium tenellum",2521]
[null,"Haliaeetus albicilla",2522]
[null,"Halichoerus grypus",2523]
[null,"Halichondria (Halichondria) bowerbanki",404]
[null,"Halichondria (Halichondria) panicea",405]
[null,"Halichondria bowerbanki",406]
[null,"Halichondria panicea",407]
[null,"Haliclona (Haliclona) oculata",408]
[null,"Haliclona (Haliclona) urceolus",2524]
[null,"Haliclona (Reniera) cinerea",2525]
[null,"Haliclona oculata",409]
[null,"Haliclona urceolus",2526]
[null,"Halicreion aequicornis",2527]
[null,"Halicryptus spinulosus",2528]
[null,"Halidrys siliquosa",2529]
[null,"Haliplus confinis",2530]
[null,"Haliplus flavicollis",1164]
[null,"Haliplus immaculatus",1165]
[null,"Halisarca dujardinii",2531]
[null,"Halitholus cirratus",2532]
[null,"Halitholus yoldiaarcticae",2533]
[null,"Halitholus yoldiaearcticae",2534]
[null,"Halobatrachus didactylus",2535]
[null,"Halocladius braunsi",2536]
[null,"Halocladius variabilis",2537]
[null,"Halocladius varians",2538]
[null,"Halocladius vitripennis",2539]
[null,"Halonema subsimplex",2540]
[null,"Halophila stipulacea",410]
[null,"Halopteris catharina",4260]
[null,"Halopteris scoparia",2541]
[null,"Halorhiza vaga",2542]
[null,"Halosiphon tomentosus",2543]
[null,"Halothrix lumbricalis",2544]
[null,"Haminoea exigua",2545]
[null,"Haminoea solitaria",2546]
[null,"Hanleya hanleyi",2547]
[null,"Haploops tenuis",2548]
[null,"Haploops tubicola",2549]
[null,"Haplospora globosa",2550]
[null,"Haplota clavata",4261]
[null,"Hardametopa nasuta",2551]
[null,"Hariotina reticulata",4872]
[null,"Harmothoe antilopes",2552]
[null,"Harmothoe antilopis",2553]
[null,"Harmothoe aspera",2554]
[null,"Harmothoe borealis",2555]
[null,"Harmothoe elisabethae",2556]
[null,"Harmothoe extenuata",2557]
[null,"Harmothoe fragilis",2558]
[null,"Harmothoe glabra",2559]
[null,"Harmothoe imbricata",411]
[null,"Harmothoe impar",2560]
[null,"Harmothoe ljungmani",2561]
[null,"Harmothoe longisetis",2562]
[null,"Harmothoe lunulata",2563]
[null,"Harmothoe nodosa",2564]
[null,"Harmothoe sarsi",412]
[null,"Harnischia curtilamellata",1166]
[null,"Harnischia fuscimana",1167]
[null,"Harpinia antennaria",2565]
[null,"Harpinia crenulata",2566]
[null,"Harpinia laevis",2567]
[null,"Harpinia pectinata",413]
[null,"Harpinia serrata",2568]
[null,"Harpinia truncata",2569]
[null,"Harrimania kupfferi",2570]
[null,"Hartlaubella gelatinosa",414]
[null,"Harveyella mirabilis",2571]
[null,"Hauchiella tribullata",2572]
[null,"Haustorius arenarius",2573]
[null,"Hebrus pusillus",1168]
[null,"Hecatonema maculans",2574]
[null,"Hecatonema terminale",2575]
[null,"Hediste diversicolor",415]
[null,"Helcion pellucidum",2576]
[null,"Helicopedinella tricostata",4913]
[null,"Helicotheca tamesis",416]
[null,"Helminthocladia stackhousei",2577]
[null,"Helminthora divaricata",2578]
[null,"Helminthora stackhousei",2579]
[null,"Helobdella stagnalis",2580]
[null,"Hemiaulus hauckii",417]
[null,"Hemiaulus membranaceus",418]
[null,"Hemiaulus sinensis",419]
[null,"Hemiclepsis marginata",2581]
[null,"Hemigrapsus penicillatus",4569]
[null,"Hemigrapsus sanguineus",420]
[null,"Hemigrapsus takanoi",421]
[null,"Hemilamprops assimilis",2582]
[null,"Hemilamprops cristata",2583]
[null,"Hemilamprops cristatus",2584]
[null,"Hemilamprops rosea",2585]
[null,"Hemilamprops roseus",2586]
[null,"Hemilepton nitidum",2587]
[null,"Hemimysis anomala",422]
[null,"Hemimysis lamornae",2588]
[null,"Hemiselmis virescens",423]
[null,"Henricia perforata",2589]
[null,"Henricia sanguinolenta",2590]
[null,"Heptagenia sulphurea",1169]
[null,"Heptatoma pellucens",1170]
[null,"Hermania scabra",2591]
[null,"Herponema desmarestiae",2592]
[null,"Hesperocorixa linnaei",2593]
[null,"Heteranomia squamula",2594]
[null,"Heterocapsa arctica",424]
[null,"Heterocapsa arctica frigida",4570]
[null,"Heterocapsa minima",425]
[null,"Heterocapsa rotundata",426]
[null,"Heterocapsa triquetra",427]
[null,"Heterochaeta costata",2595]
[null,"Heteromastus filiformis",428]
[null,"Heteromysis (Heteromysis) norvegica",2596]
[null,"Heterosiphonia japonica",429]
[null,"Heterosiphonia plumosa",430]
[null,"Heterotanais oerstedii",431]
[null,"Heterotrissocladius grimshawi",2597]
[null,"Hexanchus griseus",2598]
[null,"Hiatella arctica",2599]
[null,"Hilbigneris gracilis",432]
[null,"Hildenbrandia crouanii",2600]
[null,"Hildenbrandia crouaniorum",2601]
[null,"Hildenbrandia rivularis",2602]
[null,"Hildenbrandia rubra",2603]
[null,"Himanthalia elongata",2604]
[null,"Hincksia granulosa",2605]
[null,"Hincksia hincksiae",2606]
[null,"Hincksia ovata",2607]
[null,"Hincksia sandriana",2608]
[null,"Hinia incrassata",2609]
[null,"Hinia pygmaea",2610]
[null,"Hinia reticulata",2611]
[null,"Hippasteria phrygiana",2612]
[null,"Hippeutis complanatus",2613]
[null,"Hippocampus hippocampus",2614]
[null,"Hippodonta arctica",433]
[null,"Hippodonta linearis",4571]
[null,"Hippoglossoides platessoides",2615]
[null,"Hippoglossus hippoglossus",2616]
[null,"Hippolyte varians",2617]
[null,"Hippomedon denticulatus",2618]
[null,"Hippomedon propinqvus",4262]
[null,"Hippothoa divaricata",2619]
[null,"Hippothoa flagellum",2620]
[null,"Hippuris lanceolata",4297]
[null,"Hippuris tetraphylla",2621]
[null,"Hippuris vulgaris",2622]
[null,"Histioneis para",434]
[null,"Hobaniella longicruris",435]
[null,"Holocentropus dubius",2623]
[null,"Holocentropus picicornis",1171]
[null,"Holocentropus stagnalis",1172]
[null,"Homarus americanus",4572]
[null,"Hormathia digitata",2624]
[null,"Hornera lichenoides",2625]
[null,"Hubrechtella dubia",2626]
[null,"Huso huso",2627]
[null,"Hyala vitrea",436]
[null,"Hyalinella punctata",2628]
[null,"Hyalinoecia tubicola",2629]
[null,"Hyalosira delicatula",437]
[null,"Hyas araneus",2630]
[null,"Hyas coarctatus",2631]
[null,"Hybocodon prolifer",4263]
[null,"Hydra circumcincta",2632]
[null,"Hydra fusca",2633]
[null,"Hydra oligactis",2634]
[null,"Hydra oxycnida",2635]
[null,"Hydra vulgaris",2636]
[null,"Hydractinia borealis",2637]
[null,"Hydractinia carnea",2638]
[null,"Hydractinia echinata",438]
[null,"Hydrallmania falcata",2639]
[null,"Hydrobaenus pilipes",1173]
[null,"Hydrobia acuta neglecta",2640]
[null,"Hydrobia neglecta",2641]
[null,"Hydrobia ulvae",439]
[null,"Hydrobia ventrosa",2642]
[null,"Hydrochara caraboides",1174]
[null,"Hydrocharis morsus-ranae",1175]
[null,"Hydrocoloeus minutus",2643]
[null,"Hydroides dianthus",440]
[null,"Hydroides elegans",441]
[null,"Hydroides ezoensis",4573]
[null,"Hydroides norvegica",2644]
[null,"Hydroides norvegicus",2645]
[null,"Hydrolithon farinosum",2646]
[null,"Hydromermis contorta",2647]
[null,"Hydroporus erythrocephalus",1176]
[null,"Hydroporus incognitus",1177]
[null,"Hydroporus nigrita",1178]
[null,"Hydroporus tristis",1179]
[null,"Hydroporus umbrosus",1180]
[null,"Hydroprogne caspia",2648]
[null,"Hydropsyche angustipennis",2649]
[null,"Hydropsyche contubernalis",1181]
[null,"Hydropsyche siltalai",2650]
[null,"Hydroptila angulata",1182]
[null,"Hydroptila pulchricornis",1183]
[null,"Hydroptila simulans",1184]
[null,"Hydroptila tineoides",1185]
[null,"Hydroptila vectis",1186]
[null,"Hygrobia hermanni",1187]
[null,"Hygrohypnum luridum",4296]
[null,"Hygrotus impressopunctatus",1188]
[null,"Hygrotus inaequalis",1189]
[null,"Hymenoclonium serpens",2651]
[null,"Hypania invalida",2652]
[null,"Hypereteone foliosa",2653]
[null,"Hypereteone lactea",2654]
[null,"Hyperia galba",2655]
[null,"Hyperoplus lanceolatus",2656]
[null,"Hypophorella expansa",2657]
[null,"Hypophthalmichthys molitrix",2658]
[null,"Hypophthalmichthys nobilis",2659]
[null,"Idmidronea atlantica",2660]
[null,"Idotea balthica",442]
[null,"Idotea chelipes",443]
[null,"Idotea granulosa",2661]
[null,"Idotea linearis",4802]
[null,"Idotea neglecta",2662]
[null,"Idotea pelagica",2663]
[null,"Idotea viridis",2664]
[null,"Ilybius aenescens",1190]
[null,"Ilybius ater",1191]
[null,"Ilybius fenestratus",1192]
[null,"Ilybius guttiger",1193]
[null,"Ilybius subaeneus",1194]
[null,"Ilyocoris cimicoides",1195]
[null,"Ilyocryptus sordidus",4355]
[null,"Ilyodrilus templetoni",2665]
[null,"Inachus dorsettensis",2666]
[null,"Inachus phalangium",2667]
[null,"Incisocalliope aestuarius ",4574]
[null,"Iothia fulva",2668]
[null,"Iphimedia obesa",2669]
[null,"Iphinoe serrata",2670]
[null,"Iphinoe trispinosa",2671]
[null,"Iris pseudacorus",4295]
[null,"Ischnochiton albus",2672]
[null,"Ischnura elegans",1196]
[null,"Ischyrocerus anguipes",2673]
[null,"Ischyrocerus megacheir",2674]
[null,"Isias clavipes",444]
[null,"Isochaetides michaelseni",2675]
[null,"Isoëtes echinospora ",1197]
[null,"Isoëtes lacustris",1198]
[null,"Isthmoplea sphaerophora",2676]
[null,"Jaera (Jaera) albifrons",445]
[null,"Jaera (Jaera) ischiosetosa",446]
[null,"Jaera (Jaera) praehirsuta",2677]
[null,"Jaera (Jaera) sarsi",2678]
[null,"Jaera (Jaera) syei",2679]
[null,"Jaera albifrons",447]
[null,"Jaera albifrons albifrons",4575]
[null,"Jaera ischiosetosa",448]
[null,"Jaera praehirsuta",2680]
[null,"Jaera sarsi",4576]
[null,"Jania rubens",2681]
[null,"Janira maculosa",2682]
[null,"Janua heterostropha",4264]
[null,"Jassa falcata",449]
[null,"Jassa herdmani",2683]
[null,"Jassa marmorata",450]
[null,"Jassa pusilla",2684]
[null,"Juncus gerardii",4294]
[null,"Jupiteria minuta",2685]
[null,"Karayevia clevei",451]
[null,"Karenia mikimotoi",452]
[null,"Katablepharis ovalis",453]
[null,"Katablepharis remigera",454]
[null,"Katodinium glaucum",455]
[null,"Katodinium rotundatum",456]
[null,"Katsuwonus pelamis",2686]
[null,"Kefersteinia cirrata",2687]
[null,"Kefersteinia cirrhata",2688]
[null,"Kellia suborbicularis",2689]
[null,"Kellicottia bostoniensis",4356]
[null,"Kellicottia longispina",457]
[null,"Kelliella miliaris",2690]
[null,"Kephyrion skujae",4577]
[null,"Kephyrion spirale",4578]
[null,"Keratella cochlearis",458]
[null,"Keratella cruciformis",459]
[null,"Keratella quadrata",460]
[null,"Keratella tecta",4579]
[null,"Keratella testudo",4580]
[null,"Keratella valga",4581]
[null,"Keratococcus suecicus",4582]
[null,"Kiefferulus tendipediformis",2691]
[null,"Kinetoskias smitti",2692]
[null,"Kirchenpaueria pinnata",2693]
[null,"Kirchneriella contorta",461]
[null,"Kirchneriella lunaris",4583]
[null,"Kirchneriella obesa",4873]
[null,"Knoutsodonta depressa",2694]
[null,"Koliella longiseta",462]
[null,"Koliella longiseta f. longiseta",4584]
[null,"Koliella spiralis",463]
[null,"Kolkwitziella acuta",4914]
[null,"Komarekia appendiculata",4874]
[null,"Komma caudata",4875]
[null,"Kornmannia leptoderma",4357]
[null,"Korshikoviella limnetica",4585]
[null,"Kroyera carinata",2695]
[null,"Kryptoperidinium foliaceum",4586]
[null,"Kryptoperidinium triquetrum",4803]
[null,"Kurtiella bidentata",464]
[null,"Kylinia rosulata",2696]
[null,"Labidoplax buskii",2697]
[null,"Laboea strobila",465]
[null,"Labrus bergylta",466]
[null,"Labrus mixtus",2698]
[null,"Laccobius bipunctatus",1199]
[null,"Laccobius decorus",1200]
[null,"Laccophilus hyalinus",1201]
[null,"Lacuna pallidula",2699]
[null,"Lacuna parva",2700]
[null,"Lacuna vincta",2701]
[null,"Lacunastrum gracillimum",4587]
[null,"Laetmonice filicornis",2702]
[null,"Laevicardium crassum",2703]
[null,"Lafoea dumosa",2704]
[null,"Lafoeina tenuis",2705]
[null,"Lagerheimia ciliata",4588]
[null,"Lagerheimia citriformis",4876]
[null,"Lagerheimia genevensis",4589]
[null,"Lagerheimia longiseta",4590]
[null,"Lagerheimia longiseta var. longiseta",4591]
[null,"Lagis koreni",467]
[null,"Lamellaria perspicua",2706]
[null,"Laminaria digitata",2707]
[null,"Laminaria hyperborea",2708]
[null,"Laminaria saccharina",2709]
[null,"Laminariocolax aecidioides",2710]
[null,"Laminariocolax tomentosoides",2711]
[null,"Lamispina falcata",2712]
[null,"Lamna nasus",2713]
[null,"Lampetra fluviatilis",2714]
[null,"Lampris guttatus",2715]
[null,"Lamprodrilus isoporus",2716]
[null,"Lamprops fasciata",2717]
[null,"Lamprops fasciatus",2718]
[null,"Lamprothamnium papulosum",2719]
[null,"Lanassa venusta",2720]
[null,"Lanice conchilega",2721]
[null,"Laomedea calceolifera",2722]
[null,"Laomedea flexuosa",2723]
[null,"Laomedea loveni",2724]
[null,"Laomedea neglecta",4265]
[null,"Laonice bahusiensis",2725]
[null,"Laonice cirrata",2726]
[null,"Laonome kroeyeri",2727]
[null,"Laonome kroyeri",2728]
[null,"Laonome xeprovala",4592]
[null,"Larus argentatus",2729]
[null,"Larus cachinnans",2730]
[null,"Larus canus",2731]
[null,"Larus fuscus",2732]
[null,"Larus fuscus fuscus",2733]
[null,"Larus fuscus intermedius",2734]
[null,"Larus marinus",2735]
[null,"Larus melanocephalus",2736]
[null,"Larus minutus",2737]
[null,"Larus ridibundus",2738]
[null,"Lauderia annulata",468]
[null,"Lauderia confervacea",4836]
[null,"Lauderia mediterranea",469]
[null,"Lauderia pumila",470]
[null,"Laurencia pinnatifida",2739]
[null,"Leanira hystricis",2740]
[null,"Leathesia difformis",2741]
[null,"Leathesia marina",2742]
[null,"Lebetus guilleti",2743]
[null,"Lebetus scorpioides",2744]
[null,"Leiostraca pyramidalis",2745]
[null,"Lekanesphaera hookeri",2746]
[null,"Lekanesphaera rugicauda",2747]
[null,"Lembos longipes",2748]
[null,"Lembos websteri",2749]
[null,"Lemmermannia komarekii",471]
[null,"Lemmermanniella pallida",472]
[null,"Lemmermanniella parva",473]
[null,"Lemna gibba ",1202]
[null,"Lemna minor ",1203]
[null,"Lemna trisulca",2750]
[null,"Lennoxia faveolata",474]
[null,"Lepeta caeca",2751]
[null,"Lepidochitona (Lepidochitona) cinerea",2752]
[null,"Lepidochitona cinerea",2753]
[null,"Lepidodinium chlorophorum",4804]
[null,"Lepidonotus squamatus",475]
[null,"Lepidopleurus asellus",2754]
[null,"Lepidorhombus whiffiagonis",2755]
[null,"Lepidostoma hirtum",1204]
[null,"Lepocinclis acus",4593]
[null,"Lepocinclis ovum",4877]
[null,"Lepocinclis oxyuris",4594]
[null,"Lepomis gibbosus",4595]
[null,"Leprotintinnus bottnicus",476]
[null,"Leptasterias (Leptasterias) muelleri",2756]
[null,"Leptasterias danica",2757]
[null,"Leptocerus tineiformis",1205]
[null,"Leptocheirus hirsutimanus",2758]
[null,"Leptocheirus pilosus",477]
[null,"Leptochiton alveolus",2759]
[null,"Leptochiton asellus",2760]
[null,"Leptochiton sarsi",2761]
[null,"Leptocylindrus danicus",478]
[null,"Leptocylindrus mediterraneus",479]
[null,"Leptocylindrus minimus",480]
[null,"Leptodictyum riparium",1206]
[null,"Leptodora kindtii",481]
[null,"Leptognathia brevimanu",2762]
[null,"Leptognathia breviremis",2763]
[null,"Leptomysis gracilis",2764]
[null,"Leptomysis mediterranea",2765]
[null,"Lepton squamosum",2766]
[null,"Leptonematella fasciculata",2767]
[null,"Leptopentacta elongata",2768]
[null,"Leptophytum laeve",2769]
[null,"Leptoplana tremellaris",482]
[null,"Leptostylis ampullacea",2770]
[null,"Leptostylis longimana",2771]
[null,"Leptostylis villosa",2772]
[null,"Leptosynapta decaria",2773]
[null,"Leptosynapta inhaerens",2774]
[null,"Lessardia elongata",483]
[null,"Lestes dryas",1207]
[null,"Lestes sponsa",1208]
[null,"Lesueurigobius friesii",2775]
[null,"Leucandra gossei",4266]
[null,"Leucaspius delineatus",2776]
[null,"Leuciscus aspius",2777]
[null,"Leuciscus idus",2778]
[null,"Leuciscus leuciscus",2779]
[null,"Leuckartiara octona",2780]
[null,"Leucocryptos marina",484]
[null,"Leucon (Leucon) acutirostris",2781]
[null,"Leucon (Leucon) fulvus",2782]
[null,"Leucon (Leucon) nasica",2783]
[null,"Leucon acutirostris",2784]
[null,"Leucon fulvus",2785]
[null,"Leucon nasica",2786]
[null,"Leucoraja fullonica",2787]
[null,"Leucoraja naevus",2788]
[null,"Leucorrhinia pectoralis",2789]
[null,"Leucosolenia botryoides",485]
[null,"Leucosolenia complicata",2790]
[null,"Leucosolenia fragilis",2791]
[null,"Leucothoe incisa",2792]
[null,"Leucothoe lilljeborgi",486]
[null,"Leucothoe spinicarpa",2793]
[null,"Levinsenia gracilis",487]
[null,"Leydigia acanthocercoides",4358]
[null,"Libellula quadrimaculata",1209]
[null,"Lichenopora verrucaria",2794]
[null,"Licmophora flabellata",488]
[null,"Licmophora gracilis",4596]
[null,"Licmophora gracilis var. gracilis",4597]
[null,"Ligia oceanica",2795]
[null,"Liljeborgia macronyx",2796]
[null,"Limacia clavigera",2797]
[null,"Limanda limanda",2798]
[null,"Limapontia capitata",489]
[null,"Limapontia depressa",2799]
[null,"Limaria loscombi",2800]
[null,"Limatula gwyni",2801]
[null,"Limatula subauriculata",2802]
[null,"Limecola balthica",490]
[null,"Limnephilus affinis",2803]
[null,"Limnephilus auricula",1210]
[null,"Limnephilus borealis",1211]
[null,"Limnephilus decipiens",1212]
[null,"Limnephilus extricatus",1213]
[null,"Limnephilus flavicornis",1214]
[null,"Limnephilus griseus",1215]
[null,"Limnephilus lunatus",1216]
[null,"Limnephilus luridus",1217]
[null,"Limnephilus marmoratus",1218]
[null,"Limnephilus politus ",1219]
[null,"Limnephilus rhombicus",1220]
[null,"Limnephilus sparsus",1221]
[null,"Limnephilus stigma",1222]
[null,"Limnephilus subcentralis",1223]
[null,"Limnocalanus macrurus",491]
[null,"Limnocalanus macrurus macrurus",492]
[null,"Limnococcus limneticus",4599]
[null,"Limnodrilus claparedeanus",2804]
[null,"Limnodrilus claparedianus",2805]
[null,"Limnodrilus hoffmeisteri",493]
[null,"Limnodrilus profundicola",494]
[null,"Limnodrilus udekemianus",2806]
[null,"Limnomysis benedeni",2807]
[null,"Limnophyes minimus",2808]
[null,"Limnoporus rufoscutellatus",1224]
[null,"Limnoria lignorum",2809]
[null,"Limnothrix planctonica",4600]
[null,"Limnothrix redekei",4601]
[null,"Limosa limosa",2810]
[null,"Limosella aquatica",1225]
[null,"Limulus polyphemus",4602]
[null,"Lineus bilineatus",2811]
[null,"Lineus longissimus",495]
[null,"Lineus pseudoruber",2812]
[null,"Lineus ruber",2813]
[null,"Lineus viridis",2814]
[null,"Lingulodinium polyedra",496]
[null,"Lingulodinium polyedrum",4603]
[null,"Liocarcinus depurator",2815]
[null,"Liocarcinus holsatus",497]
[null,"Liocarcinus navigator",498]
[null,"Liocarcinus pusillus",2816]
[null,"Liopsetta glacialis",2817]
[null,"Liparis liparis",2818]
[null,"Liparis liparis liparis",2819]
[null,"Liparis montagui",2820]
[null,"Lipobranchius jeffreysi",2821]
[null,"Lipobranchius jeffreysii",499]
[null,"Lipobranchus jeffreysii",500]
[null,"Lithoderma fatiscens",2822]
[null,"Lithodes maja",2823]
[null,"Lithodesmium undulatum",501]
[null,"Lithoglyphus naticoides",2824]
[null,"Lithophyllum corallinae",2825]
[null,"Lithophyllum crouanii",2826]
[null,"Lithophyllum crouaniorum",2827]
[null,"Lithophyllum pustulatum",2828]
[null,"Lithothamnion glaciale",2829]
[null,"Lithothamnion sonderi",2830]
[null,"Litosiphon laminariae",2831]
[null,"Litosiphon pusillus",2832]
[null,"Littorina littorea",502]
[null,"Littorina obtusata",503]
[null,"Littorina saxatilis",2833]
[null,"Liza aurata",2834]
[null,"Liza ramada",2835]
[null,"Lobocystis planctonica",4604]
[null,"Locustella luscinioides",4218]
[null,"Lomentaria articulata",2836]
[null,"Lomentaria clavellosa",2837]
[null,"Lomentaria orcadensis",2838]
[null,"Lophius budegassa",2839]
[null,"Lophius piscatorius",2840]
[null,"Lophochaeta ignota",2841]
[null,"Lophocladia lallemandii",504]
[null,"Lophopus crystallinus",2842]
[null,"Lota lota",2843]
[null,"Loxorhynchus crispatus",2844]
[null,"Lucina borealis",2845]
[null,"Lucinoma borealis",2846]
[null,"Luidia sarsi",2847]
[null,"Luidia sarsii",2848]
[null,"Lumbricillus arenarius",2849]
[null,"Lumbricillus helgolandicus",2850]
[null,"Lumbricillus lineatus",2851]
[null,"Lumbricillus semifuscus",2852]
[null,"Lumbriclymene cylindricauda",2853]
[null,"Lumbriclymene cylindricaudata",2854]
[null,"Lumbriculus variegatus",2855]
[null,"Lumbrineris fragilis",505]
[null,"Lumbrineris gracilis",506]
[null,"Lumbrineris impatiens",2856]
[null,"Lumbrineris magnidentata",2857]
[null,"Lumbrineris scopa",2858]
[null,"Lumbrineris scopa aequilobata",2859]
[null,"Lumbrineris tetraura",2860]
[null,"Lumpenus lampretaeformis",2861]
[null,"Lunatia alderi",2862]
[null,"Lunatia catena",2863]
[null,"Lunatia montagui",2864]
[null,"Lunatia pallida",2865]
[null,"Lutra lutra",2866]
[null,"Lychaete pygmaea",2867]
[null,"Lycodes gracilis",2868]
[null,"Lymnaea peregra",507]
[null,"Lymnaea stagnalis",2869]
[null,"Lyngbya aestuarii",4605]
[null,"Lyngbya majuscula",4606]
[null,"Lype phaeopa",1226]
[null,"Lysilla loveni",2870]
[null,"Lysippe labiata",2871]
[null,"Macoma balthica",508]
[null,"Macoma calcarea",2872]
[null,"Macomangulus tenuis",2873]
[null,"Macrocyclops fuscus",2874]
[null,"Macropelopia nebulosa ",1227]
[null,"Macropipus depurator",2875]
[null,"Macropipus puber",2876]
[null,"Macropipus tuberculatus",2877]
[null,"Macroplea mutica",2878]
[null,"Macroplea pubipennis",1228]
[null,"Macropodia deflexa",2879]
[null,"Macropodia linaresi",2880]
[null,"Macropodia rostrata",509]
[null,"Macrostomum appendiculatum",2881]
[null,"Macrothrix laticornis",4360]
[null,"Mactra corallina",2882]
[null,"Mactra stultorum",2883]
[null,"Maeotias marginata",510]
[null,"Maera loveni",2884]
[null,"Magallana gigas",511]
[null,"Magelona alleni",2885]
[null,"Magelona filiformis",2886]
[null,"Magelona minuta",512]
[null,"Magelona mirabilis",2887]
[null,"Magelona papillicornis",2888]
[null,"Magnisudis atlantica",2889]
[null,"Malacobdella grossa",2890]
[null,"Malacoceros fuliginosus",2891]
[null,"Malacoceros tetracerus",2892]
[null,"Malacoceros vulgaris",2893]
[null,"Maldane sarsi",513]
[null,"Mallomonas acaroides",4607]
[null,"Mallomonas akrokomos",4608]
[null,"Mallomonas tonsurata",4609]
[null,"Malmgrenia andreapolis",2894]
[null,"Malmgrenia arenicolae",2895]
[null,"Malmgrenia castanea",2896]
[null,"Malmgrenia ljungmani",2897]
[null,"Malmgrenia lunulata",2898]
[null,"Malmgrenia mcintoshi",2899]
[null,"Malmgreniella andreapolis",2900]
[null,"Malmgreniella arenicolae",2901]
[null,"Malmgreniella castanea",4285]
[null,"Malmgreniella glabra",2902]
[null,"Malmgreniella ljungmani",2903]
[null,"Malmgreniella lunulata",2904]
[null,"Malmgreniella mcintoshi",2905]
[null,"Mamiella gilva",514]
[null,"Manayunkia aestuarina",515]
[null,"Mangelia attenuata",516]
[null,"Mangelia brachystoma",2906]
[null,"Mangelia costata",2907]
[null,"Mangelia nebula",2908]
[null,"Marenzelleria arctia",517]
[null,"Marenzelleria neglecta",518]
[null,"Marenzelleria viridis",519]
[null,"Marenzelleria wireni",4267]
[null,"Margarites helicinus",2909]
[null,"Margelopsis haeckelii",4805]
[null,"Marionina spicula",2910]
[null,"Marshallora adversa",2911]
[null,"Marstoniopsis insubrica",2912]
[null,"Marstoniopsis scholtzi",2913]
[null,"Marthasterias glacialis",2914]
[null,"Mastocarpus stellatus",2915]
[null,"Mastogloia smithii",520]
[null,"Maurolicus muelleri",2916]
[null,"Medicorophium affine",521]
[null,"Mediomastus fragilis",2917]
[null,"Mediopyxis helysia",522]
[null,"Megaluropus agilis",2918]
[null,"Megamoera dentata",2919]
[null,"Megamphopus cornutus",2920]
[null,"Meganyctiphanes norvegica",2921]
[null,"Megastomia conoidea",2922]
[null,"Meiodiscus spetsbergensis",2923]
[null,"Melanella conoidea",2924]
[null,"Melanella lubrica",2925]
[null,"Melanella monterosatoi",2926]
[null,"Melanella polita",2927]
[null,"Melanella pyramidalis",2928]
[null,"Melanella sinuosa",2929]
[null,"Melanitta fusca",2930]
[null,"Melanitta nigra",2931]
[null,"Melanogrammus aeglefinus",2932]
[null,"Melanothamnus harveyi",523]
[null,"Melicertum octocostatum",2933]
[null,"Melinna albicincta",524]
[null,"Melinna cristata",2934]
[null,"Melita dentata",2935]
[null,"Melita hergensis",525]
[null,"Melita nitida",526]
[null,"Melita obtusata",2936]
[null,"Melita palmata",527]
[null,"Melita pellucida",4610]
[null,"Melobesia membranacea",2937]
[null,"Melosira arctica",528]
[null,"Melosira arctica var. arctica",529]
[null,"Melosira discigera",4806]
[null,"Melosira laevis",530]
[null,"Melosira lineata",531]
[null,"Melosira moniliformis",532]
[null,"Melosira nummuloides",533]
[null,"Melosira varians",4611]
[null,"Melphidippa borealis",2938]
[null,"Melphidippella macra",2939]
[null,"Membraneis challengeri",534]
[null,"Membranipora membranacea",535]
[null,"Membraniporella nitida",2940]
[null,"Membranoptera alata",2941]
[null,"Mendicula ferruginosa",2942]
[null,"Mergellus albellus",2943]
[null,"Mergus albellus",4196]
[null,"Mergus merganser",2944]
[null,"Mergus serrator",2945]
[null,"Meridion circulare",4612]
[null,"Meridion circulare var. circulare",4878]
[null,"Merismopedia elegans",4613]
[null,"Merismopedia glauca",4614]
[null,"Merismopedia punctata",536]
[null,"Merismopedia tenuissima",537]
[null,"Merismopedia warmingiana",538]
[null,"Merlangius merlangus",539]
[null,"Merluccius merluccius",2946]
[null,"Merona cornucopiae",2947]
[null,"Mertensia ovum",4907]
[null,"Mesocyclops leuckarti",4879]
[null,"Mesocyclops leuckarti leuckarti ",4615]
[null,"Mesodinium rubrum",540]
[null,"Mesogloia lanosa",2948]
[null,"Mesogloia vermiculata",2949]
[null,"Mesopodopsis slabberi",2950]
[null,"Mesovelia furcata",1229]
[null,"Mesovelia fuscata",2951]
[null,"Metacnephia crassifistula",1230]
[null,"Metopa alderi",2952]
[null,"Metopa borealis",4268]
[null,"Metopa pusilla",2953]
[null,"Metopa rubrovittata",2954]
[null,"Metopella nasuta",2955]
[null,"Metridia longa",2956]
[null,"Metridia lucens",2957]
[null,"Metridia lucens lucens",2958]
[null,"Metridium dianthus",4361]
[null,"Metridium senile",541]
[null,"Meuniera membranacea",542]
[null,"Michteimysis mixta",2959]
[null,"Micracanthodinium claytonii",543]
[null,"Micractinium pusillum",4362]
[null,"Micractinium quadrisetum",4363]
[null,"Microchironomus conjugens",1231]
[null,"Microchironomus tener",1232]
[null,"Microcoryne ocellata",2960]
[null,"Microcosmus squamiger",544]
[null,"Microcyclops varicans",4616]
[null,"Microcystis aeruginosa",4365]
[null,"Microcystis flos-aquae",4880]
[null,"Microcystis viridis",4617]
[null,"Microcystis wesenbergii",4618]
[null,"Microdeutopus anomalus",2961]
[null,"Microdeutopus damnoniensis",2962]
[null,"Microdeutopus gryllotalpa",545]
[null,"Microdeutopus versiculatus",2963]
[null,"Micromesistius poutassou",2964]
[null,"Micromonas pusilla",546]
[null,"Micronecta griseola",1233]
[null,"Micronecta minutissima",1234]
[null,"Microphthalmus aberrans",2965]
[null,"Microphthalmus listensis",2966]
[null,"Microphthalmus sczelkowii",2967]
[null,"Microphthalmus similis",2968]
[null,"Micropodiscus weissflogii",547]
[null,"Microporella ciliata",2969]
[null,"Microprotopus maculatus",2970]
[null,"Micropsectra curvicornis",1235]
[null,"Micropsectra junci",1236]
[null,"Micropterus dolomieu",4619]
[null,"Microsetella norvegica",2971]
[null,"Microsetella rosea",548]
[null,"Microsiphona potamos",549]
[null,"Microspio mecznikowianus",2972]
[null,"Microspongium gelatinosum",2973]
[null,"Microspongium globosum",2974]
[null,"Microspongium stilophorae",2975]
[null,"Microspongium tenuissimum",2976]
[null,"Microstomum lineare",2977]
[null,"Microstomus kitt",2978]
[null,"Microtendipes chloris",1237]
[null,"Microtendipes pedellus",1238]
[null,"Micrura baltica",2979]
[null,"Micrura fasciolata",2980]
[null,"Mikrosyphar polysiphoniae",2981]
[null,"Mikrosyphar porphyrae",2982]
[null,"Mikrosyphar zosterae",2983]
[null,"Mimachlamys varia",550]
[null,"Minona baltica",2984]
[null,"Minuspio multibranchiata",2985]
[null,"Minutocellus scriptus",551]
[null,"Miraltia throndsenii",552]
[null,"Misgurnus fossilis",2986]
[null,"Mnemiopsis leidyi",553]
[null,"Modiolarca subpicta",2987]
[null,"Modiolarca tumida",2988]
[null,"Modiolula phaseolina",2989]
[null,"Modiolus barbatus",2990]
[null,"Modiolus modiolus",554]
[null,"Moelleria cornuta",555]
[null,"Moerella donacina",2991]
[null,"Moerella pygmaea",2992]
[null,"Moina brachiata",4620]
[null,"Mola mola",2993]
[null,"Molanna albicans",1239]
[null,"Molanna angustata",1240]
[null,"Molannodes tinctus",2994]
[null,"Molgula citrina",2995]
[null,"Molgula manhattensis",556]
[null,"Molgula occulta",2996]
[null,"Molva dypterygia",2997]
[null,"Molva molva",2998]
[null,"Monactinus simplex",4366]
[null,"Monocorophium acherusicum",557]
[null,"Monocorophium insidiosum",2999]
[null,"Monoculodes carinatus",3000]
[null,"Monoculodes packardi",3001]
[null,"Monoculodes pallidus",3002]
[null,"Monoculodes tenuirostratus",3003]
[null,"Monoculopsis longicornis",3004]
[null,"Monodiamesa bathyphila",1241]
[null,"Monomorphina pyrum",4621]
[null,"Monophorus perversus",3005]
[null,"Monoporeia affinis",3006]
[null,"Monopseudocuma gilsoni",3007]
[null,"Monopylephorus rubroniveus",3008]
[null,"Monoraphidium arcuatum",558]
[null,"Monoraphidium contortum",559]
[null,"Monoraphidium convolutum",4367]
[null,"Monoraphidium griffithii",560]
[null,"Monoraphidium komarkovae",561]
[null,"Monoraphidium minutum",562]
[null,"Monostroma balticum",3009]
[null,"Monostroma grevillei",3010]
[null,"Montacuta ferruginosa",3011]
[null,"Montacuta substriata",3012]
[null,"Montacuta tenella",3013]
[null,"Motacilla alba",3014]
[null,"Motacilla flava",4219]
[null,"Motacilla flava flava",4226]
[null,"Mucidosphaerium pulchellum",563]
[null,"Mugil soiuy",4622]
[null,"Mullus surmuletus",3015]
[null,"Munna minuta",3016]
[null,"Musculium lacustre",3017]
[null,"Musculus discors",3018]
[null,"Musculus niger",3019]
[null,"Musculus subpictus",3020]
[null,"Musculus tumida",3021]
[null,"Mustelus asterias",3022]
[null,"Mustelus mustelus",3023]
[null,"Mya arenaria",564]
[null,"Mya truncata",565]
[null,"Mycale (Mycale) lingua",3024]
[null,"Mycteroperca fusca",566]
[null,"Myliobatis aquila",3025]
[null,"Myosotella myosotis",3026]
[null,"Myoxocephalus quadricornis",3027]
[null,"Myoxocephalus scorpius",567]
[null,"Myriactula chordae",3028]
[null,"Myriactula fucorum",3029]
[null,"Myriactula haydenii",3030]
[null,"Myriactula rivulariae",3031]
[null,"Myrianida prolifera",3032]
[null,"Myrianida quindecimdentata",3033]
[null,"Myriochele danielsseni",3034]
[null,"Myriochele heeri",3035]
[null,"Myriochele oculata",3036]
[null,"Myriocladia lovenii",3037]
[null,"Myrionecta rubra",568]
[null,"Myrionema balticum",3038]
[null,"Myrionema foecundum",3039]
[null,"Myrionema magnusii",3040]
[null,"Myrionema seriatum",3041]
[null,"Myrionema strangulans",3042]
[null,"Myriophyllum alterniflorum ",1242]
[null,"Myriophyllum sibiricum",3043]
[null,"Myriophyllum spicatum",3044]
[null,"Myriophyllum verticillatum",3045]
[null,"Myriotrichia clavaeformis",3046]
[null,"Myrtea spinifera",3047]
[null,"Mysella bidentata",569]
[null,"Mysia undata",3048]
[null,"Mysidopsis didelphys",4837]
[null,"Mysis mixta",3049]
[null,"Mysis oculata",3050]
[null,"Mysis relicta",3051]
[null,"Mysta barbata",3052]
[null,"Mysta picta",4838]
[null,"Mystacides azureus",1243]
[null,"Mystacides longicornis",1244]
[null,"Mystacides niger",1245]
[null,"Mystides southerni",3053]
[null,"Mytilicola intestinalis",4623]
[null,"Mytilicola orientalis",4624]
[null,"Mytilina mucronata",4625]
[null,"Mytilopsis leucophaeata",570]
[null,"Mytilus edulis",571]
[null,"Mytilus galloprovincialis",572]
[null,"Mytilus trossulus",573]
[null,"Myxas glutinosa",3054]
[null,"Myxicola infundibulum",3055]
[null,"Myxilla (Myxilla) incrustans",3056]
[null,"Myxine glutinosa",3057]
[null,"Naiadinium polonicum",4915]
[null,"Nais barbata",3058]
[null,"Nais behningi",3059]
[null,"Nais bretscheri",3060]
[null,"Nais christinae",3061]
[null,"Nais communis",3062]
[null,"Nais elinguis",3063]
[null,"Nais pardalis",3064]
[null,"Nais pseudobtusa",3065]
[null,"Nais simplex",3066]
[null,"Nais stolci",4369]
[null,"Nais variabilis",3067]
[null,"Najas marina",3068]
[null,"Nannocalanus minor",574]
[null,"Nanocladius balticus",1246]
[null,"Nanocladius dichromus",3069]
[null,"Nassa reticulata",3070]
[null,"Nassarius incrassatus",3071]
[null,"Nassarius nitidus",575]
[null,"Nassarius pygmaeus",576]
[null,"Nassarius reticulatus",577]
[null,"Natatolana borealis",3072]
[null,"Natica alderi",3073]
[null,"Natica intermedia",3074]
[null,"Natica nitida",3075]
[null,"Natica poliana",3076]
[null,"Navicula aleksandrae",578]
[null,"Navicula bipustulata",579]
[null,"Navicula bozenae",580]
[null,"Navicula challengeri",581]
[null,"Navicula cryptocephala",4626]
[null,"Navicula cryptotenella",4627]
[null,"Navicula delognei",582]
[null,"Navicula didyma",583]
[null,"Navicula distans",584]
[null,"Navicula flanatica",4628]
[null,"Navicula florinae",585]
[null,"Navicula gregaria",586]
[null,"Navicula hungarica var. arctica",587]
[null,"Navicula lanceolata",588]
[null,"Navicula librile",589]
[null,"Navicula membranacea",590]
[null,"Navicula meniscus",591]
[null,"Navicula palpebralis",4629]
[null,"Navicula paul-schulzii",592]
[null,"Navicula peregrina var. meniscus",4630]
[null,"Navicula perminuta",593]
[null,"Navicula porifera",594]
[null,"Navicula ramosissima",595]
[null,"Navicula reichardtiana",596]
[null,"Navicula reinhardtii",4631]
[null,"Navicula rhynchocephala",4632]
[null,"Navicula slesvicensis",4633]
[null,"Navicula specululum",597]
[null,"Navicula tenera",598]
[null,"Navicula transitans",599]
[null,"Navicula tripunctata",4634]
[null,"Navicula vanhoeffenii",4635]
[null,"Navicula viminoides",600]
[null,"Navicula viridula",4636]
[null,"Neanthes succinea",3077]
[null,"Neanthes virens",3078]
[null,"Nebalia bipes",3079]
[null,"Necora puber",601]
[null,"Neidium affine",4637]
[null,"Nemalion elminthoides",3080]
[null,"Nemalion multifidum",3081]
[null,"Nemertesia antennina",3082]
[null,"Nemertesia norvegica",4269]
[null,"Nemertesia ramosa",3083]
[null,"Nemopsis bachei",602]
[null,"Nemotaulius punctatolineatus",1247]
[null,"Neoamphitrite affinis",3084]
[null,"Neoamphitrite figulus",603]
[null,"Neoceratium fusus",604]
[null,"Neoceratium horridum",605]
[null,"Neoceratium lineatum",606]
[null,"Neocystis ovalis",4881]
[null,"Neodangemannia microcystis",3085]
[null,"Neogobius fluviatilis",607]
[null,"Neogobius gorlap",4638]
[null,"Neogobius gymnotrachelus",608]
[null,"Neogobius kessleri",609]
[null,"Neogobius melanostomus",610]
[null,"Neogyptis rosea",3086]
[null,"Neohela monstrosa",3087]
[null,"Neoleanira tetragona",3088]
[null,"Neomysis integer",611]
[null,"Neomysis vulgaris",612]
[null,"Neosiphonia elongella",3089]
[null,"Neosiphonia harveyi",3090]
[null,"Neostromatella monostromatica",3091]
[null,"Neotrypaea gigas",3092]
[null,"Nepa cinerea",1248]
[null,"Nephasoma (Nephasoma) abyssorum abyssorum",3093]
[null,"Nephasoma (Nephasoma) minutum",3094]
[null,"Nephrochlamys rostrata",4639]
[null,"Nephrochlamys subsolitaria",4882]
[null,"Nephrocytium agardhianum",4883]
[null,"Nephrops norvegicus",3095]
[null,"Nephrotoma flavescens",1249]
[null,"Nephtys assimilis",3096]
[null,"Nephtys caeca",3097]
[null,"Nephtys ciliata",3098]
[null,"Nephtys cirrosa",3099]
[null,"Nephtys hombergii",613]
[null,"Nephtys hystricis",3100]
[null,"Nephtys incisa",614]
[null,"Nephtys kersivalensis",615]
[null,"Nephtys longosetosa",3101]
[null,"Nephtys paradoxa",3102]
[null,"Nephtys pente",3103]
[null,"Nephtys pulchra",3104]
[null,"Neptunea antiqua",3105]
[null,"Nereimyra punctata",3106]
[null,"Nereiphylla lutea",3107]
[null,"Nereis diversicolor",3108]
[null,"Nereis pelagica",616]
[null,"Nereis pinnata",3109]
[null,"Nereis succinea",3110]
[null,"Nereis virens",3111]
[null,"Nerilla antennata",3112]
[null,"Nerophis lumbriciformis",3113]
[null,"Nerophis ophidion",617]
[null,"Nesiarchus nasutus",3114]
[null,"Netta rufina",4227]
[null,"Neureclipsis bimaculata",1250]
[null,"Nicolea venustula",3115]
[null,"Nicolea zostericola",3116]
[null,"Nicomache (Loxochona) trispinata",3117]
[null,"Nicomache (Nicomache) minor",3118]
[null,"Nicomache lumbricalis",3119]
[null,"Nicomache personata",3120]
[null,"Nicomache trispinata",3121]
[null,"Nigrobaetis niger",1251]
[null,"Nipponnemertes pulchra",3122]
[null,"Nitella capillaris",3123]
[null,"Nitella confervacea",3124]
[null,"Nitella flexilis",3125]
[null,"Nitella gracilis",3126]
[null,"Nitella hyalina",3127]
[null,"Nitella mucronata",3128]
[null,"Nitella opaca",3129]
[null,"Nitella syncarpa",3130]
[null,"Nitella wahlbergiana",3131]
[null,"Nitellopsis obtusa",3132]
[null,"Nitokra typica",3133]
[null,"Nitokra typica typica",3134]
[null,"Nitophyllum punctatum",3135]
[null,"Nitzschia acicularis",618]
[null,"Nitzschia acicularis var. acicularis",4640]
[null,"Nitzschia aurariae",619]
[null,"Nitzschia capitellata",620]
[null,"Nitzschia constricta",621]
[null,"Nitzschia delicatissima",622]
[null,"Nitzschia dissipata",4641]
[null,"Nitzschia fonticola",4642]
[null,"Nitzschia frigida",623]
[null,"Nitzschia frustulum",624]
[null,"Nitzschia holsatica",4643]
[null,"Nitzschia linearis",4644]
[null,"Nitzschia longissima",625]
[null,"Nitzschia lorenziana var. incerta",4807]
[null,"Nitzschia microcephala",626]
[null,"Nitzschia palea",4645]
[null,"Nitzschia paleacea",4646]
[null,"Nitzschia recta",4647]
[null,"Nitzschia sigma",627]
[null,"Nitzschia sigmoidea",4648]
[null,"Noctiluca scintillans",628]
[null,"Nodularia baltica",629]
[null,"Nodularia spumigena",630]
[null,"Nolella dilatata",3136]
[null,"Nolella gigantea",4270]
[null,"Noterus clavicornis",1252]
[null,"Noterus crassicornis",1253]
[null,"Notholca acuminata",4649]
[null,"Notholca foliacea",4650]
[null,"Notholca labis",631]
[null,"Notholca squamula",4784]
[null,"Notomastus latericeus",632]
[null,"Notonecta glauca",1254]
[null,"Notophyllum foliosum",3137]
[null,"Notoproctus oculatus",3138]
[null,"Notoscopelus elongatus",3139]
[null,"Nototropis swammerdamei",3140]
[null,"Nototropis vedlomensis",3141]
[null,"Novocrania anomala",3142]
[null,"Nucella lapillus",3143]
[null,"Nucula hanleyi",4271]
[null,"Nucula nitidosa",633]
[null,"Nucula nucleus",3144]
[null,"Nucula sulcata",3145]
[null,"Nuculana minuta",3146]
[null,"Nuculana pernula",3147]
[null,"Nuculoma tenuis",3148]
[null,"Numenius arquata",4228]
[null,"Nuphar lutea",1255]
[null,"Nymphaea alba",1256]
[null,"Nymphaea candida ",1257]
[null,"Nymphon brevirostre",3149]
[null,"Nymphon brevitarse",3150]
[null,"Nymphon grossipes",3151]
[null,"Nymphon rubrum",3152]
[null,"Nymphula nitidulata",3153]
[null,"Obelia bidentata",4808]
[null,"Obelia borealis",4651]
[null,"Obelia dichotoma",634]
[null,"Obelia geniculata",635]
[null,"Obelia longissima",636]
[null,"Obesogammarus crassus",3154]
[null,"Oblea rotunda",637]
[null,"Ochlochaete hystrix",3155]
[null,"Ochthebius pusillus",1258]
[null,"Ocinebrellus inornatus",4652]
[null,"Ocnus lacteus",3156]
[null,"Octactis octonaria",638]
[null,"Odhneripisidium moitessierianum",3157]
[null,"Odhneripisidium tenuilineatum",3158]
[null,"Odontella aurita",639]
[null,"Odontella longicruris",640]
[null,"Odontella mobiliensis",4809]
[null,"Odontella regia",641]
[null,"Odontella sinensis",642]
[null,"Odonthalia dentata",3159]
[null,"Odostomia rissoides",3160]
[null,"Odostomia scalaris",3161]
[null,"Oecetis furva",1259]
[null,"Oecetis lacustris",1260]
[null,"Oecetis ochracea",1261]
[null,"Oecetis testacea",3162]
[null,"Oenanthe oenanthe",3163]
[null,"Oenopota reticulata",3164]
[null,"Oenopota turricula",3165]
[null,"Oerstedia dorsalis",4839]
[null,"Oerstedia laminariae",3166]
[null,"Oerstedia similiformis",3167]
[null,"Oikopleura (Vexillaria) dioica",643]
[null,"Oithona atlantica",3168]
[null,"Oithona nana",3169]
[null,"Oithona plumifera",644]
[null,"Oithona similis",645]
[null,"Okellya curvata",3170]
[null,"Omalogyra atomus",3171]
[null,"Omisus caledonicus",1262]
[null,"Oncaea media",646]
[null,"Oncaea ornata",647]
[null,"Oncaea venusta",648]
[null,"Onchidoris depressa",3172]
[null,"Onchidoris muricata",3173]
[null,"Onchnesoma squamatum",3174]
[null,"Onchnesoma steenstrupi",3175]
[null,"Onchnesoma steenstrupii steenstrupii",3176]
[null,"Oncorhynchus gorbuscha",3177]
[null,"Oncorhynchus keta",3178]
[null,"Oncorhynchus kisutch",3179]
[null,"Oncorhynchus mykiss",3180]
[null,"Oncorhynchus tshawytscha",3181]
[null,"Oncousoecia dilatans",3182]
[null,"Ondina divisa",3183]
[null,"Ondina perezi",3184]
[null,"Onoba aculeus",3185]
[null,"Onoba semicostata",3186]
[null,"Onoba striata",3187]
[null,"Onoba vitrea",3188]
[null,"Onychocamptus mohammed",3189]
[null,"Oocystis borgei",649]
[null,"Oocystis lacustris",650]
[null,"Oocystis naegelii",4884]
[null,"Oocystis parva",4653]
[null,"Oocystis pelagica",4846]
[null,"Oocystis rhomboidea",4885]
[null,"Oocystis solitaria",4654]
[null,"Oocystis submarina",4655]
[null,"Opephora guenter-grassii",651]
[null,"Opephora krumbeinii",652]
[null,"Opephora mutabilis",653]
[null,"Opephora schulzii",4656]
[null,"Opercularella lacerata",3190]
[null,"Opercularella pumila",3191]
[null,"Ophelia borealis",654]
[null,"Ophelia limacina",3192]
[null,"Ophelia rathkei",3193]
[null,"Ophelina abranchiata",3194]
[null,"Ophelina acuminata",3195]
[null,"Ophelina modesta",3196]
[null,"Ophiactis balli",3197]
[null,"Ophidonais serpentina",3198]
[null,"Ophiocomina nigra",3199]
[null,"Ophiocten affinis",3200]
[null,"Ophiocten gracilis",4272]
[null,"Ophiodromus flexuosus",655]
[null,"Ophiopholis aculeata",3201]
[null,"Ophiothrix fragilis",3202]
[null,"Ophiura affinis",3203]
[null,"Ophiura albida",3204]
[null,"Ophiura ophiura",656]
[null,"Ophiura robusta",657]
[null,"Ophiura sarsi",3205]
[null,"Ophiura sarsii",3206]
[null,"Ophiura texturata",3207]
[null,"Ophryotrocha gracilis",3208]
[null,"Ophryotrocha longidentata",3209]
[null,"Orbinia (Orbinia) sertulata",3210]
[null,"Orbinia (Phylo) norvegica",3211]
[null,"Orbinia cuvieri",3212]
[null,"Orbinia sertulata",658]
[null,"Orchestia cavimana",3213]
[null,"Orchestia gammarellus",659]
[null,"Orchomene nana",3214]
[null,"Orchomenella nana",3215]
[null,"Orconectes limosus",3216]
[null,"Orconectes virilis",4657]
[null,"Orcynopsis unicolor",3217]
[null,"Ornithocercus magnificus",660]
[null,"Orthetrum cancellatum",1263]
[null,"Orthocladius consobrinus",1264]
[null,"Orthocladius dentifer",1265]
[null,"Orthocladius excavatus",1266]
[null,"Orthocladius inaequalis",1267]
[null,"Orthocladius oblidens",1268]
[null,"Orthocladius obumbratus",1269]
[null,"Orthocladius olivaceus",1270]
[null,"Orthocladius rhyacobius",1271]
[null,"Orthocladius saxicola",1272]
[null,"Orthopyxis integra",4273]
[null,"Orthotrichia costalis",1273]
[null,"Oscillatoria limosa",4370]
[null,"Osmerus eperlanus",3218]
[null,"Osmundea pinnatifida",3219]
[null,"Osmundea truncata",661]
[null,"Ostrea edulis",3220]
[null,"Ostreobium quekettii",3221]
[null,"Othomaera othonis",3222]
[null,"Otomesostoma auditivum",3223]
[null,"Oulimnius tuberculatus",1274]
[null,"Owenia fusiformis",3224]
[null,"Oxydromus flexuosus",662]
[null,"Oxynotus centrina",3225]
[null,"Oxytoxum mediterraneum",663]
[null,"Pachycordyle michaeli",3226]
[null,"Pachycordyle navis",3227]
[null,"Pacifastacus leniusculus",3228]
[null,"Pacifoculodes pallidus",3229]
[null,"Pagastiella orophila",1275]
[null,"Pagellus bogaraveo",3230]
[null,"Pagellus erythrinus",3231]
[null,"Pagurus bernhardus",664]
[null,"Pagurus cuanensis",3232]
[null,"Pagurus pubescens",3233]
[null,"Palaemon adspersus",665]
[null,"Palaemon carinicauda",4658]
[null,"Palaemon elegans",666]
[null,"Palaemon longirostris",667]
[null,"Palaemon macrodactylus",668]
[null,"Palaemon serratus",3234]
[null,"Palaemon varians",669]
[null,"Palaemonetes varians",3235]
[null,"Palio dubia",3236]
[null,"Palio nothus",3237]
[null,"Pallasea quadrispinosa",3238]
[null,"Pallaseopsis quadrispinosa",3239]
[null,"Pallene brevirostris",3240]
[null,"Palliolum furtivum",3241]
[null,"Palliolum incomparabile",3242]
[null,"Palliolum striatum",3243]
[null,"Palliolum tigerinum",3244]
[null,"Palmaria palmata",3245]
[null,"Palmiskenea skenei",3246]
[null,"Palpiphitime longidentata",3247]
[null,"Paludicella articulata",3248]
[null,"Pandalina brevirostris",3249]
[null,"Pandalus borealis",3250]
[null,"Pandalus montagui",3251]
[null,"Pandalus propinquus",3252]
[null,"Pandalus propinqvus",3253]
[null,"Pandion haliaetus",3254]
[null,"Pandorina morum",4659]
[null,"Panningia hyndmani",3255]
[null,"Panningia hyndmanni",3256]
[null,"Panthalis oerstedi",3257]
[null,"Pantocsekiella ocellata",4660]
[null,"Panurus biarmicus",4229]
[null,"Paphia philippiana",4661]
[null,"Paracalanus parvus",3258]
[null,"Paracalanus parvus parvus",3259]
[null,"Paracandacia simplex",670]
[null,"Parachironomus arcuatus",1276]
[null,"Parachironomus biannulatus",1277]
[null,"Parachironomus gracilior ",1278]
[null,"Parachironomus pararostratus",1279]
[null,"Parachironomus vitiosus",1280]
[null,"Paracladopelma camptolabis",1281]
[null,"Paracladopelma nigritulum",1282]
[null,"Paracladopelma rolli",1283]
[null,"Paracorixa concinna",3260]
[null,"Paracyclops fimbriatus",3261]
[null,"Paracyclops fimbriatus fimbriatus",3262]
[null,"Paradialychone filicaudata",3263]
[null,"Paradoneis eliasoni",3264]
[null,"Paradoneis lyra",3265]
[null,"Paradulichia typica",4274]
[null,"Paraedwardsia arenaria",3266]
[null,"Parajassa pelagica",3267]
[null,"Parakiefferiella bathophila",1284]
[null,"Parakiefferiella smolandica",3268]
[null,"Paralauterborniella nigrohalterale",1285]
[null,"Paralauterborniella nigrohalteralis",3269]
[null,"Paralia sulcata",671]
[null,"Paralimnophyes longiseta",1286]
[null,"Paralithodes camtschatica",672]
[null,"Paralithodes camtschaticus",673]
[null,"Parametriocnemus boreoalpinus",1287]
[null,"Paramonotus hamatus",3270]
[null,"Paramphilochoides intermedius",3271]
[null,"Paramphinome jeffreysii",3272]
[null,"Paramysis (Mesomysis) intermedia",3274]
[null,"Paramysis (Serrapalpisis) lacustris",3273]
[null,"Paramysis lacustris",3275]
[null,"Paranais botniensis",3276]
[null,"Paranais frici",3277]
[null,"Paranais litoralis",674]
[null,"Paranais littoralis",675]
[null,"Paraonides lyra",3278]
[null,"Paraonis fulgens",3279]
[null,"Paraonis gracilis",3280]
[null,"Paraonis lyra",3281]
[null,"Parapleustes assimilis",4810]
[null,"Parapleustes bicuspis",4275]
[null,"Parapoynx stratiotata",1288]
[null,"Parasagitta setosa",3282]
[null,"Parasinelobus chevreuxi",4662]
[null,"Parasmittina trispinosa",3283]
[null,"Paratanytarsus austriacus",1289]
[null,"Paratanytarsus dissimilis",1290]
[null,"Paratanytarsus grimmii",1291]
[null,"Paratanytarsus inopertus",1292]
[null,"Paratanytarsus lauterborni",1293]
[null,"Paratanytarsus natvigi",1294]
[null,"Paratanytarsus quintuplex ",1295]
[null,"Paratendipes albimanus",1296]
[null,"Parathyasira equalis",3284]
[null,"Parexogone hebes",3285]
[null,"Pariambus typicus",3286]
[null,"Parlibellus delognei",676]
[null,"Parlibellus plicatus",4663]
[null,"Parorthocladius nudipennis",1297]
[null,"Parougia eliasoni",3287]
[null,"Parthenina interstincta",3288]
[null,"Parvicardium exiguum",3289]
[null,"Parvicardium hauniense",3290]
[null,"Parvicardium minimum",3291]
[null,"Parvicardium ovale",3292]
[null,"Parvicardium pinnulatum",3293]
[null,"Parvicardium scabrum",677]
[null,"Parvodinium umbonatum",4664]
[null,"Pasiphaea sivado",3294]
[null,"Patella pellucida",3295]
[null,"Patinella verrucaria",3296]
[null,"Pauliella taeniata",678]
[null,"Paulschulzia pseudovolvox",4886]
[null,"Pawlowskiella stenosa",1298]
[null,"Peachia cylindrica",3297]
[null,"Pecten maximus",3298]
[null,"Pectinaria (Amphictene) auricoma",679]
[null,"Pectinaria (Pectinaria) belgica",3299]
[null,"Pectinaria auricoma",680]
[null,"Pectinaria belgica",681]
[null,"Pectinaria koreni",682]
[null,"Pediastrum boryanum",4373]
[null,"Pediastrum boryanum var. boryanum",4665]
[null,"Pediastrum duplex",683]
[null,"Pediastrum duplex var. duplex",4666]
[null,"Pediastrum integrum",4667]
[null,"Pediastrum simplex",4668]
[null,"Pediastrum tetras",4669]
[null,"Pedicellaster typicus",3300]
[null,"Pedicellina cernua",3301]
[null,"Peipsidrilus pusillus",3302]
[null,"Pelecus cultratus",3303]
[null,"Pelonaia corrugata",3304]
[null,"Pelopia punctipennis",1299]
[null,"Peloscolex benedeni",3305]
[null,"Peloscolex ferox",3306]
[null,"Peloscolex multisetosus",3307]
[null,"Pelseneeria stylifera",3308]
[null,"Peltodytes caesus",1300]
[null,"Penciletta penicillata",3309]
[null,"Pencilletta penicillata",4208]
[null,"Penetrantia concharum",3310]
[null,"Penilia avirostris",684]
[null,"Pennatula phosphorea",3311]
[null,"Perca fluviatilis",685]
[null,"Perccottus glenii",4232]
[null,"Percursaria percursa",3312]
[null,"Peregriana labiata",3313]
[null,"Peregriana peregra",4209]
[null,"Peridiniella catenata",686]
[null,"Peridiniopsis cunningtonii",4670]
[null,"Peridinium achromaticum",687]
[null,"Peridinium aciculiferum",4671]
[null,"Peridinium inconspicuum",4672]
[null,"Perinereis cultrifera",3314]
[null,"Peringia ulvae",688]
[null,"Perioculodes longimanus",3315]
[null,"Perophora japonica ",4673]
[null,"Perrierella audouiniana",3316]
[null,"Persicaria foliosa",1301]
[null,"Pestarella tyrrhena",3317]
[null,"Petalonia fascia",689]
[null,"Petalonia zosterifolia",3318]
[null,"Petaloproctus borealis",3319]
[null,"Petaloproctus tenuis",3320]
[null,"Petalosarsia declivis",3321]
[null,"Petricola pholadiformis",3322]
[null,"Petricolaria pholadiformis",3323]
[null,"Petroderma maculiforme",3324]
[null,"Petromyzon marinus",3325]
[null,"Petroneis humerosa",4906]
[null,"Petta pusilla",3326]
[null,"Peyssonnelia codana",3327]
[null,"Peyssonnelia dubyi",3328]
[null,"Pfiesteria piscicida",690]
[null,"Phacus longicauda",4674]
[null,"Phacus pleuronectes",4675]
[null,"Phaenopsectra flavipes",1302]
[null,"Phaeocystis globosa",4811]
[null,"Phaeocystis pouchetii",691]
[null,"Phaeodactylum tricornutum",692]
[null,"Phaeophila dendroides",3329]
[null,"Phaeophila endophytum",3330]
[null,"Phaeophila tenuis",3331]
[null,"Phaeostachys spinifera",3332]
[null,"Phaeostroma pustulosum",3333]
[null,"Phalacrocorax carbo",3334]
[null,"Phalacrocorax carbo carbo",1303]
[null,"Phalacrocorax carbo sinensis ",1304]
[null,"Phalacroma rotundatum",693]
[null,"Phascolion (Isomya) tuberculosum",3335]
[null,"Phascolion (Phascolion) strombus",3336]
[null,"Phascolion (Phascolion) strombus strombus",3337]
[null,"Phascolion strombi",3338]
[null,"Phascolion strombus",3339]
[null,"Phascolion tuberculosum",3340]
[null,"Phascolosoma minutum",3341]
[null,"Phaxas pellucidus",694]
[null,"Pherusa falcata",3342]
[null,"Pherusa flabellata",3343]
[null,"Pherusa plumosa",3344]
[null,"Philine aperta",695]
[null,"Philine quadripartita",3345]
[null,"Philine scabra",3346]
[null,"Philocheras bispinosus",3347]
[null,"Philocheras bispinosus bispinosus",3348]
[null,"Philocheras echinulatus",3349]
[null,"Philocheras trispinosus",3350]
[null,"Philomachus pugnax",3351]
[null,"Philomedes (Philomedes) lilljeborgi",3352]
[null,"Philomedes brenda",3353]
[null,"Philomedes globosus",3354]
[null,"Philomedes lilljeborgi",3355]
[null,"Phoca vitulina",3356]
[null,"Phoca vitulina vitulina",3357]
[null,"Phocoena phocoena",3358]
[null,"Pholis gunnellus",696]
[null,"Pholoe assimilis",3359]
[null,"Pholoe baltica",697]
[null,"Pholoe inornata",3360]
[null,"Pholoe minuta",3361]
[null,"Pholoe pallida",3362]
[null,"Phoronis muelleri",698]
[null,"Phoronis ovalis",3363]
[null,"Phoronis pallida",3364]
[null,"Photis longicaudata",3365]
[null,"Photis reinhardi",3366]
[null,"Phoxichilidium femoratum",3367]
[null,"Phoxinus phoxinus",3368]
[null,"Phoxocephalus holboelli",3369]
[null,"Phoxocephalus holbolli",3370]
[null,"Phragmites australis",3371]
[null,"Phryganea bipunctata ",1305]
[null,"Phryganea grandis",1306]
[null,"Phrynorhombus norvegicus",3372]
[null,"Phtisica marina",3373]
[null,"Phycis blennoides",3374]
[null,"Phycocelis foecunda",3375]
[null,"Phycodrys rubens",3376]
[null,"Phyllodoce (Anaitides) groenlandica",3377]
[null,"Phyllodoce (Anaitides) maculata",3378]
[null,"Phyllodoce (Anaitides) mucosa",3379]
[null,"Phyllodoce citrina",3380]
[null,"Phyllodoce groenlandica",3381]
[null,"Phyllodoce laminosa",3382]
[null,"Phyllodoce lineata",3383]
[null,"Phyllodoce longipes",3384]
[null,"Phyllodoce maculata",3385]
[null,"Phyllodoce mucosa",3386]
[null,"Phyllodoce rosea",3387]
[null,"Phyllophora crispa",3388]
[null,"Phyllophora membranifolia",3389]
[null,"Phyllophora pseudoceranoïdes",3390]
[null,"Phyllophora traillii",3391]
[null,"Phyllophora truncata",3392]
[null,"Phylo norvegicus",3393]
[null,"Phymatolithon calcareum",3394]
[null,"Phymatolithon laevigatum",3395]
[null,"Phymatolithon lenormandii",3396]
[null,"Phymatolithon polymorphum",3397]
[null,"Phymatolithon purpureum",3398]
[null,"Phymatolithon tenue",3399]
[null,"Physa fontinalis",699]
[null,"Physella acuta",700]
[null,"Piguetiella blanci",3400]
[null,"Pilayella littoralis",701]
[null,"Pilinia rimosa",3401]
[null,"Pilumnus hirtellus",702]
[null,"Pilumnus spinifer",4676]
[null,"Pinnotheres pisum",3402]
[null,"Pinnularia crabro",703]
[null,"Pinnularia distans",704]
[null,"Pinnularia viridis",4677]
[null,"Piscicola annae",1307]
[null,"Piscicola borowieci",1308]
[null,"Piscicola geometra",3403]
[null,"Piscicola margaritae",1309]
[null,"Piscicola pojmanskae",1310]
[null,"Piscicola pomorskii",1311]
[null,"Piscicola wiktori",1312]
[null,"Pisidia longicornis",705]
[null,"Pisidium (Conventus) conventus",3404]
[null,"Pisidium amnicum",3405]
[null,"Pisidium casertanum",3406]
[null,"Pisidium casertanum f. ponderosum",1313]
[null,"Pisidium conventus",3407]
[null,"Pisidium crassum",1314]
[null,"Pisidium henslowanum",3408]
[null,"Pisidium hibernicum",1315]
[null,"Pisidium lilljeborgii",3409]
[null,"Pisidium milium",3410]
[null,"Pisidium moitessierianum",3411]
[null,"Pisidium nitidum",3412]
[null,"Pisidium obtusale",3413]
[null,"Pisidium personatum",3414]
[null,"Pisidium pseudosphaerium",1316]
[null,"Pisidium pulchellum",1317]
[null,"Pisidium subtruncatum",3415]
[null,"Pisidium supinum",3416]
[null,"Pisidium tenuilineatum",3417]
[null,"Pisione remota",3418]
[null,"Pista cristata",3419]
[null,"Pista lornensis",3420]
[null,"Pistella lornensis",3421]
[null,"Placida dendritica",3422]
[null,"Placobdella costata",1318]
[null,"Placoneis elginensis",4678]
[null,"Placorhynchus octaculeatus",3423]
[null,"Plagioecia patina",3424]
[null,"Plagiogramma brockmanni var. brockmanni",706]
[null,"Plagiogramma vanheurckii",707]
[null,"Plagiogrammopsis vanheurckii",708]
[null,"Plagiolemma distortum",4812]
[null,"Plagioselmis lacustris",4679]
[null,"Plagioselmis prolonga",709]
[null,"Plagiospora gracilis",3425]
[null,"Plagiostomum lemani",3426]
[null,"Planaria torva",3427]
[null,"Planctococcus sphaerocystiformis",4680]
[null,"Planctonema lauterbornii",710]
[null,"Planktolyngbya contorta",4681]
[null,"Planktolyngbya limnetica",4682]
[null,"Planktomyces bekefii",4683]
[null,"Planktoniella sol",711]
[null,"Planktothrix agardhii",712]
[null,"Planorbarius corneus",3428]
[null,"Planorbis carinatus",3429]
[null,"Planorbis planorbis",3430]
[null,"Planosiphon zosterifolius",3431]
[null,"Planothidium delicatulum",713]
[null,"Planothidium hauckianum",714]
[null,"Planothidium lanceolatum",715]
[null,"Planothidium lemmermannii",4684]
[null,"Platambus maculatus",1319]
[null,"Platichthys flesus",3432]
[null,"Platorchestia platensis",3433]
[null,"Platycnemis pennipes",3434]
[null,"Platyhypnidium riparoides",1320]
[null,"Platynereis dumerilii",716]
[null,"Plea leachi",1321]
[null,"Plea minutissima",1322]
[null,"Plectrocnemia conspersa",1323]
[null,"Plectrophenax nivalis",1324]
[null,"Pleopis polyphemoides",717]
[null,"Pleopsis polyphemoides",718]
[null,"Pleurobrachia pileus",719]
[null,"Pleurocladia lacustris",3435]
[null,"Pleurogonium rubicundum",3436]
[null,"Pleurogonium spinosissimum",3437]
[null,"Pleuronectes platessa",3438]
[null,"Pleurosigma acutum",720]
[null,"Pleurosigma angulatum",4840]
[null,"Pleurosigma formosum",721]
[null,"Pleurosigma normanii",722]
[null,"Pleurosigma simonsenii",4685]
[null,"Pleurosira laevis",4686]
[null,"Plocamium cartilagineum",723]
[null,"Plumaria elegans",3439]
[null,"Plumaria plumosa",3440]
[null,"Plumatella fruticosa",3441]
[null,"Plumatella fungosa",3442]
[null,"Plumatella repens",3443]
[null,"Plumularia setacea",4276]
[null,"Pneophyllum caulerpae",3444]
[null,"Pneophyllum confervicola",3445]
[null,"Pneophyllum coronatum",3446]
[null,"Pneophyllum fragile",3447]
[null,"Pneophyllum lejolisii",3448]
[null,"Pneophyllum limitatum",3449]
[null,"Pneophyllum subplanum",3450]
[null,"Podarkeopsis helgolandicus",3451]
[null,"Podiceps auritus",3452]
[null,"Podiceps cristatus",3453]
[null,"Podiceps grisegena",3454]
[null,"Podocoryna borealis",3455]
[null,"Podocoryna carnea",3456]
[null,"Podocoryne carnea",3457]
[null,"Pododesmus patelliformis",724]
[null,"Podon intermedius",725]
[null,"Podon leuckartii",726]
[null,"Podosira stelligera",727]
[null,"Poecilochaetus serpens",3458]
[null,"Pogotrichum filiforme",3459]
[null,"Polinices mammilla",3460]
[null,"Polinices montagui",3461]
[null,"Polinices pallidus",3462]
[null,"Polinices pulchella",3463]
[null,"Pollachius pollachius",728]
[null,"Pollachius virens",3464]
[null,"Polyarthra dolichoptera",4687]
[null,"Polycarpa fibrosa",3465]
[null,"Polycelis nigra",3466]
[null,"Polycelis tenuis",3467]
[null,"Polycentropus flavomaculatus",1325]
[null,"Polycera quadrilineata",3469]
[null,"Polycirrus medusa",3470]
[null,"Polycirrus norvegicus",3471]
[null,"Polycirrus plumosus",729]
[null,"Polyclinum aurantium",3472]
[null,"Polydora antennata",3473]
[null,"Polydora caeca",3474]
[null,"Polydora caulleryi",3475]
[null,"Polydora ciliata",730]
[null,"Polydora cornuta",731]
[null,"Polydora giardi",3476]
[null,"Polydora ligni",3477]
[null,"Polydora limicola",3478]
[null,"Polydora pulchra",3479]
[null,"Polydora quadrilobata",3480]
[null,"Polydora websteri",4841]
[null,"Polygireulima polita",3481]
[null,"Polygordius lacteus",3482]
[null,"Polyides rotunda",3483]
[null,"Polykrikos schwartzii",732]
[null,"Polymastia boletiformis",3484]
[null,"Polynoe kinbergi",3485]
[null,"Polypedilum (Pentapedilum) exsectum",1326]
[null,"Polypedilum (Polypedilum) nubeculosum",3486]
[null,"Polypedilum bicrenatum",1327]
[null,"Polypedilum convictum",1328]
[null,"Polypedilum cultellatum",1329]
[null,"Polypedilum pullum",1330]
[null,"Polypedilum scalaenum",1331]
[null,"Polypedilum sordens",1332]
[null,"Polyphemus pediculus",3487]
[null,"Polyphysia crassa",3488]
[null,"Polyprion americanus",3489]
[null,"Polysiphonia brodiaei",3490]
[null,"Polysiphonia brodiei",3491]
[null,"Polysiphonia elongata",3492]
[null,"Polysiphonia elongella",3493]
[null,"Polysiphonia fibrillosa",733]
[null,"Polysiphonia fucoides",734]
[null,"Polysiphonia harveyi",735]
[null,"Polysiphonia marrowii",736]
[null,"Polysiphonia nigra",3494]
[null,"Polysiphonia nigrescens",3495]
[null,"Polysiphonia stricta",737]
[null,"Polysiphonia urceolata",3496]
[null,"Polysiphonia violacea",3497]
[null,"Polystemma rosea",3498]
[null,"Polysticta stelleri",3499]
[null,"Polytretus reinboldii",3500]
[null,"Pomatoceros triqueter",738]
[null,"Pomatoschistus microps",3501]
[null,"Pomatoschistus minutus",3502]
[null,"Pomatoschistus norvegicus",3503]
[null,"Pomatoschistus pictus",3504]
[null,"Pompholyx sulcata",4887]
[null,"Ponticola kessleri",739]
[null,"Pontobdella muricata",3505]
[null,"Pontocrates altamarinus",3506]
[null,"Pontocrates arenarius",3507]
[null,"Pontogammarus robustoides",3508]
[null,"Pontophilus bispinosus",3509]
[null,"Pontophilus echinulatus",3510]
[null,"Pontophilus norvegicus",3511]
[null,"Pontophilus spinosus",3512]
[null,"Pontophilus trispinosus",3513]
[null,"Pontoporeia affinis",3514]
[null,"Pontoporeia femorata",3515]
[null,"Porania (Porania) pulvillus",3516]
[null,"Porella compressa",3517]
[null,"Porella concinna",3518]
[null,"Porella laevis",3519]
[null,"Porella patula",3520]
[null,"Porphyra amplissima",3521]
[null,"Porphyra leucosticta",3522]
[null,"Porphyra linearis",3523]
[null,"Porphyra miniata",3524]
[null,"Porphyra purpurea",740]
[null,"Porphyra umbilicalis",3525]
[null,"Porphyridium aerugineum",3526]
[null,"Porphyridium purpureum",3527]
[null,"Porphyropsis coccinea",3528]
[null,"Porterinema fluviatile",3529]
[null,"Potamanthus luteus",1333]
[null,"Potamilla neglecta",3530]
[null,"Potamilla reniformis",3531]
[null,"Potamocorbula amurensis",741]
[null,"Potamocypris humilis",4688]
[null,"Potamogeton berchtoldii",3532]
[null,"Potamogeton compressus ",1334]
[null,"Potamogeton crispus",3533]
[null,"Potamogeton filiformis",3534]
[null,"Potamogeton friesii",3535]
[null,"Potamogeton gramineus",3536]
[null,"Potamogeton illinoensis",1335]
[null,"Potamogeton lucens ",1336]
[null,"Potamogeton natans ",1337]
[null,"Potamogeton nodosus  ",3537]
[null,"Potamogeton obtusifolius ",1338]
[null,"Potamogeton pectinatus",742]
[null,"Potamogeton perfoliatus",3538]
[null,"Potamogeton praelongus ",1339]
[null,"Potamogeton pusillus",3539]
[null,"Potamogeton strictifolius",3540]
[null,"Potamogeton trichoides",3541]
[null,"Potamogeton vaginatus",3542]
[null,"Potamogeton zosteriformis",1340]
[null,"Potamopyrgus antipodarum",743]
[null,"Potamopyrgus jenkinsi",3543]
[null,"Potamothrix bavaricus",3544]
[null,"Potamothrix bedoti",3545]
[null,"Potamothrix hammoniensis",3546]
[null,"Potamothrix heuscheri",3547]
[null,"Potamothrix moldaviensis",3548]
[null,"Potamothrix vejdovskyi",744]
[null,"Potthastia gaedii",3549]
[null,"Potthastia longimanus",1341]
[null,"Prasiola calophylla",3550]
[null,"Prasiola crispa",3551]
[null,"Prasiola furfuracea",3552]
[null,"Prasiola stipitata",745]
[null,"Praunus flexuosus",746]
[null,"Praunus inermis",3553]
[null,"Praunus neglectus",3554]
[null,"Praxillella affinis",747]
[null,"Praxillella praetermissa",3555]
[null,"Praxillura longissima",3556]
[null,"Priapulus caudatus",3557]
[null,"Pringsheimiella scutata",3558]
[null,"Prionace glauca",3559]
[null,"Prionospio (Prionospio) dubia",3560]
[null,"Prionospio (Prionospio) steenstrupi",3561]
[null,"Prionospio banyulensis",3562]
[null,"Prionospio cirrifera",748]
[null,"Prionospio dubia",3563]
[null,"Prionospio fallax",749]
[null,"Prionospio malmgreni",3564]
[null,"Prionospio multibranchiata",3565]
[null,"Prionospio steenstrupi",750]
[null,"Prionotoleberis norvegica",3566]
[null,"Pristina (Pristina) aequiseta",3567]
[null,"Pristina (Pristinella) bilobata",3568]
[null,"Pristina (Pristinella) rosea",3569]
[null,"Pristina aequiseta",3570]
[null,"Pristina bilobata",4206]
[null,"Pristina foreli",3571]
[null,"Pristina longiseta",3572]
[null,"Pristina rosea",4207]
[null,"Pristinella bilobata",3573]
[null,"Pristinella rosea",3574]
[null,"Pristis pectinata",3575]
[null,"Proasellus coxalis",3576]
[null,"Proboscia alata",751]
[null,"Proboscia indica",752]
[null,"Procambarus clarkii",4689]
[null,"Proceraea cornuta",3577]
[null,"Proceraea prismatica",3578]
[null,"Procerodes litoralis",3579]
[null,"Procerodes littoralis",3580]
[null,"Procerodes ulvae",3581]
[null,"Processa canaliculata",3582]
[null,"Processa edulis",4277]
[null,"Processa hemphilli",3583]
[null,"Processa nouveli holthuisi",3584]
[null,"Procladius (Holotanypus) ferrugineus",1342]
[null,"Procladius (Psilotanypus) imicola",1343]
[null,"Procladius choreus",1344]
[null,"Procloeon bifidum",1345]
[null,"Prodiamesa olivacea ",1346]
[null,"Pronoctiluca spinifera",753]
[null,"Propappus glandulosus",3585]
[null,"Propappus volki",3586]
[null,"Propebela turricula",3587]
[null,"Prorocentrum compressum",754]
[null,"Prorocentrum cordatum",755]
[null,"Prorocentrum dentatum",756]
[null,"Prorocentrum gracile",757]
[null,"Prorocentrum lima",758]
[null,"Prorocentrum micans",759]
[null,"Prorocentrum minimum",760]
[null,"Prorocentrum redfieldii",761]
[null,"Prorocentrum rostratum",762]
[null,"Prorocentrum triestinum",763]
[null,"Prosphaerosyllis tetralix",4278]
[null,"Prostheceraeus vittatus",4279]
[null,"Prostoma graecense",3588]
[null,"Prostoma obscurum",764]
[null,"Prostomatella obscurum",3589]
[null,"Protanthea simplex",3590]
[null,"Protectocarpus speciosus",3591]
[null,"Proterorhinus marmoratus",3592]
[null,"Protoceratium reticulatum",765]
[null,"Protodorvillea kefersteini",3593]
[null,"Protodriloides chaetifer",3594]
[null,"Protohalopteris radicans",3595]
[null,"Protohydra leuckarti",3596]
[null,"Protomedeia fasciata",3597]
[null,"Protomonostroma undulatum",3598]
[null,"Protoperidinium achromaticum",766]
[null,"Protoperidinium bipes",767]
[null,"Protoperidinium brevipes",768]
[null,"Protoperidinium claudicans",769]
[null,"Protoperidinium conicum",770]
[null,"Protoperidinium crassipes",771]
[null,"Protoperidinium depressum",772]
[null,"Protoperidinium diabolum",773]
[null,"Protoperidinium diabolus",774]
[null,"Protoperidinium divergens",775]
[null,"Protoperidinium excentricum",776]
[null,"Protoperidinium globulus",777]
[null,"Protoperidinium granii",778]
[null,"Protoperidinium longipes",779]
[null,"Protoperidinium marie-lebouriae",780]
[null,"Protoperidinium oblongum",781]
[null,"Protoperidinium obtusum",782]
[null,"Protoperidinium ovatum",783]
[null,"Protoperidinium pallidum",784]
[null,"Protoperidinium pellucidum",785]
[null,"Protoperidinium pentagonum",786]
[null,"Protoperidinium steinii",787]
[null,"Protoperidinium thorianum",788]
[null,"Psamathe fusca",4203]
[null,"Psammechinus miliaris",3599]
[null,"Psammodictyon constrictum f. parvum",789]
[null,"Psammodrilus balanoglossoides",3600]
[null,"Psammoryctides albicola",3601]
[null,"Psammoryctides barbatus",790]
[null,"Psammoryctides moravicus ",4690]
[null,"Psectrocladius barbimanus",1347]
[null,"Psectrocladius bisetus ",1348]
[null,"Psectrocladius limbatellus",1349]
[null,"Psectrocladius obvius",1350]
[null,"Psectrocladius psilopterus",1351]
[null,"Psectrocladius simulans",1352]
[null,"Psectrocladius sordidellus",1353]
[null,"Psectrotanypus varius",1354]
[null,"Psetta maxima",3602]
[null,"Pseudamussium peslutrae",3603]
[null,"Pseudamussium septemradiatum",3604]
[null,"Pseudanabaena acicularis",791]
[null,"Pseudanabaena galeata",792]
[null,"Pseudanabaena limnetica",793]
[null,"Pseudanabaena mucicola",4691]
[null,"Pseudanodonta complanata",1355]
[null,"Pseudendoclonium dynamenae",3605]
[null,"Pseudendoclonium fucicola",3606]
[null,"Pseudendoclonium submarinum",3607]
[null,"Pseudione borealis",3608]
[null,"Pseudione callianassae",3609]
[null,"Pseudione tuberculata",3610]
[null,"Pseudobradya attenuata",4813]
[null,"Pseudobrania limbata",3611]
[null,"Pseudocalanus acuspes",4692]
[null,"Pseudocalanus elongatus",794]
[null,"Pseudocalanus minutus",3612]
[null,"Pseudocalanus minutus elongatus",3613]
[null,"Pseudochattonella farcimen",4693]
[null,"Pseudochattonella verruculosa",795]
[null,"Pseudochironomus prasinatus",1356]
[null,"Pseudococcomyxa chodatii",4916]
[null,"Pseudocuma (Pseudocuma) longicorne",3614]
[null,"Pseudocuma (Stenocuma) graciloides",3615]
[null,"Pseudocuma longicornis",3616]
[null,"Pseudodactylogyrus anguillae",4694]
[null,"Pseudodactylogyrus bini",4695]
[null,"Pseudodiaptomus marinus",4814]
[null,"Pseudokirchneriella contorta",4696]
[null,"Pseudolithoderma extensum",3617]
[null,"Pseudolithoderma rosenvingei",3618]
[null,"Pseudolithoderma subextensum",3619]
[null,"Pseudomicrura afzelii",3620]
[null,"Pseudomma affine",3621]
[null,"Pseudomonocelis agilis",3622]
[null,"Pseudomystides limbata",3623]
[null,"Pseudo-nitzschia americana",796]
[null,"Pseudonitzschia australis",797]
[null,"Pseudo-nitzschia delicatissima",798]
[null,"Pseudo-nitzschia fraudulenta",799]
[null,"Pseudo-nitzschia pungens",800]
[null,"Pseudo-nitzschia seriata",801]
[null,"Pseudopediastrum boryanum",4378]
[null,"Pseudopediastrum kawraiskyi",4842]
[null,"Pseudopedinella elastica",802]
[null,"Pseudopedinella pyriformis",803]
[null,"Pseudopedinella thomsenii",804]
[null,"Pseudopolydora antennata",3624]
[null,"Pseudopolydora paucibranchiata",3625]
[null,"Pseudopolydora pulchra",3626]
[null,"Pseudopotamilla reniformis",3627]
[null,"Pseudoprotella phasma",3628]
[null,"Pseudoscourfieldia marina",805]
[null,"Pseudosolenia calcar-avis",806]
[null,"Pseudosphaerocystis lacustris",4697]
[null,"Pseudostaurosira brevistriata",807]
[null,"Pseudostaurosira parasitica",4917]
[null,"Pseudothyone raphanus",3629]
[null,"Psolus phantapus",3630]
[null,"Psolus squamatus",3631]
[null,"Psolus valvatus",3632]
[null,"Psychomyia pusilla",1357]
[null,"Pteroncola inane",808]
[null,"Pterosiphonia parasitica",3633]
[null,"Pterosperma parallelum",809]
[null,"Pterothamnion plumula",3634]
[null,"Pterygocythereis jonesii",3635]
[null,"Pterygocythereis mucronata",3636]
[null,"Ptilota gunneri",3637]
[null,"Ptilota plumosa",3638]
[null,"Punctaria plantaginea",3639]
[null,"Punctaria tenuissima",3640]
[null,"Puncturella noachina",3641]
[null,"Pungitius pungitius",3642]
[null,"Pusa hispida",3643]
[null,"Pusa hispida botnica",4199]
[null,"Pusillina inconspicua",3644]
[null,"Pusillina sarsi",810]
[null,"Pusillina sarsii",811]
[null,"Pycnogonum litorale",3645]
[null,"Pycnogonum littorale",3646]
[null,"Pygospio elegans",3647]
[null,"Pylaiella littoralis",812]
[null,"Pyramimonas longicauda",813]
[null,"Pyramimonas virginica",814]
[null,"Pyrgiscus crenatus",3648]
[null,"Pyrgiscus rufescens",3649]
[null,"Pyripora catenularia",3650]
[null,"Pyrocystis lunula",815]
[null,"Pyrocystis noctiluca",816]
[null,"Pyrocystis pseudonoctiluca",817]
[null,"Pyrophacus horologicum",4698]
[null,"Pyropia leucosticta",3651]
[null,"Quadricilia rotundata",818]
[null,"Quadricoccus ellipticus",4699]
[null,"Quadricoccus euryhalinicus",819]
[null,"Quistadrilus multisetosus",3652]
[null,"Radiocystis geminata",4701]
[null,"Radix ampla",3653]
[null,"Radix auricularia",3654]
[null,"Radix balthica",3655]
[null,"Radix labiata",3656]
[null,"Radix peregra",820]
[null,"Ragionula rosacea",3657]
[null,"Raja clavata",3658]
[null,"Raja montagui",3659]
[null,"Ralfsia bornetii",3660]
[null,"Ralfsia clavata",3661]
[null,"Ralfsia lucida",3662]
[null,"Ralfsia verrucosa",3663]
[null,"Ralfsiella minima",4815]
[null,"Ranatra linearis",1358]
[null,"Rangia cuneata",821]
[null,"Raniceps raninus",3664]
[null,"Ranunculus aquatilis var. diffusus",1359]
[null,"Ranunculus baudotii",3665]
[null,"Ranunculus circinatus ",1360]
[null,"Ranunculus confervoides",3666]
[null,"Ranunculus peltatus",3667]
[null,"Ranunculus peltatus subsp. baudotii",3668]
[null,"Ranunculus peltatus subsp. peltatus",4287]
[null,"Ranunculus reptans ",1361]
[null,"Ranunculus trichophyllus",3669]
[null,"Ranunculus trichophyllus subsp. eradicatus",1362]
[null,"Rapana venosa",822]
[null,"Raphidocelis danubiana",823]
[null,"Raphidocelis sigmoidea",4702]
[null,"Raphitoma leufroyi",3670]
[null,"Raphitoma linearis",3671]
[null,"Rathkea octopunctata",3672]
[null,"Rayssiella curvata",4918]
[null,"Recurvirostra avosetta",3673]
[null,"Remora remora",3674]
[null,"Reteporella beaniana",3675]
[null,"Retusa obtusa",3676]
[null,"Retusa truncatula",824]
[null,"Retusa umbilicata",3677]
[null,"Rhabdoderma lineare",825]
[null,"Rhabdonema arcuatum",826]
[null,"Rhantus exsoletus",1363]
[null,"Rhantus suturellus",1364]
[null,"Rhaphoneis amphiceros",827]
[null,"Rhaphoneis minutissima",828]
[null,"Rheotanytarsus curtistylus",1365]
[null,"Rheotanytarsus exiguus",1366]
[null,"Rhinoglena frontalis",4703]
[null,"Rhithropanopeus harrisii",829]
[null,"Rhizocaulus verticillatus",3678]
[null,"Rhizoclonium implexum",3679]
[null,"Rhizoclonium riparium",830]
[null,"Rhizoclonium tortuosum",3680]
[null,"Rhizosolenia alata",831]
[null,"Rhizosolenia alata f. indica",4704]
[null,"Rhizosolenia bergonii",832]
[null,"Rhizosolenia delicatula",833]
[null,"Rhizosolenia flaccida",834]
[null,"Rhizosolenia fragilissima f. fragilissima",835]
[null,"Rhizosolenia hebetata",836]
[null,"Rhizosolenia hebetata f. semispina",4380]
[null,"Rhizosolenia imbricata",837]
[null,"Rhizosolenia imbricata var. minuta",4705]
[null,"Rhizosolenia indica",838]
[null,"Rhizosolenia minima",839]
[null,"Rhizosolenia phuketensis",840]
[null,"Rhizosolenia pungens",841]
[null,"Rhizosolenia setigera",842]
[null,"Rhizosolenia setigera f. pungens",4381]
[null,"Rhizosolenia similoides",4816]
[null,"Rhizosolenia styliformis",4817]
[null,"Rhodeus sericeus",3681]
[null,"Rhodine gracilior",843]
[null,"Rhodine loveni",3682]
[null,"Rhodinicola elongata",3683]
[null,"Rhodinicola gibbosa",3684]
[null,"Rhodochorton penicilliforme",3685]
[null,"Rhodochorton purpureum",3686]
[null,"Rhodomela confervoides",3687]
[null,"Rhodomonas lacustris",4706]
[null,"Rhodophyllis divaricata",3688]
[null,"Rhodophysema elegans",3689]
[null,"Rhodophysema georgei",3690]
[null,"Rhodymenia palmata",3691]
[null,"Rhoicosphenia abbreviata",844]
[null,"Rhopalodia gibba",4707]
[null,"Rhyacodrilus coccineus",3692]
[null,"Rhyacophila fasciata",3693]
[null,"Rhynchelmis limosella",3694]
[null,"Rhynchostegium riparioides",3695]
[null,"Riparia riparia",3696]
[null,"Ripistes parasita",3697]
[null,"Rissa tridactyla",3698]
[null,"Rissoa albella",3699]
[null,"Rissoa membranacea",845]
[null,"Rissoa parva",3700]
[null,"Rissoa sarsii",3701]
[null,"Rissoa violacea",3702]
[null,"Robertsonites tuberculatus",3703]
[null,"Romanogobio albipinnatus",4231]
[null,"Rosenvingiella constricta",3704]
[null,"Rosenvingiella polyrhiza",3705]
[null,"Rosenvingiella radicans",3706]
[null,"Rosenvingiellopsis constricta",3707]
[null,"Roxania utriculus",3708]
[null,"Rubrointrusa membranacea",3709]
[null,"Ruppia cirrhosa",3710]
[null,"Ruppia maritima",3711]
[null,"Ruthnielsenia tenuis",3712]
[null,"Rutilus rutilus",3713]
[null,"Sabella crassicornis",3714]
[null,"Sabella pavonina",3715]
[null,"Sabella penicillus",3716]
[null,"Sabella spallanzanii",3717]
[null,"Sabellides octocirrata",3718]
[null,"Saccharina latissima",3719]
[null,"Saduria entomon",846]
[null,"Sagartia elegans",3720]
[null,"Sagartia troglodytes",3721]
[null,"Sagartiogeton laceratus",847]
[null,"Sagartiogeton undatus",3722]
[null,"Sagartiogeton viduatus",3723]
[null,"Sagitta setosa",3724]
[null,"Sagittaria natans",4293]
[null,"Sagittaria sagittifolia ",1367]
[null,"Sahlingia subintegra",3725]
[null,"Salmo salar",3726]
[null,"Salmo trutta",3727]
[null,"Salvatoria limbata",3728]
[null,"Salvelinus fontinalis",3729]
[null,"Salvelinus namaycush",3730]
[null,"Samytha sexcirrata",3731]
[null,"Sander lucioperca",3732]
[null,"Sarcodictyon roseum",3733]
[null,"Sarda sarda",3734]
[null,"Sardina pilchardus",3735]
[null,"Sargassum muticum",3736]
[null,"Sarpa salpa",3737]
[null,"Sarsia tubulosa",848]
[null,"Sarsicytheridea bradii",3738]
[null,"Saxicava arctica",3739]
[null,"Saxicavella jeffreysi",3740]
[null,"Scagelia corallina",3741]
[null,"Scagelia pusilla",3742]
[null,"Scagelia pylaisaei",3743]
[null,"Scagelothamnion pusillum",3744]
[null,"Scalibregma inflatum",849]
[null,"Scalpellum scalpellum",3745]
[null,"Scaphander punctostriatus",3746]
[null,"Scardinius erythrophthalmus",3747]
[null,"Scenedesmus acuminatus",4708]
[null,"Scenedesmus apiculatus",4709]
[null,"Scenedesmus arcuatus",4710]
[null,"Scenedesmus bicaudatus",4711]
[null,"Scenedesmus caudato-aculeolatus",4888]
[null,"Scenedesmus ellipticus",850]
[null,"Scenedesmus obtusus",4712]
[null,"Sceptroneis mutabilis var. mutabilis",851]
[null,"Schedophilus medusophagus",3748]
[null,"Schistomeringos eliasoni",3750]
[null,"Schistomysis ornata",3751]
[null,"Schistomysis spiritus",3752]
[null,"Schizomavella (Schizomavella) linearis",3753]
[null,"Schizomavella linearis",3754]
[null,"Schizotricha frutescens",4280]
[null,"Schmidtea lugubris",3755]
[null,"Schmidtea polychroa",3756]
[null,"Schmitzia hiscockiana",3757]
[null,"Schmitzia neapolitana",3758]
[null,"Schoenoplectus lacustris",3759]
[null,"Schoenoplectus tabernaemontani ",1368]
[null,"Schroederia setigera",4713]
[null,"Scinaia furcellata",3760]
[null,"Scionella lornensis",3761]
[null,"Scolelepis (Parascolelepis) tridentata",852]
[null,"Scolelepis (Scolelepis) foliosa",3762]
[null,"Scolelepis (Scolelepis) squamata",3763]
[null,"Scolelepis bonnieri",3764]
[null,"Scolelepis foliosa",3765]
[null,"Scolelepis squamata",3766]
[null,"Scolelepis tridentata",853]
[null,"Scoletoma fragilis",854]
[null,"Scoletoma impatiens",3767]
[null,"Scoletoma magnidentata",3768]
[null,"Scoloplos (Scoloplos) armiger",3769]
[null,"Scoloplos armiger",855]
[null,"Scomber scombrus",3770]
[null,"Scomberesox saurus",3771]
[null,"Scomberesox saurus saurus",3772]
[null,"Scopelocheirus crenatus",3773]
[null,"Scopelocheirus hopei",3774]
[null,"Scophthalmus maximus",3775]
[null,"Scophthalmus rhombus",3776]
[null,"Scrippsiella hangoei",856]
[null,"Scrippsiella trochoidea",857]
[null,"Scrobicularia plana",3777]
[null,"Scruparia ambigua",3778]
[null,"Scruparia chelata",3779]
[null,"Scrupocellaria reptans",3780]
[null,"Scrupocellaria scabra",3781]
[null,"Scrupocellaria scruposa",3782]
[null,"Scutopus ventrolineatus",3783]
[null,"Scyliorhinus canicula",3784]
[null,"Scyliorhinus stellaris",3785]
[null,"Scytosiphon lomentaria",3786]
[null,"Scytosiphon simplicissimus",3787]
[null,"Sebastes norvegicus",3788]
[null,"Sebastes viviparus",3789]
[null,"Securiflustra securifrons",3790]
[null,"Segmentina nitida",3791]
[null,"Seirospora interrupta",3792]
[null,"Seirospora seirosperma",3793]
[null,"Selenastrum gracile",4382]
[null,"Selioides bolbroei",3794]
[null,"Sellaphora bacillum",4714]
[null,"Semblis atrata",3795]
[null,"Semibalanus balanoides",858]
[null,"Semierycina nitida",3796]
[null,"Serranus scriba",859]
[null,"Serratella ignita",1369]
[null,"Sertularella polyzonias",4281]
[null,"Sertularella rugosa",3797]
[null,"Sertularella tenella",4282]
[null,"Sertularia cupressina",860]
[null,"Sertularia tenera",3798]
[null,"Sialis lutaria",1370]
[null,"Sialis morio",3799]
[null,"Sida crystallina",3800]
[null,"Sigalion mathildae",3801]
[null,"Sigara distincta",3802]
[null,"Sigara falleni",3803]
[null,"Sigara fossarum",3804]
[null,"Sigara semistriata",3805]
[null,"Sigara striata",3806]
[null,"Sige fusigera",3807]
[null,"Silurus glanis",3808]
[null,"Sinelobus stanfordi ",4715]
[null,"Sinelobus vanhaareni",861]
[null,"Siphonenteron bilineatum",3809]
[null,"Siphonoecetes (Centraloecetes) kroyeranus",3810]
[null,"Siphonoecetes (Centraloecetes) striatus",3811]
[null,"Siphonoecetes colletti",3812]
[null,"Siphonoecetes striatus",3813]
[null,"Skeletonema costatum",862]
[null,"Skeletonema marinoi",863]
[null,"Skeletonema potamos",864]
[null,"Skeletonema subsalsum",865]
[null,"Skeneopsis planorbis",3814]
[null,"Slavina appendiculata",3815]
[null,"Smittina bella",3816]
[null,"Smittoidea reticulata",3817]
[null,"Snowella atomus",866]
[null,"Snowella fennica",867]
[null,"Snowella lacustris",868]
[null,"Snowella litoralis",869]
[null,"Snowella septentrionalis",870]
[null,"Socarnes vahlii",3818]
[null,"Solaster endeca",3819]
[null,"Solea solea",3820]
[null,"Somateria mollissima",3821]
[null,"Somateria spectabilis",3822]
[null,"Somatochlora flavomaculata",1371]
[null,"Somatochlora metallica",1372]
[null,"Somniosus microcephalus",3823]
[null,"Sorapion kjellmanii",3824]
[null,"Sorgenfreispira brachystoma",3825]
[null,"Sosane gracilis",3826]
[null,"Sosane sulcata",3827]
[null,"Sosane wahrbergi",3828]
[null,"Sparganium emersum ",1373]
[null,"Sparganium erectum ",1374]
[null,"Sparganium gramineum ",1375]
[null,"Sparganium natans ",1376]
[null,"Sparisoma cretense",871]
[null,"Spartina anglica",4716]
[null,"Spartina townsendii",4717]
[null,"Sparus aurata",3829]
[null,"Spatangus purpureus",3830]
[null,"Specaria josinae",3831]
[null,"Spermatochnus paradoxus",3832]
[null,"Spermatozopsis exsultans",4718]
[null,"Spermothamnion repens",3833]
[null,"Sphacelaria arctica",3834]
[null,"Sphacelaria bipinnata",3835]
[null,"Sphacelaria caespitula",3836]
[null,"Sphacelaria cirrosa",3837]
[null,"Sphacelaria nana",3838]
[null,"Sphacelaria plumigera",3839]
[null,"Sphacelaria plumosa",3840]
[null,"Sphacelaria plumula",3841]
[null,"Sphacelaria radicans",3842]
[null,"Sphacelaria reticulata",3843]
[null,"Sphacelaria rigidula",3844]
[null,"Sphacelaria solitaria",3845]
[null,"Sphacelaria tribuloides",3846]
[null,"Sphaceloderma caespitulum",3847]
[null,"Sphacelorbus nanus",3848]
[null,"Sphaerellopsis fluviatilis",4889]
[null,"Sphaerium corneum",3849]
[null,"Sphaerium rivicola",3850]
[null,"Sphaerium solidum",1377]
[null,"Sphaerocystis schroeteri",872]
[null,"Sphaerodoridium balticum",3851]
[null,"Sphaerodoridium minutum",3852]
[null,"Sphaerodoridium philippi",3853]
[null,"Sphaerodoropsis baltica",3854]
[null,"Sphaerodoropsis disticha",3855]
[null,"Sphaerodoropsis flavum",3856]
[null,"Sphaerodoropsis minuta",3857]
[null,"Sphaerodoropsis philippi",3858]
[null,"Sphaerodorum flavum",873]
[null,"Sphaerodorum gracilis",874]
[null,"Sphaeroma hookeri",3859]
[null,"Sphaeroma rugicauda",3860]
[null,"Sphaerosyllis hystrix",3861]
[null,"Sphaerotilus natans",4719]
[null,"Sphaerotrichia divaricata",3862]
[null,"Sphoeroides marmoratus",875]
[null,"Sphyrna zygaena",3863]
[null,"Spinachia spinachia",3864]
[null,"Spio armata",3865]
[null,"Spio arndti",3866]
[null,"Spio decorata",3867]
[null,"Spio decoratus",3868]
[null,"Spio filicornis",876]
[null,"Spio goniocephala",3869]
[null,"Spio martinensis",3870]
[null,"Spio mecznikowianus",3871]
[null,"Spiochaetopterus bergensis",3872]
[null,"Spiochaetopterus typicus",3873]
[null,"Spiophanes bombyx",3875]
[null,"Spiophanes kroeyeri",877]
[null,"Spiophanes kroyeri",878]
[null,"Spiralinella spiralis",3876]
[null,"Spiridion insigne",3877]
[null,"Spirobranchus triqueter",879]
[null,"Spirodela polyrhiza ",1378]
[null,"Spirodela polyrrhiza",1379]
[null,"Spirogyra",3878]
[null,"Spirontocaris liljeborgii",3880]
[null,"Spirontocaris lilljeborgii",3881]
[null,"Spirorbis (Spirorbis) corallinae",3882]
[null,"Spirorbis (Spirorbis) inornatus",4283]
[null,"Spirorbis (Spirorbis) spirorbis",3883]
[null,"Spirorbis (Spirorbis) tridentatus",3884]
[null,"Spirorbis granulatus",3885]
[null,"Spirorbis spirorbis",3886]
[null,"Spirosperma ferox",3887]
[null,"Spirosperma velutinus",3888]
[null,"Spirulina major",4383]
[null,"Spirulina subsalsa",880]
[null,"Spisula elliptica",3889]
[null,"Spisula solida",3890]
[null,"Spisula subtruncata",881]
[null,"Spondyliosoma cantharus",3891]
[null,"Spondylus spinosus",882]
[null,"Spongilla alba",4720]
[null,"Spongilla lacustris",883]
[null,"Spongomorpha aeruginosa",3893]
[null,"Spongomorpha centralis",3894]
[null,"Spongonema tomentosum",3895]
[null,"Sporochnus pedunculatus",3896]
[null,"Sprattus sprattus",3897]
[null,"Squalius cephalus",3898]
[null,"Squalus acanthias",3899]
[null,"Squatina squatina",3900]
[null,"Stagnicola corvus",3901]
[null,"Stagnicola palustris",3902]
[null,"Staszicella dinobryonis",4890]
[null,"Staurastrum avicula",4891]
[null,"Staurastrum gracile",4721]
[null,"Staurastrum paradoxum",4722]
[null,"Staurastrum pingue",4723]
[null,"Stauridiosarsia spongicola",3903]
[null,"Stauridium tetras",884]
[null,"Staurodesmus triangularis",4724]
[null,"Staurosira construens",885]
[null,"Staurosira construens var. construens",4892]
[null,"Staurosira construens var. Venter",4725]
[null,"Stempellina almi",3904]
[null,"Stempellina subglabripennis",3905]
[null,"Stempellinella edwardsi",3906]
[null,"Stempellinella minor",1380]
[null,"Stenosemus albus",3907]
[null,"Stenothoe marina",3908]
[null,"Stenothoe monoculoides",3909]
[null,"Stenothoe valida",4843]
[null,"Stenula rubrovittata",3910]
[null,"Stephanodiscus binderanus",4893]
[null,"Stephanodiscus hantzschii",886]
[null,"Stephanodiscus minutulus",4894]
[null,"Stephanodiscus neoastraea",4726]
[null,"Stephanodiscus parvus",887]
[null,"Stephanodiscus rotula",4895]
[null,"Stephanolepis hispidus",888]
[null,"Stercorarius parasiticus",3911]
[null,"Sterna caspia",3912]
[null,"Sterna hirundo",3913]
[null,"Sterna paradisaea",3914]
[null,"Sterna sandvicensis",3915]
[null,"Sternula albifrons",3916]
[null,"Steromphala cineraria",3917]
[null,"Sthenelais boa",3918]
[null,"Sthenelais limicola",3919]
[null,"Stichastrella rosea",3920]
[null,"Stictochironomus crassiforceps",1381]
[null,"Stictochironomus psammophilus",1382]
[null,"Stictochironomus rosenschoeldi",1383]
[null,"Stictochironomus sticticus",1384]
[null,"Stictyosiphon soriferus",3921]
[null,"Stictyosiphon tortilis",3922]
[null,"Stigeoclonium protensum",3923]
[null,"Stigeoclonium tenue",3924]
[null,"Stilophora nodulosa",3925]
[null,"Stilophora rhizodes",3926]
[null,"Stilophora tenella",3927]
[null,"Stomachetosella sinuosa",3928]
[null,"Stomacrustula sinuosa",3929]
[null,"Stomphia coccinea",3930]
[null,"Stragularia clavata",3931]
[null,"Stratiotes aloides",4292]
[null,"Streblonema fasciculatum",3932]
[null,"Streblonema infestans",3933]
[null,"Streblosoma bairdi",3934]
[null,"Streblosoma intestinale",3935]
[null,"Streblospio benedicti",889]
[null,"Streblospio shrubsoli",3936]
[null,"Streblospio shrubsolii",3937]
[null,"Streptosyllis websteri",3938]
[null,"Striaria attenuata",3939]
[null,"Striatella unipunctata",890]
[null,"Stromatella monostromatica",3940]
[null,"Strongylocentrotus droebachiensis",3941]
[null,"Stuckenia pectinata",891]
[null,"Stuckenia vaginata",3942]
[null,"Styela clava",892]
[null,"Styela coriacea",3943]
[null,"Styela rustica",3944]
[null,"Stylaria fossularis",3945]
[null,"Stylaria lacustris",893]
[null,"Stylochoplana maculata",3946]
[null,"Stylodrilus heringianus",3947]
[null,"Stylonema alsidii",3948]
[null,"Stylonema cornu-cervi",3949]
[null,"Stylostomum ellipse",3950]
[null,"Stypocaulon scoparium",3951]
[null,"Stypopodium schimperi",894]
[null,"Suberites ficus",3952]
[null,"Suberites virgultosus",3953]
[null,"Subsilicea fragilarioides",4818]
[null,"Subularia aquatica ",1385]
[null,"Surirella biseriata",4727]
[null,"Surirella crumena",4728]
[null,"Swiftia rosea",3954]
[null,"Sycon ciliatum",3955]
[null,"Syllides longocirrata",3956]
[null,"Syllides longocirratus",3957]
[null,"Syllidia armata",3958]
[null,"Syllis armillaris",895]
[null,"Syllis cornuta",3959]
[null,"Syllis variegata",3960]
[null,"Sympecma paedisca",1386]
[null,"Sympetrum danae",1387]
[null,"Sympetrum flaveolum",1388]
[null,"Sympetrum striolatum",1389]
[null,"Sympetrum vulgatum",1390]
[null,"Symphodus melops",896]
[null,"Symphyocarpus strangulans",3961]
[null,"Symphyocladia parasitica",3962]
[null,"Synchaeta baltica",897]
[null,"Synchaeta fennica",4729]
[null,"Synchaeta lakowitziana",4730]
[null,"Synchaeta longipes",4731]
[null,"Synchaeta monopus",898]
[null,"Synchaeta oblonga",4732]
[null,"Synchaeta pectinata",4733]
[null,"Synchaeta stylata",4734]
[null,"Synchaeta triophthalma",4735]
[null,"Synchelidium haplocheles",3963]
[null,"Synchelidium maculatum",3964]
[null,"Synchelidium tenuimanum",3965]
[null,"Syncoryne reinkei",3966]
[null,"Synedra acus",899]
[null,"Synedra acus var. acus",4736]
[null,"Synedra danica",900]
[null,"Synedra nitzschioides f. nitzschioides",901]
[null,"Synedra ulna",902]
[null,"Synedra ulna var. subcontracta",903]
[null,"Synedra ulna var. ulna",4737]
[null,"Synelmis klatti",3967]
[null,"Synendotendipes impar",1391]
[null,"Syngnathus acus",904]
[null,"Syngnathus rostellatus",3969]
[null,"Syngnathus typhle",905]
[null,"Synidotea laevidorsalis ",4738]
[null,"Synidotea laticauda",4819]
[null,"Synoicum pulmonaria",3970]
[null,"Synorthocladius semivirens",1392]
[null,"Synura uvella",4739]
[null,"Tabellaria fenestrata",4782]
[null,"Tabellaria flocculosa",4740]
[null,"Tabellaria flocculosa var. asterionelloides",4741]
[null,"Tabularia fasciculata",906]
[null,"Tabularia tabulata",907]
[null,"Tabularia waernii",908]
[null,"Tachybaptus ruficollis",3971]
[null,"Tadorna tadorna",3972]
[null,"Talitrus saltator",3973]
[null,"Tanais dulongii",4742]
[null,"Tanaissus lilljeborgi",3974]
[null,"Tanganella muelleri",3975]
[null,"Tanypus kraatzi",1393]
[null,"Tanypus punctipennis",3976]
[null,"Tanypus vilipennis",1394]
[null,"Tanypus punctipennis",1395]
[null,"Tanytarsus brundini",1396]
[null,"Tanytarsus chinyensis",1397]
[null,"Tanytarsus eminulus",1398]
[null,"Tanytarsus excavatus",1399]
[null,"Tanytarsus gregarius",1400]
[null,"Tanytarsus inaequalis",1401]
[null,"Tanytarsus lestagei ",1402]
[null,"Tanytarsus medius",1404]
[null,"Tanytarsus mendax",1405]
[null,"Tanytarsus occultus",1406]
[null,"Tanytarsus pallidicornis ",1407]
[null,"Tanytarsus smolandicus",1408]
[null,"Tanytarsus usmaensis",1409]
[null,"Tanytarsus verralli",1410]
[null,"Taurulus bubalis",909]
[null,"Tealia felina",3977]
[null,"Tectura testudinalis",3978]
[null,"Tectura virginea",3979]
[null,"Tegella unicornis",3980]
[null,"Teleaulax acuta",910]
[null,"Teleaulax amphioxeia",911]
[null,"Tellamia contorta",3981]
[null,"Tellimya ferruginosa",912]
[null,"Tellimya tenella",3982]
[null,"Tellina donacina",3983]
[null,"Tellina fabula",3984]
[null,"Tellina pusilla",3985]
[null,"Tellina pygmaea",3986]
[null,"Tellina tenuis",3987]
[null,"Telmatogeton japonicus",3988]
[null,"Telonema antarcticum",913]
[null,"Telonema subtile",914]
[null,"Temachia microstoma",3989]
[null,"Temora longicornis",915]
[null,"Temora stylifera",916]
[null,"Tenellia adspersa",917]
[null,"Terebellides stroemi",918]
[null,"Terebellides stroemii",919]
[null,"Teredo navalis",3990]
[null,"Terminoflustra barleei",3991]
[null,"Tessaradoma boreale",3992]
[null,"Testudinalia testudinalis",3993]
[null,"Testudinella patina",4743]
[null,"Tetrabaena socialis",4896]
[null,"Tetrachlorella alternans",4897]
[null,"Tetradesmus lagerheimii",4744]
[null,"Tetradesmus obliquus",4919]
[null,"Tetraëdron caudatum",4385]
[null,"Tetraëdron minimum",4386]
[null,"Tetraëdron triangulare",4747]
[null,"Tetraëdron trigonum",4748]
[null,"Tetraselmis cordiformis",4749]
[null,"Tetrastemma bioculatum",3994]
[null,"Tetrastemma coronatum",3995]
[null,"Tetrastemma melanocephalum",3996]
[null,"Tetrastrum elegans",920]
[null,"Tetrastrum heteracanthum",4898]
[null,"Tetrastrum staurogeniaeforme",921]
[null,"Tetrastrum staurogeniiforme",922]
[null,"Tetronarce nobiliana",3998]
[null,"Thalassarachna basteri",3999]
[null,"Thalassionema bacillare",923]
[null,"Thalassionema frauenfeldii",924]
[null,"Thalassionema nitzschioides",925]
[null,"Thalassiosira aestivalis",926]
[null,"Thalassiosira anguste-lineata",927]
[null,"Thalassiosira baltica",928]
[null,"Thalassiosira decipiens",929]
[null,"Thalassiosira eccentrica",930]
[null,"Thalassiosira hyperborea",931]
[null,"Thalassiosira hyperborea var. lacunosa",4750]
[null,"Thalassiosira lacustris",932]
[null,"Thalassiosira levanderi",933]
[null,"Thalassiosira minima",4820]
[null,"Thalassiosira minuscula",934]
[null,"Thalassiosira nordenskioeldii",935]
[null,"Thalassiosira oestrupii",936]
[null,"Thalassiosira proschkinae",937]
[null,"Thalassiosira pseudonana",938]
[null,"Thalassiosira punctigera",4751]
[null,"Thalassiosira rotula",939]
[null,"Thalassiosira weissflogii",940]
[null,"Thalassiothrix delicatula",941]
[null,"Thalassodrilus prostatus",4000]
[null,"Thalassosmittia thalassophila",4387]
[null,"Tharyx killariensis",4001]
[null,"Tharyx marioni",4002]
[null,"Tharyx mcintoshi",4003]
[null,"Tharyx multibranchiis",4004]
[null,"Tharyx vivipara",4005]
[null,"Thecocodium quadratum",4006]
[null,"Thelepus cincinnatus",4007]
[null,"Themisto abyssorum",4008]
[null,"Theodoxus fluviatilis",942]
[null,"Thermocyclops crassus",4752]
[null,"Thermocyclops dybowskii",4899]
[null,"Thermocyclops oithonoides",4753]
[null,"Therochaeta flabellata",4009]
[null,"Theromyzon tessulatum",1411]
[null,"Thia scutellata",4010]
[null,"Thienemannimyia pseudocarnea",1412]
[null,"Thoracophelia flabellifera",4011]
[null,"Thorogobius ephippiatus",4012]
[null,"Thracia convexa",943]
[null,"Thracia papyracea",4013]
[null,"Thracia phaseolina",4014]
[null,"Thracia pubescens",4015]
[null,"Thracia villosiuscula",4016]
[null,"Thunnus thynnus",4017]
[null,"Thyasira equalis",4018]
[null,"Thyasira flexuosa",944]
[null,"Thyasira sarsii",4019]
[null,"Thymallus thymallus",4020]
[null,"Thyone fusus",4021]
[null,"Thyonidium drummondii",4022]
[null,"Thyonidium hyalinum",4023]
[null,"Thyonidium pellucidum",4024]
[null,"Thysanocardia procera",945]
[null,"Tiarina fusus",946]
[null,"Tilopteris mertensii",4025]
[null,"Timoclea ovata",4026]
[null,"Tinca tinca",4027]
[null,"Tinodes waeneri",1413]
[null,"Tintinnopsis fimbriata",947]
[null,"Tintinnopsis lobiancoi",948]
[null,"Titanoderma corallinae",4028]
[null,"Titanoderma pustulatum",4029]
[null,"Tmetonyx cicada",4030]
[null,"Tmetonyx similis",4031]
[null,"Tolypella nidifica",4032]
[null,"Tonicella marmorea",4033]
[null,"Tonicella rubra",4034]
[null,"Torodinium robustum",949]
[null,"Torpedo marmorata",4035]
[null,"Torpedo nobiliana",4036]
[null,"Torularia atra",4037]
[null,"Trachelomonas hispida",4754]
[null,"Trachelomonas volvocina",4755]
[null,"Trachinotus ovatus",4038]
[null,"Trachinus draco",4039]
[null,"Trachipterus arcticus",4040]
[null,"Trachurus trachurus",4041]
[null,"Trachythyone elongata",4042]
[null,"Travisia forbesii",4043]
[null,"Treubaria schmidlei",4756]
[null,"Treubaria setigera",4900]
[null,"Treubaria triappendiculata",4757]
[null,"Tribelos intextus",1414]
[null,"Tribonema affine",4758]
[null,"Tricellaria inopinata",4759]
[null,"Triceratium alternans f. alternans",950]
[null,"Triceratium favus",4821]
[null,"Trichobranchus glacialis",4044]
[null,"Trichobranchus roseus",951]
[null,"Trichocerca capucina",4901]
[null,"Trichocerca marina",952]
[null,"Trichocerca rattus",4760]
[null,"Trichostegia minor",1415]
[null,"Trichotria pocillum",4761]
[null,"Trididemnum tenerum",4045]
[null,"Tridonta borealis",4046]
[null,"Tridonta elliptica",4047]
[null,"Tridonta montagui",4048]
[null,"Trieres regia",4762]
[null,"Triglochin maritima",4291]
[null,"Trigloporus lastoviza",4049]
[null,"Triglops murrayi",4050]
[null,"Triglopsis quadricornis",4051]
[null,"Trigonium alternans",953]
[null,"Tringa totanus",4052]
[null,"Tripodiscus argus",4844]
[null,"Tripos furca",954]
[null,"Tripos fusus",955]
[null,"Tripos horridus",956]
[null,"Tripos lineatus",957]
[null,"Tripos longipes",958]
[null,"Tripos macroceros",959]
[null,"Trisopterus esmarkii",4053]
[null,"Trisopterus luscus",960]
[null,"Trisopterus minutus",4054]
[null,"Trissocladius brevipalpis",1416]
[null,"Tritia incrassata",4055]
[null,"Tritia nitida",961]
[null,"Tritia pygmaea",962]
[null,"Tritia reticulata",963]
[null,"Triticella flava",4056]
[null,"Triticella pedicellata",4057]
[null,"Tritonia hombergi",4058]
[null,"Tritonia hombergii",4059]
[null,"Tritonia plebeia",4060]
[null,"Trivia arctica",4061]
[null,"Trochiscia multispinosa",4904]
[null,"Trochochaeta multisetosa",4062]
[null,"Tryblionella coarctata",964]
[null,"Tryblionella compressa",965]
[null,"Tryblionella hungarica",4763]
[null,"Tryphosa nana",4063]
[null,"Tryphosites longipes",4064]
[null,"Tsengia bairdii",4065]
[null,"Tubifex blanchardi",966]
[null,"Tubifex costatus",4066]
[null,"Tubifex ignotus",4067]
[null,"Tubifex nerthus",4068]
[null,"Tubifex newaensis",4069]
[null,"Tubifex tubifex",4070]
[null,"Tubificoides amplivasatus",4071]
[null,"Tubificoides benedeni",4072]
[null,"Tubificoides benedii",967]
[null,"Tubificoides heterochaetus",968]
[null,"Tubificoides intermedius",4073]
[null,"Tubificoides pseudogaster",969]
[null,"Tubulanus annulatus",4074]
[null,"Tubulanus polymorphus",4075]
[null,"Tubularia indivisa",970]
[null,"Tubularia larynx",4076]
[null,"Tubulipora aperta",4077]
[null,"Tubulipora liliacea",4078]
[null,"Tubulipora lobifera",4079]
[null,"Tubulipora penicillata",4080]
[null,"Tubulipora phalangea",4284]
[null,"Tubulipora plumosa",4081]
[null,"Turbicellepora avicularis",4082]
[null,"Turbonilla crenata",4083]
[null,"Turbonilla fulvocincta",4084]
[null,"Turbonilla interrupta",4085]
[null,"Turbonilla jeffreysii",4086]
[null,"Turbonilla rufescens",4087]
[null,"Turrisipho fenestratus",4088]
[null,"Turritella communis",4089]
[null,"Typha angustifolia ",1417]
[null,"Typha latifolia ",1418]
[null,"Typhlomangelia nivalis",4090]
[null,"Typhlotanais aequiremis",4091]
[null,"Typosyllis armillaris",4092]
[null,"Typosyllis cornuta",4093]
[null,"Tyrannodinium edax",4905]
[null,"Ulnaria capitata",4764]
[null,"Ulnaria delicatissima var. angustissima",4765]
[null,"Ulnaria ulna",971]
[null,"Ulnaria ulna var. acus",4766]
[null,"Ulophysema oeresundense",4094]
[null,"Ulothrix flacca",972]
[null,"Ulothrix implexa",4095]
[null,"Ulothrix pseudoflacca",4096]
[null,"Ulothrix speciosa",4097]
[null,"Ulothrix subflaccida",4098]
[null,"Ulothrix tenerrima",4099]
[null,"Ulothrix zonata",4100]
[null,"Ulva australis",973]
[null,"Ulva clathrata",4101]
[null,"Ulva compressa",974]
[null,"Ulva curvata",975]
[null,"Ulva flexuosa",976]
[null,"Ulva flexuosa subsp. Paradoxa",4102]
[null,"Ulva intestinalis",977]
[null,"Ulva lactuca",4103]
[null,"Ulva linza",978]
[null,"Ulva pertusa",979]
[null,"Ulva prolifera",980]
[null,"Ulva simplex",4104]
[null,"Ulva splitiana",4105]
[null,"Ulva torta",4106]
[null,"Ulvaria fusca",4107]
[null,"Ulvaria splendens",4108]
[null,"Ulvella cladophorae",4109]
[null,"Ulvella heteroclada",4110]
[null,"Ulvella inflata",4111]
[null,"Ulvella lens",4112]
[null,"Ulvella leptochaete",4113]
[null,"Ulvella operculata",4114]
[null,"Ulvella repens",4115]
[null,"Ulvella scutata",4116]
[null,"Ulvella setchellii",4117]
[null,"Ulvella testarum",4118]
[null,"Ulvella viridis",4119]
[null,"Ulvella wittrockii",4120]
[null,"Ulvopsis grevilleii",4121]
[null,"Uncinais uncinata",4122]
[null,"Unciola planipes",4123]
[null,"Undaria pinnatifida",981]
[null,"Undella clevei",982]
[null,"Unio crassus",4124]
[null,"Unio pictorum",4125]
[null,"Unio tumidus",4126]
[null,"Upogebia deltaura",4127]
[null,"Upogebia stellata",4128]
[null,"Uria aalge",4129]
[null,"Uronema curvatum",4130]
[null,"Urosalpinx cinerea",4767]
[null,"Urospora bangioides",4131]
[null,"Urospora neglecta",4132]
[null,"Urospora penicilliformis",4133]
[null,"Urospora wormskioldii",4134]
[null,"Urothoe brevicornis",4135]
[null,"Urothoe elegans",4136]
[null,"Urothoe grimaldii",4137]
[null,"Urothoe poseidonis",4138]
[null,"Urticina felina",4139]
[null,"Utricularia australis",4290]
[null,"Utricularia intermedia",4289]
[null,"Utricularia minor",4288]
[null,"Utricularia vulgaris ",1419]
[null,"Valvata cristata",4141]
[null,"Valvata macrostoma",4142]
[null,"Valvata piscinalis",4143]
[null,"Valvata sibirica",4144]
[null,"Vanellus vanellus",4145]
[null,"Vaucheria",4146]
[null,"Vaucheria arcassonensis",4147]
[null,"Vaucheria compacta",4148]
[null,"Vaucheria coronata",4149]
[null,"Vaucheria dichotoma",4150]
[null,"Vaucheria erythrospora",4151]
[null,"Vaucheria intermedia",4152]
[null,"Vaucheria litorea",4153]
[null,"Vaucheria medusa",4154]
[null,"Vaucheria sescuplicaria",4155]
[null,"Vaucheria subsimplex",4156]
[null,"Vaucheria synandra",4157]
[null,"Vaucheria velutina",4158]
[null,"Vejdovskyella comata",4159]
[null,"Vejdovskyella intermedia",4160]
[null,"Vejdovskyella macrochaeta",4161]
[null,"Velutina velutina",4162]
[null,"Venerupis corrugata",983]
[null,"Venerupis pullastra",4163]
[null,"Venerupis senegalensis",4164]
[null,"Venus gallina",4165]
[null,"Venus gallina striatula",4166]
[null,"Verruca stroemia",4167]
[null,"Vertebrata byssoides",984]
[null,"Vertebrata fucoides",985]
[null,"Vertebrata lanosa",4168]
[null,"Vertebrata nigra",4169]
[null,"Vibrio alginolyticus",4768]
[null,"Vibrio anguillarum",4769]
[null,"Vibrio brasiliensis",4770]
[null,"Vibrio cholerae",4771]
[null,"Vibrio mimicus",4772]
[null,"Vibrio parahaemolyticus",4773]
[null,"Vibrio paxillifer",989]
[null,"Vibrio vulnificus",4774]
[null,"Victorella muelleri",4171]
[null,"Victorella pavida",990]
[null,"Vimba vimba",4174]
[null,"Virgularia mirabilis",4175]
[null,"Vitreolina philippi",4176]
[null,"Vitreolina philippii",4177]
[null,"Viviparus contectus",4178]
[null,"Viviparus viviparus",4179]
[null,"Volvox aureus",4775]
[null,"Vosmaeria crustacea",4180]
[null,"Walkeria uva",4140]
[null,"Warnowia parva",986]
[null,"Watersipora subtorquata",4776]
[null,"Westella botryoides",4777]
[null,"Westwoodilla acutifrons",4170]
[null,"Westwoodilla caecula",987]
[null,"Westwoodilla hyalina",988]
[null,"Wildemania amplissima",4172]
[null,"Wildemania miniata",4173]
[null,"Willea apiculata",4778]
[null,"Willea crucifera",4389]
[null,"Willea rectangularis",4779]
[null,"Wormaldia subnigra",1420]
[null,"Woronichinia compacta",991]
[null,"Woronichinia elorantae",992]
[null,"Woronichinia naegeliana",4780]
[null,"Xantho pilipes",4181]
[null,"Xenochironomus xenolabis",1421]
[null,"Xenoturbella bocki",4182]
[null,"Xenus cinereus",4183]
[null,"Xiphias gladius",4184]
[null,"Ylodes reuteri",1422]
[null,"Yoldiella lucida",4185]
[null,"Zalutschia mucronata ",1423]
[null,"Zannichellia major",4186]
[null,"Zannichellia pallustris",4781]
[null,"Zannichellia palustris",4187]
[null,"Zeugopterus punctatus",4188]
[null,"Zeus faber",4189]
[null,"Zirfaea crispata",4190]
[null,"Zoarces viviparus",993]
[null,"Zostera (Zostera) marina",4191]
[null,"Zostera (Zosterella) noltei",4192]
[null,"Zostera marina",4193]
[null,"Zostera noltii",4194]
[null,"Zygnema",4195]
[null,"Zygoceros rhombus",4822]
[null,"Zygoceros surirella",4845]